Workbook

Sheet AFRSvsFRSapprops (hidden)
A1: Approp | B1: FMS Approp Index
A2: 011 | B2: 101
A3: 3E0 | B3: 3E0
A4: AC2 | B4: 123
A5: AC1 | B5: 123
A6: B01 | B6: B01
A7: BA1 | B7: BA1
A8: BA2 | B8: BA2
A9: BA0 | B9: BA0
A10: BD1 | B10: BD1
A11: BD2 | B11: BD2
A12: BG1 | B12: BG1
A13: BG2 | B13: BG2
A14: BJ1 | B14: BJ1
A15: BK1 | B15: BK1
A16: BK2 | B16: BK2
A17: BP1 | B17: BP1
A18: BP2 | B18: BP2
A19: BQ1 | B19: BQ1
A20: BQ2 | B20: BQ2
A21: BR1 | B21: BR1
A22: BR2 | B22: BR2
A23: CF1 | B23: CF1
A24: CG2 | B24: CG2
A25: DA0 | B25: DA0
A26: E01 | B26: E01
A27: T72 | B27: T72
A28: 430 | B28: 430

Sheet CurrentGrantData (hidden)
A1: OrgName | B1: ProgramName | C1: GrantNumber | D1: Adjustments | E1: Amount | F1: Starts | G1: Expires | H1: FinalBillingDate
A2: Bates Technical College | B2: Basic Food Employment and Training Grant | C2: 128-BFET-15 | D2: 0 | E2: 250480 | F2: 2014-10-01 | G2: 2015-09-30 | H2: 2015-10-31
A3: Bates Technical College | B3: Basic Food Employment and Training Grant | C3: 128-BFET-16 | D3: 0 | E3: 204660 | F3: 2015-10-01 | G3: 2016-09-30 | H3: 2016-10-31
A4: Bates Technical College | B4: BEdA Leadership Block Grant | C4: 128-BLBG-16 | D4: 0 | E4: 5563 | F4: 2015-07-01 | G4: 2016-06-30 | H4: 2016-07-14
A5: Bates Technical College | B5: BEdA Master Grant | C5: 128-BEDA-16 | D5: 0 | E5: 151570 | F5: 2015-07-01 | G5: 2016-06-30 | H5: 2016-07-14
A6: Bates Technical College | B6: BEdA State Plan Innovations Grant | C6: 128-BSPI-15 | D6: 0 | E6: 60000 | F6: 2014-11-01 | G6: 2016-06-30 | H6: 2016-07-14
A7: Bates Technical College | B7: Early Achievers Grant – State Funding | C7: 128-EAGS-16 | D7: 0 | E7: 148800 | F7: 2015-11-01 | G7: 2016-06-30 | H7: 2016-07-14
A8: Bates Technical College | B8: Early Achievers Opportunity Grant Application | C8: 128-EAOG-16 | D8: 0 | E8: 98150 | F8: 2015-07-01 | G8: 2015-12-31 | H8: 2016-01-31
A9: Bates Technical College | B9: Perkins Leadership Block Grant | C9: 128-PLB-16 | D9: 0 | E9: 16000 | F9: 2015-07-01 | G9: 2016-06-30 | H9: 2016-07-14
A10: Bates Technical College | B10: Perkins Plan | C10: 128-PRK-16 | D10: 0 | E10: 255396 | F10: 2015-07-01 | G10: 2016-06-30 | H10: 2016-07-14
A11: Bates Technical College | B11: WorkFirst Delivery Agreement | C11: 128-WFDA-16 | D11: -329288 | E11: 221490 | F11: 2015-07-01 | G11: 2016-06-30 | H11: 2016-07-14
A12: Bellevue College | B12: Basic Food Employment and Training Grant | C12: 108-BFET-15 | D12: 0 | E12: 993866 | F12: 2014-10-01 | G12: 2015-09-30 | H12: 2015-10-31
A13: Bellevue College | B13: Basic Food Employment and Training Grant | C13: 108-BFET-16 | D13: 0 | E13: 1445184 | F13: 2015-10-01 | G13: 2016-09-30 | H13: 2016-10-31
A14: Bellevue College | B14: BEdA Leadership Block Grant | C14: 108-BLBG-16 | D14: 0 | E14: 5563 | F14: 2015-07-01 | G14: 2016-06-30 | H14: 2016-07-14
A15: Bellevue College | B15: BEdA Master Grant | C15: 108-BEDA-16 | D15: 0 | E15: 181995 | F15: 2015-07-01 | G15: 2016-06-30 | H15: 2016-07-14
A16: Bellevue College | B16: BEdA Program – EL Civics Grant Budget | C16: 108-ELC-16 | D16: 0 | E16: 45819 | F16: 2015-07-01 | G16: 2016-06-30 | H16: 2016-07-14
A17: Bellevue College | B17: BEdA WIOA Transition Grant | C17: 108-WIOA-16 | D17: 0 | E17: 30098 | F17: 2015-09-01 | G17: 2016-06-30 | H17: 2016-07-14
A18: Bellevue College | B18: Early Achievers Grant – State Funding | C18: 108-EAGS-16 | D18: 0 | E18: 85100 | F18: 2015-11-01 | G18: 2016-06-30 | H18: 2016-07-14
A19: Bellevue College | B19: Early Achievers Opportunity Grant Application | C19: 108-EAOG-16 | D19: 0 | E19: 45300 | F19: 2015-07-01 | G19: 2015-12-31 | H19: 2016-01-31
A20: Bellevue College | B20: Perkins Leadership Block Grant | C20: 108-PLB-16 | D20: 0 | E20: 16000 | F20: 2015-07-01 | G20: 2016-06-30 | H20: 2016-07-14
A21: Bellevue College | B21: Perkins Plan | C21: 108-PRK-16 | D21: 0 | E21: 301058 | F21: 2015-07-01 | G21: 2016-06-30 | H21: 2016-07-14
A22: Bellevue College | B22: Phase III I-DEA Grant | C22: 108-IDEA-16 | D22: 0 | E22: 51235 | F22: 2015-07-01 | G22: 2016-06-30 | H22: 2016-07-14
A23: Bellevue College | B23: Transcript Grid for Placement Project | C23: 108-TG-15 | D23: 0 | E23: 29000 | F23: 2015-01-01 | G23: 2015-08-31 | H23: 2016-01-31
A24: Bellevue College | B24: WorkFirst Delivery Agreement | C24: 108-WFDA-16 | D24: 0 | E24: 280505 | F24: 2015-07-01 | G24: 2016-06-30 | H24: 2016-07-14
A25: Bellingham Technical College | B25: Basic Food Employment and Training Grant | C25: 125-BFET-15 | D25: 0 | E25: 524200 | F25: 2014-10-01 | G25: 2015-09-30 | H25: 2015-10-31
A26: Bellingham Technical College | B26: Basic Food Employment and Training Grant | C26: 125-BFET-16 | D26: 0 | E26: 422343 | F26: 2015-10-01 | G26: 2016-09-30 | H26: 2016-10-31
A27: Bellingham Technical College | B27: BEdA Leadership Block Grant | C27: 125-BLBG-16 | D27: 0 | E27: 5563 | F27: 2015-07-01 | G27: 2016-06-30 | H27: 2016-07-14
A28: Bellingham Technical College | B28: BEdA Master Grant | C28: 125-BEDA-16 | D28: 0 | E28: 95406 | F28: 2015-07-01 | G28: 2016-06-30 | H28: 2016-07-14
A29: Bellingham Technical College | B29: BEdA Program – EL Civics Grant Budget | C29: 125-ELC-16 | D29: 0 | E29: 18233 | F29: 2015-07-01 | G29: 2016-06-30 | H29: 2016-07-14
A30: Bellingham Technical College | B30: BEdA WIOA Transition Grant | C30: 125-WIOA-16 | D30: 0 | E30: 14663 | F30: 2015-09-01 | G30: 2016-06-30 | H30: 2016-07-14
A31: Bellingham Technical College | B31: I-DEA Grant | C31: 125-IDEA-15 | D31: 0 | E31: 95435 | F31: 2014-07-01 | G31: 2016-06-30 | H31: 2016-07-14
A32: Bellingham Technical College | B32: Job Skills Program Grant | C32: 125-JSP-16OX | D32: 52731 | E32: 52731 | F32: 2016-03-15 | G32: 2017-06-30 | H32: 2017-07-15
A33: Bellingham Technical College | B33: Perkins Innovation Project | C33: 125-PIP-16 | D33: 0 | E33: 15000 | F33: 2015-09-22 | G33: 2016-06-30 | H33: 2016-07-14
A34: Bellingham Technical College | B34: Perkins Leadership Block Grant | C34: 125-PLB-16 | D34: 0 | E34: 16000 | F34: 2015-07-23 | G34: 2016-06-30 | H34: 2016-07-14
A35: Bellingham Technical College | B35: Perkins Non-Traditional Employment & Training Gran | C35: 125-PNT-16 | D35: 0 | E35: 5000 | F35: 2015-07-23 | G35: 2016-06-30 | H35: 2016-07-14
A36: Bellingham Technical College | B36: Perkins Plan | C36: 125-PRK-16 | D36: 0 | E36: 392792 | F36: 2015-07-01 | G36: 2016-06-30 | H36: 2016-07-14
A37: Bellingham Technical College | B37: WorkFirst Delivery Agreement | C37: 125-WFDA-16 | D37: 0 | E37: 165280 | F37: 2015-07-01 | G37: 2016-06-30 | H37: 2016-07-14
A38: Big Bend Community College | B38: Basic Food Employment and Training Grant | C38: 118-BFET-15 | D38: 0 | E38: 314755 | F38: 2014-10-01 | G38: 2015-09-30 | H38: 2015-10-31
A39: Big Bend Community College | B39: Basic Food Employment and Training Grant | C39: 118-BFET-16 | D39: 0 | E39: 319595 | F39: 2015-10-01 | G39: 2016-09-30 | H39: 2016-10-31
A40: Big Bend Community College | B40: BEdA Leadership Block Grant | C40: 118-BLBG-16 | D40: 0 | E40: 5563 | F40: 2015-07-01 | G40: 2016-06-30 | H40: 2016-07-14
A41: Big Bend Community College | B41: BEdA Master Grant | C41: 118-BEDA-16 | D41: 0 | E41: 102978 | F41: 2015-07-01 | G41: 2016-06-30 | H41: 2016-07-14
A42: Big Bend Community College | B42: BEdA Program – EL Civics Grant Budget | C42: 118-ELC-16 | D42: 0 | E42: 19395 | F42: 2015-07-01 | G42: 2016-06-30 | H42: 2016-07-14
A43: Big Bend Community College | B43: BEdA Special Projects Grant | C43: 118-BSP-16FC | D43: 1450 | E43: 1450 | F43: 2016-01-27 | G43: 2016-06-30 | H43: 2016-07-14
A44: Big Bend Community College | B44: BEdA Special Projects Grant | C44: 118-BSP2-16 | D44: 4000 | E44: 4000 | F44: 2016-02-29 | G44: 2016-07-31 | H44: 2016-09-30
A45: Big Bend Community College | B45: BEdA State Plan Innovations Grant | C45: 118-BSPI-15 | D45: 0 | E45: 60000 | F45: 2014-11-01 | G45: 2016-06-30 | H45: 2016-07-14
A46: Big Bend Community College | B46: BEdA WIOA Transition Grant | C46: 118-WIOA-16 | D46: 0 | E46: 15773 | F46: 2015-09-01 | G46: 2016-06-30 | H46: 2016-07-14
A47: Big Bend Community College | B47: Early Achievers Grant – State Funding | C47: 118-EAGS-16 | D47: 0 | E47: 30400 | F47: 2015-11-01 | G47: 2016-06-30 | H47: 2016-07-14
A48: Big Bend Community College | B48: I-DEA Grant | C48: 118-IDEA-13 | D48: 0 | E48: 154635 | F48: 2013-01-01 | G48: 2016-06-30 | H48: 2016-07-14
A49: Big Bend Community College | B49: Job Skills Program Grant | C49: 118-JSP-16LC | D49: 0 | E49: 48409 | F49: 2015-07-01 | G49: 2017-06-30 | H49: 2017-07-15
A50: Big Bend Community College | B50: Job Skills Program Grant | C50: 118-JSP-16MLI | D50: 96956 | E50: 96956 | F50: 2015-07-01 | G50: 2017-06-30 | H50: 2017-07-15
A51: Big Bend Community College | B51: Job Skills Program Grant | C51: 118-JSP-16REC | D51: 0 | E51: 142164 | F51: 2015-09-01 | G51: 2017-06-30 | H51: 2017-07-15
A52: Big Bend Community College | B52: Job Skills Program Grant | C52: 118-JSP-16SH | D52: 0 | E52: 140541.25 | F52: 2015-07-01 | G52: 2017-06-30 | H52: 2017-07-15
A53: Big Bend Community College | B53: Job Skills Program Grant | C53: 118-JSP-16TK | D53: 0 | E53: 138901 | F53: 2015-09-01 | G53: 2017-06-30 | H53: 2017-07-15
A54: Big Bend Community College | B54: Perkins Leadership Block Grant | C54: 118-PLB-16 | D54: 0 | E54: 16000 | F54: 2015-08-11 | G54: 2016-06-30 | H54: 2016-07-14
A55: Big Bend Community College | B55: Perkins Plan | C55: 118-PRK-16 | D55: 0 | E55: 154209 | F55: 2015-07-01 | G55: 2016-06-30 | H55: 2016-07-14
A56: Big Bend Community College | B56: Transcript Grid for Placement Project | C56: 118-TG-15 | D56: 0 | E56: 26200 | F56: 2015-01-01 | G56: 2015-10-31 | H56: 2015-12-31
A57: Big Bend Community College | B57: WorkFirst Delivery Agreement | C57: 118-WFDA-16 | D57: 0 | E57: 179763 | F57: 2015-07-01 | G57: 2016-06-30 | H57: 2016-07-14
A58: Cascadia College | B58: Basic Food Employment and Training Grant | C58: 130-BFET-15 | D58: 0 | E58: 68515 | F58: 2014-10-01 | G58: 2015-09-30 | H58: 2015-10-31
A59: Cascadia College | B59: Basic Food Employment and Training Grant | C59: 130-BFET-16 | D59: 0 | E59: 54258 | F59: 2015-10-01 | G59: 2016-09-30 | H59: 2016-10-31
A60: Cascadia College | B60: BEdA Leadership Block Grant | C60: 130-BLBG-16 | D60: 0 | E60: 6076 | F60: 2015-07-01 | G60: 2016-06-30 | H60: 2016-07-14
A61: Cascadia College | B61: BEdA Master Grant | C61: 130-BEDA-16 | D61: 0 | E61: 74463 | F61: 2015-07-01 | G61: 2016-06-30 | H61: 2016-07-14
A62: Cascadia College | B62: BEdA Program – EL Civics Grant Budget | C62: 130-ELC-16 | D62: 0 | E62: 16591 | F62: 2015-07-01 | G62: 2016-06-30 | H62: 2016-07-14
A63: Cascadia College | B63: BEdA WIOA Transition Grant | C63: 130-WIOA-16 | D63: 0 | E63: 11900 | F63: 2015-09-01 | G63: 2016-06-30 | H63: 2016-07-14
A64: Cascadia College | B64: Job Skills Program Grant | C64: 130-JSP-16AMT | D64: 0 | E64: 52050 | F64: 2015-08-01 | G64: 2017-06-30 | H64: 2017-07-15
A65: Cascadia College | B65: Job Skills Program Grant | C65: 130-JSP-16AR | D65: 0 | E65: 217626 | F65: 2015-09-01 | G65: 2017-06-30 | H65: 2017-07-15
A66: Cascadia College | B66: Job Skills Program Grant | C66: 130-JSP-16GT | D66: 0 | E66: 150780 | F66: 2015-07-01 | G66: 2017-06-30 | H66: 2017-07-15
A67: Cascadia College | B67: Job Skills Program Grant | C67: 130-JSP-16SA | D67: 0 | E67: 60504 | F67: 2015-09-01 | G67: 2017-06-30 | H67: 2017-07-15
A68: Cascadia College | B68: Misc. General Grant | C68: 130-B2C-15 | D68: 0 | E68: 39500 | F68: 2014-12-04 | G68: 2016-06-30 | H68: 2016-07-14
A69: Cascadia College | B69: Misc. General Grant | C69: 130-ELRN-16 | D69: 2500 | E69: 7500 | F69: 2015-09-01 | G69: 2016-06-30 | H69: 2016-07-14
A70: Cascadia College | B70: Perkins Leadership Block Grant | C70: 130-PLB-16 | D70: 0 | E70: 16000 | F70: 2015-07-01 | G70: 2016-06-30 | H70: 2016-07-14
A71: Cascadia College | B71: Phase III I-DEA Grant | C71: 130-IDEA-16 | D71: 0 | E71: 51235 | F71: 2015-07-01 | G71: 2016-06-30 | H71: 2016-07-14
A72: Centralia College | B72: Basic Food Employment and Training Grant | C72: 112-BFET-15 | D72: 0 | E72: 375006 | F72: 2014-10-01 | G72: 2015-09-30 | H72: 2015-10-31
A73: Centralia College | B73: Basic Food Employment and Training Grant | C73: 112-BFET-16 | D73: 0 | E73: 287612 | F73: 2015-10-01 | G73: 2016-09-30 | H73: 2016-10-31
A74: Centralia College | B74: BEdA Leadership Block Grant | C74: 112-BLBG-16 | D74: 0 | E74: 6588 | F74: 2015-07-01 | G74: 2016-06-30 | H74: 2016-07-14
A75: Centralia College | B75: BEdA Master Grant | C75: 112-BEDA-16 | D75: 0 | E75: 126492 | F75: 2015-07-01 | G75: 2016-06-30 | H75: 2016-07-14
A76: Centralia College | B76: BEdA Program – EL Civics Grant Budget | C76: 112-ELC-16 | D76: 0 | E76: 25744 | F76: 2015-07-01 | G76: 2016-06-30 | H76: 2016-07-14
A77: Centralia College | B77: BEdA WIOA Transition Grant | C77: 112-WIOA-16 | D77: 0 | E77: 19744 | F77: 2015-09-01 | G77: 2016-06-30 | H77: 2016-07-14
A78: Centralia College | B78: Correctional Education Grant | C78: 112-CE-16 | D78: 20775 | E78: 1642749 | F78: 2015-07-01 | G78: 2016-06-30 | H78: 2016-07-14
A79: Centralia College | B79: Early Achievers Grant – State Funding | C79: 112-EAGS-16 | D79: 0 | E79: 27500 | F79: 2015-11-01 | G79: 2016-06-30 | H79: 2016-07-14
A80: Centralia College | B80: Early Achievers Opportunity Grant Application | C80: 112-EAOG-16 | D80: 0 | E80: 15100 | F80: 2015-07-01 | G80: 2015-12-31 | H80: 2016-01-31
A81: Centralia College | B81: Job Skills Program Grant | C81: 112-JSP-16HL | D81: 0 | E81: 77588 | F81: 2015-11-01 | G81: 2017-06-30 | H81: 2017-07-15
A82: Centralia College | B82: Perkins Innovation Project | C82: 112-PIP-16 | D82: 0 | E82: 15000 | F82: 2015-07-01 | G82: 2016-06-30 | H82: 2016-07-14
A83: Centralia College | B83: Perkins Leadership Block Grant | C83: 112-PLB-16 | D83: 0 | E83: 16000 | F83: 2015-07-01 | G83: 2016-06-30 | H83: 2016-07-14
A84: Centralia College | B84: Perkins Plan | C84: 112-PRK-16 | D84: 0 | E84: 208949 | F84: 2015-07-01 | G84: 2016-06-30 | H84: 2016-07-14
A85: Centralia College | B85: Perkins Special Project | C85: 112-PSPI-16 | D85: 7255 | E85: 16864 | F85: 2015-10-01 | G85: 2016-06-30 | H85: 2016-07-14
A86: Centralia College | B86: Phase III I-DEA Grant | C86: 112-IDEA-16 | D86: 0 | E86: 51235 | F86: 2015-07-01 | G86: 2016-06-30 | H86: 2016-07-14
A87: Centralia College | B87: WorkFirst Delivery Agreement | C87: 112-WFDA-16 | D87: 0 | E87: 523619 | F87: 2015-07-01 | G87: 2016-06-30 | H87: 2016-07-14
A88: Clark College | B88: Basic Food Employment and Training Grant | C88: 114-BFET-15 | D88: 0 | E88: 373717 | F88: 2014-10-01 | G88: 2015-09-30 | H88: 2015-10-31
A89: Clark College | B89: Basic Food Employment and Training Grant | C89: 114-BFET-16 | D89: 0 | E89: 265862 | F89: 2015-10-01 | G89: 2016-09-30 | H89: 2016-10-31
A90: Clark College | B90: BEdA Leadership Block Grant | C90: 114-BLBG-16 | D90: 0 | E90: 6588 | F90: 2015-07-01 | G90: 2016-06-30 | H90: 2016-07-14
A91: Clark College | B91: BEdA Master Grant | C91: 114-BEDA-16 | D91: 0 | E91: 248433 | F91: 2015-07-01 | G91: 2016-06-30 | H91: 2016-07-14
A92: Clark College | B92: BEdA Program – EL Civics Grant Budget | C92: 114-ELC-16 | D92: 0 | E92: 52865 | F92: 2015-07-01 | G92: 2016-06-30 | H92: 2016-07-14
A93: Clark College | B93: BEdA WIOA Transition Grant | C93: 114-WIOA-16 | D93: 0 | E93: 39218 | F93: 2015-09-01 | G93: 2016-06-30 | H93: 2016-07-14
A94: Clark College | B94: Correctional Education Grant | C94: 114-CE-16 | D94: 30154 | E94: 381337 | F94: 2015-07-01 | G94: 2016-06-30 | H94: 2016-07-14
A95: Clark College | B95: Early Achievers Grant – State Funding | C95: 114-EAGS-16 | D95: 0 | E95: 37400 | F95: 2015-11-01 | G95: 2016-06-30 | H95: 2016-07-14
A96: Clark College | B96: Early Achievers Opportunity Grant Application | C96: 114-EAOG-16 | D96: 0 | E96: 22650 | F96: 2015-07-01 | G96: 2015-12-31 | H96: 2016-01-31
A97: Clark College | B97: Faculty Learning Communities Initiative Grant | C97: 114-FLCA-16IL | D97: 0 | E97: 5000 | F97: 2015-07-01 | G97: 2016-06-30 | H97: 2016-07-14
A98: Clark College | B98: I-DEA Grant | C98: 114-IDEA-15 | D98: 0 | E98: 95435 | F98: 2014-07-01 | G98: 2016-06-30 | H98: 2016-07-14
A99: Clark College | B99: Perkins Innovation Project | C99: 114-PIP-16 | D99: 0 | E99: 2977 | F99: 2015-07-01 | G99: 2016-06-30 | H99: 2016-07-14
A100: Clark College | B100: Perkins Leadership Block Grant | C100: 114-PLB-16 | D100: 0 | E100: 16000 | F100: 2015-07-01 | G100: 2016-06-30 | H100: 2016-07-14
A101: Clark College | B101: Perkins Plan | C101: 114-PRK-16 | D101: 0 | E101: 624065 | F101: 2015-07-01 | G101: 2016-06-30 | H101: 2016-07-14
A102: Clark College | B102: Perkins Special Project | C102: 114-PSPI-16 | D102: 3581 | E102: 18484 | F102: 2015-09-29 | G102: 2016-06-30 | H102: 2016-07-14
A103: Clark College | B103: WorkFirst Delivery Agreement | C103: 114-WFDA-16 | D103: -20490 | E103: 579213 | F103: 2015-07-01 | G103: 2016-06-30 | H103: 2016-07-14
A104: Clover Park Technical College | B104: Basic Food Employment and Training Grant | C104: 129-BFET-15 | D104: 0 | E104: 405234 | F104: 2014-10-01 | G104: 2015-09-30 | H104: 2015-10-31
A105: Clover Park Technical College | B105: Basic Food Employment and Training Grant | C105: 129-BFET-16 | D105: 0 | E105: 468037 | F105: 2015-10-01 | G105: 2016-09-30 | H105: 2016-10-31
A106: Clover Park Technical College | B106: BEdA Leadership Block Grant | C106: 129-BLBG-16 | D106: 0 | E106: 6076 | F106: 2015-07-01 | G106: 2016-06-30 | H106: 2016-07-14
A107: Clover Park Technical College | B107: BEdA Master Grant | C107: 129-BEDA-16 | D107: 0 | E107: 124417 | F107: 2015-07-01 | G107: 2016-06-30 | H107: 2016-07-14
A108: Clover Park Technical College | B108: BEdA Program – EL Civics Grant Budget | C108: 129-ELC-16 | D108: 0 | E108: 26151 | F108: 2015-07-01 | G108: 2016-06-30 | H108: 2016-07-14
A109: Clover Park Technical College | B109: BEdA State Plan Innovations Grant | C109: 129-BSPI-15 | D109: 0 | E109: 58984 | F109: 2014-11-01 | G109: 2016-06-30 | H109: 2016-07-14
A110: Clover Park Technical College | B110: BEdA WIOA Transition Grant | C110: 129-WIOA-16 | D110: 0 | E110: 19579 | F110: 2015-09-01 | G110: 2016-06-30 | H110: 2016-07-14
A111: Clover Park Technical College | B111: Perkins Leadership Block Grant | C111: 129-PLB-16 | D111: 2400 | E111: 2400 | F111: 2016-03-01 | G111: 2016-06-30 | H111: 2016-07-14
A112: Clover Park Technical College | B112: Perkins Plan | C112: 129-PRK-16 | D112: 0 | E112: 450608 | F112: 2015-07-01 | G112: 2016-06-30 | H112: 2016-07-14
A113: Clover Park Technical College | B113: Phase III I-DEA Grant | C113: 129-IDEA-16 | D113: 0 | E113: 51235 | F113: 2015-07-01 | G113: 2016-06-30 | H113: 2016-07-14
A114: Clover Park Technical College | B114: WorkFirst Delivery Agreement | C114: 129-WFDA-16 | D114: -70000 | E114: 522964 | F114: 2015-07-01 | G114: 2016-06-30 | H114: 2016-07-14
A115: Columbia Basin College | B115: Basic Food Employment and Training Grant | C115: 119-BFET-15 | D115: 0 | E115: 207013 | F115: 2014-10-01 | G115: 2015-09-30 | H115: 2015-10-31
A116: Columbia Basin College | B116: Basic Food Employment and Training Grant | C116: 119-BFET-16 | D116: 0 | E116: 201915 | F116: 2015-10-01 | G116: 2016-09-30 | H116: 2016-10-31
A117: Columbia Basin College | B117: BEdA Leadership Block Grant | C117: 119-BLBG-16 | D117: 0 | E117: 5563 | F117: 2015-07-01 | G117: 2016-06-30 | H117: 2016-07-14
A118: Columbia Basin College | B118: BEdA Master Grant | C118: 119-BEDA-16 | D118: 0 | E118: 168727 | F118: 2015-07-01 | G118: 2016-06-30 | H118: 2016-07-14
A119: Columbia Basin College | B119: BEdA Program – EL Civics Grant Budget | C119: 119-ELC-16 | D119: 0 | E119: 37982 | F119: 2015-07-01 | G119: 2016-06-30 | H119: 2016-07-14
A120: Columbia Basin College | B120: BEdA WIOA Transition Grant | C120: 119-WIOA-16 | D120: 0 | E120: 27037 | F120: 2015-09-01 | G120: 2016-06-30 | H120: 2016-07-14
A121: Columbia Basin College | B121: Perkins Non-Traditional Employment & Training Gran | C121: 119-PNT-16 | D121: 0 | E121: 5000 | F121: 2015-07-01 | G121: 2016-06-30 | H121: 2016-07-14
A122: Columbia Basin College | B122: Perkins Non-Traditional Employment & Training Gran | C122: 119-PNT2-16 | D122: 0 | E122: 5000 | F122: 2015-11-01 | G122: 2016-06-30 | H122: 2016-07-14
A123: Columbia Basin College | B123: Perkins Plan | C123: 119-PRK-16 | D123: 0 | E123: 288181 | F123: 2015-07-01 | G123: 2016-06-30 | H123: 2016-07-14
A124: Columbia Basin College | B124: Perkins Special Project | C124: 119-PSP-16 | D124: 11500 | E124: 11500 | F124: 2015-10-06 | G124: 2016-06-30 | H124: 2016-07-14
A125: Columbia Basin College | B125: Phase III I-DEA Grant | C125: 119-IDEA-16 | D125: 0 | E125: 51235 | F125: 2015-07-01 | G125: 2016-06-30 | H125: 2016-07-14
A126: Columbia Basin College | B126: WorkFirst Delivery Agreement | C126: 119-WFDA-16 | D126: -40000 | E126: 184913 | F126: 2015-07-01 | G126: 2016-06-30 | H126: 2016-07-14
A127: Edmonds Community College | B127: Basic Food Employment and Training Grant | C127: 123-BFET-15 | D127: 0 | E127: 563506 | F127: 2014-10-01 | G127: 2015-09-30 | H127: 2015-10-31
A128: Edmonds Community College | B128: Basic Food Employment and Training Grant | C128: 123-BFET-16 | D128: 0 | E128: 621339 | F128: 2015-10-01 | G128: 2016-09-30 | H128: 2016-10-31
A129: Edmonds Community College | B129: BEdA Leadership Block Grant | C129: 123-BLBG-16 | D129: 0 | E129: 6588 | F129: 2015-07-01 | G129: 2016-06-30 | H129: 2016-07-14
A130: Edmonds Community College | B130: BEdA Master Grant | C130: 123-BEDA-16 | D130: 0 | E130: 247247 | F130: 2015-07-01 | G130: 2016-06-30 | H130: 2016-07-14
A131: Edmonds Community College | B131: BEdA Program – EL Civics Grant Budget | C131: 123-ELC-16 | D131: 0 | E131: 60555 | F131: 2015-07-01 | G131: 2016-06-30 | H131: 2016-07-14
A132: Edmonds Community College | B132: BEdA WIOA Transition Grant | C132: 123-WIOA-16 | D132: 0 | E132: 40564 | F132: 2015-09-01 | G132: 2016-06-30 | H132: 2016-07-14
A133: Edmonds Community College | B133: Correctional Education Grant | C133: 123-CE-16 | D133: -75118 | E133: 1447716 | F133: 2015-07-01 | G133: 2016-06-30 | H133: 2016-07-14
A134: Edmonds Community College | B134: Early Achievers Grant – State Funding | C134: 123-EAGS-16 | D134: 0 | E134: 159200 | F134: 2015-11-01 | G134: 2016-06-30 | H134: 2016-07-14
A135: Edmonds Community College | B135: Early Achievers Opportunity Grant Application | C135: 123-EAOG-16 | D135: 0 | E135: 45300 | F135: 2015-07-01 | G135: 2015-12-31 | H135: 2016-01-31
A136: Edmonds Community College | B136: I-DEA Grant | C136: 123-IDEA-15 | D136: 0 | E136: 95435 | F136: 2014-07-01 | G136: 2016-06-30 | H136: 2016-07-14
A137: Edmonds Community College | B137: Misc. Detailed Grant | C137: 123-B2C-15 | D137: 58000 | E137: 249333 | F137: 2015-03-02 | G137: 2016-06-30 | H137: 2016-07-14
A138: Edmonds Community College | B138: Misc. General Grant | C138: 123-IDRV1-16 | D138: 0 | E138: 3900 | F138: 2015-10-19 | G138: 2016-03-15 | H138: 2016-04-30
A139: Edmonds Community College | B139: Perkins Innovation Project | C139: 123-PIP-16 | D139: 0 | E139: 14992 | F139: 2016-01-05 | G139: 2016-06-30 | H139: 2016-07-14
A140: Edmonds Community College | B140: Perkins Leadership Block Grant | C140: 123-PLB-16 | D140: 0 | E140: 16000 | F140: 2015-07-01 | G140: 2016-06-30 | H140: 2016-07-14
A141: Edmonds Community College | B141: Perkins Plan | C141: 123-PRK-16 | D141: 0 | E141: 257133 | F141: 2015-07-01 | G141: 2016-06-30 | H141: 2016-07-14
A142: Edmonds Community College | B142: Perkins Special Project | C142: 123-PSPI-16 | D142: 8382 | E142: 21622 | F142: 2015-09-30 | G142: 2016-06-30 | H142: 2016-07-14
A143: Edmonds Community College | B143: WorkFirst Delivery Agreement | C143: 123-WFDA-16 | D143: -34000 | E143: 443982 | F143: 2015-07-01 | G143: 2016-06-30 | H143: 2016-07-14
A144: Everett Community College | B144: Basic Food Employment and Training Grant | C144: 105-BFET-15 | D144: 0 | E144: 302865 | F144: 2014-10-01 | G144: 2015-09-30 | H144: 2015-10-31
A145: Everett Community College | B145: Basic Food Employment and Training Grant | C145: 105-BFET-16 | D145: 0 | E145: 325635 | F145: 2015-10-01 | G145: 2016-09-30 | H145: 2016-10-31
A146: Everett Community College | B146: BEdA Leadership Block Grant | C146: 105-BLBG-16 | D146: 0 | E146: 5563 | F146: 2015-07-01 | G146: 2016-06-30 | H146: 2016-07-14
A147: Everett Community College | B147: BEdA Master Grant | C147: 105-BEDA-16 | D147: 0 | E147: 199948 | F147: 2015-07-01 | G147: 2016-06-30 | H147: 2016-07-14
A148: Everett Community College | B148: BEdA Program – EL Civics Grant Budget | C148: 105-ELC-16 | D148: 0 | E148: 46468 | F148: 2015-07-01 | G148: 2016-06-30 | H148: 2016-07-14
A149: Everett Community College | B149: BEdA WIOA Transition Grant | C149: 105-WIOA-16 | D149: 0 | E149: 32322 | F149: 2015-09-01 | G149: 2016-06-30 | H149: 2016-07-14
A150: Everett Community College | B150: Early Achievers Grant – State Funding | C150: 105-EAGS-16 | D150: 0 | E150: 76300 | F150: 2015-11-01 | G150: 2016-06-30 | H150: 2016-07-14
A151: Everett Community College | B151: Early Achievers Opportunity Grant Application | C151: 105-EAOG-16 | D151: 0 | E151: 15100 | F151: 2015-07-01 | G151: 2015-12-31 | H151: 2016-01-31
A152: Everett Community College | B152: Job Skills Program Grant | C152: 105-JSP-16PM | D152: 0 | E152: 26850 | F152: 2015-09-01 | G152: 2017-06-30 | H152: 2017-07-15
A153: Everett Community College | B153: Misc. General Grant | C153: 105-NGCC-15 | D153: 0 | E153: 5000 | F153: 2015-02-02 | G153: 2016-12-31 | H153: 2017-01-31
A154: Everett Community College | B154: Misc. General Grant | C154: 105-NGST-15 | D154: 0 | E154: 5000 | F154: 2015-02-02 | G154: 2016-06-30 | H154: 2016-07-14
A155: Everett Community College | B155: Perkins Leadership Block Grant | C155: 105-PLB-16 | D155: 0 | E155: 16000 | F155: 2015-07-01 | G155: 2016-06-30 | H155: 2016-07-14
A156: Everett Community College | B156: Perkins Non-Traditional Employment & Training Gran | C156: 105-PNT-16 | D156: 0 | E156: 5000 | F156: 2015-07-01 | G156: 2016-06-30 | H156: 2016-07-14
A157: Everett Community College | B157: Perkins Plan | C157: 105-PRK-16 | D157: 0 | E157: 301880 | F157: 2015-07-01 | G157: 2016-06-30 | H157: 2016-07-14
A158: Everett Community College | B158: Phase III I-DEA Grant | C158: 105-IDEA-16 | D158: 0 | E158: 51235 | F158: 2015-07-01 | G158: 2016-06-30 | H158: 2016-07-14
A159: Everett Community College | B159: WorkFirst Delivery Agreement | C159: 105-WFDA-16 | D159: 30000 | E159: 531899 | F159: 2015-07-01 | G159: 2016-06-30 | H159: 2016-07-14
A160: Grays Harbor College | B160: Basic Food Employment and Training Grant | C160: 102-BFET-15 | D160: 0 | E160: 221442 | F160: 2014-10-01 | G160: 2015-09-30 | H160: 2015-10-31
A161: Grays Harbor College | B161: Basic Food Employment and Training Grant | C161: 102-BFET-16 | D161: 0 | E161: 186463 | F161: 2015-10-01 | G161: 2016-09-30 | H161: 2016-10-31
A162: Grays Harbor College | B162: BEdA Master Grant | C162: 102-BEDA-16 | D162: 0 | E162: 115011 | F162: 2015-07-01 | G162: 2016-06-30 | H162: 2016-07-14
A163: Grays Harbor College | B163: BEdA Program – EL Civics Grant Budget | C163: 102-ELC-16 | D163: 0 | E163: 22866 | F163: 2015-07-01 | G163: 2016-06-30 | H163: 2016-07-14
A164: Grays Harbor College | B164: BEdA State Plan Innovations Grant | C164: 102-BPSI-15 | D164: 0 | E164: 60000 | F164: 2014-11-01 | G164: 2016-06-30 | H164: 2016-07-14
A165: Grays Harbor College | B165: BEdA WIOA Transition Grant | C165: 102-WIOA-16 | D165: 0 | E165: 17846 | F165: 2015-09-01 | G165: 2016-06-30 | H165: 2016-07-14
A166: Grays Harbor College | B166: Correctional Education Grant | C166: 102-CE-16 | D166: 9522 | E166: 1764903 | F166: 2015-07-01 | G166: 2016-06-30 | H166: 2016-07-14
A167: Grays Harbor College | B167: Early Achievers Grant – State Funding | C167: 102-EAGS-16 | D167: 0 | E167: 41500 | F167: 2015-11-01 | G167: 2016-06-30 | H167: 2016-07-14
A168: Grays Harbor College | B168: I-DEA Grant | C168: 102-IDEA-15 | D168: 0 | E168: 95435 | F168: 2014-07-01 | G168: 2016-06-30 | H168: 2016-07-14
A169: Grays Harbor College | B169: Job Skills Program Grant | C169: 102-JSP-16SD | D169: 0 | E169: 18117 | F169: 2016-01-01 | G169: 2017-06-30 | H169: 2017-07-15
A170: Grays Harbor College | B170: Misc. General Grant | C170: 102-IDRV1-16 | D170: 0 | E170: 9750 | F170: 2015-10-19 | G170: 2016-03-15 | H170: 2016-04-30
A171: Grays Harbor College | B171: Misc. General Grant | C171: 102-IDRV4-15 | D171: 0 | E171: 15600 | F171: 2015-05-22 | G171: 2015-11-15 | H171: 2016-01-31
A172: Grays Harbor College | B172: Perkins Leadership Block Grant | C172: 102-PLB-16 | D172: 0 | E172: 16000 | F172: 2015-07-08 | G172: 2016-06-30 | H172: 2016-07-14
A173: Grays Harbor College | B173: Perkins Plan | C173: 102-PRK-16 | D173: 0 | E173: 194086 | F173: 2015-07-01 | G173: 2016-06-30 | H173: 2016-07-14
A174: Grays Harbor College | B174: Perkins Special Project | C174: 102-PSPI-16 | D174: 10685 | E174: 20079 | F174: 2015-10-01 | G174: 2016-06-30 | H174: 2016-07-14
A175: Grays Harbor College | B175: WorkFirst Delivery Agreement | C175: 102-WFDA-16 | D175: 0 | E175: 398657 | F175: 2015-07-01 | G175: 2016-06-30 | H175: 2016-07-14
A176: Green River College | B176: Basic Food Employment and Training Grant | C176: 110-BFET-15 | D176: 0 | E176: 496692 | F176: 2014-10-01 | G176: 2015-09-30 | H176: 2015-10-31
A177: Green River College | B177: Basic Food Employment and Training Grant | C177: 110-BFET-16 | D177: 0 | E177: 492712 | F177: 2015-10-01 | G177: 2016-09-30 | H177: 2016-10-31
A178: Green River College | B178: BEdA Leadership Block Grant | C178: 110-BLBG-16 | D178: 0 | E178: 5563 | F178: 2015-07-01 | G178: 2016-06-30 | H178: 2016-07-14
A179: Green River College | B179: BEdA Master Grant | C179: 110-BEDA-16 | D179: 0 | E179: 249795 | F179: 2015-07-01 | G179: 2016-06-30 | H179: 2016-07-14
A180: Green River College | B180: BEdA Program – EL Civics Grant Budget | C180: 110-ELC-16 | D180: 0 | E180: 52548 | F180: 2015-07-01 | G180: 2016-06-30 | H180: 2016-07-14
A181: Green River College | B181: BEdA State Plan Innovations Grant | C181: 110-BSPI-15 | D181: 0 | E181: 35000 | F181: 2014-11-01 | G181: 2016-06-30 | H181: 2016-07-14
A182: Green River College | B182: BEdA WIOA Transition Grant | C182: 110-WIOA-16 | D182: 0 | E182: 39318 | F182: 2015-09-01 | G182: 2016-06-30 | H182: 2016-07-14
A183: Green River College | B183: Early Achievers Grant – State Funding | C183: 110-EAGS-16 | D183: 5800 | E183: 151000 | F183: 2015-11-01 | G183: 2016-06-30 | H183: 2016-07-14
A184: Green River College | B184: Early Achievers Opportunity Grant Application | C184: 110-EAOG-16 | D184: 0 | E184: 67950 | F184: 2015-07-01 | G184: 2015-12-31 | H184: 2016-01-31
A185: Green River College | B185: I-DEA Grant | C185: 110-IDEA-15 | D185: 0 | E185: 92235 | F185: 2014-07-01 | G185: 2016-06-30 | H185: 2016-07-14
A186: Green River College | B186: Job Skills Program Grant | C186: 110-JSP-16AVT | D186: 0 | E186: 123600 | F186: 2015-07-01 | G186: 2017-06-30 | H186: 2017-07-15
A187: Green River College | B187: Job Skills Program Grant | C187: 110-JSP-16BC | D187: 0 | E187: 88700 | F187: 2015-08-01 | G187: 2017-06-30 | H187: 2017-07-15
A188: Green River College | B188: Job Skills Program Grant | C188: 110-JSP-16CG | D188: 0 | E188: 63000 | F188: 2015-07-15 | G188: 2017-06-30 | H188: 2017-07-15
A189: Green River College | B189: Job Skills Program Grant | C189: 110-JSP-16CGM | D189: 0 | E189: 60300 | F189: 2015-08-01 | G189: 2017-06-30 | H189: 2017-07-15
A190: Green River College | B190: Job Skills Program Grant | C190: 110-JSP-16EK | D190: 0 | E190: 89700 | F190: 2015-07-20 | G190: 2017-06-30 | H190: 2017-07-15
A191: Green River College | B191: Job Skills Program Grant | C191: 110-JSP-16ET | D191: 0 | E191: 133900 | F191: 2015-07-01 | G191: 2017-06-30 | H191: 2017-07-15
A192: Green River College | B192: Job Skills Program Grant | C192: 110-JSP-16HC | D192: 0 | E192: 49500 | F192: 2015-07-15 | G192: 2017-06-30 | H192: 2017-07-15
A193: Green River College | B193: Job Skills Program Grant | C193: 110-JSP-16HEX | D193: 0 | E193: 155100 | F193: 2015-07-01 | G193: 2017-06-30 | H193: 2017-07-15
A194: Green River College | B194: Job Skills Program Grant | C194: 110-JSP-16HS | D194: 0 | E194: 118800 | F194: 2015-08-01 | G194: 2017-06-30 | H194: 2017-07-15
A195: Green River College | B195: Job Skills Program Grant | C195: 110-JSP-16RWD | D195: 0 | E195: 41400 | F195: 2015-11-01 | G195: 2017-06-30 | H195: 2017-07-15
A196: Green River College | B196: Job Skills Program Grant | C196: 110-JSP-16SS | D196: 0 | E196: 52800 | F196: 2015-07-01 | G196: 2017-06-30 | H196: 2017-07-15
A197: Green River College | B197: Job Skills Program Grant | C197: 110-JSP-16TAS | D197: 0 | E197: 84900 | F197: 2015-07-25 | G197: 2017-06-30 | H197: 2017-07-15
A198: Green River College | B198: Perkins Leadership Block Grant | C198: 110-PLB-16 | D198: 0 | E198: 16000 | F198: 2015-12-29 | G198: 2016-06-30 | H198: 2016-07-14
A199: Green River College | B199: Perkins Plan | C199: 110-PRK-16 | D199: 0 | E199: 317509 | F199: 2015-07-01 | G199: 2016-06-30 | H199: 2016-07-14
A200: Green River College | B200: Perkins Special Project | C200: 110-PSP-16 | D200: 0 | E200: 17666 | F200: 2015-07-22 | G200: 2016-06-30 | H200: 2016-07-14
... 309 more rows

Sheet GrantsCheck (hidden)

Sheet Balance by Fund-Appn (hidden)
A1: Fund | B1: (All)
A3: Sum of Grand Total | B3: Column Labels
A4: Row Labels | B4: 001-011 | C4: 001-BJ1 | D4: 001-BQ1 | E4: 060-BA0 | F4: 08A-3E0 | G4: 08A-430 | H4: 001-BP1 | I4: 001-BA1 | J4: 001-BG1 | K4: 252-DA0 | L4: 001-BR1 | M4: 001-BK1 | N4: 001-BD1 | O4: 001-AC1 | P4: 001-CG2 | Q4: 001-0CF1 | R4: Grand Total
A5: Bates | B5: 15830353 | F5: 1586112 | J5: 269503 | K5: 138458 | N5: 193824 | O5: 1683016 | R5: 19701266
A6: Bellevue | B6: 27390522 | D6: 0 | F6: 2271015 | J6: 1218551 | K6: 184080 | N6: 307827 | O6: 1882034 | R6: 33254029
A7: Bellingham | B7: 9468436 | E7: 1997096 | F7: 993247 | J7: 297183 | K7: 51610 | N7: 142967 | O7: 400422 | Q7: 2250000 | R7: 15600961
A8: Big Bend | B8: 8597492 | F8: 875883 | J8: 207474 | K8: 68169 | N8: 121028 | O8: 315364 | R8: 10185410
A9: Cascadia | B9: 7945299 | F9: 1429890 | J9: 271417 | K9: 48928 | N9: 116373 | O9: 210995 | R9: 10022902
A10: Centralia | B10: 9767378 | F10: 1219341 | J10: 344611 | K10: 54261 | N10: 146434 | O10: 630597 | R10: 12162622
A11: Clark | B11: 26874567 | F11: 2243173 | J11: 950531 | K11: 144851 | N11: 219070 | O11: 876225 | R11: 31308417
A12: Clover Park | B12: 16434275 | F12: 1319055 | J12: 549966 | K12: 119529 | N12: 163088 | O12: 1452305 | R12: 20038218
A13: Columbia Basin | B13: 17293924 | F13: 1677956 | J13: 722955 | K13: 124425 | M13: 125000 | N13: 151303 | O13: 1269506 | R13: 21365069
A14: Edmonds | B14: 23147577 | C14: 1500000 | F14: 973632 | J14: 620802 | K14: 162594 | M14: 125000 | N14: 178123 | O14: 1196805 | R14: 27904533
A15: Everett | B15: 19607347 | F15: 2980624 | I15: 100000 | J15: 720450 | K15: 107991 | N15: 179939 | O15: 830612 | R15: 24526963
A16: Future Allocations/Reserves | B16: 33734296 | E16: 378664 | F16: 325000 | J16: 0 | L16: 150000 | N16: 0 | O16: 0 | R16: 34587960
A17: Grays Harbor | B17: 8102289 | F17: 749970 | J17: 184754 | K17: 54292 | N17: 108508 | O17: 873073 | R17: 10072886
A18: Green River | B18: 21914533 | E18: 2024740 | F18: 1368605 | J18: 795417 | K18: 125828 | N18: 162982 | O18: 2011095 | R18: 28403200
A19: Highline | B19: 21896959 | F19: 1246347 | J19: 673336 | K19: 146878 | M19: 125000 | N19: 158505 | O19: 1408738 | R19: 25655763
A20: Lake Washington | B20: 12072072 | F20: 1560618 | J20: 406723 | K20: 66017 | N20: 134645 | O20: 960322 | R20: 15200397
A21: Lower Columbia | B21: 11225902 | E21: 2406575 | F21: 1117681 | J21: 286481 | K21: 78272 | N21: 128324 | O21: 349663 | R21: 15592898
A22: Olympic | B22: 18164757 | F22: 1928554 | J22: 760948 | K22: 96328 | M22: 125000 | N22: 160012 | O22: 1051728 | R22: 22287327
A23: Peninsula | B23: 9434169 | F23: 509691 | J23: 221953 | K23: 51204 | N23: 109934 | O23: 850121 | R23: 11177072
A24: Pierce | B24: 22364850 | F24: 2629152 | J24: 743341 | K24: 108926 | N24: 283245 | O24: 1207829 | R24: 27337343
A25: Renton | B25: 14018200 | F25: 1591327 | J25: 299651 | K25: 101006 | N25: 120209 | O25: 1212222 | R25: 17342615
A26: SBCTC Admin | B26: 16950750 | F26: 118300 | G26: 55000 | R26: 17124050
A27: SBCTC Program | B27: 2233267 | F27: 675000 | G27: 2670000 | M27: 110000 | O27: 544579 | R27: 6232846
A28: Seattle | B28: 61686169 | F28: 1063387 | H28: 425000 | J28: 1730321 | K28: 412443 | M28: 125000 | N28: 380659 | O28: 4294756 | R28: 70117735
A29: Shoreline | B29: 19575463 | F29: 490135 | J29: 513644 | K29: 114820 | N29: 124499 | O29: 1197932 | R29: 22016493
A30: Skagit Valley | B30: 15390798 | E30: 1966925 | F30: 1713040 | J30: 451838 | K30: 107741 | N30: 125168 | O30: 653218 | R30: 20408728
A31: South Puget Sound | B31: 14356091 | F31: 1207667 | J31: 491080 | K31: 99478 | N31: 151093 | O31: 464084 | R31: 16769493
A32: Spokane | B32: 49799736 | F32: 3461162 | J32: 1435234 | K32: 350511 | N32: 455457 | O32: 1518318 | R32: 57020418
A33: Tacoma | B33: 18347357 | F33: 1733326 | J33: 833787 | K33: 108989 | N33: 179638 | O33: 1148122 | R33: 22351219
A34: Walla Walla | B34: 13685273 | F34: 755410 | J34: 255430 | K34: 96203 | N34: 112877 | O34: 1521479 | R34: 16426672
A35: Wenatchee | B35: 10759942 | F35: 1403751 | J35: 355534 | K35: 70164 | N35: 135248 | O35: 443133 | P35: 157000 | R35: 13324772
A36: Whatcom | B36: 10760971 | F36: 1233804 | J36: 332780 | K36: 61526 | N36: 140886 | O36: 270523 | R36: 12800490
A37: Yakima Valley | B37: 16544986 | F37: 1283145 | J37: 560305 | K37: 99478 | M37: 125000 | N37: 158135 | O37: 532184 | R37: 19303233
A38: Grand Total | B38: 605376000 | C38: 1500000 | D38: 0 | E38: 8774000 | F38: 45735000 | G38: 2725000 | H38: 425000 | I38: 100000 | J38: 17506000 | K38: 3555000 | L38: 150000 | M38: 860000 | N38: 5250000 | O38: 33261000 | P38: 157000 | Q38: 2250000 | R38: 727624000
A40: EA Schedule | B40: =605376000 -> 605376000 | C40: 1500000 | E40: 8774000 | F40: =45578000+157000 -> 45735000 | G40: 2725000 | H40: 425000 | I40: 100000 | J40: 17506000 | K40: 3555000 | L40: 150000 | M40: 860000 | N40: 5250000 | O40: 33261000 | P40: 157000 | Q40: 2250000
A41: Variance | B41: =B38-B40 -> 0 | C41: =C38-C40 -> 0 | D41: =D38-D40 -> 0 | E41: 0 | F41: 0 | G41: 0 | H41: 0 | I41: 0 | J41: 0 | K41: 0 | L41: 0 | M41: 0 | N41: 0 | O41: 0 | P41: 0 | Q41: 0

Sheet PivotProgram (hidden)
A1: PROGRAMS IN DISTRICT
A2: NAME | B2: (Multiple Items) | D2: PROGRAMS IN ADMIN, PROGRAM & FUTURE/RESERVE
A4: Row Labels | B4: Sum of Grand Total | D4: Sum of Grand Total | E4: Column Labels
A5: Aerospace Apprenticeships | B5: 321593 | D5: Row Labels | E5: Future Allocations/Reserves | F5: SBCTC Admin | G5: SBCTC Program | H5: Grand Total
A6: Aerospace Enrollments (1000 FTEs) | B6: 8000000 | D6: ABE Enrollments | G6: 153770 | H6: 153770
A7: Alcoa Training | B7: 2250000 | D7: Aerospace Apprenticeships | E7: 2398814 | F7: 0 | G7: 0 | H7: 2398814
A8: Allied Health Programs | B8: 425000 | D8: Aerospace Enrollments (1000 FTEs) | E8: 0 | H8: 0
A9: Alt. Finance Project Debt Svc. | B9: 8395336 | D9: Alt. Finance Project Debt Svc. | E9: 378664 | H9: 378664
A10: Base Allocation (ELTA) | B10: 37171863 | D10: Base Allocation (GF-State) | F10: 15668022 | H10: 15668022
A11: Base Allocation (GF-State) | B11: 307972324 | D11: Basic Skills Enhancement (ELTA) | E11: 0 | H11: 0
A12: Basic Skills Enhancement (ELTA) | B12: 0 | D12: Basic Skills Enhancement (GFS) | E12: 0 | G12: 396777 | H12: 396777
A13: Basic Skills Enhancement (GFS) | B13: 0 | D13: Climate assessment survey | G13: 0 | H13: 0
A14: Bates Rebasing | B14: 0 | D14: College Affordability Program (Tuition reduction) | E14: 0 | H14: 0
A15: Bellevue 4-Year Degree Prog | B15: 0 | D15: Dept of Ed Training | F15: 0 | H15: 0
A16: Centers of Excellence | B16: 2041570 | D16: DOC Compensation | G16: 597310 | H16: 597310
A17: COE for Aerospace | B17: 100000 | D17: Facilities M&O - FY 2013 | E17: 358052 | H17: 358052
A18: College Affordability Program (Tuition reduction) | B18: 17506000 | D18: Facilities M&O - FY 2016 | E18: 0 | H18: 0
A19: Compensation Tuition Backfill - State Support | B19: 8989000 | D19: Facilities M&O - FY 2017 | E19: 107000 | H19: 107000
A20: Disability Accommodations | B20: 1740808 | D20: Facility Maintenance - State Shift to Ed Const - MOA | F20: 0 | H20: 0
A21: Employment Resource Center | B21: 1139716 | D21: Feasibility Study | E21: 150000 | H21: 150000
A22: Fabrication Wing Training Program | B22: 1500000 | D22: First Link College Support | F22: 0 | H22: 0
A23: Facilities M&O | B23: 771000 | D23: General Wage Increase | F23: 344624 | H23: 344624
A24: Facilities M&O - 2016 | B24: 774000 | D24: Health Rate Changes | F24: 340533 | H24: 340533
A25: Facilities M&O CFL | B25: 0 | D25: Hospital Employee Education & Training | E25: 0 | F25: 42074 | H25: 42074
A26: Facility Maintenance - Ed Constr shift from State - MOA | B26: 3555000 | D26: Job Skills Program | F26: 55000 | G26: 2670000 | H26: 2725000
A27: Facility Maintenance - State - MOA | B27: 81945000 | D27: MESA Community College Programs - MCCP | G27: 110000 | H27: 110000
A28: Facility Maintenance - State Shift to Ed Const - MOA | B28: 0 | D28: Moore v. HCA (ELTA) | E28: 325000 | H28: 325000
A29: General Wage Increase | B29: 17821376 | D29: Moore v. HCA (GFS) | E29: 19004000 | H29: 19004000
A30: Health Rate Changes | B30: 31920467 | D30: Nonrep Job Class Specific Increases | F30: 2673 | H30: 2673
A31: Hospital Employee Education & Training | B31: 1997232 | D31: Ongoing Reserves (ELTA) | E31: 0 | H31: 0
A32: Labor Education & Research Center (ELTA) | B32: 0 | D32: Ongoing Reserves (GFS) | E32: 1453254 | H32: 1453254
A33: Labor Education & Research Center (GFS) | B33: 162868 | D33: Opportunity Grants (ELTA) | E33: 0 | F33: 118300 | G33: 675000 | H33: 793300
A34: Leases and Assessments | B34: 869000 | D34: PERS/TRS Pension Rate Changes | F34: 55269 | H34: 55269
A35: Maritime Industries | B35: 255000 | D35: Revolving Funds - Central Service Agency Charges | E35: 5188595 | H35: 5188595
A36: MESA Community College Programs - MCCP | B36: 750000 | D36: Revolving Funds - Self Insurance Premium | E36: 2075953 | H36: 2075953
A37: Nonrep Job Class Specific Increases | B37: 2327 | D37: Student Achievement Initiative (proviso) | E37: 0 | H37: 0
A38: Opportunity Grants (ELTA) | B38: 6706700 | D38: Supplemental Retirement Payments | E38: 1000000 | G38: -10891 | H38: 989109
A39: Opportunity Grants (GFS) | B39: 5000000 | D39: University Contracts (ELTA) | E39: 0 | H39: 0
A40: Performance Funding (base) | B40: 30734751 | D40: Worker Retraining - Base (101) | E40: 33683 | F40: 497555 | G40: 1096301 | H40: 1627539
A41: PERS/TRS Pension Rate Changes | B41: 2485731 | D41: Worker Retraining - Base (AC1) | G41: 544579 | H41: 544579
A42: Rebase Phase-in Adjustment - Year one | B42: 0 | D42: Worker Retraining - Variable (AC1) | E42: 0 | H42: 0
A43: Student Achievement Initiative (proviso) | B43: 5250000 | D43: Workers Compensation Changes | E43: 545000 | F43: 0 | H43: 545000
A44: Students of Color | B44: 1011628 | D44: Workforce Development Projects | E44: 1569945 | F44: 0 | H44: 1569945
A45: Supplemental Retirement Payments | B45: 0 | D45: Grand Total | E45: 34587960 | F45: 17124050 | G45: 6232846 | H45: 57944856
A46: University Contracts (ELTA) | B46: 738137
A47: University Contracts (GFS) | B47: 204485 | D47: USE OF FUNDS STATEMENT | E47: 34607711 | F47: 17124050 | G47: 6232846
A48: Weighted Enrollments - Additional 30% | B48: 36004250 | D48: VARIANCE | E48: =E45-E47 -> -19751 | F48: =F45-F47 -> 0 | G48: =G45-G47 -> 0
A49: WFSE Agreement | B49: 2756000
A50: Wildfire Prevention Program | B50: 157000
A51: Worker Retraining - Base (101) | B51: 4870561
A52: Worker Retraining - Base (AC1) | B52: 20237046
A53: Worker Retraining - Variable (AC1) | B53: 12479375
A54: Workers Compensation Changes | B54: 0
A55: Workforce Development Projects | B55: 0
A56: WPEA Agreement | B56: 2114000
A57: WPEA Agreement- Highline | B57: 196000
A58: WPEA Agreement- Yakima | B58: 357000
A59: Student Achievement Initiative (permanent) | B59: 0
A60: Grand Total | B60: 669679144
A62: USE OF FUNDS STATEMENT | B62: 669659393
A63: VARIANCE | B63: =B60-B62 -> 19751
B79: 666835000 | D79: 48303000
B80: =GETPIVOTDATA("Grand Total",$A$3,"Fund","001")-B79 ->  | D80: =GETPIVOTDATA("Grand Total",$A$3,"Fund","08A")-D79 -> 

Sheet District Check (hidden)
A1: Reconciliation Tabs 1 & 2 & Districts
A2: Washington State Community & Technical Colleges
A3: FY 2017 Allocation
A4: Fund Summary by District
A6: Districts | B6: Attachment One | C6: Attachment Two | D6: District Tab
A8: Bates | B8: ='Attachment One'!B9 -> 19701266 | C8: ='Attachment Two Step 7'!G10 -> 19701266 | D8: =Bates!G49 -> 19701266 | E8: =C8-D8 -> 0 | F8: Attachment one does not match District Tabs
A9: Bellevue | B9: ='Attachment One'!B10 -> 33254029 | C9: ='Attachment Two Step 7'!G11 -> 33254029 | D9: =Bellevue!G52 -> 33254029 | E9: =C9-D9 -> 0
A10: Bellingham | B10: ='Attachment One'!B11 -> 15600961 | C10: ='Attachment Two Step 7'!G12 -> 15600961 | D10: =Bellingham!G54 -> 15600961 | E10: 0 | F10: District Tabs do not match Attachment Two
A11: Big Bend | B11: ='Attachment One'!B12 -> 10185410 | C11: ='Attachment Two Step 7'!G13 -> 10185410 | D11: ='Big Bend'!G49 -> 10185410 | E11: 0
A12: Cascadia | B12: ='Attachment One'!B13 -> 10022902 | C12: ='Attachment Two Step 7'!G14 -> 10022902 | D12: =Cascadia!G48 -> 10022902 | E12: 0
A13: Centralia | B13: ='Attachment One'!B14 -> 12162622 | C13: ='Attachment Two Step 7'!G15 -> 12162622 | D13: =Centralia!G49 -> 12162622 | E13: 0
A14: Clark | B14: ='Attachment One'!B15 -> 31308417 | C14: ='Attachment Two Step 7'!G16 -> 31308417 | D14: =Clark!G54 -> 31308417 | E14: 0
A15: Clover Park | B15: ='Attachment One'!B16 -> 20038218 | C15: ='Attachment Two Step 7'!G17 -> 20038218 | D15: ='Clover Park'!G50 -> 20038218 | E15: 0
A16: Columbia Basin | B16: ='Attachment One'!B17 -> 21365069 | C16: ='Attachment Two Step 7'!G18 -> 21365069 | D16: ='Columbia Basin'!G49 -> 21365069 | E16: 0
A17: Edmonds | B17: ='Attachment One'!B18 -> 27904533 | C17: ='Attachment Two Step 7'!G19 -> 27904533 | D17: =Edmonds!G56 -> 27904533 | E17: 0
A18: Everett | B18: ='Attachment One'!B19 -> 24526963 | C18: ='Attachment Two Step 7'!G20 -> 24526963 | D18: =Everett!G53 -> 24526963 | E18: 0
A19: Grays Harbor | B19: ='Attachment One'!B20 -> 10072886 | C19: ='Attachment Two Step 7'!G21 -> 10072886 | D19: ='Grays Harbor'!G49 -> 10072886 | E19: 0
A20: Green River | B20: ='Attachment One'!B21 -> 28403200 | C20: ='Attachment Two Step 7'!G22 -> 28403200 | D20: ='Green River'!G54 -> 28403200 | E20: 0
A21: Highline | B21: ='Attachment One'!B22 -> 25655763 | C21: ='Attachment Two Step 7'!G23 -> 25655763 | D21: =Highline!G53 -> 25655763 | E21: 0
A22: Lake Washington | B22: ='Attachment One'!B23 -> 15200397 | C22: ='Attachment Two Step 7'!G24 -> 15200397 | D22: ='Lake Wa'!G49 -> 15200397 | E22: 0
A23: Lower Columbia | B23: ='Attachment One'!B24 -> 15592898 | C23: ='Attachment Two Step 7'!G25 -> 15592898 | D23: ='Lower Columbia'!G48 -> 15592898 | E23: 0
A24: Olympic | B24: ='Attachment One'!B25 -> 22287327 | C24: ='Attachment Two Step 7'!G26 -> 22287327 | D24: =Olympic!G52 -> 22287327 | E24: 0
A25: Peninsula | B25: ='Attachment One'!B26 -> 11177072 | C25: ='Attachment Two Step 7'!G27 -> 11177072 | D25: =Penninsula!G50 -> 11177072 | E25: 0
A26: Pierce | B26: ='Attachment One'!B27 -> 27337343 | C26: ='Attachment Two Step 7'!G28 -> 27337343 | D26: =Pierce!G55 -> 27337343 | E26: 0
A27: Renton | B27: ='Attachment One'!B28 -> 17342615 | C27: ='Attachment Two Step 7'!G29 -> 17342615 | D27: =Renton!G49 -> 17342615 | E27: 0
A28: Seattle | B28: ='Attachment One'!B29 -> 70117735 | C28: ='Attachment Two Step 7'!G30 -> 70117735 | D28: =Seattle!G57 -> 70117735 | E28: 0
A29: Shoreline | B29: ='Attachment One'!B30 -> 22016493 | C29: ='Attachment Two Step 7'!G31 -> 22016493 | D29: =Shoreline!G50 -> 22016493 | E29: 0
A30: Skagit Valley | B30: ='Attachment One'!B31 -> 20408728 | C30: ='Attachment Two Step 7'!G32 -> 20408728 | D30: =Skagit!G55 -> 20408728 | E30: 0
A31: South Puget Sound | B31: ='Attachment One'!B32 -> 16769493 | C31: ='Attachment Two Step 7'!G33 -> 16769493 | D31: ='So Puget Sound'!G51 -> 16769493 | E31: 0
A32: Spokane | B32: ='Attachment One'!B33 -> 57020418 | C32: ='Attachment Two Step 7'!G34 -> 57020418 | D32: =Spokane!G54 -> 57020418 | E32: 0
A33: Tacoma | B33: ='Attachment One'!B34 -> 22351219 | C33: ='Attachment Two Step 7'!G35 -> 22351219 | D33: =Tacoma!G51 -> 22351219 | E33: 0
A34: Walla Walla | B34: ='Attachment One'!B35 -> 16426672 | C34: ='Attachment Two Step 7'!G36 -> 16426672 | D34: ='Walla Walla'!G52 -> 16426672 | E34: 0
A35: Wenatchee Valley | B35: ='Attachment One'!B36 -> 13324772 | C35: ='Attachment Two Step 7'!G37 -> 13324772 | D35: =Wenatchee!G51 -> 13324772 | E35: 0
A36: Whatcom | B36: ='Attachment One'!B37 -> 12800490 | C36: ='Attachment Two Step 7'!G38 -> 12800490 | D36: =Whatcom!G51 -> 12800490 | E36: 0
A37: Yakima Valley | B37: ='Attachment One'!B38 -> 19303233 | C37: ='Attachment Two Step 7'!G39 -> 19303233 | D37: =Yakima!G54 -> 19303233 | E37: =C37-B37 -> 0
A39: District Total | B39: =SUM(B8:B38) -> 669679144 | C39: =SUM(C8:C38) -> 669679144 | D39: =SUM(D8:D38) -> 669679144
A41: SBCTC Admin | B41: ='Attachment One'!B42 -> 17124050 | C41: ='Attachment Two Step 7'!G43 -> 17124050 | D41: ='SBCTC Admin'!G42 -> 17124050 | E41: =B41-D41 -> 0 | F41: =B41-C41 -> 0
A42: SBCTC Program | B42: ='Attachment One'!B43 -> 6232846 | C42: ='Attachment Two Step 7'!G44 -> 6232846 | D42: ='SBCTC Program'!G30 -> 6232846 | E42: =B42-D42 -> 0 | F42: =D42-C42:C42 -> 0
A44: Allocation Total | B44: =B39+B41+B42 -> 693036040 | C44: =C39+C41+C42 -> 693036040 | D44: =D39+D41+D42 -> 693036040
A46: Future Allocations | B46: ='Attachment One'!B47 -> 34587960 | C46: ='Attachment Two Step 7'!G48 -> 34587960 | D46: =#REF! ->  | E46: =C46-D46 -> 
A48: System Total | B48: =B44+B46 -> 727624000 | C48: =C44+C46 -> 727624000 | D48: =D46+D44 -> 

Sheet AllocSched (hidden)
A1: Excel_Code | B1: Group Name | C1: Period | D1: DISTRICT | E1: General Fund State | F1: NAME | G1: Fund | H1: FMS AL# | I1: Approp | J1: Fund & Approp | K1: Fund Appr Number | L1: Approp_Inputs | M1: AllocSched_Details | N1: Enrollments ? | O1: Enrollment | P1: Enrollment_Initial | Q1: Enrollment_Change | R1: Enrollment_Total | S1: Prior $ | T1: Initial Alloc | U1: move to new model | V1: #2 | W1: #3 | X1: #4 | Y1: #5 | Z1: #6 | AA1: #7 | AB1: #8 | AC1: #9 | AD1: #10 | AE1: Grand Total
A2: =CONCATENATE(D2,M2) -> 90ABE Enrollments | B2: Base | C2: 1 | D2: 90 | E2: TRUE | F2: SBCTC Program | G2: =LEFT(J2,3) -> 001 | H2: =VLOOKUP(I2,Approp,2,FALSE) -> 101 | I2: =RIGHT(J2,3) -> 011 | J2: 001-011 | K2: 1011 | L2: ABE Enrollments | M2: ABE Enrollments | N2: yes | O2: 34 | S2: 153770 | T2: - | AE2: =SUM(S2:AD2) -> 153770
A3: 28Aerospace Apprenticeships | B3: Earmark | C3: 1 | D3: 28 | E3: TRUE | F3: Bates | G3: 001 | H3: 101 | I3: 011 | J3: 001-011 | K3: 1011 | L3: Aerospace Apprenticeships | M3: Aerospace Apprenticeships | N3: yes | O3: 20 | S3: 116941 | T3: - | AE3: =SUM(S3:AD3) -> 116941
A4: 25Aerospace Apprenticeships | B4: Earmark | C4: 1 | D4: 25 | E4: TRUE | F4: Bellingham | G4: 001 | H4: 101 | I4: 011 | J4: 001-011 | K4: 1011 | L4: Aerospace Apprenticeships | M4: Aerospace Apprenticeships | N4: yes | O4: 4 | S4: 24084 | T4: -24084 | AE4: 0
A5: 19Aerospace Apprenticeships | B5: Earmark | C5: 1 | D5: 19 | E5: TRUE | F5: Columbia Basin | G5: 001 | H5: 101 | I5: 011 | J5: 001-011 | K5: 1011 | L5: Aerospace Apprenticeships | M5: Aerospace Apprenticeships | N5: yes | O5: 5 | S5: 29237 | T5: - | AE5: 29237
A6: 5Aerospace Apprenticeships | B6: Earmark | C6: 1 | D6: 5 | E6: TRUE | F6: Everett | G6: 001 | H6: 101 | I6: 011 | J6: 001-011 | K6: 1011 | L6: Aerospace Apprenticeships | M6: Aerospace Apprenticeships | N6: yes | O6: 40 | S6: 238580 | T6: -162567 | AE6: 76013
A7: 00Aerospace Apprenticeships | B7: Earmark | C7: 1 | D7: 00 | E7: TRUE | F7: Future Allocations/Reserves | G7: 001 | H7: 101 | I7: 011 | J7: 001-011 | K7: 1011 | L7: Aerospace Apprenticeships | M7: Aerospace Apprenticeships | N7: yes | O7: 5 | S7: 30172 | T7: 2368642 | AE7: 2398814
A8: 27Aerospace Apprenticeships | B8: Earmark | C8: 1 | D8: 27 | E8: TRUE | F8: Renton | G8: 001 | H8: 101 | I8: 011 | J8: 001-011 | K8: 1011 | L8: Aerospace Apprenticeships | M8: Aerospace Apprenticeships | N8: yes | O8: 14 | S8: 83252 | T8: -48168 | AE8: 35084
A9: 89Aerospace Apprenticeships | B9: Earmark | C9: 1 | D9: 89 | E9: TRUE | F9: SBCTC Admin | G9: 001 | H9: 101 | I9: 011 | J9: 001-011 | K9: 1011 | L9: Aerospace Apprenticeships | M9: Aerospace Apprenticeships | S9: 25411 | T9: -25411 | AE9: 0
A10: 90Aerospace Apprenticeships | B10: Earmark | C10: 1 | D10: 90 | E10: TRUE | F10: SBCTC Program | G10: 001 | H10: 101 | I10: 011 | J10: 001-011 | K10: 1011 | L10: Aerospace Apprenticeships | M10: Aerospace Apprenticeships | S10: 1921761 | T10: -1921761 | AE10: 0
A11: 6Aerospace Apprenticeships | B11: Earmark | C11: 1 | D11: 6 | E11: TRUE | F11: Seattle | G11: 001 | H11: 101 | I11: 011 | J11: 001-011 | K11: 1011 | L11: Aerospace Apprenticeships | M11: Aerospace Apprenticeships | N11: yes | O11: 24 | S11: 143460 | T11: -108378 | AE11: 35082
A12: 17Aerospace Apprenticeships | B12: Earmark | C12: 1 | D12: 17 | E12: TRUE | F12: Spokane | G12: 001 | H12: 101 | I12: 011 | J12: 001-011 | K12: 1011 | L12: Aerospace Apprenticeships | M12: Aerospace Apprenticeships | N12: yes | O12: 8 | S12: 29236 | T12: - | AE12: 29236
A13: 4Aerospace Apprenticeships | B13: Earmark | C13: 1 | D13: 4 | E13: TRUE | F13: Skagit Valley | G13: 001 | H13: 101 | I13: 011 | J13: 001-011 | K13: 1011 | L13: Aerospace Apprenticeships | M13: Aerospace Apprenticeships | N13: yes | O13: 5 | S13: 48168 | T13: -48168 | AE13: 0
A14: 16Aerospace Apprenticeships | B14: Earmark | C14: 1 | D14: 16 | E14: TRUE | F14: Yakima Valley | G14: 001 | H14: 101 | I14: 011 | J14: 001-011 | K14: 1011 | L14: Aerospace Apprenticeships | M14: Aerospace Apprenticeships | N14: yes | O14: 5 | S14: 30105 | T14: -30105 | AE14: 0
A15: 28Aerospace Enrollments (1000 FTEs) | B15: Earmark | C15: 1 | D15: 28 | E15: TRUE | F15: Bates | G15: 001 | H15: 101 | I15: 011 | J15: 001-011 | K15: 1011 | L15: Aerospace Enrollments (1000 FTEs) | M15: Aerospace Enrollments (1000 FTEs) | N15: yes | O15: 62 | S15: 411771 | T15: - | AE15: 411771
A16: 25Aerospace Enrollments (1000 FTEs) | B16: Earmark | C16: 1 | D16: 25 | E16: TRUE | F16: Bellingham | G16: 001 | H16: 101 | I16: 011 | J16: 001-011 | K16: 1011 | L16: Aerospace Enrollments (1000 FTEs) | M16: Aerospace Enrollments (1000 FTEs) | N16: yes | O16: 77 | S16: 607376 | T16: - | AE16: 607376
A17: 18Aerospace Enrollments (1000 FTEs) | B17: Earmark | C17: 1 | D17: 18 | E17: TRUE | F17: Big Bend | G17: 001 | H17: 101 | I17: 011 | J17: 001-011 | K17: 1011 | L17: Aerospace Enrollments (1000 FTEs) | M17: Aerospace Enrollments (1000 FTEs) | N17: yes | O17: 42 | S17: 162026 | T17: - | AE17: 162026
A18: 14Aerospace Enrollments (1000 FTEs) | B18: Earmark | C18: 1 | D18: 14 | E18: TRUE | F18: Clark | G18: 001 | H18: 101 | I18: 011 | J18: 001-011 | K18: 1011 | L18: Aerospace Enrollments (1000 FTEs) | M18: Aerospace Enrollments (1000 FTEs) | N18: yes | O18: 40 | S18: 315501 | T18: - | AE18: 315501
A19: 29Aerospace Enrollments (1000 FTEs) | B19: Earmark | C19: 1 | D19: 29 | E19: TRUE | F19: Clover Park | G19: 001 | H19: 101 | I19: 011 | J19: 001-011 | K19: 1011 | L19: Aerospace Enrollments (1000 FTEs) | M19: Aerospace Enrollments (1000 FTEs) | N19: yes | O19: 77 | S19: 603161 | T19: - | AE19: 603161
A20: 23Aerospace Enrollments (1000 FTEs) | B20: Earmark | C20: 1 | D20: 23 | E20: TRUE | F20: Edmonds | G20: 001 | H20: 101 | I20: 011 | J20: 001-011 | K20: 1011 | L20: Aerospace Enrollments (1000 FTEs) | M20: Aerospace Enrollments (1000 FTEs) | N20: yes | O20: 65 | S20: 512720 | T20: - | AE20: 512720
A21: 5Aerospace Enrollments (1000 FTEs) | B21: Earmark | C21: 1 | D21: 5 | E21: TRUE | F21: Everett | G21: 001 | H21: 101 | I21: 011 | J21: 001-011 | K21: 1011 | L21: Aerospace Enrollments (1000 FTEs) | M21: Aerospace Enrollments (1000 FTEs) | N21: yes | O21: 143 | S21: 1127984 | T21: - | AE21: 1127984
A22: 00Aerospace Enrollments (1000 FTEs) | B22: Earmark | C22: 1 | D22: 00 | E22: TRUE | F22: Future Allocations/Reserves | G22: 001 | H22: 101 | I22: 011 | J22: 001-011 | K22: 1011 | L22: Aerospace Enrollments (1000 FTEs) | M22: Aerospace Enrollments (1000 FTEs) | N22: yes | O22: 0 | S22: - | T22: - | AE22: 0
A23: 10Aerospace Enrollments (1000 FTEs) | B23: Earmark | C23: 1 | D23: 10 | E23: TRUE | F23: Green River | G23: 001 | H23: 101 | I23: 011 | J23: 001-011 | K23: 1011 | L23: Aerospace Enrollments (1000 FTEs) | M23: Aerospace Enrollments (1000 FTEs) | N23: yes | O23: 39 | S23: 296172 | T23: - | AE23: 296172
A24: 9Aerospace Enrollments (1000 FTEs) | B24: Earmark | C24: 1 | D24: 9 | E24: TRUE | F24: Highline | G24: 001 | H24: 101 | I24: 011 | J24: 001-011 | K24: 1011 | L24: Aerospace Enrollments (1000 FTEs) | M24: Aerospace Enrollments (1000 FTEs) | N24: yes | O24: 20 | S24: 157760 | T24: - | AE24: 157760
A25: 26Aerospace Enrollments (1000 FTEs) | B25: Earmark | C25: 1 | D25: 26 | E25: TRUE | F25: Lake Washington | G25: 001 | H25: 101 | I25: 011 | J25: 001-011 | K25: 1011 | L25: Aerospace Enrollments (1000 FTEs) | M25: Aerospace Enrollments (1000 FTEs) | N25: yes | O25: 45 | S25: 354960 | T25: - | AE25: 354960
A26: 3Aerospace Enrollments (1000 FTEs) | B26: Earmark | C26: 1 | D26: 3 | E26: TRUE | F26: Olympic | G26: 001 | H26: 101 | I26: 011 | J26: 001-011 | K26: 1011 | L26: Aerospace Enrollments (1000 FTEs) | M26: Aerospace Enrollments (1000 FTEs) | N26: yes | O26: 61 | S26: 481168 | T26: - | AE26: 481168
A27: 1Aerospace Enrollments (1000 FTEs) | B27: Earmark | C27: 1 | D27: 1 | E27: TRUE | F27: Peninsula | G27: 001 | H27: 101 | I27: 011 | J27: 001-011 | K27: 1011 | L27: Aerospace Enrollments (1000 FTEs) | M27: Aerospace Enrollments (1000 FTEs) | N27: yes | O27: 38 | S27: 299744 | T27: - | AE27: 299744
A28: 27Aerospace Enrollments (1000 FTEs) | B28: Earmark | C28: 1 | D28: 27 | E28: TRUE | F28: Renton | G28: 001 | H28: 101 | I28: 011 | J28: 001-011 | K28: 1011 | L28: Aerospace Enrollments (1000 FTEs) | M28: Aerospace Enrollments (1000 FTEs) | N28: yes | O28: 39 | S28: 235338 | T28: - | AE28: 235338
A29: 6Aerospace Enrollments (1000 FTEs) | B29: Earmark | C29: 1 | D29: 6 | E29: TRUE | F29: Seattle | G29: 001 | H29: 101 | I29: 011 | J29: 001-011 | K29: 1011 | L29: Aerospace Enrollments (1000 FTEs) | M29: Aerospace Enrollments (1000 FTEs) | N29: yes | O29: 174 | S29: 1280881 | T29: - | AE29: 1280881
A30: 7Aerospace Enrollments (1000 FTEs) | B30: Earmark | C30: 1 | D30: 7 | E30: TRUE | F30: Shoreline | G30: 001 | H30: 101 | I30: 011 | J30: 001-011 | K30: 1011 | L30: Aerospace Enrollments (1000 FTEs) | M30: Aerospace Enrollments (1000 FTEs) | N30: yes | O30: 20 | S30: 152614 | T30: - | AE30: 152614
A31: 4Aerospace Enrollments (1000 FTEs) | B31: Earmark | C31: 1 | D31: 4 | E31: TRUE | F31: Skagit Valley | G31: 001 | H31: 101 | I31: 011 | J31: 001-011 | K31: 1011 | L31: Aerospace Enrollments (1000 FTEs) | M31: Aerospace Enrollments (1000 FTEs) | N31: yes | O31: 27 | S31: 212976 | T31: - | AE31: 212976
A32: 24Aerospace Enrollments (1000 FTEs) | B32: Earmark | C32: 1 | D32: 24 | E32: TRUE | F32: South Puget Sound | G32: 001 | H32: 101 | I32: 011 | J32: 001-011 | K32: 1011 | L32: Aerospace Enrollments (1000 FTEs) | M32: Aerospace Enrollments (1000 FTEs) | N32: yes | O32: 15 | S32: 118320 | T32: - | AE32: 118320
A33: 17Aerospace Enrollments (1000 FTEs) | B33: Earmark | C33: 1 | D33: 17 | E33: TRUE | F33: Spokane | G33: 001 | H33: 101 | I33: 011 | J33: 001-011 | K33: 1011 | L33: Aerospace Enrollments (1000 FTEs) | M33: Aerospace Enrollments (1000 FTEs) | N33: yes | O33: 40 | S33: 314568 | T33: - | AE33: 314568
A34: 22Aerospace Enrollments (1000 FTEs) | B34: Earmark | C34: 1 | D34: 22 | E34: TRUE | F34: Tacoma | G34: 001 | H34: 101 | I34: 011 | J34: 001-011 | K34: 1011 | L34: Aerospace Enrollments (1000 FTEs) | M34: Aerospace Enrollments (1000 FTEs) | N34: yes | O34: 25 | S34: 197200 | T34: - | AE34: 197200
A35: 15Aerospace Enrollments (1000 FTEs) | B35: Earmark | C35: 1 | D35: 15 | E35: TRUE | F35: Wenatchee | G35: 001 | H35: 101 | I35: 011 | J35: 001-011 | K35: 1011 | L35: Aerospace Enrollments (1000 FTEs) | M35: Aerospace Enrollments (1000 FTEs) | N35: yes | O35: 20 | S35: 157760 | T35: - | AE35: 157760
A36: 25Alcoa Training | B36: Proviso | C36: 1 | D36: 25 | E36: TRUE | F36: Bellingham | G36: 001 | H36: CF1 | I36: CF1 | J36: 001-0CF1 | K36: 10CF1 | L36: Alcoa Training | M36: Alcoa Training | S36: 750000 | T36: 1500000 | AE36: 2250000
A37: 6Allied Health Programs | B37: Proviso | C37: 1 | D37: 6 | E37: TRUE | F37: Seattle | G37: 001 | H37: BP1 | I37: BP1 | J37: 001-BP1 | K37: 001BP1 | L37: Allied Health Programs | M37: Allied Health Programs | S37: 425000 | T37: - | AE37: 425000
A38: 25Alt. Finance Project Debt Svc. | B38: Earmark | C38: 1 | D38: 25 | E38: TRUE | F38: Bellingham | G38: 060 | H38: BA0 | I38: BA0 | J38: 060-BA0 | K38: 060BA0 | L38: Alt. Finance Project Debt Svc. | M38: Alt. Finance Project Debt Svc. | S38: 1996296 | T38: 800 | AE38: 1997096
A39: 00Alt. Finance Project Debt Svc. | B39: Earmark | C39: 1 | D39: 00 | E39: TRUE | F39: Future Allocations/Reserves | G39: 060 | H39: BA0 | I39: BA0 | J39: 060-BA0 | K39: 060BA0 | L39: Alt. Finance Project Debt Svc. | M39: Alt. Finance Project Debt Svc. | S39: 387624 | T39: -8960 | AE39: 378664
A40: 10Alt. Finance Project Debt Svc. | B40: Earmark | C40: 1 | D40: 10 | E40: TRUE | F40: Green River | G40: 060 | H40: BA0 | I40: BA0 | J40: 060-BA0 | K40: 060BA0 | L40: Alt. Finance Project Debt Svc. | M40: Alt. Finance Project Debt Svc. | S40: 2020580 | T40: 4160 | AE40: 2024740
A41: 13Alt. Finance Project Debt Svc. | B41: Earmark | C41: 1 | D41: 13 | E41: TRUE | F41: Lower Columbia | G41: 060 | H41: BA0 | I41: BA0 | J41: 060-BA0 | K41: 060BA0 | L41: Alt. Finance Project Debt Svc. | M41: Alt. Finance Project Debt Svc. | S41: 2406175 | T41: 400 | AE41: 2406575
A42: 4Alt. Finance Project Debt Svc. | B42: Earmark | C42: 1 | D42: 4 | E42: TRUE | F42: Skagit Valley | G42: 060 | H42: BA0 | I42: BA0 | J42: 060-BA0 | K42: 060BA0 | L42: Alt. Finance Project Debt Svc. | M42: Alt. Finance Project Debt Svc. | S42: 1963325 | T42: 3600 | AE42: 1966925
A43: 28Base Allocation (ELTA) | B43: Base | C43: 1 | D43: 28 | E43: TRUE | F43: Bates | G43: 08A | H43: 3E0 | I43: 3E0 | J43: 08A-3E0 | K43: 08A3E0 | L43: Base Allocation | M43: Base Allocation (ELTA) | N43: yes | O43: 347 | S43: 1252560 | T43: 83552 | AE43: 1336112
A44: 8Base Allocation (ELTA) | B44: Base | C44: 1 | D44: 8 | E44: TRUE | F44: Bellevue | G44: 08A | H44: 3E0 | I44: 3E0 | J44: 08A-3E0 | K44: 08A3E0 | L44: Base Allocation | M44: Base Allocation (ELTA) | N44: yes | O44: 526 | S44: 1800891 | T44: 120124 | AE44: 1921015
A45: 25Base Allocation (ELTA) | B45: Base | C45: 1 | D45: 25 | E45: TRUE | F45: Bellingham | G45: 08A | H45: 3E0 | I45: 3E0 | J45: 08A-3E0 | K45: 08A3E0 | L45: Base Allocation | M45: Base Allocation (ELTA) | N45: yes | O45: 187 | S45: 878644 | T45: 58603 | AE45: 937247
A46: 18Base Allocation (ELTA) | B46: Base | C46: 1 | D46: 18 | E46: TRUE | F46: Big Bend | G46: 08A | H46: 3E0 | I46: 3E0 | J46: 08A-3E0 | K46: 08A3E0 | L46: Base Allocation | M46: Base Allocation (ELTA) | N46: yes | O46: 169 | S46: 821108 | T46: 54775 | AE46: 875883
A47: 30Base Allocation (ELTA) | B47: Base | C47: 1 | D47: 30 | E47: TRUE | F47: Cascadia | G47: 08A | H47: 3E0 | I47: 3E0 | J47: 08A-3E0 | K47: 08A3E0 | L47: Base Allocation | M47: Base Allocation (ELTA) | N47: yes | O47: 212 | S47: 1152982 | T47: 76908 | AE47: 1229890
A48: 12Base Allocation (ELTA) | B48: Base | C48: 1 | D48: 12 | E48: TRUE | F48: Centralia | G48: 08A | H48: 3E0 | I48: 3E0 | J48: 08A-3E0 | K48: 08A3E0 | L48: Base Allocation | M48: Base Allocation (ELTA) | N48: yes | O48: 192 | S48: 813485 | T48: 54256 | AE48: 867741
A49: 14Base Allocation (ELTA) | B49: Base | C49: 1 | D49: 14 | E49: TRUE | F49: Clark | G49: 08A | H49: 3E0 | I49: 3E0 | J49: 08A-3E0 | K49: 08A3E0 | L49: Base Allocation | M49: Base Allocation (ELTA) | N49: yes | O49: 511 | S49: 1783124 | T49: 118935 | AE49: 1902059
A50: 29Base Allocation (ELTA) | B50: Base | C50: 1 | D50: 29 | E50: TRUE | F50: Clover Park | G50: 08A | H50: 3E0 | I50: 3E0 | J50: 08A-3E0 | K50: 08A3E0 | L50: Base Allocation | M50: Base Allocation (ELTA) | N50: yes | O50: 330 | S50: 1216790 | T50: 81165 | AE50: 1297955
A51: 19Base Allocation (ELTA) | B51: Base | C51: 1 | D51: 19 | E51: TRUE | F51: Columbia Basin | G51: 08A | H51: 3E0 | I51: 3E0 | J51: 08A-3E0 | K51: 08A3E0 | L51: Base Allocation | M51: Base Allocation (ELTA) | N51: yes | O51: 375 | S51: 1338670 | T51: 89286 | AE51: 1427956
A52: 23Base Allocation (ELTA) | B52: Base | C52: 1 | D52: 23 | E52: TRUE | F52: Edmonds | G52: 08A | H52: 3E0 | I52: 3E0 | J52: 08A-3E0 | K52: 08A3E0 | L52: Base Allocation | M52: Base Allocation (ELTA) | N52: yes | O52: 211 | S52: 819441 | T52: 54662 | AE52: 874103
A53: 5Base Allocation (ELTA) | B53: Base | C53: 1 | D53: 5 | E53: TRUE | F53: Everett | G53: 08A | H53: 3E0 | I53: 3E0 | J53: 08A-3E0 | K53: 08A3E0 | L53: Base Allocation | M53: Base Allocation (ELTA) | N53: yes | O53: 657 | S53: 2522383 | T53: 168241 | AE53: 2690624
A54: 2Base Allocation (ELTA) | B54: Base | C54: 1 | D54: 2 | E54: TRUE | F54: Grays Harbor | G54: 08A | H54: 3E0 | I54: 3E0 | J54: 08A-3E0 | K54: 08A3E0 | L54: Base Allocation | M54: Base Allocation (ELTA) | N54: yes | O54: 96 | S54: 440486 | T54: 29384 | AE54: 469870
A55: 10Base Allocation (ELTA) | B55: Base | C55: 1 | D55: 10 | E55: TRUE | F55: Green River | G55: 08A | H55: 3E0 | I55: 3E0 | J55: 08A-3E0 | K55: 08A3E0 | L55: Base Allocation | M55: Base Allocation (ELTA) | N55: yes | O55: 266 | S55: 978346 | T55: 65259 | AE55: 1043605
A56: 9Base Allocation (ELTA) | B56: Base | C56: 1 | D56: 9 | E56: TRUE | F56: Highline | G56: 08A | H56: 3E0 | I56: 3E0 | J56: 08A-3E0 | K56: 08A3E0 | L56: Base Allocation | M56: Base Allocation (ELTA) | N56: yes | O56: 356 | S56: 1168417 | T56: 77930 | AE56: 1246347
A57: 26Base Allocation (ELTA) | B57: Base | C57: 1 | D57: 26 | E57: TRUE | F57: Lake Washington | G57: 08A | H57: 3E0 | I57: 3E0 | J57: 08A-3E0 | K57: 08A3E0 | L57: Base Allocation | M57: Base Allocation (ELTA) | N57: yes | O57: 306 | S57: 1222287 | T57: 81531 | AE57: 1303818
A58: 13Base Allocation (ELTA) | B58: Base | C58: 1 | D58: 13 | E58: TRUE | F58: Lower Columbia | G58: 08A | H58: 3E0 | I58: 3E0 | J58: 08A-3E0 | K58: 08A3E0 | L58: Base Allocation | M58: Base Allocation (ELTA) | N58: yes | O58: 182 | S58: 788118 | T58: 52563 | AE58: 840681
A59: 3Base Allocation (ELTA) | B59: Base | C59: 1 | D59: 3 | E59: TRUE | F59: Olympic | G59: 08A | H59: 3E0 | I59: 3E0 | J59: 08A-3E0 | K59: 08A3E0 | L59: Base Allocation | M59: Base Allocation (ELTA) | N59: yes | O59: 466 | S59: 1636584 | T59: 109158 | AE59: 1745742
A60: 1Base Allocation (ELTA) | B60: Base | C60: 1 | D60: 1 | E60: TRUE | F60: Peninsula | G60: 08A | H60: 3E0 | I60: 3E0 | J60: 08A-3E0 | K60: 08A3E0 | L60: Base Allocation | M60: Base Allocation (ELTA) | N60: yes | O60: 90 | S60: 477819 | T60: 31872 | AE60: 509691
A61: 11Base Allocation (ELTA) | B61: Base | C61: 1 | D61: 11 | E61: TRUE | F61: Pierce | G61: 08A | H61: 3E0 | I61: 3E0 | J61: 08A-3E0 | K61: 08A3E0 | L61: Base Allocation | M61: Base Allocation (ELTA) | N61: yes | O61: 412 | S61: 1525139 | T61: 101731 | AE61: 1626870
A62: 27Base Allocation (ELTA) | B62: Base | C62: 1 | D62: 27 | E62: TRUE | F62: Renton | G62: 08A | H62: 3E0 | I62: 3E0 | J62: 08A-3E0 | K62: 08A3E0 | L62: Base Allocation | M62: Base Allocation (ELTA) | N62: yes | O62: 347 | S62: 1257446 | T62: 83881 | AE62: 1341327
A63: 6Base Allocation (ELTA) | B63: Base | C63: 1 | D63: 6 | E63: TRUE | F63: Seattle | G63: 08A | H63: 3E0 | I63: 3E0 | J63: 08A-3E0 | K63: 08A3E0 | L63: Base Allocation | M63: Base Allocation (ELTA) | N63: yes | O63: 28 | S63: 106012 | T63: 7075 | AE63: 113087
A64: 7Base Allocation (ELTA) | B64: Base | C64: 1 | D64: 7 | E64: TRUE | F64: Shoreline | G64: 08A | H64: 3E0 | I64: 3E0 | J64: 08A-3E0 | K64: 08A3E0 | L64: Base Allocation | M64: Base Allocation (ELTA) | N64: yes | O64: 133 | S64: 459488 | T64: 30647 | AE64: 490135
A65: 4Base Allocation (ELTA) | B65: Base | C65: 1 | D65: 4 | E65: TRUE | F65: Skagit Valley | G65: 08A | H65: 3E0 | I65: 3E0 | J65: 08A-3E0 | K65: 08A3E0 | L65: Base Allocation | M65: Base Allocation (ELTA) | N65: yes | O65: 350 | S65: 1371555 | T65: 91485 | AE65: 1463040
A66: =CONCATENATE(D66,M66) -> 24Base Allocation (ELTA) | B66: Base | C66: 1 | D66: 24 | E66: TRUE | F66: South Puget Sound | G66: =LEFT(J66,3) -> 08A | H66: =VLOOKUP(I66,Approp,2,FALSE) -> 3E0 | I66: =RIGHT(J66,3) -> 3E0 | J66: 08A-3E0 | K66: 08A3E0 | L66: Base Allocation | M66: Base Allocation (ELTA) | N66: yes | O66: 226 | S66: 890194 | T66: 59373 | AE66: 949567
A67: 17Base Allocation (ELTA) | B67: Base | C67: 1 | D67: 17 | E67: TRUE | F67: Spokane | G67: 08A | H67: 3E0 | I67: 3E0 | J67: 08A-3E0 | K67: 08A3E0 | L67: Base Allocation | M67: Base Allocation (ELTA) | N67: yes | O67: 777 | S67: 2702870 | T67: 180292 | AE67: =SUM(S67:AD67) -> 2883162
A68: 22Base Allocation (ELTA) | B68: Base | C68: 1 | D68: 22 | E68: TRUE | F68: Tacoma | G68: 08A | H68: 3E0 | I68: 3E0 | J68: 08A-3E0 | K68: 08A3E0 | L68: Base Allocation | M68: Base Allocation (ELTA) | N68: yes | O68: 366 | S68: 1390578 | T68: 92748 | AE68: 1483326
A69: 20Base Allocation (ELTA) | B69: Base | C69: 1 | D69: 20 | E69: TRUE | F69: Walla Walla | G69: 08A | H69: 3E0 | I69: 3E0 | J69: 08A-3E0 | K69: 08A3E0 | L69: Base Allocation | M69: Base Allocation (ELTA) | N69: yes | O69: 160 | S69: 699358 | T69: 46652 | AE69: 746010
A70: 15Base Allocation (ELTA) | B70: Base | C70: 1 | D70: 15 | E70: TRUE | F70: Wenatchee | G70: 08A | H70: 3E0 | I70: 3E0 | J70: 08A-3E0 | K70: 08A3E0 | L70: Base Allocation | M70: Base Allocation (ELTA) | N70: yes | O70: 257 | S70: 1072513 | T70: 71538 | AE70: 1144051
A71: 21Base Allocation (ELTA) | B71: Base | C71: 1 | D71: 21 | E71: TRUE | F71: Whatcom | G71: 08A | H71: 3E0 | I71: 3E0 | J71: 08A-3E0 | K71: 08A3E0 | L71: Base Allocation | M71: Base Allocation (ELTA) | N71: yes | O71: 259 | S71: 1057276 | T71: 70528 | AE71: 1127804
A72: 16Base Allocation (ELTA) | B72: Base | C72: 1 | D72: 16 | E72: TRUE | F72: Yakima Valley | G72: 08A | H72: 3E0 | I72: 3E0 | J72: 08A-3E0 | K72: 08A3E0 | L72: Base Allocation | M72: Base Allocation (ELTA) | N72: yes | O72: 312 | S72: 1202902 | T72: 80243 | AE72: 1283145
A73: 28Base Allocation (GF-State) | B73: Base | C73: 1 | D73: 28 | E73: TRUE | F73: Bates | G73: 001 | H73: 101 | I73: 011 | J73: 001-011 | K73: 1011 | L73: Base Allocation | M73: Base Allocation (GF-State) | N73: yes | O73: 3905 | S73: 14764822 | T73: -5504838 | AE73: 9259984
A74: 8Base Allocation (GF-State) | B74: Base | C74: 1 | D74: 8 | E74: TRUE | F74: Bellevue | G74: 001 | H74: 101 | I74: 011 | J74: 001-011 | K74: 1011 | L74: Base Allocation | M74: Base Allocation (GF-State) | N74: yes | O74: 6564 | S74: 22348710 | T74: -4576263 | AE74: 17772447
A75: 25Base Allocation (GF-State) | B75: Base | C75: 1 | D75: 25 | E75: TRUE | F75: Bellingham | G75: 001 | H75: 101 | I75: 011 | J75: 001-011 | K75: 1011 | L75: Base Allocation | M75: Base Allocation (GF-State) | N75: yes | O75: 1565 | S75: 7358308 | T75: -3597959 | AE75: 3760349
A76: 18Base Allocation (GF-State) | B76: Base | C76: 1 | D76: 18 | E76: TRUE | F76: Big Bend | G76: 001 | H76: 101 | I76: 011 | J76: 001-011 | K76: 1011 | L76: Base Allocation | M76: Base Allocation (GF-State) | N76: yes | O76: 1450 | S76: 7057925 | T76: -3644011 | AE76: 3413914
A77: 30Base Allocation (GF-State) | B77: Base | C77: 1 | D77: 30 | E77: TRUE | F77: Cascadia | G77: 001 | H77: 101 | I77: 011 | J77: 001-011 | K77: 1011 | L77: Base Allocation | M77: Base Allocation (GF-State) | N77: yes | O77: 1255 | S77: 6758474 | T77: -3778647 | AE77: 2979827
A78: 12Base Allocation (GF-State) | B78: Base | C78: 1 | D78: 12 | E78: TRUE | F78: Centralia | G78: 001 | H78: 101 | I78: 011 | J78: 001-011 | K78: 1011 | L78: Base Allocation | M78: Base Allocation (GF-State) | N78: yes | O78: 1916 | S78: 8099572 | T78: -3480925 | AE78: 4618647
A79: 14Base Allocation (GF-State) | B79: Base | C79: 1 | D79: 14 | E79: TRUE | F79: Clark | G79: 001 | H79: 101 | I79: 011 | J79: 001-011 | K79: 1011 | L79: Base Allocation | M79: Base Allocation (GF-State) | N79: yes | O79: 6249 | S79: 21730059 | T79: -4911032 | AE79: 16819027
A80: 29Base Allocation (GF-State) | B80: Base | C80: 1 | D80: 29 | E80: TRUE | F80: Clover Park | G80: 001 | H80: 101 | I80: 011 | J80: 001-011 | K80: 1011 | L80: Base Allocation | M80: Base Allocation (GF-State) | N80: yes | O80: 3662 | S80: 13506818 | T80: -4367919 | AE80: 9138899
A81: 19Base Allocation (GF-State) | B81: Base | C81: 1 | D81: 19 | E81: TRUE | F81: Columbia Basin | G81: 001 | H81: 101 | I81: 011 | J81: 001-011 | K81: 1011 | L81: Base Allocation | M81: Base Allocation (GF-State) | N81: yes | O81: 4225 | S81: 15063003 | T81: -4261941 | AE81: 10801062
A82: 23Base Allocation (GF-State) | B82: Base | C82: 1 | D82: 23 | E82: TRUE | F82: Edmonds | G82: 001 | H82: 101 | I82: 011 | J82: 001-011 | K82: 1011 | L82: Base Allocation | M82: Base Allocation (GF-State) | N82: yes | O82: 4608 | S82: 17938034 | T82: -6095072 | AE82: 11842962
A83: 5Base Allocation (GF-State) | B83: Base | C83: 1 | D83: 5 | E83: TRUE | F83: Everett | G83: 001 | H83: 101 | I83: 011 | J83: 001-011 | K83: 1011 | L83: Base Allocation | M83: Base Allocation (GF-State) | N83: yes | O83: 4059 | S83: 15550539 | T83: -5594761 | AE83: 9955778
A84: 2Base Allocation (GF-State) | B84: Base | C84: 1 | D84: 2 | E84: TRUE | F84: Grays Harbor | G84: 001 | H84: 101 | I84: 011 | J84: 001-011 | K84: 1011 | L84: Base Allocation | M84: Base Allocation (GF-State) | N84: yes | O84: 1456 | S84: 6704605 | T84: -3342713 | AE84: 3361892
A85: 10Base Allocation (GF-State) | B85: Base | C85: 1 | D85: 10 | E85: TRUE | F85: Green River | G85: 001 | H85: 101 | I85: 011 | J85: 001-011 | K85: 1011 | L85: Base Allocation | M85: Base Allocation (GF-State) | N85: yes | O85: 4945 | S85: 18185035 | T85: -5901903 | AE85: 12283132
A86: 9Base Allocation (GF-State) | B86: Base | C86: 1 | D86: 9 | E86: TRUE | F86: Highline | G86: 001 | H86: 101 | I86: 011 | J86: 001-011 | K86: 1011 | L86: Base Allocation | M86: Base Allocation (GF-State) | N86: yes | O86: 5343 | S86: 17552248 | T86: -3599072 | AE86: 13953176
A87: 26Base Allocation (GF-State) | B87: Base | C87: 1 | D87: 26 | E87: TRUE | F87: Lake Washington | G87: 001 | H87: 101 | I87: 011 | J87: 001-011 | K87: 1011 | L87: Base Allocation | M87: Base Allocation (GF-State) | N87: yes | O87: 2497 | S87: 9967391 | T87: -3856724 | AE87: 6110667
A88: 13Base Allocation (GF-State) | B88: Base | C88: 1 | D88: 13 | E88: TRUE | F88: Lower Columbia | G88: 001 | H88: 101 | I88: 011 | J88: 001-011 | K88: 1011 | L88: Base Allocation | M88: Base Allocation (GF-State) | N88: yes | O88: 2283 | S88: 9808053 | T88: -3834070 | AE88: 5973983
A89: 3Base Allocation (GF-State) | B89: Base | C89: 1 | D89: 3 | E89: TRUE | F89: Olympic | G89: 001 | H89: 101 | I89: 011 | J89: 001-011 | K89: 1011 | L89: Base Allocation | M89: Base Allocation (GF-State) | N89: yes | O89: 4115 | S89: 14382073 | T89: -3423427 | AE89: 10958646
A90: 1Base Allocation (GF-State) | B90: Base | C90: 1 | D90: 1 | E90: TRUE | F90: Peninsula | G90: 001 | H90: 101 | I90: 011 | J90: 001-011 | K90: 1011 | L90: Base Allocation | M90: Base Allocation (GF-State) | N90: yes | O90: 1445 | S90: 7669428 | T90: -4072282 | AE90: 3597146
A91: 11Base Allocation (GF-State) | B91: Base | C91: 1 | D91: 11 | E91: TRUE | F91: Pierce | G91: 001 | H91: 101 | I91: 011 | J91: 001-011 | K91: 1011 | L91: Base Allocation | M91: Base Allocation (GF-State) | N91: yes | O91: 4936 | S91: 18272467 | T91: -5886855 | AE91: 12385612
A92: 27Base Allocation (GF-State) | B92: Base | C92: 1 | D92: 27 | E92: TRUE | F92: Renton | G92: 001 | H92: 101 | I92: 011 | J92: 001-011 | K92: 1011 | L92: Base Allocation | M92: Base Allocation (GF-State) | N92: yes | O92: 3237 | S92: 11723984 | T92: -3765340 | AE92: 7958644
A93: 89Base Allocation (GF-State) | B93: Base | C93: 1 | D93: 89 | E93: TRUE | F93: SBCTC Admin | G93: 001 | H93: 101 | I93: 011 | J93: 001-011 | K93: 1011 | L93: Base Allocation | M93: Base Allocation (GF-State) | S93: 15670879 | T93: -2857 | AE93: 15668022
A94: 6Base Allocation (GF-State) | B94: Base | C94: 1 | D94: 6 | E94: TRUE | F94: Seattle | G94: 001 | H94: 101 | I94: 011 | J94: 001-011 | K94: 1011 | L94: Base Allocation | M94: Base Allocation (GF-State) | N94: yes | O94: 13927 | S94: 51960907 | T94: -17324167 | AE94: 34636740
A95: 7Base Allocation (GF-State) | B95: Base | C95: 1 | D95: 7 | E95: TRUE | F95: Shoreline | G95: 001 | H95: 101 | I95: 011 | J95: 001-011 | K95: 1011 | L95: Base Allocation | M95: Base Allocation (GF-State) | N95: yes | O95: 4777 | S95: 16514834 | T95: -4398758 | AE95: 12116076
A96: 4Base Allocation (GF-State) | B96: Base | C96: 1 | D96: 4 | E96: TRUE | F96: Skagit Valley | G96: 001 | H96: 101 | I96: 011 | J96: 001-011 | K96: 1011 | L96: Base Allocation | M96: Base Allocation (GF-State) | N96: yes | O96: 3351 | S96: 13129361 | T96: -4881079 | AE96: 8248282
A97: 24Base Allocation (GF-State) | B97: Base | C97: 1 | D97: 24 | E97: TRUE | F97: South Puget Sound | G97: 001 | H97: 101 | I97: 011 | J97: 001-011 | K97: 1011 | L97: Base Allocation | M97: Base Allocation (GF-State) | N97: yes | O97: 3140 | S97: 12356138 | T97: -4271273 | AE97: 8084865
A98: 17Base Allocation (GF-State) | B98: Base | C98: 1 | D98: 17 | E98: TRUE | F98: Spokane | G98: 001 | H98: 101 | I98: 011 | J98: 001-011 | K98: 1011 | L98: Base Allocation | M98: Base Allocation (GF-State) | N98: yes | O98: 12597 | S98: 43833829 | T98: -13186797 | AE98: 30647032
A99: 22Base Allocation (GF-State) | B99: Base | C99: 1 | D99: 22 | E99: TRUE | F99: Tacoma | G99: 001 | H99: 101 | I99: 011 | J99: 001-011 | K99: 1011 | L99: Base Allocation | M99: Base Allocation (GF-State) | N99: yes | O99: 3968 | S99: 14885288 | T99: -3716679 | AE99: 11168609
A100: 20Base Allocation (GF-State) | B100: Base | C100: 1 | D100: 20 | E100: TRUE | F100: Walla Walla | G100: 001 | H100: 101 | I100: 011 | J100: 001-011 | K100: 1011 | L100: Base Allocation | M100: Base Allocation (GF-State) | N100: yes | O100: 2573 | S100: 11252175 | T100: -4652294 | AE100: 6599881
A101: 15Base Allocation (GF-State) | B101: Base | C101: 1 | D101: 15 | E101: TRUE | F101: Wenatchee | G101: 001 | H101: 101 | I101: 011 | J101: 001-011 | K101: 1011 | L101: Base Allocation | M101: Base Allocation (GF-State) | N101: yes | O101: 2121 | S101: 8849714 | T101: -3566468 | AE101: 5283246
A102: 21Base Allocation (GF-State) | B102: Base | C102: 1 | D102: 21 | E102: TRUE | F102: Whatcom | G102: 001 | H102: 101 | I102: 011 | J102: 001-011 | K102: 1011 | L102: Base Allocation | M102: Base Allocation (GF-State) | N102: yes | O102: 2121 | S102: 8652185 | T102: -3407506 | AE102: 5244679
A103: 16Base Allocation (GF-State) | B103: Base | C103: 1 | D103: 16 | E103: TRUE | F103: Yakima Valley | G103: 001 | H103: 101 | I103: 011 | J103: 001-011 | K103: 1011 | L103: Base Allocation | M103: Base Allocation (GF-State) | N103: yes | O103: 3581 | S103: 13829404 | T103: -4832284 | AE103: 8997120
A104: 28Rebase Phase-in Adjustment - Year one | B104: Base | C104: 1 | D104: 28 | E104: TRUE | F104: Bates | G104: 001 | H104: 101 | I104: 011 | J104: 001-011 | K104: 1011 | L104: Rebase Phase-in Adjustment - Year one | M104: Rebase Phase-in Adjustment - Year one | S104: - | T104: -239779 | AE104: -239779
A105: 8Rebase Phase-in Adjustment - Year one | B105: Base | C105: 1 | D105: 8 | E105: TRUE | F105: Bellevue | G105: 001 | H105: 101 | I105: 011 | J105: 001-011 | K105: 1011 | L105: Rebase Phase-in Adjustment - Year one | M105: Rebase Phase-in Adjustment - Year one | T105: -276348 | AE105: -276348
A106: 25Rebase Phase-in Adjustment - Year one | B106: Base | C106: 1 | D106: 25 | E106: TRUE | F106: Bellingham | G106: 001 | H106: 101 | I106: 011 | J106: 001-011 | K106: 1011 | L106: Rebase Phase-in Adjustment - Year one | M106: Rebase Phase-in Adjustment - Year one | T106: -404493 | AE106: -404493
A107: 18Rebase Phase-in Adjustment - Year one | B107: Base | C107: 1 | D107: 18 | E107: TRUE | F107: Big Bend | G107: 001 | H107: 101 | I107: 011 | J107: 001-011 | K107: 1011 | L107: Rebase Phase-in Adjustment - Year one | M107: Rebase Phase-in Adjustment - Year one | T107: -139747 | AE107: -139747
A108: 30Rebase Phase-in Adjustment - Year one | B108: Base | C108: 1 | D108: 30 | E108: TRUE | F108: Cascadia | G108: 001 | H108: 101 | I108: 011 | J108: 001-011 | K108: 1011 | L108: Rebase Phase-in Adjustment - Year one | M108: Rebase Phase-in Adjustment - Year one | T108: -14090 | AE108: -14090
A109: 12Rebase Phase-in Adjustment - Year one | B109: Base | C109: 1 | D109: 12 | E109: TRUE | F109: Centralia | G109: 001 | H109: 101 | I109: 011 | J109: 001-011 | K109: 1011 | L109: Rebase Phase-in Adjustment - Year one | M109: Rebase Phase-in Adjustment - Year one | T109: -334576 | AE109: -334576
A110: 14Rebase Phase-in Adjustment - Year one | B110: Base | C110: 1 | D110: 14 | E110: TRUE | F110: Clark | G110: 001 | H110: 101 | I110: 011 | J110: 001-011 | K110: 1011 | L110: Rebase Phase-in Adjustment - Year one | M110: Rebase Phase-in Adjustment - Year one | T110: -198138 | AE110: -198138
A111: 29Rebase Phase-in Adjustment - Year one | B111: Base | C111: 1 | D111: 29 | E111: TRUE | F111: Clover Park | G111: 001 | H111: 101 | I111: 011 | J111: 001-011 | K111: 1011 | L111: Rebase Phase-in Adjustment - Year one | M111: Rebase Phase-in Adjustment - Year one | T111: 9073 | AE111: 9073
A112: 19Rebase Phase-in Adjustment - Year one | B112: Base | C112: 1 | D112: 19 | E112: TRUE | F112: Columbia Basin | G112: 001 | H112: 101 | I112: 011 | J112: 001-011 | K112: 1011 | L112: Rebase Phase-in Adjustment - Year one | M112: Rebase Phase-in Adjustment - Year one | T112: -314432 | AE112: -314432
A113: 23Rebase Phase-in Adjustment - Year one | B113: Base | C113: 1 | D113: 23 | E113: TRUE | F113: Edmonds | G113: 001 | H113: 101 | I113: 011 | J113: 001-011 | K113: 1011 | L113: Rebase Phase-in Adjustment - Year one | M113: Rebase Phase-in Adjustment - Year one | T113: 1058874 | AE113: 1058874
A114: 5Rebase Phase-in Adjustment - Year one | B114: Base | C114: 1 | D114: 5 | E114: TRUE | F114: Everett | G114: 001 | H114: 101 | I114: 011 | J114: 001-011 | K114: 1011 | L114: Rebase Phase-in Adjustment - Year one | M114: Rebase Phase-in Adjustment - Year one | T114: 368127 | AE114: 368127
A115: 2Rebase Phase-in Adjustment - Year one | B115: Base | C115: 1 | D115: 2 | E115: TRUE | F115: Grays Harbor | G115: 001 | H115: 101 | I115: 011 | J115: 001-011 | K115: 1011 | L115: Rebase Phase-in Adjustment - Year one | M115: Rebase Phase-in Adjustment - Year one | T115: -313144 | AE115: -313144
A116: 10Rebase Phase-in Adjustment - Year one | B116: Base | C116: 1 | D116: 10 | E116: TRUE | F116: Green River | G116: 001 | H116: 101 | I116: 011 | J116: 001-011 | K116: 1011 | L116: Rebase Phase-in Adjustment - Year one | M116: Rebase Phase-in Adjustment - Year one | T116: 747987 | AE116: 747987
A117: 9Rebase Phase-in Adjustment - Year one | B117: Base | C117: 1 | D117: 9 | E117: TRUE | F117: Highline | G117: 001 | H117: 101 | I117: 011 | J117: 001-011 | K117: 1011 | L117: Rebase Phase-in Adjustment - Year one | M117: Rebase Phase-in Adjustment - Year one | T117: -1279252 | AE117: -1279252
A118: 26Rebase Phase-in Adjustment - Year one | B118: Base | C118: 1 | D118: 26 | E118: TRUE | F118: Lake Washington | G118: 001 | H118: 101 | I118: 011 | J118: 001-011 | K118: 1011 | L118: Rebase Phase-in Adjustment - Year one | M118: Rebase Phase-in Adjustment - Year one | T118: -663944 | AE118: -663944
A119: 13Rebase Phase-in Adjustment - Year one | B119: Base | C119: 1 | D119: 13 | E119: TRUE | F119: Lower Columbia | G119: 001 | H119: 101 | I119: 011 | J119: 001-011 | K119: 1011 | L119: Rebase Phase-in Adjustment - Year one | M119: Rebase Phase-in Adjustment - Year one | T119: -298412 | AE119: -298412
A120: 3Rebase Phase-in Adjustment - Year one | B120: Base | C120: 1 | D120: 3 | E120: TRUE | F120: Olympic | G120: 001 | H120: 101 | I120: 011 | J120: 001-011 | K120: 1011 | L120: Rebase Phase-in Adjustment - Year one | M120: Rebase Phase-in Adjustment - Year one | T120: -1048215 | AE120: -1048215
A121: 1Rebase Phase-in Adjustment - Year one | B121: Base | C121: 1 | D121: 1 | E121: TRUE | F121: Peninsula | G121: 001 | H121: 101 | I121: 011 | J121: 001-011 | K121: 1011 | L121: Rebase Phase-in Adjustment - Year one | M121: Rebase Phase-in Adjustment - Year one | T121: 172476 | AE121: 172476
A122: 11Rebase Phase-in Adjustment - Year one | B122: Base | C122: 1 | D122: 11 | E122: TRUE | F122: Pierce | G122: 001 | H122: 101 | I122: 011 | J122: 001-011 | K122: 1011 | L122: Rebase Phase-in Adjustment - Year one | M122: Rebase Phase-in Adjustment - Year one | T122: -1498728 | AE122: -1498728
A123: 27Rebase Phase-in Adjustment - Year one | B123: Base | C123: 1 | D123: 27 | E123: TRUE | F123: Renton | G123: 001 | H123: 101 | I123: 011 | J123: 001-011 | K123: 1011 | L123: Rebase Phase-in Adjustment - Year one | M123: Rebase Phase-in Adjustment - Year one | T123: -723627 | AE123: -723627
A124: 6Rebase Phase-in Adjustment - Year one | B124: Base | C124: 1 | D124: 6 | E124: TRUE | F124: Seattle | G124: 001 | H124: 101 | I124: 011 | J124: 001-011 | K124: 1011 | L124: Rebase Phase-in Adjustment - Year one | M124: Rebase Phase-in Adjustment - Year one | T124: 2852967 | AE124: 2852967
A125: 7Rebase Phase-in Adjustment - Year one | B125: Base | C125: 1 | D125: 7 | E125: TRUE | F125: Shoreline | G125: 001 | H125: 101 | I125: 011 | J125: 001-011 | K125: 1011 | L125: Rebase Phase-in Adjustment - Year one | M125: Rebase Phase-in Adjustment - Year one | T125: -165528 | AE125: -165528
A126: 4Rebase Phase-in Adjustment - Year one | B126: Base | C126: 1 | D126: 4 | E126: TRUE | F126: Skagit Valley | G126: 001 | H126: 101 | I126: 011 | J126: 001-011 | K126: 1011 | L126: Rebase Phase-in Adjustment - Year one | M126: Rebase Phase-in Adjustment - Year one | T126: 439698 | AE126: 439698
A127: 24Rebase Phase-in Adjustment - Year one | B127: Base | C127: 1 | D127: 24 | E127: TRUE | F127: South Puget Sound | G127: 001 | H127: 101 | I127: 011 | J127: 001-011 | K127: 1011 | L127: Rebase Phase-in Adjustment - Year one | M127: Rebase Phase-in Adjustment - Year one | T127: 6288 | AE127: 6288
A128: 17Rebase Phase-in Adjustment - Year one | B128: Base | C128: 1 | D128: 17 | E128: TRUE | F128: Spokane | G128: 001 | H128: 101 | I128: 011 | J128: 001-011 | K128: 1011 | L128: Rebase Phase-in Adjustment - Year one | M128: Rebase Phase-in Adjustment - Year one | T128: 2679570 | AE128: 2679570
A129: 22Rebase Phase-in Adjustment - Year one | B129: Base | C129: 1 | D129: 22 | E129: TRUE | F129: Tacoma | G129: 001 | H129: 101 | I129: 011 | J129: 001-011 | K129: 1011 | L129: Rebase Phase-in Adjustment - Year one | M129: Rebase Phase-in Adjustment - Year one | T129: -440707 | AE129: -440707
A130: =CONCATENATE(D130,M130) -> 20Rebase Phase-in Adjustment - Year one | B130: Base | C130: 1 | D130: 20 | E130: TRUE | F130: Walla Walla | G130: =LEFT(J130,3) -> 001 | H130: =VLOOKUP(I130,Approp,2,FALSE) -> 101 | I130: =RIGHT(J130,3) -> 011 | J130: 001-011 | K130: 1011 | L130: Rebase Phase-in Adjustment - Year one | M130: Rebase Phase-in Adjustment - Year one | T130: 524487 | AE130: 524487
A131: 15Rebase Phase-in Adjustment - Year one | B131: Base | C131: 1 | D131: 15 | E131: TRUE | F131: Wenatchee | G131: 001 | H131: 101 | I131: 011 | J131: 001-011 | K131: 1011 | L131: Rebase Phase-in Adjustment - Year one | M131: Rebase Phase-in Adjustment - Year one | T131: -269310 | AE131: =SUM(S131:AD131) -> -269310
A132: 21Rebase Phase-in Adjustment - Year one | B132: Base | C132: 1 | D132: 21 | E132: TRUE | F132: Whatcom | G132: 001 | H132: 101 | I132: 011 | J132: 001-011 | K132: 1011 | L132: Rebase Phase-in Adjustment - Year one | M132: Rebase Phase-in Adjustment - Year one | T132: -501893 | AE132: -501893
A133: 16Rebase Phase-in Adjustment - Year one | B133: Base | C133: 1 | D133: 16 | E133: TRUE | F133: Yakima Valley | G133: 001 | H133: 101 | I133: 011 | J133: 001-011 | K133: 1011 | L133: Rebase Phase-in Adjustment - Year one | M133: Rebase Phase-in Adjustment - Year one | T133: 264816 | AE133: 264816
A134: 28Weighted Enrollments - Additional 30% | B134: Base | C134: 1 | D134: 28 | E134: TRUE | F134: Bates | G134: 001 | H134: 101 | I134: 011 | J134: 001-011 | K134: 1011 | L134: Weighted Enrollments - Additional 30% | M134: Weighted Enrollments - Additional 30% | T134: 1349320 | AE134: 1349320
A135: 8Weighted Enrollments - Additional 30% | B135: Base | C135: 1 | D135: 8 | E135: TRUE | F135: Bellevue | G135: 001 | H135: 101 | I135: 011 | J135: 001-011 | K135: 1011 | L135: Weighted Enrollments - Additional 30% | M135: Weighted Enrollments - Additional 30% | T135: 1651890 | AE135: 1651890
A136: 25Weighted Enrollments - Additional 30% | B136: Base | C136: 1 | D136: 25 | E136: TRUE | F136: Bellingham | G136: 001 | H136: 101 | I136: 011 | J136: 001-011 | K136: 1011 | L136: Weighted Enrollments - Additional 30% | M136: Weighted Enrollments - Additional 30% | T136: 744180 | AE136: 744180
A137: 18Weighted Enrollments - Additional 30% | B137: Base | C137: 1 | D137: 18 | E137: TRUE | F137: Big Bend | G137: 001 | H137: 101 | I137: 011 | J137: 001-011 | K137: 1011 | L137: Weighted Enrollments - Additional 30% | M137: Weighted Enrollments - Additional 30% | T137: 354710 | AE137: 354710
A138: 30Weighted Enrollments - Additional 30% | B138: Base | C138: 1 | D138: 30 | E138: TRUE | F138: Cascadia | G138: 001 | H138: 101 | I138: 011 | J138: 001-011 | K138: 1011 | L138: Weighted Enrollments - Additional 30% | M138: Weighted Enrollments - Additional 30% | T138: 390260 | AE138: 390260
A139: 12Weighted Enrollments - Additional 30% | B139: Base | C139: 1 | D139: 12 | E139: TRUE | F139: Centralia | G139: 001 | H139: 101 | I139: 011 | J139: 001-011 | K139: 1011 | L139: Weighted Enrollments - Additional 30% | M139: Weighted Enrollments - Additional 30% | T139: 624100 | AE139: 624100
A140: 14Weighted Enrollments - Additional 30% | B140: Base | C140: 1 | D140: 14 | E140: TRUE | F140: Clark | G140: 001 | H140: 101 | I140: 011 | J140: 001-011 | K140: 1011 | L140: Weighted Enrollments - Additional 30% | M140: Weighted Enrollments - Additional 30% | T140: 1576050 | AE140: 1576050
A141: 29Weighted Enrollments - Additional 30% | B141: Base | C141: 1 | D141: 29 | E141: TRUE | F141: Clover Park | G141: 001 | H141: 101 | I141: 011 | J141: 001-011 | K141: 1011 | L141: Weighted Enrollments - Additional 30% | M141: Weighted Enrollments - Additional 30% | T141: 998560 | AE141: 998560
A142: 19Weighted Enrollments - Additional 30% | B142: Base | C142: 1 | D142: 19 | E142: TRUE | F142: Columbia Basin | G142: 001 | H142: 101 | I142: 011 | J142: 001-011 | K142: 1011 | L142: Weighted Enrollments - Additional 30% | M142: Weighted Enrollments - Additional 30% | T142: 1238720 | AE142: 1238720
A143: 23Weighted Enrollments - Additional 30% | B143: Base | C143: 1 | D143: 23 | E143: TRUE | F143: Edmonds | G143: 001 | H143: 101 | I143: 011 | J143: 001-011 | K143: 1011 | L143: Weighted Enrollments - Additional 30% | M143: Weighted Enrollments - Additional 30% | T143: 1373810 | AE143: 1373810
A144: 5Weighted Enrollments - Additional 30% | B144: Base | C144: 1 | D144: 5 | E144: TRUE | F144: Everett | G144: 001 | H144: 101 | I144: 011 | J144: 001-011 | K144: 1011 | L144: Weighted Enrollments - Additional 30% | M144: Weighted Enrollments - Additional 30% | T144: 1395140 | AE144: 1395140
A145: 2Weighted Enrollments - Additional 30% | B145: Base | C145: 1 | D145: 2 | E145: TRUE | F145: Grays Harbor | G145: 001 | H145: 101 | I145: 011 | J145: 001-011 | K145: 1011 | L145: Weighted Enrollments - Additional 30% | M145: Weighted Enrollments - Additional 30% | T145: 385520 | AE145: 385520
A146: 10Weighted Enrollments - Additional 30% | B146: Base | C146: 1 | D146: 10 | E146: TRUE | F146: Green River | G146: 001 | H146: 101 | I146: 011 | J146: 001-011 | K146: 1011 | L146: Weighted Enrollments - Additional 30% | M146: Weighted Enrollments - Additional 30% | T146: 1419630 | AE146: 1419630
A147: 9Weighted Enrollments - Additional 30% | B147: Base | C147: 1 | D147: 9 | E147: TRUE | F147: Highline | G147: 001 | H147: 101 | I147: 011 | J147: 001-011 | K147: 1011 | L147: Weighted Enrollments - Additional 30% | M147: Weighted Enrollments - Additional 30% | T147: 2114830 | AE147: 2114830
A148: 26Weighted Enrollments - Additional 30% | B148: Base | C148: 1 | D148: 26 | E148: TRUE | F148: Lake Washington | G148: 001 | H148: 101 | I148: 011 | J148: 001-011 | K148: 1011 | L148: Weighted Enrollments - Additional 30% | M148: Weighted Enrollments - Additional 30% | T148: 1208700 | AE148: 1208700
A149: 13Weighted Enrollments - Additional 30% | B149: Base | C149: 1 | D149: 13 | E149: TRUE | F149: Lower Columbia | G149: 001 | H149: 101 | I149: 011 | J149: 001-011 | K149: 1011 | L149: Weighted Enrollments - Additional 30% | M149: Weighted Enrollments - Additional 30% | T149: 923510 | AE149: 923510
A150: 3Weighted Enrollments - Additional 30% | B150: Base | C150: 1 | D150: 3 | E150: TRUE | F150: Olympic | G150: 001 | H150: 101 | I150: 011 | J150: 001-011 | K150: 1011 | L150: Weighted Enrollments - Additional 30% | M150: Weighted Enrollments - Additional 30% | T150: 1286120 | AE150: 1286120
A151: 1Weighted Enrollments - Additional 30% | B151: Base | C151: 1 | D151: 1 | E151: TRUE | F151: Peninsula | G151: 001 | H151: 101 | I151: 011 | J151: 001-011 | K151: 1011 | L151: Weighted Enrollments - Additional 30% | M151: Weighted Enrollments - Additional 30% | T151: 418700 | AE151: 418700
A152: 11Weighted Enrollments - Additional 30% | B152: Base | C152: 1 | D152: 11 | E152: TRUE | F152: Pierce | G152: 001 | H152: 101 | I152: 011 | J152: 001-011 | K152: 1011 | L152: Weighted Enrollments - Additional 30% | M152: Weighted Enrollments - Additional 30% | T152: 1145500 | AE152: 1145500
A153: 27Weighted Enrollments - Additional 30% | B153: Base | C153: 1 | D153: 27 | E153: TRUE | F153: Renton | G153: 001 | H153: 101 | I153: 011 | J153: 001-011 | K153: 1011 | L153: Weighted Enrollments - Additional 30% | M153: Weighted Enrollments - Additional 30% | T153: 1511270 | AE153: 1511270
A154: 6Weighted Enrollments - Additional 30% | B154: Base | C154: 1 | D154: 6 | E154: TRUE | F154: Seattle | G154: 001 | H154: 101 | I154: 011 | J154: 001-011 | K154: 1011 | L154: Weighted Enrollments - Additional 30% | M154: Weighted Enrollments - Additional 30% | T154: 4092990 | AE154: 4092990
A155: 7Weighted Enrollments - Additional 30% | B155: Base | C155: 1 | D155: 7 | E155: TRUE | F155: Shoreline | G155: 001 | H155: 101 | I155: 011 | J155: 001-011 | K155: 1011 | L155: Weighted Enrollments - Additional 30% | M155: Weighted Enrollments - Additional 30% | T155: 1357220 | AE155: 1357220
A156: 4Weighted Enrollments - Additional 30% | B156: Base | C156: 1 | D156: 4 | E156: TRUE | F156: Skagit Valley | G156: 001 | H156: 101 | I156: 011 | J156: 001-011 | K156: 1011 | L156: Weighted Enrollments - Additional 30% | M156: Weighted Enrollments - Additional 30% | T156: 935360 | AE156: 935360
A157: 24Weighted Enrollments - Additional 30% | B157: Base | C157: 1 | D157: 24 | E157: TRUE | F157: South Puget Sound | G157: 001 | H157: 101 | I157: 011 | J157: 001-011 | K157: 1011 | L157: Weighted Enrollments - Additional 30% | M157: Weighted Enrollments - Additional 30% | T157: 726010 | AE157: 726010
A158: 17Weighted Enrollments - Additional 30% | B158: Base | C158: 1 | D158: 17 | E158: TRUE | F158: Spokane | G158: 001 | H158: 101 | I158: 011 | J158: 001-011 | K158: 1011 | L158: Weighted Enrollments - Additional 30% | M158: Weighted Enrollments - Additional 30% | T158: 3144200 | AE158: 3144200
A159: 22Weighted Enrollments - Additional 30% | B159: Base | C159: 1 | D159: 22 | E159: TRUE | F159: Tacoma | G159: 001 | H159: 101 | I159: 011 | J159: 001-011 | K159: 1011 | L159: Weighted Enrollments - Additional 30% | M159: Weighted Enrollments - Additional 30% | T159: 925090 | AE159: 925090
A160: 20Weighted Enrollments - Additional 30% | B160: Base | C160: 1 | D160: 20 | E160: TRUE | F160: Walla Walla | G160: 001 | H160: 101 | I160: 011 | J160: 001-011 | K160: 1011 | L160: Weighted Enrollments - Additional 30% | M160: Weighted Enrollments - Additional 30% | T160: 693620 | AE160: 693620
A161: 15Weighted Enrollments - Additional 30% | B161: Base | C161: 1 | D161: 15 | E161: TRUE | F161: Wenatchee | G161: 001 | H161: 101 | I161: 011 | J161: 001-011 | K161: 1011 | L161: Weighted Enrollments - Additional 30% | M161: Weighted Enrollments - Additional 30% | T161: 477950 | AE161: 477950
A162: 21Weighted Enrollments - Additional 30% | B162: Base | C162: 1 | D162: 21 | E162: TRUE | F162: Whatcom | G162: 001 | H162: 101 | I162: 011 | J162: 001-011 | K162: 1011 | L162: Weighted Enrollments - Additional 30% | M162: Weighted Enrollments - Additional 30% | T162: 530880 | AE162: 530880
A163: 16Weighted Enrollments - Additional 30% | B163: Base | C163: 1 | D163: 16 | E163: TRUE | F163: Yakima Valley | G163: 001 | H163: 101 | I163: 011 | J163: 001-011 | K163: 1011 | L163: Weighted Enrollments - Additional 30% | M163: Weighted Enrollments - Additional 30% | T163: 1010410 | AE163: 1010410
A164: 28Basic Skills Enhancement (ELTA) | B164: Earmark | C164: 1 | D164: 28 | E164: TRUE | F164: Bates | G164: 08A | H164: 3E0 | I164: 3E0 | J164: 08A-3E0 | K164: 08A3E0 | L164: Basic Skills Enhancement | M164: Basic Skills Enhancement (ELTA) | S164: 72256 | T164: -72256 | AE164: 0
A165: 8Basic Skills Enhancement (ELTA) | B165: Earmark | C165: 1 | D165: 8 | E165: TRUE | F165: Bellevue | G165: 08A | H165: 3E0 | I165: 3E0 | J165: 08A-3E0 | K165: 08A3E0 | L165: Basic Skills Enhancement | M165: Basic Skills Enhancement (ELTA) | S165: 84410 | T165: -84410 | AE165: 0
A166: 25Basic Skills Enhancement (ELTA) | B166: Earmark | C166: 1 | D166: 25 | E166: TRUE | F166: Bellingham | G166: 08A | H166: 3E0 | I166: 3E0 | J166: 08A-3E0 | K166: 08A3E0 | L166: Basic Skills Enhancement | M166: Basic Skills Enhancement (ELTA) | S166: 17973 | T166: -17973 | AE166: 0
A167: 18Basic Skills Enhancement (ELTA) | B167: Earmark | C167: 1 | D167: 18 | E167: TRUE | F167: Big Bend | G167: 08A | H167: 3E0 | I167: 3E0 | J167: 08A-3E0 | K167: 08A3E0 | L167: Basic Skills Enhancement | M167: Basic Skills Enhancement (ELTA) | S167: 26551 | T167: -26551 | AE167: 0
A168: 30Basic Skills Enhancement (ELTA) | B168: Earmark | C168: 1 | D168: 30 | E168: TRUE | F168: Cascadia | G168: 08A | H168: 3E0 | I168: 3E0 | J168: 08A-3E0 | K168: 08A3E0 | L168: Basic Skills Enhancement | M168: Basic Skills Enhancement (ELTA) | S168: 29077 | T168: -29077 | AE168: 0
A169: 12Basic Skills Enhancement (ELTA) | B169: Earmark | C169: 1 | D169: 12 | E169: TRUE | F169: Centralia | G169: 08A | H169: 3E0 | I169: 3E0 | J169: 08A-3E0 | K169: 08A3E0 | L169: Basic Skills Enhancement | M169: Basic Skills Enhancement (ELTA) | S169: 60237 | T169: -60237 | AE169: 0
A170: 14Basic Skills Enhancement (ELTA) | B170: Earmark | C170: 1 | D170: 14 | E170: TRUE | F170: Clark | G170: 08A | H170: 3E0 | I170: 3E0 | J170: 08A-3E0 | K170: 08A3E0 | L170: Basic Skills Enhancement | M170: Basic Skills Enhancement (ELTA) | S170: 123219 | T170: -123219 | AE170: 0
A171: 29Basic Skills Enhancement (ELTA) | B171: Earmark | C171: 1 | D171: 29 | E171: TRUE | F171: Clover Park | G171: 08A | H171: 3E0 | I171: 3E0 | J171: 08A-3E0 | K171: 08A3E0 | L171: Basic Skills Enhancement | M171: Basic Skills Enhancement (ELTA) | S171: 41655 | T171: -41655 | AE171: 0
A172: 19Basic Skills Enhancement (ELTA) | B172: Earmark | C172: 1 | D172: 19 | E172: TRUE | F172: Columbia Basin | G172: 08A | H172: 3E0 | I172: 3E0 | J172: 08A-3E0 | K172: 08A3E0 | L172: Basic Skills Enhancement | M172: Basic Skills Enhancement (ELTA) | S172: 102455 | T172: -102455 | AE172: 0
A173: 23Basic Skills Enhancement (ELTA) | B173: Earmark | C173: 1 | D173: 23 | E173: TRUE | F173: Edmonds | G173: 08A | H173: 3E0 | I173: 3E0 | J173: 08A-3E0 | K173: 08A3E0 | L173: Basic Skills Enhancement | M173: Basic Skills Enhancement (ELTA) | S173: 138154 | T173: -138154 | AE173: 0
A174: 5Basic Skills Enhancement (ELTA) | B174: Earmark | C174: 1 | D174: 5 | E174: TRUE | F174: Everett | G174: 08A | H174: 3E0 | I174: 3E0 | J174: 08A-3E0 | K174: 08A3E0 | L174: Basic Skills Enhancement | M174: Basic Skills Enhancement (ELTA) | S174: 109571 | T174: -109571 | AE174: 0
A175: 00Basic Skills Enhancement (ELTA) | B175: Earmark | C175: 1 | D175: 00 | E175: TRUE | F175: Future Allocations/Reserves | G175: 08A | H175: 3E0 | I175: 3E0 | J175: 08A-3E0 | K175: 08A3E0 | L175: Basic Skills Enhancement | M175: Basic Skills Enhancement (ELTA) | S175: - | T175: - | AE175: 0
A176: 2Basic Skills Enhancement (ELTA) | B176: Earmark | C176: 1 | D176: 2 | E176: TRUE | F176: Grays Harbor | G176: 08A | H176: 3E0 | I176: 3E0 | J176: 08A-3E0 | K176: 08A3E0 | L176: Basic Skills Enhancement | M176: Basic Skills Enhancement (ELTA) | S176: 53218 | T176: -53218 | AE176: 0
A177: 10Basic Skills Enhancement (ELTA) | B177: Earmark | C177: 1 | D177: 10 | E177: TRUE | F177: Green River | G177: 08A | H177: 3E0 | I177: 3E0 | J177: 08A-3E0 | K177: 08A3E0 | L177: Basic Skills Enhancement | M177: Basic Skills Enhancement (ELTA) | S177: 121448 | T177: -121448 | AE177: 0
A178: 9Basic Skills Enhancement (ELTA) | B178: Earmark | C178: 1 | D178: 9 | E178: TRUE | F178: Highline | G178: 08A | H178: 3E0 | I178: 3E0 | J178: 08A-3E0 | K178: 08A3E0 | L178: Basic Skills Enhancement | M178: Basic Skills Enhancement (ELTA) | S178: 327813 | T178: -327813 | AE178: 0
A179: 26Basic Skills Enhancement (ELTA) | B179: Earmark | C179: 1 | D179: 26 | E179: TRUE | F179: Lake Washington | G179: 08A | H179: 3E0 | I179: 3E0 | J179: 08A-3E0 | K179: 08A3E0 | L179: Basic Skills Enhancement | M179: Basic Skills Enhancement (ELTA) | S179: 89905 | T179: -89905 | AE179: 0
A180: 13Basic Skills Enhancement (ELTA) | B180: Earmark | C180: 1 | D180: 13 | E180: TRUE | F180: Lower Columbia | G180: 08A | H180: 3E0 | I180: 3E0 | J180: 08A-3E0 | K180: 08A3E0 | L180: Basic Skills Enhancement | M180: Basic Skills Enhancement (ELTA) | S180: 123078 | T180: -123078 | AE180: 0
A181: 3Basic Skills Enhancement (ELTA) | B181: Earmark | C181: 1 | D181: 3 | E181: TRUE | F181: Olympic | G181: 08A | H181: 3E0 | I181: 3E0 | J181: 08A-3E0 | K181: 08A3E0 | L181: Basic Skills Enhancement | M181: Basic Skills Enhancement (ELTA) | S181: 36012 | T181: -36012 | AE181: 0
A182: 1Basic Skills Enhancement (ELTA) | B182: Earmark | C182: 1 | D182: 1 | E182: TRUE | F182: Peninsula | G182: 08A | H182: 3E0 | I182: 3E0 | J182: 08A-3E0 | K182: 08A3E0 | L182: Basic Skills Enhancement | M182: Basic Skills Enhancement (ELTA) | S182: 32076 | T182: -32076 | AE182: 0
A183: 11Basic Skills Enhancement (ELTA) | B183: Earmark | C183: 1 | D183: 11 | E183: TRUE | F183: Pierce | G183: 08A | H183: 3E0 | I183: 3E0 | J183: 08A-3E0 | K183: 08A3E0 | L183: Basic Skills Enhancement | M183: Basic Skills Enhancement (ELTA) | S183: 104146 | T183: -104146 | AE183: 0
A184: 27Basic Skills Enhancement (ELTA) | B184: Earmark | C184: 1 | D184: 27 | E184: TRUE | F184: Renton | G184: 08A | H184: 3E0 | I184: 3E0 | J184: 08A-3E0 | K184: 08A3E0 | L184: Basic Skills Enhancement | M184: Basic Skills Enhancement (ELTA) | S184: 202586 | T184: -202586 | AE184: 0
A185: 6Basic Skills Enhancement (ELTA) | B185: Earmark | C185: 1 | D185: 6 | E185: TRUE | F185: Seattle | G185: 08A | H185: 3E0 | I185: 3E0 | J185: 08A-3E0 | K185: 08A3E0 | L185: Basic Skills Enhancement | M185: Basic Skills Enhancement (ELTA) | S185: 33035 | T185: -33035 | AE185: 0
A186: 4Basic Skills Enhancement (ELTA) | B186: Earmark | C186: 1 | D186: 4 | E186: TRUE | F186: Skagit Valley | G186: 08A | H186: 3E0 | I186: 3E0 | J186: 08A-3E0 | K186: 08A3E0 | L186: Basic Skills Enhancement | M186: Basic Skills Enhancement (ELTA) | S186: 71125 | T186: -71125 | AE186: 0
A187: 00Basic Skills Enhancement (GFS) | B187: Earmark | C187: 1 | D187: 00 | E187: TRUE | F187: Future Allocations/Reserves | G187: 001 | H187: 101 | I187: 011 | J187: 001-011 | K187: 1011 | L187: Basic Skills Enhancement | M187: Basic Skills Enhancement (GFS) | S187: - | T187: - | AE187: 0
A188: 90Basic Skills Enhancement (GFS) | B188: Earmark | C188: 1 | D188: 90 | E188: TRUE | F188: SBCTC Program | G188: 001 | H188: 101 | I188: 011 | J188: 001-011 | K188: 1011 | L188: State Match - Federal Basic Skills | M188: Basic Skills Enhancement (GFS) | S188: 396777 | T188: - | AE188: 396777
A189: 6Basic Skills Enhancement (GFS) | B189: Earmark | C189: 1 | D189: 6 | E189: TRUE | F189: Seattle | G189: 001 | H189: 101 | I189: 011 | J189: 001-011 | K189: 1011 | L189: Basic Skills Enhancement | M189: Basic Skills Enhancement (GFS) | S189: 340763 | T189: -340763 | AE189: 0
A190: 7Basic Skills Enhancement (GFS) | B190: Earmark | C190: 1 | D190: 7 | E190: TRUE | F190: Shoreline | G190: 001 | H190: 101 | I190: 011 | J190: 001-011 | K190: 1011 | L190: Basic Skills Enhancement | M190: Basic Skills Enhancement (GFS) | S190: 89016 | T190: -89016 | AE190: 0
A191: 24Basic Skills Enhancement (GFS) | B191: Earmark | C191: 1 | D191: 24 | E191: TRUE | F191: South Puget Sound | G191: 001 | H191: 101 | I191: 011 | J191: 001-011 | K191: 1011 | L191: Basic Skills Enhancement | M191: Basic Skills Enhancement (GFS) | S191: 34001 | T191: -34001 | AE191: 0
A192: 17Basic Skills Enhancement (GFS) | B192: Earmark | C192: 1 | D192: 17 | E192: TRUE | F192: Spokane | G192: 001 | H192: 101 | I192: 011 | J192: 001-011 | K192: 1011 | L192: Basic Skills Enhancement | M192: Basic Skills Enhancement (GFS) | S192: 307883 | T192: -307883 | AE192: 0
A193: 22Basic Skills Enhancement (GFS) | B193: Earmark | C193: 1 | D193: 22 | E193: TRUE | F193: Tacoma | G193: 001 | H193: 101 | I193: 011 | J193: 001-011 | K193: 1011 | L193: Basic Skills Enhancement | M193: Basic Skills Enhancement (GFS) | S193: 60929 | T193: -60929 | AE193: 0
A194: =CONCATENATE(D194,M194) -> 20Basic Skills Enhancement (GFS) | B194: Earmark | C194: 1 | D194: 20 | E194: TRUE | F194: Walla Walla | G194: =LEFT(J194,3) -> 001 | H194: =VLOOKUP(I194,Approp,2,FALSE) -> 101 | I194: =RIGHT(J194,3) -> 011 | J194: 001-011 | K194: 1011 | L194: Basic Skills Enhancement | M194: Basic Skills Enhancement (GFS) | S194: 53427 | T194: -53427 | AE194: 0
A195: 15Basic Skills Enhancement (GFS) | B195: Earmark | C195: 1 | D195: 15 | E195: TRUE | F195: Wenatchee | G195: 001 | H195: 101 | I195: 011 | J195: 001-011 | K195: 1011 | L195: Basic Skills Enhancement | M195: Basic Skills Enhancement (GFS) | S195: 31387 | T195: -31387 | AE195: =SUM(S195:AD195) -> 0
A196: 21Basic Skills Enhancement (GFS) | B196: Earmark | C196: 1 | D196: 21 | E196: TRUE | F196: Whatcom | G196: 001 | H196: 101 | I196: 011 | J196: 001-011 | K196: 1011 | L196: Basic Skills Enhancement | M196: Basic Skills Enhancement (GFS) | S196: 33769 | T196: -33769 | AE196: 0
A197: 16Basic Skills Enhancement (GFS) | B197: Earmark | C197: 1 | D197: 16 | E197: TRUE | F197: Yakima Valley | G197: 001 | H197: 101 | I197: 011 | J197: 001-011 | K197: 1011 | L197: Basic Skills Enhancement | M197: Basic Skills Enhancement (GFS) | S197: 121622 | T197: -121622 | AE197: 0
A198: 28Bates Rebasing | B198: Base | C198: 1 | D198: 28 | E198: TRUE | F198: Bates | G198: 001 | H198: 101 | I198: 011 | J198: 001-011 | K198: 1011 | L198: Bates Rebasing | M198: Bates Rebasing | S198: -656328 | T198: 656328 | AE198: 0
A199: 8Bates Rebasing | B199: Base | C199: 1 | D199: 8 | E199: TRUE | F199: Bellevue | G199: 001 | H199: 101 | I199: 011 | J199: 001-011 | K199: 1011 | L199: Bates Rebasing | M199: Bates Rebasing | S199: 122957 | T199: -122957 | AE199: 0
A200: 25Bates Rebasing | B200: Base | C200: 1 | D200: 25 | E200: TRUE | F200: Bellingham | G200: 001 | H200: 101 | I200: 011 | J200: 001-011 | K200: 1011 | L200: Bates Rebasing | M200: Bates Rebasing | S200: 7212 | T200: -7212 | AE200: 0
... 750 more rows

Sheet OtherResourcesData (hidden)
A1: Code | B1: District | C1: OrgName | D1: ProgramName | E1: GrantNumber | F1: Prior | G1: Current | H1: Amount | I1: Starts | J1: Expires
A2: =B2&D2&E2 -> 28Basic Food Employment And Training Grant128-BFET-16 | B2: 28 | C2: Bates Technical College | D2: Basic Food Employment And Training Grant | E2: 128-BFET-16 | F2: 0 | G2: 0 | H2: 0 | I2: 2015-09-01 | J2: 2016-09-30
A3: 28BEdA Leadership Block Grant128-BLBG-16 | B3: 28 | C3: Bates Technical College | D3: BEdA Leadership Block Grant | E3: 128-BLBG-16 | F3: 0 | G3: 0 | H3: 0 | J3: 2016-06-30
A4: 28BEdAMaster Grant128-BEDA-16 | B4: 28 | C4: Bates Technical College | D4: BEdAMaster Grant | E4: 128-BEDA-16 | F4: 0 | G4: 0 | H4: 0 | J4: 2016-06-30
A5: 28BEdA State Plan Innovations Grant128-BSPI-15 | B5: 28 | C5: Bates Technical College | D5: BEdA State Plan Innovations Grant | E5: 128-BSPI-15 | F5: 0 | G5: 0 | H5: 0 | J5: 2016-06-30
A6: 28Early Achievers Grant- State Funding128-EAGS-16 | B6: 28 | C6: Bates Technical College | D6: Early Achievers Grant- State Funding | E6: 128-EAGS-16 | F6: 0 | G6: 0 | H6: 0 | J6: 2016-06-30
A7: 28Early Achievers Opportunity Grant Application128-EAOG-16 | B7: 28 | C7: Bates Technical College | D7: Early Achievers Opportunity Grant Application | E7: 128-EAOG-16 | F7: 0 | G7: 0 | H7: 0 | J7: 2016-06-30
A8: 28Perkins Leadership Block Grant128-PLB-16 | B8: 28 | C8: Bates Technical College | D8: Perkins Leadership Block Grant | E8: 128-PLB-16 | F8: 0 | G8: 0 | H8: 0 | J8: 2016-06-30
A9: 28Perkins Plan128-PRK-16 | B9: 28 | C9: Bates Technical College | D9: Perkins Plan | E9: 128-PRK-16 | F9: 0 | G9: 0 | H9: 0 | J9: 2016-06-30
A10: 28WorkFirst Delivery Agreement128-WFDA-16 | B10: 28 | C10: Bates Technical College | D10: WorkFirst Delivery Agreement | E10: 128-WFDA-16 | F10: 0 | G10: 0 | H10: 0 | J10: 2016-06-30
A11: 28 | B11: 28 | C11: Bates Technical College
A12: 8Basic Food Employment And Training Grant108-BFET-16 | B12: 8 | C12: Bellevue College | D12: Basic Food Employment And Training Grant | E12: 108-BFET-16 | F12: 0 | G12: 0 | H12: 0 | J12: 2016-06-30
A13: 8BEdA Leadership Block Grant108-BLBG-16 | B13: 8 | C13: Bellevue College | D13: BEdA Leadership Block Grant | E13: 108-BLBG-16 | F13: 0 | G13: 0 | H13: 0 | J13: 2016-06-30
A14: 8BEdAMaster Grant108-BEDA-16 | B14: 8 | C14: Bellevue College | D14: BEdAMaster Grant | E14: 108-BEDA-16 | F14: 0 | G14: 0 | H14: 0 | J14: 2016-06-30
A15: 8BEdA Progam - EL Civics Grant Budget108-ELC-16 | B15: 8 | C15: Bellevue College | D15: BEdA Progam - EL Civics Grant Budget | E15: 108-ELC-16 | F15: 0 | G15: 0 | H15: 0 | J15: 2016-06-30
A16: 8BEdA WIOA Transition Grant108-WIOA-16 | B16: 8 | C16: Bellevue College | D16: BEdA WIOA Transition Grant | E16: 108-WIOA-16 | F16: 0 | G16: 0 | H16: 0 | J16: 2016-06-30
A17: 8Early Achievers Grant- State Funding108-EAGS-16 | B17: 8 | C17: Bellevue College | D17: Early Achievers Grant- State Funding | E17: 108-EAGS-16 | F17: 0 | G17: 0 | H17: 0 | J17: 2016-06-30
A18: 8Early Achievers Opportunity Grant Application108-EAOG-16 | B18: 8 | C18: Bellevue College | D18: Early Achievers Opportunity Grant Application | E18: 108-EAOG-16 | F18: 0 | G18: 0 | H18: 0 | J18: 2016-06-30
A19: 8Perkins Leadership Block Grant108-PLB-16 | B19: 8 | C19: Bellevue College | D19: Perkins Leadership Block Grant | E19: 108-PLB-16 | F19: 0 | G19: 0 | H19: 0 | J19: 2016-06-30
A20: 8Perkins Plan108-PRK-16 | B20: 8 | C20: Bellevue College | D20: Perkins Plan | E20: 108-PRK-16 | F20: 0 | G20: 0 | H20: 0 | J20: 2016-06-30
A21: 8Phase III I-DEA Grant108-IDEA-16 | B21: 8 | C21: Bellevue College | D21: Phase III I-DEA Grant | E21: 108-IDEA-16 | F21: 0 | G21: 0 | H21: 0 | J21: 2016-06-30
A22: 8Transcript Grid for Placement Project108-TG-15 | B22: 8 | C22: Bellevue College | D22: Transcript Grid for Placement Project | E22: 108-TG-15 | F22: 0 | G22: 0 | H22: 0 | J22: 2015-08-31
A23: 8WorkFirst Delivery Agreement108-WFDA-16 | B23: 8 | C23: Bellevue College | D23: WorkFirst Delivery Agreement | E23: 108-WFDA-16 | F23: 0 | G23: 0 | H23: 0 | J23: 2016-06-30
A24: 8 | B24: 8 | C24: Bellevue College
A25: 25Basic Food Employment And Training Grant125-BFET-16 | B25: 25 | C25: Bellingham Technical College | D25: Basic Food Employment And Training Grant | E25: 125-BFET-16 | F25: 0 | G25: 0 | H25: 0 | J25: 2016-06-30
A26: 25BEdA Leadership Block Grant125-BLBG-16 | B26: 25 | C26: Bellingham Technical College | D26: BEdA Leadership Block Grant | E26: 125-BLBG-16 | F26: 0 | G26: 0 | H26: 0 | J26: 2016-06-30
A27: 25BEdAMaster Grant125-BEDA-16 | B27: 25 | C27: Bellingham Technical College | D27: BEdAMaster Grant | E27: 125-BEDA-16 | F27: 0 | G27: 0 | H27: 0 | J27: 2016-06-30
A28: 25BEdA Progam - EL Civics Grant Budget125-ELC-16 | B28: 25 | C28: Bellingham Technical College | D28: BEdA Progam - EL Civics Grant Budget | E28: 125-ELC-16 | F28: 0 | G28: 0 | H28: 0 | J28: 2016-06-30
A29: 25BEdA WIOA Transition Grant125-WIOA-16 | B29: 25 | C29: Bellingham Technical College | D29: BEdA WIOA Transition Grant | E29: 125-WIOA-16 | F29: 0 | G29: 0 | H29: 0 | J29: 2016-06-30
A30: 25I-DEA Grant125-IDEA-16 | B30: 25 | C30: Bellingham Technical College | D30: I-DEA Grant | E30: 125-IDEA-16 | F30: 0 | G30: 0 | H30: 0 | J30: 2016-06-30
A31: 25Job Skills Program Grant125-JSP-16OX | B31: 25 | C31: Bellingham Technical College | D31: Job Skills Program Grant | E31: 125-JSP-16OX | F31: 0 | G31: 0 | H31: 0 | J31: 2017-07-15
A32: 25Perkins Innovation Block Grant125-PIP-16 | B32: 25 | C32: Bellingham Technical College | D32: Perkins Innovation Block Grant | E32: 125-PIP-16 | F32: 0 | G32: 0 | H32: 0 | J32: 2016-06-30
A33: 25Perkins Leadership Block Grant125-PLB-16 | B33: 25 | C33: Bellingham Technical College | D33: Perkins Leadership Block Grant | E33: 125-PLB-16 | F33: 0 | G33: 0 | H33: 0 | J33: 2016-06-30
A34: 25Perkins Non-Traditional Employment & Training Grant125-PNT-16 | B34: 25 | C34: Bellingham Technical College | D34: Perkins Non-Traditional Employment & Training Grant | E34: 125-PNT-16 | F34: 0 | G34: 0 | H34: 0 | J34: 2016-06-30
A35: 25Perkins Plan125-PRK-16 | B35: 25 | C35: Bellingham Technical College | D35: Perkins Plan | E35: 125-PRK-16 | F35: 0 | G35: 0 | H35: 0 | J35: 2016-06-30
A36: 25WorkFirst Delivery Agreement125-WFDA-16 | B36: 25 | C36: Bellingham Technical College | D36: WorkFirst Delivery Agreement | E36: 125-WFDA-16 | F36: 0 | G36: 0 | H36: 0 | J36: 2016-06-30
A37: 25 | B37: 25 | C37: Bellingham Technical College
A38: 18Basic Food Employment And Training Grant118-BFET-16 | B38: 18 | C38: Big Bend Community College | D38: Basic Food Employment And Training Grant | E38: 118-BFET-16 | F38: 0 | G38: 0 | H38: 0 | J38: 2016-06-30
A39: 18BEdA Leadership Block Grant118-BLBG-16 | B39: 18 | C39: Big Bend Community College | D39: BEdA Leadership Block Grant | E39: 118-BLBG-16 | F39: 0 | G39: 0 | H39: 0 | J39: 2016-06-30
A40: 18BEdAMaster Grant118-BEDA-16 | B40: 18 | C40: Big Bend Community College | D40: BEdAMaster Grant | E40: 118-BEDA-16 | F40: 0 | G40: 0 | H40: 0 | J40: 2016-06-30
A41: 18BEdA Progam - EL Civics Grant Budget118-ELC-16 | B41: 18 | C41: Big Bend Community College | D41: BEdA Progam - EL Civics Grant Budget | E41: 118-ELC-16 | F41: 0 | G41: 0 | H41: 0 | J41: 2016-06-30
A42: 18BEdA Special Projects Grant118-BSP-16 | B42: 18 | C42: Big Bend Community College | D42: BEdA Special Projects Grant | E42: 118-BSP-16 | F42: 0 | G42: 0 | H42: 0 | J42: 2016-07-14
A43: =B43&D43&E43 -> 18BEdA Special Projects Grant118-BSP-16FC | B43: 18 | C43: Big Bend Community College | D43: BEdA Special Projects Grant | E43: 118-BSP-16FC | F43: 0 | G43: 0 | H43: 0 | J43: 2016-09-30
A44: 18BEdA WIOA Transition Grant118-WIOA-16 | B44: 18 | C44: Big Bend Community College | D44: BEdA WIOA Transition Grant | E44: 118-WIOA-16 | F44: 0 | G44: 0 | H44: 0 | J44: 2016-06-30
A45: 18Early Achievers Grant- State Funding118-EAGS-16 | B45: 18 | C45: Big Bend Community College | D45: Early Achievers Grant- State Funding | E45: 118-EAGS-16 | F45: 0 | G45: 0 | H45: 0 | J45: 2016-06-30
A46: 18I-DEA Grant118-IDEA-13 | B46: 18 | C46: Big Bend Community College | D46: I-DEA Grant | E46: 118-IDEA-13 | F46: 0 | G46: 0 | H46: 0 | J46: 2016-06-30
A47: 18Job Skills Program Grant118-JSP-16LC | B47: 18 | C47: Big Bend Community College | D47: Job Skills Program Grant | E47: 118-JSP-16LC | F47: 0 | G47: 0 | H47: 0 | J47: 2017-06-30
A48: 18Job Skills Program Grant118-JSP-16MLI | B48: 18 | C48: Big Bend Community College | D48: Job Skills Program Grant | E48: 118-JSP-16MLI | F48: 0 | G48: 0 | H48: 0 | J48: 2017-07-15
A49: 18Job Skills Program Grant118-JSP-16SH | B49: 18 | C49: Big Bend Community College | D49: Job Skills Program Grant | E49: 118-JSP-16SH | F49: 0 | G49: 0 | H49: 0 | J49: 2017-06-30
A50: 18Job Skills Program Grant118-JSP-16REC | B50: 18 | C50: Big Bend Community College | D50: Job Skills Program Grant | E50: 118-JSP-16REC | F50: 0 | G50: 0 | H50: 0 | J50: 2017-06-30
A51: 18Job Skills Program Grant118-JSP-16TK | B51: 18 | C51: Big Bend Community College | D51: Job Skills Program Grant | E51: 118-JSP-16TK | F51: 0 | G51: 0 | H51: 0 | J51: 2017-06-30
A52: 18Perkins Leadership Block Grant118-PLB-16 | B52: 18 | C52: Big Bend Community College | D52: Perkins Leadership Block Grant | E52: 118-PLB-16 | F52: 0 | G52: 0 | H52: 0 | J52: 2017-06-30
A53: 18Perkins Plan118-PRK-16 | B53: 18 | C53: Big Bend Community College | D53: Perkins Plan | E53: 118-PRK-16 | F53: 0 | G53: 0 | H53: 0 | J53: 2016-06-30
A54: 18WorkFirst Delivery Agreement118-WFDA-16 | B54: 18 | C54: Big Bend Community College | D54: WorkFirst Delivery Agreement | E54: 118-WFDA-16 | F54: 0 | G54: 0 | H54: 0 | J54: 2016-06-30
A55: 18 | B55: 18 | C55: Big Bend Community College
A56: 30Basic Food Employment And Training Grant130-BFET-15 | B56: 30 | C56: Cascadia Community College | D56: Basic Food Employment And Training Grant | E56: 130-BFET-15 | F56: 0 | G56: 0 | H56: 0 | J56: 2016-09-30
A57: =B57&D57&E57 -> 30BEdA Leadership Block Grant130-BLBG-16 | B57: 30 | C57: Cascadia Community College | D57: BEdA Leadership Block Grant | E57: 130-BLBG-16 | F57: 0 | G57: 0 | H57: 0 | J57: 2016-06-30
A58: 30BEdAMaster Grant130-BEDA | B58: 30 | C58: Cascadia Community College | D58: BEdAMaster Grant | E58: 130-BEDA | F58: 0 | G58: 0 | H58: 0 | J58: 2016-06-30
A59: 30BEdA Progam - EL Civics Grant Budget130-ELC-16 | B59: 30 | C59: Cascadia Community College | D59: BEdA Progam - EL Civics Grant Budget | E59: 130-ELC-16 | F59: 0 | G59: 0 | H59: 0 | J59: 2016-06-30
A60: 30BEdA WIOA Transition Grant130-WIOA-16 | B60: 30 | C60: Cascadia Community College | D60: BEdA WIOA Transition Grant | E60: 130-WIOA-16 | F60: 0 | G60: 0 | H60: 0 | J60: 2016-06-30
A61: 30Job Skills Program Grant130-JSP-16AMT | B61: 30 | C61: Cascadia Community College | D61: Job Skills Program Grant | E61: 130-JSP-16AMT | F61: 0 | G61: 0 | H61: 0 | J61: 2017-06-30
A62: 30Job Skills Program Grant130-JSP-16AR | B62: 30 | C62: Cascadia Community College | D62: Job Skills Program Grant | E62: 130-JSP-16AR | F62: 0 | G62: 0 | H62: 0 | J62: 2017-06-30
A63: 30Job Skills Program Grant130-JSP-16GT | B63: 30 | C63: Cascadia Community College | D63: Job Skills Program Grant | E63: 130-JSP-16GT | F63: 0 | G63: 0 | H63: 0 | J63: 2017-06-30
A64: 30Job Skills Program Grant130-JSP-16SA | B64: 30 | C64: Cascadia Community College | D64: Job Skills Program Grant | E64: 130-JSP-16SA | F64: 0 | G64: 0 | H64: 0 | J64: 2017-06-30
A65: 30Misc. General Grant130-ELRN-16 | B65: 30 | C65: Cascadia Community College | D65: Misc. General Grant | E65: 130-ELRN-16 | F65: 0 | G65: 0 | H65: 0 | J65: 2016-06-30
A66: 30Perkins Leadership Block Grant130-PLB-16 | B66: 30 | C66: Cascadia Community College | D66: Perkins Leadership Block Grant | E66: 130-PLB-16 | F66: 0 | G66: 0 | H66: 0 | J66: 2016-06-30
A67: 30Phase III I-DEA Grant130-IDEA-16 | B67: 30 | C67: Cascadia Community College | D67: Phase III I-DEA Grant | E67: 130-IDEA-16 | F67: 0 | G67: 0 | H67: 0 | J67: 2016-06-30
A68: 30 | B68: 30 | C68: Cascadia Community College
A69: 12Basic Food Employment And Training Grant112-BFET-16 | B69: 12 | C69: Centralia College | D69: Basic Food Employment And Training Grant | E69: 112-BFET-16 | F69: 0 | G69: 0 | H69: 0 | J69: 2016-06-30
A70: =B70&D70&E70 -> 12BEdA Leadership Block Grant112-BLBG-16 | B70: 12 | C70: Centralia College | D70: BEdA Leadership Block Grant | E70: 112-BLBG-16 | F70: 0 | G70: 0 | H70: 0 | J70: 2016-06-30
A71: 12BEdAMaster Grant112-BEDA-16 | B71: 12 | C71: Centralia College | D71: BEdAMaster Grant | E71: 112-BEDA-16 | F71: 0 | G71: 0 | H71: 0 | J71: 2016-06-30
A72: 12BEdA Progam - EL Civics Grant Budget112-ELC-16 | B72: 12 | C72: Centralia College | D72: BEdA Progam - EL Civics Grant Budget | E72: 112-ELC-16 | F72: 0 | G72: 0 | H72: 0 | J72: 2016-06-30
A73: 12BEdA WIOA Transition Grant112-WIOA-16 | B73: 12 | C73: Centralia College | D73: BEdA WIOA Transition Grant | E73: 112-WIOA-16 | F73: 0 | G73: 0 | H73: 0 | J73: 2016-06-30
A74: 12Correctional Education Grant112-CE-16 | B74: 12 | C74: Centralia College | D74: Correctional Education Grant | E74: 112-CE-16 | F74: 0 | G74: 0 | H74: 0 | J74: 2016-06-30
A75: 12Early Achievers Grant- State Funding112-EAOG-16 | B75: 12 | C75: Centralia College | D75: Early Achievers Grant- State Funding | E75: 112-EAOG-16 | F75: 0 | G75: 0 | H75: 0 | J75: 2016-06-30
A76: 12Early Achievers Opportunity Grant Application112-JSP-16 | B76: 12 | C76: Centralia College | D76: Early Achievers Opportunity Grant Application | E76: 112-JSP-16 | F76: 0 | G76: 0 | H76: 0 | J76: 2016-06-30
A77: 12Job Skills Program Grant112-PIP-16 | B77: 12 | C77: Centralia College | D77: Job Skills Program Grant | E77: 112-PIP-16 | F77: 0 | G77: 0 | H77: 0 | J77: 2017-06-30
A78: 12Perkins Leadership Block Grant112-PLB-16 | B78: 12 | C78: Centralia College | D78: Perkins Leadership Block Grant | E78: 112-PLB-16 | F78: 0 | G78: 0 | H78: 0 | J78: 2016-06-30
A79: 12Perkins Plan112-PRK-16 | B79: 12 | C79: Centralia College | D79: Perkins Plan | E79: 112-PRK-16 | F79: 0 | G79: 0 | H79: 0 | J79: 2016-06-30
A80: 12Perkins Special Project112-PSPI-16 | B80: 12 | C80: Centralia College | D80: Perkins Special Project | E80: 112-PSPI-16 | F80: 0 | G80: 0 | H80: 0 | J80: 2016-06-30
A81: 12Phase III I-DEA Grant112-IDEA-16 | B81: 12 | C81: Centralia College | D81: Phase III I-DEA Grant | E81: 112-IDEA-16 | F81: 0 | G81: 0 | H81: 0 | J81: 2016-06-30
A82: 12WorkFirst Delivery Agreement112-WFDA-16 | B82: 12 | C82: Centralia College | D82: WorkFirst Delivery Agreement | E82: 112-WFDA-16 | F82: 0 | G82: 0 | H82: 0 | J82: 2016-06-30
A83: 12 | B83: 12 | C83: Centralia College
A84: 14Basic Food Employment And Training Grant114-BFET-16 | B84: 14 | C84: Clark College | D84: Basic Food Employment And Training Grant | E84: 114-BFET-16 | F84: 0 | G84: 0 | H84: 0 | J84: 2016-10-31
A85: 14BEdA Leadership Block Grant114-BLBG-16 | B85: 14 | C85: Clark College | D85: BEdA Leadership Block Grant | E85: 114-BLBG-16 | F85: 0 | G85: 0 | H85: 0 | J85: 2016-07-14
A86: 14BEdAMaster Grant114-BEDA-16 | B86: 14 | C86: Clark College | D86: BEdAMaster Grant | E86: 114-BEDA-16 | F86: 0 | G86: 0 | H86: 0 | J86: 2016-07-14
A87: 14BEdA Progam - EL Civics Grant Budget114-ELC-16 | B87: 14 | C87: Clark College | D87: BEdA Progam - EL Civics Grant Budget | E87: 114-ELC-16 | F87: 0 | G87: 0 | H87: 0 | J87: 2016-07-14
A88: 14BEdA WIOA Transition Grant114-WIOA-16 | B88: 14 | C88: Clark College | D88: BEdA WIOA Transition Grant | E88: 114-WIOA-16 | F88: 0 | G88: 0 | H88: 0 | J88: 2016-07-14
A89: 14Correctional Education Grant114-CE-16 | B89: 14 | C89: Clark College | D89: Correctional Education Grant | E89: 114-CE-16 | F89: 0 | G89: 0 | H89: 0 | J89: 2016-07-14
A90: 14Early Achievers Grant- State Funding114-EAGS-16 | B90: 14 | C90: Clark College | D90: Early Achievers Grant- State Funding | E90: 114-EAGS-16 | F90: 0 | G90: 0 | H90: 0 | J90: 2016-07-14
A91: 14Early Achievers Opportunity Grant Application114-EAOG-16 | B91: 14 | C91: Clark College | D91: Early Achievers Opportunity Grant Application | E91: 114-EAOG-16 | F91: 0 | G91: 0 | H91: 0 | J91: 2016-01-31
A92: 14Faculty Learning Communitites Initiative Grant114-FLCA-16IL | B92: 14 | C92: Clark College | D92: Faculty Learning Communitites Initiative Grant | E92: 114-FLCA-16IL | F92: 0 | G92: 0 | H92: 0 | J92: 2016-07-14
A93: 14I-DEA Grant114-IDEA-16 | B93: 14 | C93: Clark College | D93: I-DEA Grant | E93: 114-IDEA-16 | F93: 0 | G93: 0 | H93: 0 | J93: 2016-07-14
A94: 14Perkins Innovation Block Grant114-PLB-16 | B94: 14 | C94: Clark College | D94: Perkins Innovation Block Grant | E94: 114-PLB-16 | F94: 0 | G94: 0 | H94: 0 | J94: 2016-07-14
A95: 14Perkins Leadership Block Grant114-PRL-16 | B95: 14 | C95: Clark College | D95: Perkins Leadership Block Grant | E95: 114-PRL-16 | F95: 0 | G95: 0 | H95: 0 | J95: 2016-07-14
A96: 14Perkins Plan114-PSPI-16 | B96: 14 | C96: Clark College | D96: Perkins Plan | E96: 114-PSPI-16 | F96: 0 | G96: 0 | H96: 0 | J96: 2016-07-14
A97: 14Perkins Special Project114-PSPI-16 | B97: 14 | C97: Clark College | D97: Perkins Special Project | E97: 114-PSPI-16 | F97: 0 | G97: 0 | H97: 0 | J97: 2016-07-14
A98: 14WorkFirst Delivery Agreement114-WFDA-16 | B98: 14 | C98: Clark College | D98: WorkFirst Delivery Agreement | E98: 114-WFDA-16 | F98: 0 | G98: 0 | H98: 0 | J98: 2016-07-14
A99: 14 | B99: 14 | C99: Clark College
A100: 29Basic Food Employment And Training Grant129-BFET-16 | B100: 29 | C100: Clover Park Technical College | D100: Basic Food Employment And Training Grant | E100: 129-BFET-16 | F100: 0 | G100: 0 | H100: 0 | J100: 2016-06-30
A101: 29BEdA Leadership Block Grant129-BLBG-16 | B101: 29 | C101: Clover Park Technical College | D101: BEdA Leadership Block Grant | E101: 129-BLBG-16 | F101: 0 | G101: 0 | H101: 0 | J101: 2016-06-30
A102: 29BEdAMaster Grant129-BEDA-16 | B102: 29 | C102: Clover Park Technical College | D102: BEdAMaster Grant | E102: 129-BEDA-16 | F102: 0 | G102: 0 | H102: 0 | J102: 2016-06-30
A103: 29BEdA Progam - EL Civics Grant Budget129-ELC-16 | B103: 29 | C103: Clover Park Technical College | D103: BEdA Progam - EL Civics Grant Budget | E103: 129-ELC-16 | F103: 0 | G103: 0 | H103: 0 | J103: 2016-06-30
A104: 29BEdA State Plan Innovations Grant129-BSPI-15 | B104: 29 | C104: Clover Park Technical College | D104: BEdA State Plan Innovations Grant | E104: 129-BSPI-15 | F104: 0 | G104: 0 | H104: 0 | J104: 2016-06-30
A105: 29BEdA WIOA Transition Grant129-WIOA-16 | B105: 29 | C105: Clover Park Technical College | D105: BEdA WIOA Transition Grant | E105: 129-WIOA-16 | F105: 0 | G105: 0 | H105: 0 | J105: 2016-06-30
A106: 29Perkins Leadership Block Grant129-PLB-16 | B106: 29 | C106: Clover Park Technical College | D106: Perkins Leadership Block Grant | E106: 129-PLB-16 | F106: 0 | G106: 0 | H106: 0 | J106: 2016-07-14
A107: 29Perkins Plan129-PRK-16 | B107: 29 | C107: Clover Park Technical College | D107: Perkins Plan | E107: 129-PRK-16 | F107: 0 | G107: 0 | H107: 0 | J107: 2016-06-30
A108: 29Phase III I-DEA Grant129-IDEA-19 | B108: 29 | C108: Clover Park Technical College | D108: Phase III I-DEA Grant | E108: 129-IDEA-19 | F108: 0 | G108: 0 | H108: 0 | J108: 2016-06-30
A109: 29WorkFirst Delivery Agreement129-WFDA-16 | B109: 29 | C109: Clover Park Technical College | D109: WorkFirst Delivery Agreement | E109: 129-WFDA-16 | F109: 0 | G109: 0 | H109: 0 | J109: 2016-06-30
A110: 29 | B110: 29 | C110: Clover Park Technical College
A111: 19Basic Food Employment And Training Grant119-BFET-16 | B111: 19 | C111: Columbia Basin College | D111: Basic Food Employment And Training Grant | E111: 119-BFET-16 | F111: 0 | G111: 0 | H111: 0 | J111: 2016-10-31
A112: 19BEdA Leadership Block Grant119-BLBG-16 | B112: 19 | C112: Columbia Basin College | D112: BEdA Leadership Block Grant | E112: 119-BLBG-16 | F112: 0 | G112: 0 | H112: 0 | J112: 2016-07-14
A113: 19BEdA Master Grant119-BEDA-16 | B113: 19 | C113: Columbia Basin College | D113: BEdA Master Grant | E113: 119-BEDA-16 | F113: 0 | G113: 0 | H113: 0 | J113: 2016-07-14
A114: 19BEdA Progam - EL Civics Grant Budget119-ELC-16 | B114: 19 | C114: Columbia Basin College | D114: BEdA Progam - EL Civics Grant Budget | E114: 119-ELC-16 | F114: 0 | G114: 0 | H114: 0 | J114: 2016-07-14
A115: 19BEdA WIOA Transition Grant119-WIOA | B115: 19 | C115: Columbia Basin College | D115: BEdA WIOA Transition Grant | E115: 119-WIOA | F115: 0 | G115: 0 | H115: 0 | J115: 2016-07-14
A116: 19Perkins Non-Traditional Employment & Training Grant119-PNT-16 | B116: 19 | C116: Columbia Basin College | D116: Perkins Non-Traditional Employment & Training Grant | E116: 119-PNT-16 | F116: 0 | G116: 0 | H116: 0 | J116: 2016-07-14
A117: 19Perkins Non-Traditional Employment & Training Grant119-PNT2-16 | B117: 19 | C117: Columbia Basin College | D117: Perkins Non-Traditional Employment & Training Grant | E117: 119-PNT2-16 | F117: 0 | G117: 0 | H117: 0 | J117: 2016-07-14
A118: 19Perkins Special Project119-PSP-16 | B118: 19 | C118: Columbia Basin College | D118: Perkins Special Project | E118: 119-PSP-16 | F118: 0 | G118: 0 | H118: 0 | J118: 2016-07-14
A119: 19Phase III I-DEA Grant119-IDEA-16 | B119: 19 | C119: Columbia Basin College | D119: Phase III I-DEA Grant | E119: 119-IDEA-16 | F119: 0 | G119: 0 | H119: 0 | J119: 2016-07-14
A120: 19WorkFirst Delivery Agreement119-WFDA-16 | B120: 19 | C120: Columbia Basin College | D120: WorkFirst Delivery Agreement | E120: 119-WFDA-16 | F120: 0 | G120: 0 | H120: 0 | J120: 2016-07-14
A121: 19 | B121: 19 | C121: Columbia Basin College
A122: 23Basic Food Employment And Training Grant123-BFET-16 | B122: 23 | C122: Edmonds Community College | D122: Basic Food Employment And Training Grant | E122: 123-BFET-16 | F122: 0 | G122: 0 | H122: 0 | J122: 2016-10-31
A123: 23BEdA Leadership Block Grant123-BLBG-16 | B123: 23 | C123: Edmonds Community College | D123: BEdA Leadership Block Grant | E123: 123-BLBG-16 | F123: 0 | G123: 0 | H123: 0 | J123: 2016-07-14
A124: 23BEdA Master Grant123-BEBD-16 | B124: 23 | C124: Edmonds Community College | D124: BEdA Master Grant | E124: 123-BEBD-16 | F124: 0 | G124: 0 | H124: 0 | J124: 2016-07-14
A125: 23BEdA Progam - EL Civics Grant Budget123-ELC-16 | B125: 23 | C125: Edmonds Community College | D125: BEdA Progam - EL Civics Grant Budget | E125: 123-ELC-16 | F125: 0 | G125: 0 | H125: 0 | J125: 2016-07-14
A126: 23BEdA WIOA Transition Grant123-WIOA-16 | B126: 23 | C126: Edmonds Community College | D126: BEdA WIOA Transition Grant | E126: 123-WIOA-16 | F126: 0 | G126: 0 | H126: 0 | J126: 2016-07-14
A127: 23Correctional Education Grant123-CE-16 | B127: 23 | C127: Edmonds Community College | D127: Correctional Education Grant | E127: 123-CE-16 | F127: 0 | G127: 0 | H127: 0 | J127: 2016-07-14
A128: 23Early Achievers Grant- State Funding123-EAGS-16 | B128: 23 | C128: Edmonds Community College | D128: Early Achievers Grant- State Funding | E128: 123-EAGS-16 | F128: 0 | G128: 0 | H128: 0 | J128: 2016-01-31
A129: 23Early Achievers Opportunity Grant Application123-EAOG-16 | B129: 23 | C129: Edmonds Community College | D129: Early Achievers Opportunity Grant Application | E129: 123-EAOG-16 | F129: 0 | G129: 0 | H129: 0 | J129: 2016-07-14
A130: 23I-DEA Grant123-IDEA-16 | B130: 23 | C130: Edmonds Community College | D130: I-DEA Grant | E130: 123-IDEA-16 | F130: 0 | G130: 0 | H130: 0 | J130: 2016-07-14
A131: 23Misc. General Grant123-IDRV1-15 | B131: 23 | C131: Edmonds Community College | D131: Misc. General Grant | E131: 123-IDRV1-15 | F131: 0 | G131: 0 | H131: 0 | J131: 2016-04-30
A132: 23Perkins Innovation Project123-PIP-16 | B132: 23 | C132: Edmonds Community College | D132: Perkins Innovation Project | E132: 123-PIP-16 | F132: 0 | G132: 0 | H132: 0 | J132: 2016-07-14
A133: 23Perkins Leadership Block Grant123-PLB-16 | B133: 23 | C133: Edmonds Community College | D133: Perkins Leadership Block Grant | E133: 123-PLB-16 | F133: 0 | G133: 0 | H133: 0 | J133: 2016-07-14
A134: =B134&D134&E134 -> 23Perkins Plan123-PRK-16 | B134: 23 | C134: Edmonds Community College | D134: Perkins Plan | E134: 123-PRK-16 | F134: 0 | G134: 0 | H134: 0 | J134: 2016-07-14
A135: 23Perkins Special Project123-PSPI-16 | B135: 23 | C135: Edmonds Community College | D135: Perkins Special Project | E135: 123-PSPI-16 | F135: 0 | G135: 0 | H135: 0 | J135: 2016-07-14
A136: 23WorkFirst Delivery Agreement123-WFDA-16 | B136: 23 | C136: Edmonds Community College | D136: WorkFirst Delivery Agreement | E136: 123-WFDA-16 | F136: 0 | G136: 0 | H136: 0 | J136: 2016-07-14
A137: =B137&D137&E137 -> 23 | B137: 23 | C137: Edmonds Community College
A138: =B138&D138&E138 -> 5Basic Food Employment And Training Grant105-BFET-16 | B138: 5 | C138: Everett Community College | D138: Basic Food Employment And Training Grant | E138: 105-BFET-16 | F138: 0 | G138: 0 | H138: 0 | J138: 2016-07-14
A139: =B139&D139&E139 -> 5BEdA Leadership Block Grant105-BLBG-16 | B139: 5 | C139: Everett Community College | D139: BEdA Leadership Block Grant | E139: 105-BLBG-16 | F139: 0 | G139: 0 | H139: 0 | J139: 2016-07-14
A140: =B140&D140&E140 -> 5BEdA Master Grant105-BEDA-16 | B140: 5 | C140: Everett Community College | D140: BEdA Master Grant | E140: 105-BEDA-16 | F140: 0 | G140: 0 | H140: 0 | J140: 2016-07-14
A141: 5BEdA Progam - EL Civics Grant Budget105-ELC-16 | B141: 5 | C141: Everett Community College | D141: BEdA Progam - EL Civics Grant Budget | E141: 105-ELC-16 | F141: 0 | G141: 0 | H141: 0 | J141: 2016-07-14
A142: 5BEdA WIOA Transition Grant105-WIOA-16 | B142: 5 | C142: Everett Community College | D142: BEdA WIOA Transition Grant | E142: 105-WIOA-16 | F142: 0 | G142: 0 | H142: 0 | J142: 2016-07-14
A143: 5Early Achievers Grant- State Funding105-EAGS-16 | B143: 5 | C143: Everett Community College | D143: Early Achievers Grant- State Funding | E143: 105-EAGS-16 | F143: 0 | G143: 0 | H143: 0 | J143: 2016-07-14
A144: 5Early Achievers Opportunity Grant Application105-EAOG-16 | B144: 5 | C144: Everett Community College | D144: Early Achievers Opportunity Grant Application | E144: 105-EAOG-16 | F144: 0 | G144: 0 | H144: 0 | J144: 2016-01-31
A145: 5Job Skills Program Grant105-JSP-16PM | B145: 5 | C145: Everett Community College | D145: Job Skills Program Grant | E145: 105-JSP-16PM | F145: 0 | G145: 0 | H145: 0 | J145: 2017-07-15
A146: 5Misc. General Grant105-NGCC-15 | B146: 5 | C146: Everett Community College | D146: Misc. General Grant | E146: 105-NGCC-15 | F146: 0 | G146: 0 | H146: 0 | J146: 2017-01-31
A147: 5Misc. General Grant105-NGST-15 | B147: 5 | C147: Everett Community College | D147: Misc. General Grant | E147: 105-NGST-15 | F147: 0 | G147: 0 | H147: 0 | J147: 2016-07-14
A148: 5Perkins Leadership Block Grant105-PLB-16 | B148: 5 | C148: Everett Community College | D148: Perkins Leadership Block Grant | E148: 105-PLB-16 | F148: 0 | G148: 0 | H148: 0 | J148: 2016-07-14
A149: 5Perkins Non-Traditional Employment & Training Grant105-PNT-16 | B149: 5 | C149: Everett Community College | D149: Perkins Non-Traditional Employment & Training Grant | E149: 105-PNT-16 | F149: 0 | G149: 0 | H149: 0 | J149: 2016-07-14
A150: 5Perkins Plan105-PRK-16 | B150: 5 | C150: Everett Community College | D150: Perkins Plan | E150: 105-PRK-16 | F150: 0 | G150: 0 | H150: 0 | J150: 2016-07-14
A151: 5Phase III I-DEA Grant105-IDEA-16 | B151: 5 | C151: Everett Community College | D151: Phase III I-DEA Grant | E151: 105-IDEA-16 | F151: 0 | G151: 0 | H151: 0 | J151: 2016-07-14
A152: 5WorkFirst Delivery Agreement105-WFDA-16 | B152: 5 | C152: Everett Community College | D152: WorkFirst Delivery Agreement | E152: 105-WFDA-16 | F152: 0 | G152: 0 | H152: 0 | J152: 2016-07-14
A153: 5 | B153: 5 | C153: Everett Community College
A154: =B154&D154&E154 -> 2Basic Food Employment And Training Grant102-BFET-16 | B154: 2 | C154: Grays Harbor College | D154: Basic Food Employment And Training Grant | E154: 102-BFET-16 | F154: 0 | G154: 0 | H154: 0 | J154: 2016-10-31
A155: 2BEdA Master Grant102-BEDA-16 | B155: 2 | C155: Grays Harbor College | D155: BEdA Master Grant | E155: 102-BEDA-16 | F155: 0 | G155: 0 | H155: 0 | J155: 2016-07-14
A156: 2BEdA Progam - EL Civics Grant Budget102-ELC-16 | B156: 2 | C156: Grays Harbor College | D156: BEdA Progam - EL Civics Grant Budget | E156: 102-ELC-16 | F156: 0 | G156: 0 | H156: 0 | J156: 2016-07-14
A157: 2BEdA WIOA Transition Grant102-WIOA-16 | B157: 2 | C157: Grays Harbor College | D157: BEdA WIOA Transition Grant | E157: 102-WIOA-16 | F157: 0 | G157: 0 | H157: 0 | J157: 2016-07-14
A158: 2Correctional Education Grant102-CE-16 | B158: 2 | C158: Grays Harbor College | D158: Correctional Education Grant | E158: 102-CE-16 | F158: 0 | G158: 0 | H158: 0 | J158: 2016-07-14
A159: 2Early Achievers Grant- State Funding102-EAGS-16 | B159: 2 | C159: Grays Harbor College | D159: Early Achievers Grant- State Funding | E159: 102-EAGS-16 | F159: 0 | G159: 0 | H159: 0 | J159: 2016-07-14
A160: 2I-DEA Grant102-IDEA-15 | B160: 2 | C160: Grays Harbor College | D160: I-DEA Grant | E160: 102-IDEA-15 | F160: 0 | G160: 0 | H160: 0 | J160: 2016-07-14
A161: 2Job Skills Program Grant102-JSP-16SD | B161: 2 | C161: Grays Harbor College | D161: Job Skills Program Grant | E161: 102-JSP-16SD | F161: 0 | G161: 0 | H161: 0 | J161: 2017-07-15
A162: =B162&D162&E162 -> 2Misc. General Grant102-IDRV1-16 | B162: 2 | C162: Grays Harbor College | D162: Misc. General Grant | E162: 102-IDRV1-16 | F162: 0 | G162: 0 | H162: 0 | J162: 2016-04-30
A163: 2Misc. General Grant102-IDRV4-15 | B163: 2 | C163: Grays Harbor College | D163: Misc. General Grant | E163: 102-IDRV4-15 | F163: 0 | G163: 0 | H163: 0 | J163: 2016-01-31
A164: 2Perkins Leadership Block Grant102-PLB-16 | B164: 2 | C164: Grays Harbor College | D164: Perkins Leadership Block Grant | E164: 102-PLB-16 | F164: 0 | G164: 0 | H164: 0 | J164: 2016-07-14
A165: 2Perkins Plan102-PRK-16 | B165: 2 | C165: Grays Harbor College | D165: Perkins Plan | E165: 102-PRK-16 | F165: 0 | G165: 0 | H165: 0 | J165: 2016-07-14
A166: 2Perkins Special Project102-PSPI-16 | B166: 2 | C166: Grays Harbor College | D166: Perkins Special Project | E166: 102-PSPI-16 | F166: 0 | G166: 0 | H166: 0 | J166: 2016-07-14
A167: 2WorkFirst Delivery Agreement102-WFDA-16 | B167: 2 | C167: Grays Harbor College | D167: WorkFirst Delivery Agreement | E167: 102-WFDA-16 | F167: 0 | G167: 0 | H167: 0 | J167: 2016-07-14
A168: 2 | B168: 2 | C168: Grays Harbor College
A169: 10Basic Food Employment And Training Grant110-BFET-16 | B169: 10 | C169: Green River Community College | D169: Basic Food Employment And Training Grant | E169: 110-BFET-16 | F169: 0 | G169: 0 | H169: 0 | J169: 2016-10-31
A170: 10BEdA Leadership Block Grant110-BLBG-16 | B170: 10 | C170: Green River Community College | D170: BEdA Leadership Block Grant | E170: 110-BLBG-16 | F170: 0 | G170: 0 | H170: 0 | J170: 2016-07-14
A171: 10BEdA Master Grant110-BEDA-16 | B171: 10 | C171: Green River Community College | D171: BEdA Master Grant | E171: 110-BEDA-16 | F171: 0 | G171: 0 | H171: 0 | J171: 2016-07-14
A172: 10BEdA Progam - EL Civics Grant Budget110-ELC-16 | B172: 10 | C172: Green River Community College | D172: BEdA Progam - EL Civics Grant Budget | E172: 110-ELC-16 | F172: 0 | G172: 0 | H172: 0 | J172: 2016-07-14
A173: 10BEdA State Plan Innovations Grant110-BSPI-15 | B173: 10 | C173: Green River Community College | D173: BEdA State Plan Innovations Grant | E173: 110-BSPI-15 | F173: 0 | G173: 0 | H173: 0 | J173: 2016-07-14
A174: 10BEdA WIOA Transition Grant110-WIOA-16 | B174: 10 | C174: Green River Community College | D174: BEdA WIOA Transition Grant | E174: 110-WIOA-16 | F174: 0 | G174: 0 | H174: 0 | J174: 2016-07-14
A175: 10Early Achievers Grant- State Funding110-EAGS-16 | B175: 10 | C175: Green River Community College | D175: Early Achievers Grant- State Funding | E175: 110-EAGS-16 | F175: 0 | G175: 0 | H175: 0 | J175: 2016-07-14
A176: =B176&D176&E176 -> 10Early Achievers Opportunity Grant Application110-EAOG-16 | B176: 10 | C176: Green River Community College | D176: Early Achievers Opportunity Grant Application | E176: 110-EAOG-16 | F176: 0 | G176: 0 | H176: 0 | J176: 2016-01-30
A177: 10I-DEA Grant110-IDEA-15 | B177: 10 | C177: Green River Community College | D177: I-DEA Grant | E177: 110-IDEA-15 | F177: 0 | G177: 0 | H177: 0 | J177: 2016-07-14
A178: 10Job Skills Program Grant110-JSP-16AVT | B178: 10 | C178: Green River Community College | D178: Job Skills Program Grant | E178: 110-JSP-16AVT | F178: 0 | G178: 0 | H178: 0 | J178: 2017-07-15
A179: 10Job Skills Program Grant110-JSP-16BC | B179: 10 | C179: Green River Community College | D179: Job Skills Program Grant | E179: 110-JSP-16BC | F179: 0 | G179: 0 | H179: 0 | J179: 2017-07-15
A180: 10Job Skills Program Grant110-JSP-16CG | B180: 10 | C180: Green River Community College | D180: Job Skills Program Grant | E180: 110-JSP-16CG | F180: 0 | G180: 0 | H180: 0 | J180: 2017-07-15
A181: 10Job Skills Program Grant110-JSP-16CGM | B181: 10 | C181: Green River Community College | D181: Job Skills Program Grant | E181: 110-JSP-16CGM | F181: 0 | G181: 0 | H181: 0 | J181: 2017-07-15
A182: 10Job Skills Program Grant110-JSP-16ET | B182: 10 | C182: Green River Community College | D182: Job Skills Program Grant | E182: 110-JSP-16ET | F182: 0 | G182: 0 | H182: 0 | J182: 2017-07-15
A183: 10Job Skills Program Grant110-JSP-16EK | B183: 10 | C183: Green River Community College | D183: Job Skills Program Grant | E183: 110-JSP-16EK | F183: 0 | G183: 0 | H183: 0 | J183: 2017-07-15
A184: 10Job Skills Program Grant110-JSP-16HC | B184: 10 | C184: Green River Community College | D184: Job Skills Program Grant | E184: 110-JSP-16HC | F184: 0 | G184: 0 | H184: 0 | J184: 2017-07-15
A185: 10Job Skills Program Grant110-JSP-16HEX | B185: 10 | C185: Green River Community College | D185: Job Skills Program Grant | E185: 110-JSP-16HEX | F185: 0 | G185: 0 | H185: 0 | J185: 2017-07-15
A186: 10Job Skills Program Grant110-JSP-16HS | B186: 10 | C186: Green River Community College | D186: Job Skills Program Grant | E186: 110-JSP-16HS | F186: 0 | G186: 0 | H186: 0 | J186: 2017-07-15
A187: 10Job Skills Program Grant110-JSP-16RWD | B187: 10 | C187: Green River Community College | D187: Job Skills Program Grant | E187: 110-JSP-16RWD | F187: 0 | G187: 0 | H187: 0 | J187: 2017-07-15
A188: 10Job Skills Program Grant110-JSP-16SS | B188: 10 | C188: Green River Community College | D188: Job Skills Program Grant | E188: 110-JSP-16SS | F188: 0 | G188: 0 | H188: 0 | J188: 2017-07-15
A189: 10Job Skills Program Grant110-JSP-16TAS | B189: 10 | C189: Green River Community College | D189: Job Skills Program Grant | E189: 110-JSP-16TAS | F189: 0 | G189: 0 | H189: 0 | J189: 2017-07-15
A190: 10Perkins Leadership Block Grant110-PLB-16 | B190: 10 | C190: Green River Community College | D190: Perkins Leadership Block Grant | E190: 110-PLB-16 | F190: 0 | G190: 0 | H190: 0 | J190: 2016-07-14
A191: 10Perkins Plan110-PRK-16 | B191: 10 | C191: Green River Community College | D191: Perkins Plan | E191: 110-PRK-16 | F191: 0 | G191: 0 | H191: 0 | J191: 2016-07-14
A192: 10Perkins Special Project110-PSP-16 | B192: 10 | C192: Green River Community College | D192: Perkins Special Project | E192: 110-PSP-16 | F192: 0 | G192: 0 | H192: 0 | J192: 2016-07-14
A193: 10WorkFirst Delivery Agreement110-WFDA-16 | B193: 10 | C193: Green River Community College | D193: WorkFirst Delivery Agreement | E193: 110-WFDA-16 | F193: 0 | G193: 0 | H193: 0 | J193: 2016-07-14
A194: 10 | B194: 10 | C194: Green River Community College
A195: =B195&D195&E195 -> 9Basic Food Employment And Training Grant109-BFET-16 | B195: 9 | C195: Highline Community College | D195: Basic Food Employment And Training Grant | E195: 109-BFET-16 | F195: 0 | G195: 0 | H195: 0 | J195: 2016-10-31
A196: =B196&D196&E196 -> 9BEdA Leadership Block Grant109-BLBG-16 | B196: 9 | C196: Highline Community College | D196: BEdA Leadership Block Grant | E196: 109-BLBG-16 | F196: 0 | G196: 0 | H196: 0 | J196: 2016-07-14
A197: 9BEdA Master Grant109-BEDA-16 | B197: 9 | C197: Highline Community College | D197: BEdA Master Grant | E197: 109-BEDA-16 | F197: 0 | G197: 0 | H197: 0 | J197: 2016-07-14
A198: 9BEdA Progam - EL Civics Grant Budget109-ELC-16 | B198: 9 | C198: Highline Community College | D198: BEdA Progam - EL Civics Grant Budget | E198: 109-ELC-16 | F198: 0 | G198: 0 | H198: 0 | J198: 2016-07-14
A199: 9BEdA Special Projects Grant109-BSP-16 | B199: 9 | C199: Highline Community College | D199: BEdA Special Projects Grant | E199: 109-BSP-16 | F199: 0 | G199: 0 | H199: 0 | J199: 2016-09-30
A200: 9BEdA State Plan Innovations Grant109-BSPI-15 | B200: 9 | C200: Highline Community College | D200: BEdA State Plan Innovations Grant | E200: 109-BSPI-15 | F200: 0 | G200: 0 | H200: 0 | J200: 2016-07-14
... 305 more rows

Sheet Balance by Fund (hidden)
C1: *USED TO POPULATE ATTACHMENT ONE
C2: *Balance District Tabs Prior to this tab
C3: *Refresh All FIRST and then Copy Paste Special Values
A4: Sum of Grand Total | B4: Column Labels
A5: Row Labels | B5: 001 | C5: 08A | D5: 252 | E5: 0602 | F5: Grand Total
A6: Bates | B6: 17976696 | C6: 1586112 | D6: 138458 | F6: 19701266
A7: Bellevue | B7: 30798934 | C7: 2271015 | D7: 184080 | F7: 33254029
A8: Bellingham | B8: 12559008 | C8: 993247 | D8: 51610 | E8: 1997096 | F8: 15600961
A9: Big Bend | B9: 9241358 | C9: 875883 | D9: 68169 | F9: 10185410
A10: Cascadia | B10: 8544084 | C10: 1429890 | D10: 48928 | F10: 10022902
A11: Centralia | B11: 10889020 | C11: 1219341 | D11: 54261 | F11: 12162622
A12: Clark | B12: 28920393 | C12: 2243173 | D12: 144851 | F12: 31308417
A13: Clover Park | B13: 18599634 | C13: 1319055 | D13: 119529 | F13: 20038218
A14: Columbia Basin | B14: 19562688 | C14: 1677956 | D14: 124425 | F14: 21365069
A15: Edmonds | B15: 26768307 | C15: 973632 | D15: 162594 | F15: 27904533
A16: Everett | B16: 21438348 | C16: 2980624 | D16: 107991 | F16: 24526963
A17: Future Allocations/Reserves | B17: 33884296 | C17: 325000 | E17: 378664 | F17: 34587960
A18: Grays Harbor | B18: 9268624 | C18: 749970 | D18: 54292 | F18: 10072886
A19: Green River | B19: 24884027 | C19: 1368605 | D19: 125828 | E19: 2024740 | F19: 28403200
A20: Highline | B20: 24262538 | C20: 1246347 | D20: 146878 | F20: 25655763
A21: Lake Washington | B21: 13573762 | C21: 1560618 | D21: 66017 | F21: 15200397
A22: Lower Columbia | B22: 11990370 | C22: 1117681 | D22: 78272 | E22: 2406575 | F22: 15592898
A23: Olympic | B23: 20262445 | C23: 1928554 | D23: 96328 | F23: 22287327
A24: Peninsula | B24: 10616177 | C24: 509691 | D24: 51204 | F24: 11177072
A25: Pierce | B25: 24599265 | C25: 2629152 | D25: 108926 | F25: 27337343
A26: Renton | B26: 15650282 | C26: 1591327 | D26: 101006 | F26: 17342615
A27: SBCTC Admin | B27: 16950750 | C27: 173300 | F27: 17124050
A28: SBCTC Program | B28: 2887846 | C28: 3345000 | F28: 6232846
A29: Seattle | B29: 68641905 | C29: 1063387 | D29: 412443 | F29: 70117735
A30: Shoreline | B30: 21411538 | C30: 490135 | D30: 114820 | F30: 22016493
A31: Skagit Valley | B31: 16621022 | C31: 1713040 | D31: 107741 | E31: 1966925 | F31: 20408728
A32: South Puget Sound | B32: 15462348 | C32: 1207667 | D32: 99478 | F32: 16769493
A33: Spokane | B33: 53208745 | C33: 3461162 | D33: 350511 | F33: 57020418
A34: Tacoma | B34: 20508904 | C34: 1733326 | D34: 108989 | F34: 22351219
A35: Walla Walla | B35: 15575059 | C35: 755410 | D35: 96203 | F35: 16426672
A36: Wenatchee | B36: 11850857 | C36: 1403751 | D36: 70164 | F36: 13324772
A37: Whatcom | B37: 11505160 | C37: 1233804 | D37: 61526 | F37: 12800490
A38: Yakima Valley | B38: 17920610 | C38: 1283145 | D38: 99478 | F38: 19303233
A39: Grand Total | B39: 666835000 | C39: 48460000 | D39: 3555000 | E39: 8774000 | F39: 727624000
A43: EA Schedule | B43: =666835000 -> 666835000 | C43: =48303000+157000 -> 48460000 | D43: 3555000 | E43: 8774000
A44: Variance | B44: =B39-B43 -> 0 | C44: =C43-C39 -> 0 | D44: =D43-D39 -> 0 | E44: =E43-E39 -> 0

Sheet Attachment One
A1: Attachment One
A2: Washington State Community and Technical Colleges
A3: ="FY 2017 Allocation #"&AllocSched!C2 -> FY 2017 Allocation #1
A5: Fund Summary by District
A7: Districts | B7: FY 2017 Allocation Total | C7: General Fund State 001 | D7: Education Legacy Account Fund 08A | E7: Ed Construction State 253 | F7: Capital Projects Account Fund 060
A9: Bates | B9: =SUM(C9:F9) -> 19701266 | C9: 17976696 | D9: 1586112 | E9: 138458
A10: Bellevue | B10: =SUM(C10:F10) -> 33254029 | C10: 30798934 | D10: 2271015 | E10: 184080
A11: Bellingham | B11: 15600961 | C11: 12559008 | D11: 993247 | E11: 51610 | F11: 1997096
A12: Big Bend | B12: 10185410 | C12: 9241358 | D12: 875883 | E12: 68169
A13: Cascadia | B13: 10022902 | C13: 8544084 | D13: 1429890 | E13: 48928
A14: Centralia | B14: 12162622 | C14: 10889020 | D14: 1219341 | E14: 54261
A15: Clark | B15: 31308417 | C15: 28920393 | D15: 2243173 | E15: 144851
A16: Clover Park | B16: 20038218 | C16: 18599634 | D16: 1319055 | E16: 119529
A17: Columbia Basin | B17: 21365069 | C17: 19562688 | D17: 1677956 | E17: 124425
A18: Edmonds | B18: 27904533 | C18: 26768307 | D18: 973632 | E18: 162594
A19: Everett | B19: 24526963 | C19: 21438348 | D19: 2980624 | E19: 107991
A20: Grays Harbor | B20: 10072886 | C20: 9268624 | D20: 749970 | E20: 54292
A21: Green River | B21: 28403200 | C21: 24884027 | D21: 1368605 | E21: 125828 | F21: 2024740
A22: Highline | B22: 25655763 | C22: 24262538 | D22: 1246347 | E22: 146878
A23: Lake Washington | B23: 15200397 | C23: 13573762 | D23: 1560618 | E23: 66017
A24: Lower Columbia | B24: 15592898 | C24: 11990370 | D24: 1117681 | E24: 78272 | F24: 2406575
A25: Olympic | B25: 22287327 | C25: 20262445 | D25: 1928554 | E25: 96328
A26: Peninsula | B26: 11177072 | C26: 10616177 | D26: 509691 | E26: 51204
A27: Pierce | B27: 27337343 | C27: 24599265 | D27: 2629152 | E27: 108926
A28: Renton | B28: 17342615 | C28: 15650282 | D28: 1591327 | E28: 101006
A29: Seattle | B29: 70117735 | C29: 68641905 | D29: 1063387 | E29: 412443
A30: Shoreline | B30: 22016493 | C30: 21411538 | D30: 490135 | E30: 114820
A31: Skagit Valley | B31: 20408728 | C31: 16621022 | D31: 1713040 | E31: 107741 | F31: 1966925
A32: South Puget Sound | B32: 16769493 | C32: 15462348 | D32: 1207667 | E32: 99478
A33: Spokane | B33: 57020418 | C33: 53208745 | D33: 3461162 | E33: 350511
A34: Tacoma | B34: 22351219 | C34: 20508904 | D34: 1733326 | E34: 108989
A35: Walla Walla | B35: 16426672 | C35: 15575059 | D35: 755410 | E35: 96203
A36: Wenatchee Valley | B36: 13324772 | C36: 11850857 | D36: 1403751 | E36: 70164
A37: Whatcom | B37: 12800490 | C37: 11505160 | D37: 1233804 | E37: 61526
A38: Yakima Valley | B38: 19303233 | C38: 17920610 | D38: 1283145 | E38: 99478
A40: District Total | B40: =SUM(B9:B38) -> 669679144 | C40: =SUM(C9:C38) -> 613112108 | D40: =SUM(D9:D38) -> 44616700 | E40: 3555000 | F40: 8395336
A42: SBCTC Admin | B42: =SUM(C42:F42) -> 17124050 | C42: 16950750 | D42: 173300
A43: SBCTC Program | B43: =SUM(C43:F43) -> 6232846 | C43: 2887846 | D43: 3345000
A45: Allocation Total | B45: =SUM(B40:B43) -> 693036040 | C45: =SUM(C40:C43) -> 632950704 | D45: 48135000 | E45: 3555000 | F45: 8395336
A47: Future Allocations | B47: =SUM(C47:F47) -> 34587960 | C47: 33884296 | D47: 325000 | F47: 378664
A49: System Total | B49: =SUM(B45:B47) -> 727624000 | C49: =SUM(C45:C47) -> 666835000 | D49: 48460000 | E49: 3555000 | F49: 8774000

Sheet Attachment Two Step1
A1: Attachment Two
A2: Washington State Community and Technical Colleges
A3: FY 2017 Initial Allocation
A4: Step 1: Adjustments to Base
B6: 1 | C6: 2 | D6: 3 | E6: 4 | F6: 5 | G6: 6 | H6: 7 | I6: 8 | J6: 9 | K6: 10 | L6: 11
B7: Total FY 2017 Beginning Allocation | C7: Alt. Finance Rebasing Project Debt. Svc. | D7: Aerospace Apprenticeships | E7: Bellevue 4-Year Degree Program | F7: Climate Assessment Survey | G7: First Link College Support | H7: Workforce Development Projects | I7: Supplemental Retirement Payments | J7: Dept of Ed Training | K7: Sub-Total Base | L7: Total FY 2017 - with Base Adjustments
A8: Districts | C8: (060-BA0) | D8: (001-101) | E8: (001-BQ1) | F8: (001-101) | G8: (001-101) | H8: (001-101) | I8: (001-101) | J8: (001-101)
A10: Bates | B10: 19955055 | I10: -11406 | K10: =SUM(C10:J10) -> -11406 | L10: =B10+K10 -> 19943649 | M10: =L10=N10 -> FALSE | N10: 19878140
A11: Bellevue | B11: 32580638 | E11: -750000 | I11: -16541 | K11: =SUM(C11:J11) -> -766541 | L11: =B11+K11 -> 31814097 | M11: =L11=N11 -> FALSE | N11: 31749360
A12: Bellingham | B12: 14227149 | C12: 800 | D12: -24084 | H12: -164044 | I12: -6405 | K12: -193733 | L12: 14033416 | M12: FALSE | N12: 14009344
A13: Big Bend | B13: 9830926 | I13: -5393 | K13: -5393 | L13: 9825533 | M13: FALSE | N13: 9802172
A14: Cascadia | B14: 9661861 | I14: -5197 | K14: -5197 | L14: 9656664 | M14: FALSE | N14: 9630661
A15: Centralia | B15: 11770692 | I15: -6131 | K15: -6131 | L15: 11764561 | M15: FALSE | N15: 11707951
A16: Clark | B16: 29943889 | I16: -16050 | K16: -16050 | L16: 29927839 | M16: FALSE | N16: 29814114
A17: Clover Park | B17: 19595762 | H17: -92380 | I17: -10577 | K17: -102957 | L17: 19492805 | M17: FALSE | N17: 19499062
A18: Columbia Basin | B18: 20616068 | I18: -11118 | K18: -11118 | L18: 20604950 | M18: FALSE | N18: 20611527
A19: Edmonds | B19: 27032238 | I19: -13550 | K19: -13550 | L19: 27018688 | M19: FALSE | N19: 27026703
A20: Everett | B20: 24370038 | D20: -162567 | H20: -439143 | I20: -13200 | K20: -614910 | L20: 23755128 | M20: FALSE | N20: 23925503
A21: Grays Harbor | B21: 9721347 | I21: -4912 | K21: -4912 | L21: 9716435 | M21: FALSE | N21: 9719341
A22: Green River | B22: 28076299 | C22: 4160 | H22: -483483 | I22: -13464 | K22: -492787 | L22: 27583512 | M22: FALSE | N22: 27591476
A23: Highline | B23: 24464223 | I23: -13231 | K23: -13231 | L23: 24450992 | M23: FALSE | N23: 24458819
A24: Lake Washington | B24: 14849055 | H24: -181600 | I24: -8171 | K24: -189771 | L24: 14659284 | M24: FALSE | N24: 14664118
A25: Lower Columbia | B25: 15193223 | C25: 400 | H25: 0 | I25: -7129 | K25: -6729 | L25: 15186494 | M25: FALSE | N25: 15190711 | O25: =L25-N25 -> -4217
A26: Olympic | B26: 21378949 | H26: -85850 | I26: -11148 | K26: -96998 | L26: 21281951 | M26: FALSE | N26: 21288546 | O26: =L26-N26 -> -6595
A27: Peninsula | B27: 10889857 | I27: -5763 | K27: -5763 | L27: 10884094 | M27: FALSE | N27: 10887503
A28: Pierce | B28: 25880580 | I28: -13474 | K28: -13474 | L28: 25867106 | M28: FALSE | N28: 25875076
A29: Renton | B29: 16392077 | D29: -48168 | I29: -8956 | K29: -57124 | L29: 16334953 | M29: FALSE | N29: 16417126
A30: Seattle | B30: 68887386 | D30: -108378 | I30: -37137 | K30: -145515 | L30: 68741871 | M30: FALSE | N30: 68117893
A31: Shoreline | B31: 21306858 | I31: -11648 | K31: -11648 | L31: 21295210 | M31: FALSE | N31: 21283064
A32: Skagit Valley | B32: 20197865 | C32: 3600 | D32: -48168 | I32: -9928 | K32: -54496 | L32: 20143369 | M32: FALSE | N32: 20102626
A33: South Puget Sound | B33: 16193819 | H33: -68900 | I33: -8931 | K33: -77831 | L33: 16115988 | M33: FALSE | N33: 16331616
A34: Spokane | B34: 56252708 | I34: -31292 | K34: -31292 | L34: 56221416 | M34: FALSE | N34: 56317710
A35: Tacoma | B35: 21184064 | I35: -11064 | K35: -11064 | L35: 21173000 | M35: FALSE | N35: 21203411
A36: Walla Walla | B36: 16407784 | I36: -8427 | K36: -8427 | L36: 16399357 | M36: FALSE | N36: 16489364
A37: Wenatchee Valley | B37: 12783612 | I37: -6778 | K37: -6778 | L37: 12776834 | M37: FALSE | N37: 12557155
A38: Whatcom | B38: 12023865 | I38: -6776 | K38: -6776 | L38: 12017089 | M38: FALSE | N38: 12122049
A39: Yakima Valley | B39: 18872633 | D39: -30105 | I39: -10312 | K39: -40417 | L39: 18832216 | M39: FALSE | N39: 18957198
K40: 0
A41: District Total | B41: =SUM(B10:B39) -> 650540520 | C41: =SUM(C10:C39) -> 8960 | D41: =SUM(D10:D39) -> -421470 | E41: =SUM(E10:E39) -> -750000 | F41: 0 | H41: -1515400 | I41: -344109 | K41: =SUM(K10:K40) -> -3022019 | L41: =SUM(L10:L39) -> 647518501
A43: SBCTC Admin | B43: 16877437 | D43: -25411 | G43: -3500 | H43: -1000 | I43: 0 | J43: -7000 | K43: =SUM(C43:J43) -> -36911 | L43: =B43+K43 -> 16840526 | M43: FALSE | N43: 16836078
A44: SBCTC Program | B44: 7589499 | D44: -1921761 | F44: -20000 | I44: -10891 | K44: =SUM(C44:J44) -> -1952652 | L44: =B44+K44 -> 5636847 | M44: FALSE | N44: 5672738
A46: Allocation Total | B46: =SUM(B41:B44) -> 675007456 | C46: =SUM(C41:C44) -> 8960 | D46: =SUM(D41:D44) -> -2368642 | E46: =SUM(E41:E44) -> -750000 | F46: -20000 | G46: =SUM(G41:G44) -> -3500 | H46: -1516400 | I46: -355000 | J46: -355000 | K46: -5011582 | L46: =SUM(L41:L44) -> 669995874
A48: Future Allocations | B48: 10533544 | C48: -8960 | D48: 2368642 | F48: 20000 | G48: 3500 | H48: 1516400 | I48: 355000 | J48: 7000 | K48: =SUM(C48:J48) -> 4261582 | L48: =B48+K48 -> 14795126 | M48: FALSE | N48: 15009818 | O48: =L48-N48 -> -214692
A50: System Total | B50: =SUM(B46:B48) -> 685541000 | C50: =SUM(C46:C48) -> 0 | D50: =SUM(D46:D48) -> 0 | E50: =SUM(E46:E48) -> -750000 | F50: 0 | G50: =SUM(G46:G48) -> 0 | H50: 0 | I50: 0 | J50: 0 | K50: -750000 | L50: =SUM(L46:L48) -> 684791000
L52: 684747973
A53: Variance | B53: =B50-B52 -> 685541000 | L53: =L50-L52 -> 43027

Sheet Step1 Notes
A1: Washington State Community and Technical Colleges
A2: FY 2017 Initial Allocation
A3: Step 1: Adjustments to Base
A5: Column | B5: Title | C5: Description
A6: 1 | B6: FY 2016 Beginning Allocation through #7 | C6: State allocations for FY 2016 through Allocation #7 plus Facility Maintenance Building Fee
A7: 2 | B7: Alt. Finance Project Debt. Svc. | C7: Debt service funding rabasing reallocated based on the acutal debt service payment for FY 2017
A8: 3 | B8: Aerospace Apprenticeships | C8: Take back FY16 funding to be re-distributed in FY17.
A9: 4 | B9: Bellevue 4-Year Degree Program | C9: The appropropriation for this item was provided as one-timen funding. The allocation is removed.
A10: 5 | B10: Climate Assessment Survey | C10: Funding provided for this one-time allocation is removed.
A11: 6 | B11: First Link College Support | C11: Funding provided for this one-time allocation is removed.
A12: 7 | B12: Workforce Development Projects | C12: Funding provided for these one-time allocations is removed.
A13: 8 | B13: Supplemental Retirement Payments | C13: The cost for providing Supplemental Retirement coverage for system retirees in the system's Higher Education Retirement Plan continues to exceed allocated funding. An additional $355,000 is moved from system base allocations to cover fiscal year 2017 expenditures
A14: 9 | B14: Department of Ed Training | C14: Funding provided for this one-time allocation is removed.
A15: 10 | B15: Sub-Total | C15: Base Adjustments Totals Columns 2-9
A16: 11 | B16: Total FY 2017 - with Base Adjustments | C16: Total of Columns 1-10

Sheet Attachment Two Step 2
A1: Attachment Two
A2: Washington State Community and Technical Colleges
A3: FY 2017 Initial Allocation
A4: Step 2: Annualize M&O
B6: 11 | C6: 12 | D6: 13
B7: Total FY 2017 - with Base Adjustments | C7: Facilities M&O Carryforward | D7: Total FY 2017 - with Annualized M&O
A9: Bates | B9: ='Attachment Two Step1'!L10 -> 19943649 | C9: 55333 | D9: =C9+B9 -> 19998982
A10: Bellevue | B10: ='Attachment Two Step1'!L11 -> 31814097 | D10: =C10+B10 -> 31814097
A11: Bellingham | B11: ='Attachment Two Step1'!L12 -> 14033416 | D11: 14033416
A12: Big Bend | B12: ='Attachment Two Step1'!L13 -> 9825533 | D12: 9825533
A13: Cascadia | B13: ='Attachment Two Step1'!L14 -> 9656664 | D13: 9656664
A14: Centralia | B14: ='Attachment Two Step1'!L15 -> 11764561 | D14: 11764561
A15: Clark | B15: ='Attachment Two Step1'!L16 -> 29927839 | C15: 366000 | D15: 30293839
A16: Clover Park | B16: ='Attachment Two Step1'!L17 -> 19492805 | D16: 19492805
A17: Columbia Basin | B17: ='Attachment Two Step1'!L18 -> 20604950 | D17: 20604950
A18: Edmonds | B18: ='Attachment Two Step1'!L19 -> 27018688 | D18: 27018688
A19: Everett | B19: ='Attachment Two Step1'!L20 -> 23755128 | D19: 23755128
A20: Grays Harbor | B20: ='Attachment Two Step1'!L21 -> 9716435 | C20: 0 | D20: 9716435
A21: Green River | B21: ='Attachment Two Step1'!L22 -> 27583512 | D21: 27583512
A22: Highline | B22: ='Attachment Two Step1'!L23 -> 24450992 | D22: 24450992
A23: Lake Washington | B23: ='Attachment Two Step1'!L24 -> 14659284 | D23: 14659284
A24: Lower Columbia | B24: ='Attachment Two Step1'!L25 -> 15186494 | D24: 15186494
A25: Olympic | B25: ='Attachment Two Step1'!L26 -> 21281951 | D25: 21281951
A26: Peninsula | B26: ='Attachment Two Step1'!L27 -> 10884094 | D26: 10884094
A27: Pierce | B27: ='Attachment Two Step1'!L28 -> 25867106 | D27: 25867106
A28: Renton | B28: ='Attachment Two Step1'!L29 -> 16334953 | D28: 16334953
A29: Seattle | B29: ='Attachment Two Step1'!L30 -> 68741871 | D29: 68741871
A30: Shoreline | B30: ='Attachment Two Step1'!L31 -> 21295210 | D30: 21295210
A31: Skagit Valley | B31: ='Attachment Two Step1'!L32 -> 20143369 | D31: 20143369
A32: South Puget Sound | B32: ='Attachment Two Step1'!L33 -> 16115988 | D32: 16115988
A33: Spokane | B33: ='Attachment Two Step1'!L34 -> 56221416 | C33: 0 | D33: 56221416
A34: Tacoma | B34: ='Attachment Two Step1'!L35 -> 21173000 | C34: 0 | D34: 21173000
A35: Walla Walla | B35: ='Attachment Two Step1'!L36 -> 16399357 | D35: 16399357
A36: Wenatchee Valley | B36: ='Attachment Two Step1'!L37 -> 12776834 | D36: 12776834
A37: Whatcom | B37: ='Attachment Two Step1'!L38 -> 12017089 | D37: 12017089
A38: Yakima Valley | B38: ='Attachment Two Step1'!L39 -> 18832216 | D38: 18832216
A40: District Total | B40: =SUM(B9:B38) -> 647518501 | C40: =SUM(C9:C38) -> 421333 | D40: =SUM(D9:D38) -> 647939834
A42: SBCTC Admin | B42: ='Attachment Two Step1'!L43 -> 16840526 | D42: =C42+B42 -> 16840526
A43: SBCTC Program | B43: ='Attachment Two Step1'!L44 -> 5636847 | D43: 5636847
A45: Allocation Total | B45: =SUM(B40:B43) -> 669995874 | C45: =SUM(C40:C43) -> 421333 | D45: =SUM(D40:D43) -> 670417207
A47: Future Allocations | B47: ='Attachment Two Step1'!L48 -> 14795126 | C47: =385000-421333 -> -36333 | D47: =C47+B47 -> 14758793
A49: System Total | B49: =SUM(B45:B47) -> 684791000 | C49: =SUM(C45:C47) -> 385000 | D49: =SUM(D45:D47) -> 685176000

Sheet Step 2 Notes
A1: Washington State Community and Technical Colleges
A2: FY 2017 Initial Allocation
A3: Step 2: Facilities M&O Annualize
A5: Column | B5: Title | C5: Description
A6: 11 | B6: Total FY 2017 - with Base Adjustments | C6: Same as column 11 in Step 1
A7: 12 | B7: Facilities M&O Carryforward | C7: Carryforward for new facilities that received less than 12 months of maintenance and operations funding in FY 2016. These funds will be added to base budgets of colleges.
C8: The funds that remain in future allocations will be: 1) Distributed in 2017 allocation #2 to colleges who received M&O funding in FY 2016 for new building occupied after 2016 allocation #7 (which was the starting point of the 2017 initial allocaiton). 2. Any remaining balance will be allocated to colleges as their new facilities become operational. The amount allocated will be prorated consistent with occupancy date.
A9: 13 | B9: Total FY 2017 - with Annualized M&O | C9: The Total of columns 11 & 12

Sheet Attachment Two Step 3
A1: Attachment Two
A2: Washington State Community and Technical Colleges
A3: FY 2017 Initial Allocation
A4: Step 3: Pass through Adjustments
B6: ='[2]Attachment Two Step 2'!D6 -> 13 | C6: =B6+1 -> 14 | D6: =C6+1 -> 15 | E6: 16 | F6: 17 | G6: 18 | H6: 19 | I6: 20 | J6: 21 | K6: 22 | L6: 23
B7: ='[2]Attachment Two Step 2'!D7 -> Total FY 2017 - with Annualized M&O | C7: Compensation Tuition Back-Fill (CS1) | D7: General Wage Increase (GL9) | E7: Health Rate Increase (GL9) | F7: PERS/TRS Pension Rate Changes | G7: WFSE Agreement | H7: WPEA Agreement | I7: Annual Increases in Ed Legacy funding - Shift from State Base | J7: Annual Increases to Ed Legacy Funding - Shift to ELTA Base | K7: Sub-Total | L7: FY 2017 Total - with Pass through Adjustments
A8: Districts | C8: (001-101) | D8: (001-101) | E8: (001-101) | F8: (001-101) | G8: (001-101) | H8: (001-101) | I8: (001-3E0) | J8: (001-101)
A10: Bates | B10: ='Attachment Two Step 2'!D9 -> 19998982 | C10: 99079 | D10: 174928 | E10: 86699 | F10: 435 | I10: 6219 | J10: -6219 | K10: =SUM(C10:J10) -> 361141 | L10: =B10+K10 -> 20360123 | M10: =L10=N10 -> FALSE | N10: 20294614
A11: Bellevue | B11: ='Attachment Two Step 2'!D10 -> 31814097 | C11: 351893 | D11: 416223 | E11: 267733 | F11: 771 | H11: 87589 | I11: 8941 | J11: -8941 | K11: =SUM(C11:J11) -> 1124209 | L11: 32938306 | M11: =L11=N11 -> FALSE | N11: 32873569
A12: Bellingham | B12: ='Attachment Two Step 2'!D11 -> 14033416 | C12: 94114 | D12: 140018 | E12: 74701 | F12: 302 | I12: 4362 | J12: -4362 | K12: 309135 | L12: 14342551 | M12: FALSE | N12: 14318479
A13: Big Bend | B13: ='Attachment Two Step 2'!D12 -> 9825533 | C13: 111262 | D13: 125238 | E13: 63366 | F13: 241 | I13: 4077 | J13: -4077 | K13: 300107 | L13: 10125640 | M13: FALSE | N13: 10102279
A14: Cascadia | B14: ='Attachment Two Step 2'!D13 -> 9656664 | C14: 97839 | D14: 103341 | E14: 65693 | F14: 130 | H14: 33295 | I14: 5724 | J14: -5724 | K14: 300298 | L14: 9956962 | M14: FALSE | N14: 9930959
A15: Centralia | B15: ='Attachment Two Step 2'!D14 -> 11764561 | C15: 110826 | D15: 116652 | E15: 79514 | F15: 283 | G15: 35040 | I15: 4038 | J15: -4038 | K15: 342315 | L15: 12106876 | M15: FALSE | N15: 12050266
A16: Clark | B16: ='Attachment Two Step 2'!D15 -> 30293839 | C16: 281255 | D16: 324621 | E16: 261375 | F16: 1088 | H16: 130394 | I16: 8852 | J16: -8852 | K16: 998733 | L16: 31292572 | M16: FALSE | N16: 31178847
A17: Clover Park | B17: ='Attachment Two Step 2'!D16 -> 19492805 | C17: 122040 | D17: 199834 | E17: 111163 | F17: 435 | I17: 6041 | J17: -6041 | K17: 433472 | L17: 19926277 | M17: FALSE | N17: 19932534
A18: Columbia Basin | B18: ='Attachment Two Step 2'!D17 -> 20604950 | C18: 173154 | D18: 195494 | E18: 136335 | F18: 384 | H18: 58281 | I18: 6645 | J18: -6645 | K18: 563648 | L18: 21168598 | M18: FALSE | N18: 21175175
A19: Edmonds | B19: ='Attachment Two Step 2'!D18 -> 27018688 | C19: 273572 | D19: 288294 | E19: 206552 | F19: 819 | H19: 106533 | I19: 4068 | J19: -4068 | K19: 875770 | L19: 27894458 | M19: FALSE | N19: 27902473
A20: Everett | B20: ='Attachment Two Step 2'!D19 -> 23755128 | C20: 218682 | D20: 247603 | E20: 192844 | F20: 780 | G20: 111071 | I20: 12522 | J20: -12522 | K20: 770980 | L20: 24526108 | M20: FALSE | N20: 24696483
A21: Grays Harbor | B21: ='Attachment Two Step 2'!D20 -> 9716435 | C21: 86875 | D21: 92886 | E21: 57107 | F21: 290 | H21: 24227 | I21: 2187 | J21: -2187 | K21: 261385 | L21: 9977820 | M21: FALSE | N21: 9980726
A22: Green River | B22: ='Attachment Two Step 2'!D21 -> 27583512 | C22: 264042 | D22: 299719 | E22: 209313 | F22: 720 | G22: 94839 | I22: 4857 | J22: -4857 | K22: 868633 | L22: 28452145 | M22: FALSE | N22: 28460109
A23: Highline | B23: ='Attachment Two Step 2'!D22 -> 24450992 | C23: 211664 | D23: 263763 | E23: 171524 | F23: 480 | H23: 51000 | I23: 5800 | J23: -5800 | K23: 698431 | L23: 25149423 | M23: FALSE | N23: 25157250
A24: Lake Washington | B24: ='Attachment Two Step 2'!D23 -> 14659284 | C24: 104551 | D24: 179409 | E24: 101463 | F24: 285 | I24: 6068 | J24: -6068 | K24: 385708 | L24: 15044992 | M24: FALSE | N24: 15049826
A25: Lower Columbia | B25: ='Attachment Two Step 2'!D24 -> 15186494 | C25: 123172 | D25: 122821 | E25: 83627 | F25: 291 | G25: 41635 | I25: 3912 | J25: -3912 | K25: 371546 | L25: 15558040 | M25: FALSE | N25: 15562257
A26: Olympic | B26: ='Attachment Two Step 2'!D25 -> 21281951 | C26: 206079 | D26: 231940 | E26: 166536 | F26: 509 | H26: 67746 | I26: 8124 | J26: -8124 | K26: 672810 | L26: 21954761 | M26: FALSE | N26: 21961356
A27: Peninsula | B27: ='Attachment Two Step 2'!D26 -> 10884094 | C27: 104913 | D27: 109569 | E27: 68127 | F27: 203 | G27: 28036 | I27: 2372 | J27: -2372 | K27: 310848 | L27: 11194942 | M27: FALSE | N27: 11198351
A28: Pierce | B28: ='Attachment Two Step 2'!D27 -> 25867106 | C28: 250215 | D28: 247555 | E28: 218757 | F28: 980 | H28: 131168 | I28: 7572 | J28: -7572 | K28: 848675 | L28: 26715781 | M28: FALSE | N28: 26723751
A29: Renton | B29: ='Attachment Two Step 2'!D28 -> 16334953 | C29: 112855 | D29: 178821 | E29: 98362 | F29: 367 | I29: 6244 | J29: -6244 | K29: 390405 | L29: 16725358 | M29: FALSE | N29: 16807531
A30: Seattle | B30: ='Attachment Two Step 2'!D29 -> 68741871 | C30: 654565 | D30: 740602 | E30: 501599 | F30: 1822 | G30: 248846 | I30: 527 | J30: -527 | K30: 2147434 | L30: 70889305 | M30: FALSE | N30: 70265327
A31: Shoreline | B31: ='Attachment Two Step 2'!D30 -> 21295210 | C31: 181093 | D31: 224191 | E31: 161964 | F31: 502 | G31: 75859 | I31: 2281 | J31: -2281 | K31: 643609 | L31: 21938819 | M31: FALSE | N31: 21926673
A32: Skagit Valley | B32: ='Attachment Two Step 2'!D31 -> 20143369 | C32: 153365 | D32: 188260 | E32: 133258 | F32: 463 | H32: 55688 | I32: 6809 | J32: -6809 | K32: 531034 | L32: 20674403 | M32: FALSE | N32: 20633660
A33: South Puget Sound | B33: ='Attachment Two Step 2'!D32 -> 16115988 | C33: 158456 | D33: 162546 | E33: 129548 | F33: 517 | G33: 69200 | I33: 4419 | J33: -4419 | K33: 520267 | L33: 16636255 | M33: FALSE | N33: 16851883
A34: Spokane | B34: ='Attachment Two Step 2'!D33 -> 56221416 | C34: 466594 | D34: 533672 | E34: 417064 | F34: 1507 | G34: 217279 | I34: 13419 | J34: -13419 | K34: 1636116 | L34: 57857532 | M34: FALSE | N34: 57953826
A35: Tacoma | B35: ='Attachment Two Step 2'!D34 -> 21173000 | C35: 225180 | D35: 268621 | E35: 180353 | F35: 633 | G35: 65541 | I35: 6903 | J35: -6903 | K35: 740328 | L35: 21913328 | M35: FALSE | N35: 21943739
A36: Walla Walla | B36: ='Attachment Two Step 2'!D35 -> 16399357 | C36: 161848 | D36: 169816 | E36: 117424 | F36: 391 | H36: 49078 | I36: 3472 | J36: -3472 | K36: 498557 | L36: 16897914 | M36: FALSE | N36: 16987921
A37: Wenatchee Valley | B37: ='Attachment Two Step 2'!D36 -> 12776834 | C37: 113144 | D37: 135188 | E37: 96529 | F37: 302 | H37: 37001 | I37: 5324 | J37: -5324 | K37: 382164 | L37: 13158998 | M37: FALSE | N37: 12939319
A38: Whatcom | B38: ='Attachment Two Step 2'!D37 -> 12017089 | C38: 121215 | D38: 124187 | E38: 101443 | F38: 280 | G38: 41654 | I38: 5249 | J38: -5249 | K38: 388779 | L38: 12405868 | M38: FALSE | N38: 12510828
A39: Yakima Valley | B39: ='Attachment Two Step 2'!D38 -> 18832216 | C39: 157458 | D39: 162153 | E39: 137908 | F39: 420 | H39: 85000 | I39: 5972 | J39: -5972 | K39: 542939 | L39: 19375155 | M39: FALSE | N39: 19500137
M40: TRUE
A41: District Total | B41: =SUM(B10:B39) -> 647939834 | C41: =SUM(C10:C39) -> 5791000 | D41: 6767965 | E41: 4697881 | F41: 16630 | G41: 1029000 | H41: 917000 | I41: =SUM(I10:I39) -> 173000 | J41: =SUM(J10:J39) -> -173000 | K41: =SUM(K10:K39) -> 19219476 | L41: =SUM(L10:L39) -> 667159310
A43: SBCTC Admin | B43: ='Attachment Two Step 2'!D42 -> 16840526 | D43: 225035 | E43: 58119 | F43: 370 | K43: =SUM(C43:H43) -> 283524 | L43: =B43+K43 -> 17124050 | M43: FALSE | N43: 17119602
A44: SBCTC Program | B44: ='Attachment Two Step 2'!D43 -> 5636847 | K44: =SUM(C44:H44) -> 0 | L44: =B44+K44 -> 5636847 | M44: FALSE | N44: 5672738
A46: Allocation Total | B46: =SUM(B41:B44) -> 670417207 | C46: =SUM(C41:C44) -> 5791000 | D46: 6993000 | E46: 4756000 | F46: 17000 | G46: 1029000 | H46: 917000 | I46: =SUM(I41:I44) -> 173000 | J46: =SUM(J41:J44) -> -173000 | K46: =SUM(K41:K44) -> 19503000 | L46: =SUM(L41:L44) -> 689920207
A48: Future Allocations | B48: ='Attachment Two Step 2'!D47 -> 14758793 | K48: =SUM(C48:H48) -> 0 | L48: =B48+K48 -> 14758793 | M48: FALSE | N48: 14973485
A50: System Total | B50: =SUM(B46:B48) -> 685176000 | C50: =SUM(C46:C48) -> 5791000 | D50: 6993000 | E50: 4756000 | F50: 17000 | G50: 1029000 | H50: 917000 | I50: =SUM(I46:I48) -> 173000 | J50: =SUM(J46:J48) -> -173000 | K50: =SUM(K46:K48) -> 19503000 | L50: =SUM(L46:L48) -> 704679000
B52: 697042973
B53: =B52-B50 -> 11866973
B54: 11400000
B55: =B53-B54 -> 466973

Sheet Step3 Notes
A1: Washington State Community and Technical Colleges
A2: FY 2017 Initial Allocation
A3: Step 3: Passs through Adjustments
A5: Column | B5: Title | C5: Description
A6: 13 | B6: Total FY 2017 - with Annualized M&O | C6: Same as column 13 in Step 2
A7: =A6+1 -> 14 | B7: Compensation Tuition Back-fill | C7: Allocation value of portion of state appropriation provided to fund increased expenditures expected against tuition revenues due to changes in compensation policy (i.e., Cost of living increases and Health Rate Increases).
A8: =A7+1 -> 15 | B8: General Wage Increase | C8: Funding is provided for wage increases for state employees who are not represented by a union or who are covered by a bargaining agreement that is not subject to financial feasibility determination. It is sufficient for a general wage increase of 1.8% for all employees who earn $1,500 a month or more, and a general wage increase of 1% plus a $20 per month increase per month. This item includes general government workers.
A9: 16 | B9: Health Rate Increase | C9: Allocations are increased to recognize increases in 2017 Employee Health Insurance contribution rates. The 2017 rate is $888 per employee per month. Funds are allocated based on each district's prorata share of fiscal year 2015 state-supported (including tuition) salary expenditures related to health benefits.
A10: 17 | B10: PERS/TRS Pension Rate Changes | C10: Small allocation adjustment is provided as the final district adjustment to recognize increased contribution rates for state pension systems (implemented in 2016) and as reflected in the 2015-17 biennial budget. Funds are allocated based on each district's prorata share of fiscal year 2015 state-supported (including tuition) salary expenditures related to PERS and TRS.
A11: 18 | B11: WFSE Agreement | C11: Funding allocated to cover classified collective bargaining agreements in Districts with WFSE. A portion of the policy impact on tuition expenditures are backfilled by allocation in column #15
A12: 19 | B12: WPEA Agreement | C12: Funding allocated to cover classified collective bargaining agreements in Districts with WPEA. A portion of the policy impact on tuition expenditures are backfilled by allocation in column #15
A13: 20 & 21 | B13: Increase Base Ed Legacy Funding- From State Base | C13: Funding for budget items, who receive a portion of the funding from the Education legacy account, are shifted to General State funds for ease of allocation tracking. The sume of adjusted Ed Legacy Account funding is shifted to each district's Base Allocation (FMS appropriation index 3E0).
A14: 22 | B14: FY 2017 Total - with Pass through Adjustments | C14: Sub-Total New Items 14-21
A15: 23 | B15: FY 2017 Total Base & Annualize M&O & New Items | C15: Total of Columns 13-21

Sheet Attachment Two Step 4
A1: Attachment Two
A2: Washington State Community and Technical Colleges
A3: FY 2017 Initial Allocation
A4: Step 4: New 2015-17 Items & Supplemental
B6: 23 | C6: =B6+1 -> 24 | D6: =C6+1 -> 25 | E6: 26 | F6: 27 | G6: 28 | H6: 29 | I6: 30 | J6: 31 | K6: 32 | L6: 33 | M6: 34 | N6: 35 | O6: 36 | P6: 37 | Q6: 38 | R6: 39
B7: FY 2017 Total - with Pass through Adjustments | C7: Alcoa Worker Training | D7: College Affordibility Program | E7: Fabrication Wing Training Program | F7: Facilities M&O - FY 2017 | G7: Facilities Mnt State Shift to Ed Construction | H7: Facilities Mnt State Shift to Ed Construction | I7: Lease & Assessments | J7: MESA Community College Programs MCCP | K7: Moore V. HCA | L7: Revolving Funds Central Service Agency Charges | M7: Revolving Funds Self Insurance Premium | N7: Wildfire Prevention Program | O7: Workers Comp Changes | P7: Bates Rebase Phase In | Q7: Sub-Total | R7: FY 2017 Total - with New 2015-17 Items and Supplemental
A8: Districts | C8: (001-CF2) | D8: (001-BG2) | E8: (001-BJ1) | F8: (001-101) | G8: (001-101) | H8: (253-DA0) | I8: (253-DA0) | J8: (001-101) | K8: (001-101) | L8: (001-101) | M8: (001-101) | N8: (001-CG1) | O8: (001-101) | P8: (001-101) | R8: 2017 Initial - OLD METHOD
A10: Bates | B10: ='Attachment Two Step 3'!L10 -> 20360123 | G10: -39 | H10: 39 | P10: -672210 | Q10: =SUM(C10:P10) -> -672210 | R10: =B10+Q10 -> 19687913 | S10: =R10=T10 -> FALSE | T10: 20287867
A11: Bellevue | B11: ='Attachment Two Step 3'!L11 -> 32938306 | D11: 18973 | G11: -51 | H11: 51 | P11: 122220 | Q11: 141193 | R11: 33079499 | S11: =R11=T11 -> FALSE | T11: 32882757
A12: Bellingham | B12: ='Attachment Two Step 3'!L12 -> 14342551 | C12: 1500000 | G12: -15 | H12: 15 | I12: 1000 | P12: 11640 | Q12: 1512640 | R12: 15855191 | S12: FALSE | T12: 15815690
A13: Big Bend | B13: ='Attachment Two Step 3'!L13 -> 10125640 | G13: -19 | H13: 19 | P13: 2910 | Q13: 2910 | R13: 10128550 | S13: FALSE | T13: 10099089
A14: Cascadia | B14: ='Attachment Two Step 3'!L14 -> 9956962 | G14: -14 | H14: 14 | P14: 40740 | Q14: 40740 | R14: 9997702 | S14: FALSE | T14: 9927885
A15: Centralia | B15: ='Attachment Two Step 3'!L15 -> 12106876 | D15: 44537 | G15: -16 | H15: 16 | Q15: 44537 | R15: 12151413 | S15: FALSE | T15: 12091176
A16: Clark | B16: ='Attachment Two Step 3'!L16 -> 31292572 | G16: -41 | H16: 41 | I16: 5000 | P16: 104760 | Q16: 109760 | R16: 31402332 | S16: FALSE | T16: 31174353
A17: Clover Park | B17: ='Attachment Two Step 3'!L17 -> 19926277 | D17: 5710 | G17: -34 | H17: 34 | I17: 58000 | Q17: 63710 | R17: 19989987 | S17: TRUE | T17: 19989987
A18: Columbia Basin | B18: ='Attachment Two Step 3'!L18 -> 21168598 | D18: 53901 | G18: -35 | H18: 35 | J18: 66430 | P18: 11640 | Q18: 131971 | R18: 21300569 | S18: FALSE | T18: 21288929
A19: Edmonds | B19: ='Attachment Two Step 3'!L19 -> 27894458 | E19: 420000 | G19: -45 | H19: 45 | J19: 66430 | Q19: 486430 | R19: 28380888 | S19: TRUE | T19: 28380888
A20: Everett | B20: ='Attachment Two Step 3'!L20 -> 24526108 | G20: -30 | H20: 30 | P20: 26190 | Q20: 26190 | R20: 24552298 | S20: FALSE | T20: 24688675
A21: Grays Harbor | B21: ='Attachment Two Step 3'!L21 -> 9977820 | G21: -16 | H21: 16 | Q21: 0 | R21: 9977820 | S21: TRUE | T21: 9977820
A22: Green River | B22: ='Attachment Two Step 3'!L22 -> 28452145 | D22: 46021 | G22: -35 | H22: 35 | I22: 19000 | Q22: 65021 | R22: 28517166 | S22: TRUE | T22: 28517166
A23: Highline | B23: ='Attachment Two Step 3'!L23 -> 25149423 | D23: 15580 | G23: -42 | H23: 42 | J23: 66430 | P23: 17460 | Q23: 99470 | R23: 25248893 | S23: FALSE | T23: 25231433
A24: Lake Washington | B24: ='Attachment Two Step 3'!L24 -> 15044992 | D24: 43313 | G24: -19 | H24: 19 | P24: 2910 | Q24: 46223 | R24: 15091215 | S24: FALSE | T24: 15088305
A25: Lower Columbia | B25: ='Attachment Two Step 3'!L25 -> 15558040 | G25: -22 | H25: 22 | P25: 37830 | Q25: 37830 | R25: 15595870 | S25: FALSE | T25: 15558040
A26: Olympic | B26: ='Attachment Two Step 3'!L26 -> 21954761 | D26: 32432 | G26: -27 | H26: 27 | J26: 66430 | P26: 75660 | Q26: 174522 | R26: 22129283 | S26: FALSE | T26: 22053623
A27: Peninsula | B27: ='Attachment Two Step 3'!L27 -> 11194942 | D27: 33802 | G27: -14 | H27: 14 | P27: 5820 | Q27: 39622 | R27: 11234564 | S27: FALSE | T27: 11228744
A28: Pierce | B28: ='Attachment Two Step 3'!L28 -> 26715781 | G28: -30 | H28: 30 | Q28: 0 | R28: 26715781 | S28: TRUE | T28: 26715781
A29: Renton | B29: ='Attachment Two Step 3'!L29 -> 16725358 | D29: 1289 | G29: -29 | H29: 29 | Q29: 1289 | R29: 16726647 | S29: FALSE | T29: 16803522
A30: Seattle | B30: ='Attachment Two Step 3'!L30 -> 70889305 | D30: 124676 | G30: -116 | H30: 116 | J30: 66430 | Q30: 191106 | R30: 71080411 | S30: FALSE | T30: 70434464
A31: Shoreline | B31: ='Attachment Two Step 3'!L31 -> 21938819 | G31: -32 | H31: 32 | I31: 2000 | Q31: 2000 | R31: 21940819 | S31: FALSE | T31: 21921783
A32: Skagit Valley | B32: ='Attachment Two Step 3'!L32 -> 20674403 | D32: 8516 | G32: -30 | H32: 30 | Q32: 8516 | R32: 20682919 | S32: FALSE | T32: 20636303
A33: South Puget Sound | B33: ='Attachment Two Step 3'!L33 -> 16636255 | G33: -28 | H33: 28 | P33: 17460 | Q33: 17460 | R33: 16653715 | S33: FALSE | T33: 16846600
A34: Spokane | B34: ='Attachment Two Step 3'!L34 -> 57857532 | G34: -99 | H34: 99 | I34: 14000 | Q34: 14000 | R34: 57871532 | S34: FALSE | T34: 57949315
A35: Tacoma | B35: ='Attachment Two Step 3'!L35 -> 21913328 | G35: -31 | H35: 31 | P35: 151320 | Q35: 151320 | R35: 22064648 | S35: FALSE | T35: 21937194
A36: Walla Walla | B36: ='Attachment Two Step 3'!L36 -> 16897914 | G36: -27 | H36: 27 | I36: 9000 | P36: 17460 | Q36: 26460 | R36: 16924374 | S36: FALSE | T36: 16991936
A37: Wenatchee Valley | B37: ='Attachment Two Step 3'!L37 -> 13158998 | G37: -19 | H37: 19 | N37: 157000 | P37: 17460 | Q37: 174460 | R37: 13333458 | S37: FALSE | T37: 13092310
A38: Whatcom | B38: ='Attachment Two Step 3'!L38 -> 12405868 | G38: -17 | H38: 17 | P38: 8730 | Q38: 8730 | R38: 12414598 | S38: FALSE | T38: 12506819
A39: Yakima Valley | B39: ='Attachment Two Step 3'!L39 -> 19375155 | D39: 19250 | G39: -28 | H39: 28 | J39: 66430 | P39: 0 | Q39: 85680 | R39: 19460835 | S39: FALSE | T39: 19579717
A41: District Total | B41: =SUM(B10:B39) -> 667159310 | C41: =SUM(C10:C39) -> 1500000 | D41: =SUM(D10:D39) -> 448000 | E41: =SUM(E10:E39) -> 420000 | G41: =SUM(G10:G39) -> -1000 | H41: 1000 | I41: 108000 | J41: 398580 | K41: 0 | L41: 0 | M41: 0 | N41: =SUM(N10:N39) -> 157000 | O41: 0 | P41: 0 | Q41: =SUM(Q10:Q39) -> 3031580 | R41: =SUM(R10:R39) -> 670190890
A43: SBCTC Admin | B43: ='Attachment Two Step 3'!L43 -> 17124050 | O43: 0 | P43: 0 | Q43: =SUM(C43:P43) -> 0 | R43: =B43+Q43 -> 17124050 | S43: =R43=T43 -> FALSE | T43: 17113159
A44: SBCTC Program | B44: ='Attachment Two Step 3'!L44 -> 5636847 | J44: 51420 | Q44: =SUM(C44:P44) -> 51420 | R44: =B44+Q44 -> 5688267 | S44: =R44=T44 -> FALSE | T44: 5724158
A46: Allocation Total | B46: =SUM(B41:B44) -> 689920207 | C46: =SUM(C41:C44) -> 1500000 | D46: =SUM(D41:D44) -> 448000 | E46: =SUM(E41:E44) -> 420000 | G46: =SUM(G41:G44) -> -1000 | H46: 1000 | I46: 108000 | J46: 450000 | K46: 0 | L46: 0 | M46: 0 | N46: =SUM(N41:N44) -> 157000 | O46: 0 | P46: 0 | Q46: =SUM(Q41:Q44) -> 3083000 | R46: =SUM(R41:R44) -> 693003207
A48: Future Allocations | B48: ='Attachment Two Step 3'!L48 -> 14758793 | F48: 107000 | K48: =19329000 -> 19329000 | L48: -120000 | M48: 1000 | N48: 0 | O48: 545000 | P48: 0 | Q48: =SUM(C48:P48) -> 19862000 | R48: =B48+Q48 -> 34620793 | S48: =R48=T48 -> FALSE | T48: 35190485
A50: System Total | B50: =SUM(B46:B48) -> 704679000 | C50: =SUM(C46:C48) -> 1500000 | D50: =SUM(D46:D48) -> 448000 | E50: =SUM(E46:E48) -> 420000 | F50: =SUM(F46:F48) -> 107000 | G50: =SUM(G46:G48) -> -1000 | H50: 1000 | I50: 108000 | J50: 450000 | K50: 19329000 | L50: -120000 | M50: 1000 | N50: =SUM(N46:N48) -> 157000 | O50: 545000 | P50: 0 | Q50: =SUM(Q46:Q48) -> 22945000 | R50: =SUM(R46:R48) -> 727624000

Sheet Step4 Notes
A1: Washington State Community and Technical Colleges
A2: FY 2017 Initial Allocation
A3: Step 4: New 2015-17 Items & Supplemental
A5: Column | B5: Title | C5: Description
A6: 23 | B6: FY 2017 Total - with Pass through Adjustments | C6: Same as Column 23 Step 3
A7: =A6+1 -> 24 | B7: Alcoa Worker Training | C7: Funding is provided for on-site worker training and skills enhancement training for Alcoa Intalco aluminum smelter workers whose jobs have been harmed by foreign trade.
A8: =A7+1 -> 25 | B8: College Affordiblity Program | C8: State funding is provided to backfill anticipated tuition revenue loss due to 16 percent operating fee decrease in applied baccalaureate programs.
A9: 26 | B9: Fabrication Wing Training Program | C9: Additional funding is provided for developing a fabrication composite wing incumbent worker training program to be housed at the Washington Aerospace Training and Research Center, as provided in House Bill 2088.
A10: 27 | B10: Facilities M&O - FY 2017 | C10: New funding provided to recognize costs associated to opening new capital facilities in the system. Funding will be allocated to districts upon completion of project and the granting of an occupancy permit.
A11: 28 & 29 | B11: Facilities Mnt. State Shift to Ed Construction | C11: General fund-State support for Maintenance and Operations is shifted to the Education Construction Account-State for the 2015-17 biennium only.
A12: 30 | B12: Lease & Assessments | C12: Funding is provided for the cost of leases and assessments based on information reported by colleges in July 2014, in conjunction with 2015-17 budget request.
A13: =A12+1 -> 31 | B13: MESA Community College Programs | C13: Additional funding is provided to the six Math, Engineering, Science Achievement (MESA) program pilot sites and program reporting.
A14: =A13+1 -> 32 | B14: Moore V. HCA Settlement | C14: Funds are provided for expenditure into the Special Personnel Litigation Revolving Account to pay the settlement costs in the four related Moore v. Health Care Authority lawsuits.
A15: 33 | B15: Revoling Funds Central Service Agency | C15: Additional funding for changes in state agency charges to the CTC system. The funds are allocated to Future Allocations for use to pay for these services.
A16: 34 | B16: Revolving Funds Self Insurance Premium | C16: Based on a new acturial reports, updated risk factors were applied to agency self-insurance premiums, causing some to rise and some to fall.
A17: 35 | B17: Wildfire Prevention Program | C17: Funding was provided in the 2016 Supplemental Budget for Wenatchee Valley College to develop a Wildfire Prevention Program.
A18: 36 | B18: Workers Comp Changes | C18: Additional funding is provided to refelct changes in anticipated insurance charges. Agency budget's will be adjusted to reflect increased workers' compensation rates in the summer.
A19: 37 | B19: BATES Rebase Phase In | C19: Continuation of the Rebase of Bates Technical College, year two. The equivalent of 241 enrollments are transferred to over-enrolled districts.
A20: 38 | B20: Sub-total | C20: Sub-Total FY 2017 Total - with New 2015-17 Items and Supplemental 24 - 37
A21: 39 | B21: FY 2017 Total - with New 2015-17 Items and Supplemental | C21: This value (total of Columns 23-38) respresent the distgrict allocation when using old allocation methodology. The value of this point is equal to "Model Walkthrough" column C.5 minus the annual value of M&O allocaion from the capital budget. This represents the point from which the shift to the new model will occur (Step five).

Sheet Attachment Two Step 5
A1: Attachment Two
A2: Washington State Community and Technical Colleges
A3: FY 2017 Initial Allocation
A4: Step 5: Implementing New Allocation Model
B6: 39 | C6: =B6+1 -> 40 | D6: =C6+1 -> 41 | E6: 42 | F6: 43 | G6: 44 | H6: 45 | I6: 46 | J6: 47 | K6: 48 | L6: 49 | M6: 50
B7: 2017 Initial - OLD METHOD | C7: Base ELTA Adjustment | D7: Reverse Basic Skills Enhancement | E7: Reverse Basic Skills Enhancement | F7: Labor Ed and Research Center to GFS | G7: Labor Ed and Research Center from ELTA | H7: Minimum Operating Allocation - State Base | I7: Performance Allocation - State Base | J7: Additional Funding for Priority DEAB | K7: General Fund State BASE - Shift to new categories | L7: Sub-Total - Model Rebase Impact | M7: FY 2017 Total Allocation
A8: Districts | C8: (08A-3E0) | D8: (08A-3E0) | E8: (001-101) | F8: (08A-3E0) | G8: (001-101) | H8: (001-101) | I8: (001-101) | J8: (001-101) | K8: (001-101) | M8: New Method
A10: Bates | B10: ='Attachment Two Step 4'!R10 -> 19687913 | C10: 77333 | D10: -72256 | H10: 2267542 | I10: 723985 | J10: 1349320 | K10: -4026167 | L10: =SUM(C10:K10) -> 319757 | M10: =B10+L10 -> 20007670 | N10: =M10=O10 -> FALSE | O10: 20287867
A11: Bellevue | B11: ='Attachment Two Step 4'!R11 -> 33079499 | C11: 111183 | D11: -84410 | H11: 2075620 | I11: 1243603 | J11: 1651890 | K11: -4629360 | L11: 368526 | M11: 33448025 | N11: =M11=O11 -> FALSE | O11: 32882757
A12: Bellingham | B12: ='Attachment Two Step 4'!R12 -> 15855191 | C12: 54241 | D12: -17973 | H12: 2632890 | I12: 678063 | J12: 744180 | K12: -3552000 | L12: 539401 | M12: 16394592 | N12: FALSE | O12: 15815690
A13: Big Bend | B13: ='Attachment Two Step 4'!R13 -> 10128550 | C13: 50698 | D13: -26551 | H13: 2563231 | I13: 808646 | J13: 354710 | K13: -3564377 | L13: 186357 | M13: 10314907 | N13: FALSE | O13: 10099089
A14: Cascadia | B14: ='Attachment Two Step 4'!R14 -> 9997702 | C14: 71184 | D14: -29077 | H14: 2644172 | I14: 745920 | J14: 390260 | K14: -3803669 | L14: 18790 | M14: 10016492 | N14: FALSE | O14: 9927885
A15: Centralia | B15: ='Attachment Two Step 4'!R15 -> 12151413 | C15: 50218 | D15: -60237 | H15: 2621739 | I15: 632210 | J15: 624100 | K15: -3421870 | L15: 446160 | M15: 12597573 | N15: FALSE | O15: 12091176
A16: Clark | B16: ='Attachment Two Step 4'!R16 -> 31402332 | C16: 110083 | D16: -123219 | H16: 2240649 | I16: 1370148 | J16: 1576050 | K16: -4909491 | L16: 264220 | M16: 31666552 | N16: FALSE | O16: 31174353
A17: Clover Park | B17: ='Attachment Two Step 4'!R17 -> 19989987 | C17: 75124 | D17: -41655 | H17: 2347171 | I17: 833251 | J17: 998560 | K17: -4224543 | L17: -12092 | M17: 19977895 | N17: FALSE | O17: 19989987
A18: Columbia Basin | B18: ='Attachment Two Step 4'!R18 -> 21300569 | C18: 82641 | D18: -102455 | H18: 2326575 | I18: 1010916 | J18: 1238720 | K18: -4137090 | L18: 419307 | M18: 21719876 | N18: FALSE | O18: 21288929
A19: Edmonds | B19: ='Attachment Two Step 4'!R19 -> 28380888 | C19: 50594 | D19: -138154 | H19: 2166006 | I19: 1034868 | J19: 1373810 | K19: -5898956 | L19: -1411832 | M19: 26969056 | N19: FALSE | O19: 28380888
A20: Everett | B20: ='Attachment Two Step 4'!R20 -> 24552298 | C20: 155719 | D20: -109571 | H20: 2395709 | I20: 1202246 | J20: 1395140 | K20: -5530080 | L20: -490837 | M20: 24061461 | N20: FALSE | O20: 24688675
A21: Grays Harbor | B21: ='Attachment Two Step 4'!R21 -> 9977820 | C21: 27197 | D21: -53218 | H21: 2621608 | I21: 724994 | J21: 385520 | K21: -3288516 | L21: 417585 | M21: 10395405 | N21: FALSE | O21: 9977820
A22: Green River | B22: ='Attachment Two Step 4'!R22 -> 28517166 | C22: 60402 | D22: -121448 | H22: 2320672 | I22: 1088954 | J22: 1419630 | K22: -5765525 | L22: -997315 | M22: 27519851 | N22: FALSE | O22: 28517166
A23: Highline | B23: ='Attachment Two Step 4'!R23 -> 25248893 | C23: 72130 | D23: -327813 | H23: 2232122 | I23: 1059045 | J23: 2114830 | K23: -3444407 | L23: 1705907 | M23: 26954800 | N23: FALSE | O23: 25231433
A24: Lake Washington | B24: ='Attachment Two Step 4'!R24 -> 15091215 | C24: 75463 | D24: -89905 | H24: 2572283 | I24: 899631 | J24: 1208700 | K24: -3780796 | L24: 885376 | M24: 15976591 | N24: FALSE | O24: 15088305
A25: Lower Columbia | B25: ='Attachment Two Step 4'!R25 -> 15595870 | C25: 48651 | D25: -123078 | H25: 2520728 | I25: 857392 | J25: 923510 | K25: -3829263 | L25: 397940 | M25: 15993810 | N25: FALSE | O25: 15558040
A26: Olympic | B26: ='Attachment Two Step 4'!R26 -> 22129283 | C26: 101034 | D26: -36012 | H26: 2444772 | I26: 1069111 | J26: 1286120 | K26: -3467220 | L26: 1397805 | M26: 23527088 | N26: FALSE | O26: 22053623
A27: Peninsula | B27: ='Attachment Two Step 4'!R27 -> 11234564 | C27: 29500 | D27: -32076 | H27: 2634596 | I27: 734524 | J27: 418700 | K27: -4015212 | L27: -229968 | M27: 11004596 | N27: FALSE | O27: 11228744
A28: Pierce | B28: ='Attachment Two Step 4'!R28 -> 26715781 | C28: 94159 | D28: -104146 | H28: 5241774 | I28: 1382255 | J28: 1145500 | K28: -5760957 | L28: 1998585 | M28: 28714366 | N28: FALSE | O28: 26715781
A29: Renton | B29: ='Attachment Two Step 4'!R29 -> 16726647 | C29: 77637 | D29: -202586 | H29: 2425094 | I29: 803164 | J29: 1511270 | K29: -3649609 | L29: 964970 | M29: 17691617 | N29: FALSE | O29: 16803522
A30: Seattle | B30: ='Attachment Two Step 4'!R30 -> 71080411 | C30: 6548 | D30: -33035 | E30: -340763 | F30: -149749 | G30: 149749 | H30: 6814957 | I30: 2543354 | J30: 4092990 | K30: -16888007 | L30: -3803956 | M30: 67276455 | N30: FALSE | O30: 70434464
A31: Shoreline | B31: ='Attachment Two Step 4'!R31 -> 21940819 | C31: 28366 | E31: -89016 | H31: 2366980 | I31: 831834 | J31: 1357220 | K31: -4274682 | L31: 220702 | M31: 22161521 | N31: FALSE | O31: 21921783
A32: Skagit Valley | B32: ='Attachment Two Step 4'!R32 -> 20682919 | C32: 84676 | D32: -71125 | H32: 2396759 | I32: 836308 | J32: 935360 | K32: -4768242 | L32: -586264 | M32: 20096655 | N32: FALSE | O32: 20636303
A33: South Puget Sound | B33: ='Attachment Two Step 4'!R33 -> 16653715 | C33: 54954 | E33: -34001 | H33: 2431522 | I33: 1009519 | J33: 726010 | K33: -4196389 | L33: -8385 | M33: 16645330 | N33: FALSE | O33: 16846600
A34: Spokane | B34: ='Attachment Two Step 4'!R34 -> 57871532 | C34: 166873 | E34: -307883 | H34: 4225489 | I34: 2023811 | J34: 3144200 | K34: -12825248 | L34: -3572758 | M34: 54298774 | N34: FALSE | O34: 57949315
A35: Tacoma | B35: ='Attachment Two Step 4'!R35 -> 22064648 | C35: 85845 | E35: -60929 | H35: 2391511 | I35: 1200246 | J35: 925090 | K35: -3954110 | L35: 587653 | M35: 22652301 | N35: FALSE | O35: 21937194
A36: Walla Walla | B36: ='Attachment Two Step 4'!R36 -> 16924374 | C36: 43180 | E36: -53427 | H36: 2445297 | I36: 754174 | J36: 693620 | K36: -4582158 | L36: -699314 | M36: 16225060 | N36: FALSE | O36: 16991936
A37: Wenatchee Valley | B37: ='Attachment Two Step 4'!R37 -> 13333458 | C37: 66214 | E37: -31387 | H37: 2554836 | I37: 802779 | J37: 477950 | K37: -3511261 | L37: 359131 | M37: 13692589 | N37: FALSE | O37: 13092310
A38: Whatcom | B38: ='Attachment Two Step 4'!R38 -> 12414598 | C38: 65279 | E38: -33769 | H38: 2591174 | I38: 863196 | J38: 530880 | K38: -3347475 | L38: 669285 | M38: 13083883 | N38: FALSE | O38: 12506819
A39: Yakima Valley | B39: ='Attachment Two Step 4'!R39 -> 19460835 | C39: 74271 | E39: -121622 | H39: 2431522 | I39: 966604 | J39: 1010410 | K39: -4714273 | L39: -353088 | M39: 19107747 | N39: FALSE | O39: 19579717
A41: District Total | B41: =SUM(B10:B39) -> 670190890 | C41: =SUM(C10:C39) -> 2151397 | D41: =SUM(D10:D39) -> -2000000 | E41: =SUM(E10:E39) -> -1072797 | F41: =SUM(F10:F39) -> -149749 | G41: 149749 | H41: 81945000 | I41: 30734751 | J41: 36004250 | K41: -147760953 | L41: 1648 | M41: =SUM(M10:M39) -> 670192538
A43: SBCTC Admin | B43: ='Attachment Two Step 4'!R43 -> 17124050 | L43: =SUM(C43:K43) -> 0 | M43: =B43+L43 -> 17124050 | N43: =M43=O43 -> FALSE | O43: 17113159
A44: SBCTC Program | B44: ='Attachment Two Step 4'!R44 -> 5688267 | L44: =SUM(C44:K44) -> 0 | M44: =B44+L44 -> 5688267 | N44: =M44=O44 -> FALSE | O44: 5724158
A46: Allocation Total | B46: =SUM(B41:B44) -> 693003207 | C46: =SUM(C41:C44) -> 2151397 | D46: =SUM(D41:D44) -> -2000000 | E46: =SUM(E41:E44) -> -1072797 | F46: =SUM(F41:F44) -> -149749 | G46: =SUM(G41:G44) -> 149749 | H46: 81945000 | I46: 30734751 | J46: 36004250 | K46: -147760953 | L46: =SUM(L41:L44) -> 1648 | M46: =SUM(M41:M44) -> 693004855
A48: Future Allocations | B48: ='Attachment Two Step 4'!R48 -> 34620793 | C48: -1648 | L48: =SUM(C48:K48) -> -1648 | M48: =B48+L48 -> 34619145 | N48: =M48=O48 -> FALSE | O48: 35190485
A50: System Total | B50: =SUM(B46:B48) -> 727624000 | C50: =SUM(C46:C48) -> 2149749 | D50: =SUM(D46:D48) -> -2000000 | E50: =SUM(E46:E48) -> -1072797 | F50: =SUM(F46:F48) -> -149749 | G50: =SUM(G46:G48) -> 149749 | H50: 81945000 | I50: 30734751 | J50: 36004250 | K50: -147760953 | L50: =SUM(L46:L48) -> 0 | M50: =SUM(M46:M48) -> 727624000

Sheet Step 5 Notes
A1: Washington State Community and Technical Colleges
A2: FY 2017 Initial Allocation
A3: Step 5: Implementing New Allocation Model
A5: Column | B5: Title | C5: Description
A6: 39 | B6: 2017 Initial - OLD METHOD | C6: Same as Column 39 Step 4
A7: =A6+1 -> 40 | B7: Base ELTA Adjustment | C7: An adjustment to clean up allocation of Education Legacy Account funding to reduce the number of programs that receive ELTA and Funding from other sources and is done for ease of allocation documentation.
A8: 41 & 42 | B8: Reverse Basic Skills Enhancement | C8: The value of allocation previously provided for "Basic Skills Enhancement" is shifted as general fund - state to the "Additional Funding for Priority DEAB."
A9: 43 & 44 | B9: Labor Ed and Research Center | C9: One-time shift of funding form Education Lecacy Account funding to State funding.
A10: 45 | B10: Minimum Operating Allocation - State Base | C10: Portion of "Base Allocation (GF-State)" shifted to identify additional funding provided for the Minimum Operating Allocation (MOA). This state base allocation, plus district Maintenance and Operating allocations in the Education Construction Fund (253-DA0) and allocated from the Capital Budget Building Fee appropriations, equal the districts annual MOA (i.e., $2.85 million per college in the district).
A11: =A10+1 -> 46 | B11: Performance Allocation - State Base | C11: Portion of "Base Allocation (GF-State)" shifted to identify additional funding provided for Performance funding. This state base allocation plus allocations in provisoed "Student Achievement Initiative" (001-BD1) equal total perfomance funding allocated through the new model.
A12: =A11+1 -> 47 | B12: Additional Funding for Priority DEAB | C12: Portion of "Base Allocation (GF-State)" and "Basic Skills Enhancement " shifted to recognize the value of additional per student funding provided for portion of district DEAB identified as priority. Funding is equivalent to $790 per FTE identified as priority.
A13: 48 | B13: General Fund State BASE - Shift to new categories | C13: Amount of funding shift from the district base allocation value as labeled in the district allocations schedule as "Base Allocation (GF-State)". Funding shift is offset by intra-district transfer to new funding categories, as well as inter-district transfer due to rebasing (column 50).
A14: 49 | B14: Sub-Total - Model Rebase Impact | C14: The total allocation impact for all steps related to establishing the distribution outcomes used in the new allocation model. This value represents the rebasing impact of shifting to the new model and will be the basis for the phase-in of model impact (Step six).
A15: 50 | B15: FY 2017 Total Allocation - New Model | C15: The 2017 State Allocation after rebase.

Sheet Attachment Two Step 6
A1: Attachment Two
A2: Washington State Community and Technical Colleges
A3: FY 2017 Initial Allocation
A4: Step 6: Implement Phase-in of New Model Rebase
B6: 50 | C6: 51 | D6: 52
B7: FY 2017 Total Allocation - New Model | C7: Phase in of Rebase impact - adjusment | D7: Total 2017 Initial Allocation - with post model phase in adjustment
A8: Districts | C8: (001-101)
A10: Bates | B10: ='Attachment Two Step 5'!M10 -> 20007670 | C10: -239779 | D10: =B10+C10 -> 19767891
A11: Bellevue | B11: ='Attachment Two Step 5'!M11 -> 33448025 | C11: -276348 | D11: =B11+C11 -> 33171677
A12: Bellingham | B12: ='Attachment Two Step 5'!M12 -> 16394592 | C12: -404493 | D12: 15990099
A13: Big Bend | B13: ='Attachment Two Step 5'!M13 -> 10314907 | C13: -139747 | D13: 10175160
A14: Cascadia | B14: ='Attachment Two Step 5'!M14 -> 10016492 | C14: -14090 | D14: 10002402
A15: Centralia | B15: ='Attachment Two Step 5'!M15 -> 12597573 | C15: -334576 | D15: 12262997
A16: Clark | B16: ='Attachment Two Step 5'!M16 -> 31666552 | C16: -198138 | D16: 31468414
A17: Clover Park | B17: ='Attachment Two Step 5'!M17 -> 19977895 | C17: 9073 | D17: 19986968
A18: Columbia Basin | B18: ='Attachment Two Step 5'!M18 -> 21719876 | C18: -314432 | D18: 21405444
A19: Edmonds | B19: ='Attachment Two Step 5'!M19 -> 26969056 | C19: 1058874 | D19: 28027930
A20: Everett | B20: ='Attachment Two Step 5'!M20 -> 24061461 | C20: 368127 | D20: 24429588
A21: Grays Harbor | B21: ='Attachment Two Step 5'!M21 -> 10395405 | C21: -313144 | D21: =B21+C21 -> 10082261
A22: Green River | B22: ='Attachment Two Step 5'!M22 -> 27519851 | C22: 747987 | D22: 28267838
A23: Highline | B23: ='Attachment Two Step 5'!M23 -> 26954800 | C23: -1279252 | D23: 25675548
A24: Lake Washington | B24: ='Attachment Two Step 5'!M24 -> 15976591 | C24: -663944 | D24: 15312647
A25: Lower Columbia | B25: ='Attachment Two Step 5'!M25 -> 15993810 | C25: -298412 | D25: 15695398
A26: Olympic | B26: ='Attachment Two Step 5'!M26 -> 23527088 | C26: -1048215 | D26: 22478873
A27: Peninsula | B27: ='Attachment Two Step 5'!M27 -> 11004596 | C27: 172476 | D27: 11177072
A28: Pierce | B28: ='Attachment Two Step 5'!M28 -> 28714366 | C28: -1498728 | D28: 27215638
A29: Renton | B29: ='Attachment Two Step 5'!M29 -> 17691617 | C29: -723627 | D29: 16967990
A30: Seattle | B30: ='Attachment Two Step 5'!M30 -> 67276455 | C30: 2852967 | D30: 70129422
A31: Shoreline | B31: ='Attachment Two Step 5'!M31 -> 22161521 | C31: -165528 | D31: 21995993
A32: Skagit Valley | B32: ='Attachment Two Step 5'!M32 -> 20096655 | C32: 439698 | D32: 20536353
A33: South Puget Sound | B33: ='Attachment Two Step 5'!M33 -> 16645330 | C33: 6288 | D33: 16651618
A34: Spokane | B34: ='Attachment Two Step 5'!M34 -> 54298774 | C34: 2679570 | D34: 56978344
A35: Tacoma | B35: ='Attachment Two Step 5'!M35 -> 22652301 | C35: -440707 | D35: 22211594
A36: Walla Walla | B36: ='Attachment Two Step 5'!M36 -> 16225060 | C36: 524487 | D36: 16749547
A37: Wenatchee Valley | B37: ='Attachment Two Step 5'!M37 -> 13692589 | C37: -269310 | D37: 13423279
A38: Whatcom | B38: ='Attachment Two Step 5'!M38 -> 13083883 | C38: -501893 | D38: 12581990
A39: Yakima Valley | B39: ='Attachment Two Step 5'!M39 -> 19107747 | C39: 264816 | D39: 19372563
A41: District Total | B41: =SUM(B10:B39) -> 670192538 | C41: =SUM(C10:C39) -> 0 | D41: =SUM(D10:D39) -> 670192538
A43: SBCTC Admin | B43: ='Attachment Two Step 5'!M43 -> 17124050 | D43: =B43+C43 -> 17124050
A44: SBCTC Program | B44: ='Attachment Two Step 5'!M44 -> 5688267 | D44: 5688267
A46: Allocation Total | B46: =SUM(B41:B44) -> 693004855 | C46: =SUM(C41:C44) -> 0 | D46: =SUM(D41:D44) -> 693004855
A48: Future Allocations | B48: ='Attachment Two Step 5'!M48 -> 34619145 | C48: 0 | D48: =B48+C48 -> 34619145
A50: System Total | B50: =SUM(B46:B48) -> 727624000 | C50: =SUM(C46:C48) -> 0 | D50: =SUM(D46:D48) -> 727624000

Sheet Step 6 Notes
A1: Washington State Community and Technical Colleges
A2: FY 2017 Initial Allocation
A3: Step 6: Implement Phase-in of New Model Rebase
A5: Column | B5: Title | C5: Description
A6: 50 | B6: FY 2017 Total Allocation - New Model | C6: Same as column 50 in Step 1
A7: =A6+1 -> 51 | B7: Phase in of Rebase impact - adjusment | C7: An adjustment to remove the three quarters of rebase impact caused by moving to new allocation methodology from district allocations. The adjustment is the first of a four year phase-in of the new model impact.
A8: =A7+1 -> 52 | B8: Total 2017 Initial Allocation - with post model phase in adjustment | C8: This is the final initial district allocation. This final value plus the amount of the district capital building fee appropriation for Maintenance and Operations, equals the district model total modeled allocation.

Sheet Attachment Two Step 7
A1: Attachment Two
A2: Washington State Community and Technical Colleges
A3: FY 2017 Initial Allocation
A4: Step 7: Set 2017 Allocation levels to planned levels for programs with variable funding
B6: 52 | C6: 53 | D6: 54 | E6: 55 | F6: 56 | G6: 57
B7: Total 2017 Initial Allocation - with post model phase in adjustment | C7: Hospital Employees Education & Training Grants | D7: Worker Retraining - Base | E7: Worker Retraining - Base | F7: Worker Retraining - Variable | G7: GRAND TOTAL Initial 2017 ALLOCATION
A8: Districts | C8: (001-101) | D8: (001-101) | E8: (001-AC1) | F8: (001-AC1)
A10: Bates | B10: ='Attachment Two Step 6'!D10 -> 19767891 | F10: -66625 | G10: =B10+D10+E10+F10 -> 19701266
A11: Bellevue | B11: ='Attachment Two Step 6'!D11 -> 33171677 | C11: 25852 | E11: 200000 | F11: -143500 | G11: =B11+D11+E11+F11+C11 -> 33254029
A12: Bellingham | B12: ='Attachment Two Step 6'!D12 -> 15990099 | F12: -389138 | G12: =B12+D12+E12+F12+C12 -> 15600961
A13: Big Bend | B13: ='Attachment Two Step 6'!D13 -> 10175160 | F13: 10250 | G13: 10185410
A14: Cascadia | B14: ='Attachment Two Step 6'!D14 -> 10002402 | E14: 0 | F14: 20500 | G14: 10022902
A15: Centralia | B15: ='Attachment Two Step 6'!D15 -> 12262997 | E15: -85000 | F15: -15375 | G15: 12162622
A16: Clark | B16: ='Attachment Two Step 6'!D16 -> 31468414 | C16: -52747 | E16: -15000 | F16: -92250 | G16: 31308417
A17: Clover Park | B17: ='Attachment Two Step 6'!D17 -> 19986968 | E17: 0 | F17: 51250 | G17: 20038218
A18: Columbia Basin | B18: ='Attachment Two Step 6'!D18 -> 21405444 | E18: -25000 | F18: -15375 | G18: 21365069
A19: Edmonds | B19: ='Attachment Two Step 6'!D19 -> 28027930 | C19: -78022 | E19: -30000 | F19: -15375 | G19: 27904533
A20: Everett | B20: ='Attachment Two Step 6'!D20 -> 24429588 | E20: 0 | F20: 97375 | G20: 24526963
A21: Grays Harbor | B21: ='Attachment Two Step 6'!D21 -> 10082261 | E21: -35000 | F21: 25625 | G21: =B21+D21+E21+F21+C21 -> 10072886
A22: Green River | B22: ='Attachment Two Step 6'!D22 -> 28267838 | C22: 45987 | E22: -49000 | F22: 138375 | G22: 28403200
A23: Highline | B23: ='Attachment Two Step 6'!D23 -> 25675548 | C23: -332410 | E23: 0 | F23: 312625 | G23: 25655763
A24: Lake Washington | B24: ='Attachment Two Step 6'!D24 -> 15312647 | E24: -20000 | F24: -92250 | G24: 15200397
A25: Lower Columbia | B25: ='Attachment Two Step 6'!D25 -> 15695398 | E25: 0 | F25: -102500 | G25: 15592898
A26: Olympic | B26: ='Attachment Two Step 6'!D26 -> 22478873 | C26: -28296 | E26: -30000 | F26: -133250 | G26: 22287327
A27: Peninsula | B27: ='Attachment Two Step 6'!D27 -> 11177072 | E27: 0 | G27: 11177072
A28: Pierce | B28: ='Attachment Two Step 6'!D28 -> 27215638 | C28: 45955 | D28: =11434 -> 11434 | E28: 33566 | F28: 30750 | G28: 27337343
A29: Renton | B29: ='Attachment Two Step 6'!D29 -> 16967990 | E29: -20000 | F29: 394625 | G29: 17342615
A30: Seattle | B30: ='Attachment Two Step 6'!D30 -> 70129422 | C30: 156313 | E30: -250000 | F30: 82000 | G30: 70117735
A31: Shoreline | B31: ='Attachment Two Step 6'!D31 -> 21995993 | F31: 20500 | G31: 22016493
A32: Skagit Valley | B32: ='Attachment Two Step 6'!D32 -> 20536353 | E32: -20000 | F32: -107625 | G32: 20408728
A33: South Puget Sound | B33: ='Attachment Two Step 6'!D33 -> 16651618 | F33: 117875 | G33: 16769493
A34: Spokane | B34: ='Attachment Two Step 6'!D34 -> 56978344 | C34: 118949 | F34: -76875 | G34: 57020418
A35: Tacoma | B35: ='Attachment Two Step 6'!D35 -> 22211594 | E35: -50000 | F35: 189625 | G35: 22351219
A36: Walla Walla | B36: ='Attachment Two Step 6'!D36 -> 16749547 | F36: -322875 | G36: 16426672
A37: Wenatchee Valley | B37: ='Attachment Two Step 6'!D37 -> 13423279 | E37: -188000 | F37: 89493 | G37: 13324772
A38: Whatcom | B38: ='Attachment Two Step 6'!D38 -> 12581990 | C38: 239000 | F38: -20500 | G38: 12800490
A39: Yakima Valley | B39: ='Attachment Two Step 6'!D39 -> 19372563 | C39: -120830 | E39: -4337 | F39: 55837 | G39: 19303233
A41: District Total | B41: =SUM(B10:B39) -> 670192538 | C41: 19751 | D41: 11434 | E41: -587771 | F41: 43192 | G41: 669679144
A43: SBCTC Admin | B43: ='Attachment Two Step 6'!B43 -> 17124050 | G43: =B43+D43+E43+F43 -> 17124050
A44: SBCTC Program | B44: ='Attachment Two Step 6'!B44 -> 5688267 | E44: 544579 | G44: =B44+D44+E44+F44+C44 -> 6232846
A46: Allocation Total | B46: =SUM(B41:B44) -> 693004855 | C46: 19751 | D46: 11434 | E46: -43192 | F46: 43192 | G46: 693036040
A48: Future Allocations | B48: ='Attachment Two Step 6'!B48 -> 34619145 | C48: -19751 | D48: =-11434 -> -11434 | G48: =B48+D48+E48+F48+C48 -> 34587960
A50: System Total | B50: =SUM(B46:B48) -> 727624000 | C50: 0 | D50: 0 | E50: -43192 | F50: 43192 | G50: 727624000

Sheet Step 7 Notes
A1: Washington State Community and Technical Colleges
A2: FY 2017 Initial Allocation
A3: Step 7: Set 2017 Allocation levels to planned levels for programs with variable funding
A5: Column | B5: Title | C5: Description
A6: 52 | B6: Total 2017 Initial Allocation - with post model phase in adjustment | C6: Same as Attachment Two Step 6, number 52
A7: =A6+1 -> 53 | B7: Hospital Employee Education and Training Grants | C7: Variable are reset to reflect the program's planned FY 2017 Initial Allocation.
A8: 54 & 55 & 56 | B8: Worker Retraining Adjustments | C8: Variable allocations are removed and reallocated based on 60% of colleges' prorata share of the system's average worker retraining enrollments for two years and 40% on a prorata share of unemployment data. Each FTE will be funded at $5,125. An additional $23,823 will be allocated to each college.
A9: 57 | B9: GRAND TOTAL Initial 2017 ALLOCATION | C9: 2017 Initial Allocation with final planning adjustments for variable programming.

Sheet Attachment Three
A1: Attachment Three
A2: Washington State Community and Technical Colleges
A3: FY 2017 Initial Allocation
C6: FY 2017 Base Enrollments | K6: FY 2017 Growth & Variable Enrollments
F7: Earmarked Enrollments | K7: Earmarked Enrollments
A8: Districts | B8: Period | C8: 2016 General & High Demand | D8: 2017 Model Adjustment | E8: District Enrollment Allocation Base - DEAB | F8: Worker Retraining (Base) | G8: Aerospace Apprenticeship | H8: U-Contracts | I8: Base Total | K8: Aerospace Enrollments (1000 FTEs) | L8: Aerospace Apprenticeship | M8: Hospital Empl Educ & Trng | N8: Worker Retraining (Variable) | O8: Growth & Variable Total | Q8: FY 2017 FTES Allocations
A10: Bates | B10: =AllocSched!C2 -> 1 | C10: 4252 | D10: -231 | E10: =C10+D10 -> 4021 | F10: 251 | G10: 20 | I10: =SUM(D10:H10) -> 4061 | K10: 62 | N10: 117 | O10: =SUM(K10:N10) -> 179 | Q10: =I10+O10 -> 4240
A11: Bellevue | B11: =AllocSched!C3 -> 1 | C11: 7097 | D11: 376 | E11: =C11+D11 -> 7473 | F11: 229 | I11: =SUM(D11:H11) -> 8078 | M11: 8 | N11: 135 | O11: =SUM(K11:N11) -> 143 | Q11: =I11+O11 -> 8221
A12: Bellingham | B12: =AllocSched!C4 -> 1 | C12: 1745 | D12: 38 | E12: 1783 | F12: 33 | I12: 1854 | K12: 77 | N12: 47 | O12: 124 | Q12: 1978
A13: Big Bend | B13: =AllocSched!C5 -> 1 | C13: 1619 | D13: 9 | E13: 1628 | F13: 48 | I13: 1685 | K13: 42 | N13: 18 | O13: 60 | Q13: 1745
A14: Cascadia | B14: =AllocSched!C6 -> 1 | C14: 1467 | D14: 130 | E14: 1597 | F14: 27 | I14: 1754 | N14: 15 | O14: 15 | Q14: 1769
A15: Centralia | B15: =AllocSched!C7 -> 1 | C15: 2108 | D15: -26 | E15: 2082 | F15: 111 | I15: 2167 | N15: 44 | O15: 44 | Q15: 2211
A16: Clark | B16: =AllocSched!C8 -> 1 | C16: 6760 | D16: 345 | E16: 7105 | F16: 121 | H16: 17 | I16: 7588 | K16: 40 | M16: 0 | N16: 70 | O16: 110 | Q16: 7698
A17: Clover Park | B17: =AllocSched!C9 -> 1 | C17: 3992 | D17: -31 | E17: 3961 | F17: 176 | I17: 4106 | K17: 77 | N17: 134 | O17: 211 | Q17: 4317
A18: Columbia Basin | B18: =AllocSched!C10 -> 1 | C18: 4600 | D18: 41 | E18: 4641 | F18: 221 | G18: 5 | I18: 4908 | N18: 66 | O18: 66 | Q18: 4974
A19: Edmonds | B19: =AllocSched!C11 -> 1 | C19: 4819 | D19: 7 | E19: 4826 | F19: 176 | H19: 42 | I19: 5051 | K19: 65 | M19: 0 | N19: 90 | O19: 155 | Q19: 5206
A20: Everett | B20: =AllocSched!C12 -> 1 | C20: 4716 | D20: 83 | E20: 4799 | F20: 120 | G20: 13 | I20: 5015 | K20: 143 | N20: 59 | O20: 202 | Q20: 5217
A21: Grays Harbor | B21: =AllocSched!C13 -> 1 | C21: 1552 | D21: -98 | E21: 1454 | F21: 154 | I21: 1510 | N21: 46 | O21: 46 | Q21: 1556
A22: Green River | B22: =AllocSched!C14 -> 1 | C22: 5211 | D22: -154 | E22: 5057 | F22: 265 | I22: 5168 | K22: 39 | N22: 179 | O22: 218 | Q22: 5386
A23: Highline | B23: =AllocSched!C15 -> 1 | C23: 5699 | D23: 69 | E23: 5768 | F23: 202 | I23: 6039 | K23: 20 | M23: 2 | N23: 104 | O23: 126 | Q23: 6165
A24: Lake Washington | B24: =AllocSched!C16 -> 1 | C24: 2803 | D24: 11 | E24: 2814 | F24: 113 | I24: 2938 | K24: 45 | N24: 94 | O24: 139 | Q24: 3077
A25: Lower Columbia | B25: =AllocSched!C17 -> 1 | C25: 2465 | D25: 121 | E25: 2586 | F25: 44 | I25: 2751 | N25: 28 | O25: 28 | Q25: 2779
A26: Olympic | B26: =AllocSched!C18 -> 1 | C26: 4581 | D26: 240 | E26: 4821 | F26: 172 | H26: 32 | I26: 5265 | K26: 61 | N26: 65 | O26: 126 | Q26: 5391
A27: Peninsula | B27: =AllocSched!C19 -> 1 | C27: 1535 | D27: 23 | E27: 1558 | F27: 150 | I27: 1731 | K27: 38 | N27: 38 | O27: 76 | Q27: 1807
A28: Pierce | B28: =AllocSched!C20 -> 1 | C28: 5348 | D28: -30 | E28: 5318 | F28: 165 | H28: 74 | I28: 5527 | M28: 5 | N28: 85 | O28: 90 | Q28: 5617
A29: Renton | B29: =AllocSched!C21 -> 1 | C29: 3584 | D29: -55 | E29: 3529 | F29: 178 | G29: 6 | I29: 3658 | K29: 39 | N29: 77 | O29: 116 | Q29: 3774
A30: Seattle | B30: =AllocSched!C22 -> 1 | C30: 13955 | D30: -768 | E30: 13187 | F30: 582 | G30: 6 | I30: 13007 | K30: 174 | M30: =14+3 -> 17 | N30: 394 | O30: 585 | Q30: 13592
A31: Shoreline | B31: =AllocSched!C23 -> 1 | C31: 4910 | D31: -126 | E31: 4784 | F31: 145 | I31: 4803 | K31: 20 | N31: 110 | O31: 130 | Q31: 4933
A32: Skagit Valley | B32: =AllocSched!C24 -> 1 | C32: 3701 | D32: -16 | E32: 3685 | F32: 101 | I32: 3770 | K32: 27 | N32: 44 | O32: 71 | Q32: 3841
A33: South Puget Sound | B33: =AllocSched!C25 -> 1 | C33: 3366 | D33: 63 | E33: 3429 | F33: 71 | I33: 3563 | K33: 15 | N33: 28 | O33: 43 | Q33: 3606
A34: Spokane | B34: =AllocSched!C26 -> 1 | C34: 13374 | D34: -650 | E34: 12724 | F34: 222 | G34: 5 | I34: 12301 | K34: 40 | M34: =5+2 -> 7 | N34: 105 | O34: 152 | Q34: 12453
A35: Tacoma | B35: =AllocSched!C27 -> 1 | C35: 4334 | D35: 467 | E35: 4801 | F35: 191 | I35: 5459 | K35: 25 | N35: 72 | O35: 97 | Q35: 5556
A36: Walla Walla | B36: =AllocSched!C28 -> 1 | C36: 2733 | D36: 55 | E36: 2788 | F36: 254 | I36: 3097 | N36: 83 | O36: 83 | Q36: 3180
A37: Wenatchee Valley | B37: =AllocSched!C29 -> 1 | C37: 2378 | D37: 61 | E37: 2439 | F37: 108 | I37: 2608 | K37: 20 | N37: 30 | O37: 50 | Q37: 2658
A38: Whatcom | B38: =AllocSched!C30 -> 1 | C38: 2380 | D38: 38 | E38: 2418 | F38: 35 | I38: 2491 | M38: =6+5 -> 11 | N38: 20 | O38: 31 | Q38: 2522
A39: Yakima Valley | B39: =AllocSched!C31 -> 1 | C39: 3893 | D39: 8 | E39: 3901 | F39: 76 | I39: 3985 | N39: 38 | O39: 38 | Q39: 4023
A40: District Total | C40: =SUM(C10:C39) -> 130977 | D40: 0 | E40: 130977 | F40: 4741 | G40: 55 | H40: 165 | I40: 135938 | K40: =SUM(K10:K39) -> 1069 | L40: =SUM(L10:L39) -> 0 | M40: =SUM(M10:M39) -> 50 | N40: =SUM(N10:N39) -> 2435 | O40: =SUM(O10:O39) -> 3554 | Q40: =SUM(Q10:Q39) -> 139492
A41: SBCTC Program | C41: 34 | E41: =C41 -> 34 | F41: 430 | I41: 464 | K41: 0 | O41: =SUM(K41:N41) -> 0 | Q41: =I41+O41 -> 464
A42: Future Allocations/Reserves | F42: 0 | G42: 0 | I42: =SUM(C42:H42) -> 0 | K42: 0 | L42: 75 | M42: 0 | N42: 0 | O42: =SUM(K42:N42) -> 75 | Q42: =O42+I42 -> 75
A43: System Totals | C43: =SUM(C40:C42) -> 131011 | D43: =SUM(D40:D42) -> 0 | E43: 131011 | F43: =SUM(F40:F42) -> 5171 | G43: =SUM(G40:G42) -> 55 | H43: =SUM(H40:H42) -> 165 | I43: =SUM(C43:H43) -> 267413 | K43: =SUM(K40:K42) -> 1069 | L43: =SUM(L40:L42) -> 75 | M43: =SUM(M40:M42) -> 50 | N43: =SUM(N40:N42) -> 2435 | O43: =SUM(O40:O42) -> 3629 | Q43: =SUM(Q40:Q42) -> 140031
A46: Check Figures | C46: 131011 | F46: 5171 | G46: 55 | H46: 165 | K46: 1069 | L46: 75 | M46: 50 | N46: 2435
A47: Variance | C47: =C46-C43 -> 0 | F47: =F46-F43 -> 0 | G47: 0 | H47: 0 | K47: =K43-K46 -> 0 | L47: =L43-L46 -> 0 | M47: =M43-M46 -> 0 | N47: 0 | O47: 3629

Sheet Attachment Four
A1: Attachment Four
A2: Washington State Community and Technical Colleges
A3: FY 2017 Initial Allocation
A5: Worker Retraining Program Summary by District
B7: Current Allocation | G7: Year-to-Date Summary
A8: Districts | B8: FTES | C8: Enrollment | D8: Aid | E8: Total Funding | G8: FTES | H8: Enrollments | I8: Aid | J8: Total Funding
A10: Bates | G10: 368 | H10: 1355983 | I10: 553840 | J10: =SUM(H10:I10) -> 1909823
A11: Bellevue | G11: 364 | H11: 1341503 | I11: 547820 | J11: =SUM(H11:I11) -> 1889323
A12: Bellingham | G12: 80 | H12: 313423 | I12: 120400 | J12: 433823
A13: Big Bend | G13: 66 | H13: 262743 | I13: 99330 | J13: 362073
A14: Cascadia | G14: 42 | H14: 175863 | I14: 63210 | J14: 239073
A15: Centralia | G15: 155 | H15: 584923 | I15: 233275 | J15: 818198
A16: Clark | G16: 191 | H16: 715243 | I16: 287455 | J16: 1002698
A17: Clover Park | G17: 310 | H17: 1146023 | I17: 466550 | J17: 1612573
A18: Columbia Basin | G18: 287 | H18: 1062763 | I18: 431935 | J18: 1494698
A19: Edmonds | G19: 266 | H19: 986743 | I19: 400330 | J19: 1387073
A20: Everett | G20: 179 | H20: 671803 | I20: 269395 | J20: 941198
A21: Grays Harbor | G21: 200 | H21: 747823 | I21: 301000 | J21: 1048823
A22: Green River | G22: 444 | H22: 1631103 | I22: 668220 | J22: 2299323
A23: Highline | G23: 306 | H23: 1131543 | I23: 460530 | J23: 1592073
A24: Lake Washington | G24: 207 | H24: 773163 | I24: 311535 | J24: 1084698
A25: Lower Columbia | G25: 72 | H25: 284463 | I25: 108360 | J25: 392823
A26: Olympic | G26: 237 | H26: 881763 | I26: 356685 | J26: 1238448
A27: Peninsula | G27: 188 | H27: 704383 | I27: 282940 | J27: 987323
A28: Pierce | G28: 250 | H28: 952646 | I28: 376250 | J28: 1328896
A29: Renton | G29: 255 | H29: 946923 | I29: 383775 | J29: 1330698
A30: Seattle | G30: 976 | H30: 3604589 | I30: 1468880 | J30: 5073469
A31: Shoreline | G31: 255 | H31: 946923 | I31: 383775 | J31: 1330698
A32: Skagit Valley | G32: 145 | H32: 548723 | I32: 218225 | J32: 766948
A33: South Puget Sound | G33: 99 | H33: 382203 | I33: 148995 | J33: 531198
A34: Spokane | G34: 327 | H34: 1231386 | I34: 492135 | J34: 1723521
A35: Tacoma | G35: 263 | H35: 975883 | I35: 395815 | J35: 1371698
A36: Walla Walla | G36: 337 | H36: 1243763 | I36: 507185 | J36: 1750948
A37: Wenatchee Valley | G37: 138 | H37: 523383 | I37: 207690 | J37: 731073
A38: Whatcom | G38: 55 | H38: 222923 | I38: 82775 | J38: 305698
A39: Yakima Valley | G39: 114 | H39: 436503 | I39: 171570 | J39: 608073
A41: District Total | G41: =SUM(G10:G39) -> 7176 | H41: =SUM(H10:H39) -> 26787102 | I41: =SUM(I10:I39) -> 10799880 | J41: =SUM(H41:I41) -> 37586982
A43: Private Colleges | G43: 430 | H43: 1640880 | I43: 0 | J43: =SUM(H43:I43) -> 1640880
A44: Administration | H44: 497555 | J44: =SUM(H44:I44) -> 497555
A45: Total SBCTC (Olympia) | G45: =SUM(G43:G44) -> 430 | H45: =SUM(H43:H44) -> 2138435 | I45: =SUM(I43:I44) -> 0 | J45: =SUM(J43:J44) -> 2138435
A47: Reserve | G47: 0 | I47: 0 | J47: =SUM(H47:I47) -> 0
A48: Emergency Fund | H48: 33683 | I48: 0 | J48: =SUM(H48:I48) -> 33683
A50: System Total | G50: =G45+G47+G48+G41 -> 7606 | H50: =H45+H47+H48+H41 -> 28959220 | I50: =I48+I47+I45+I41 -> 10799880 | J50: =SUM(J45:J49)+J41 -> 39759100

Sheet district (hidden)
A1: DISTRICT | B1: NAME | E1: DISTRICT | F1: NAME
A2: 28 | B2: Bates | E2: 28 | F2: Bates
A3: 8 | B3: Bellevue | E3: 8 | F3: Bellevue
A4: 25 | B4: Bellingham | E4: 25 | F4: Bellingham
A5: 18 | B5: Big Bend | E5: 18 | F5: Big Bend
A6: 30 | B6: Cascadia | E6: 30 | F6: Cascadia
A7: 12 | B7: Centralia | E7: 12 | F7: Centralia
A8: 14 | B8: Clark | E8: 14 | F8: Clark
A9: 29 | B9: Clover Park | E9: 29 | F9: Clover Park
A10: 19 | B10: Columbia Basin | E10: 19 | F10: Columbia Basin
A11: 23 | B11: Edmonds | E11: 23 | F11: Edmonds
A12: 5 | B12: Everett | E12: 5 | F12: Everett
A13: 2 | B13: Grays Harbor | E13: 00 | F13: Future Allocations/Reserves
A14: 10 | B14: Green River | E14: 2 | F14: Grays Harbor
A15: 9 | B15: Highline | E15: 10 | F15: Green River
A16: 26 | B16: Lake Washington | E16: 9 | F16: Highline
A17: 13 | B17: Lower Columbia | E17: 26 | F17: Lake Washington
A18: 3 | B18: Olympic | E18: 13 | F18: Lower Columbia
A19: 1 | B19: Peninsula | E19: 3 | F19: Olympic
A20: 11 | B20: Pierce | E20: 1 | F20: Peninsula
A21: 27 | B21: Renton | E21: 11 | F21: Pierce
A22: 6 | B22: Seattle | E22: 27 | F22: Renton
A23: 7 | B23: Shoreline | E23: 89 | F23: SBCTC Admin
A24: 4 | B24: Skagit Valley | E24: 90 | F24: SBCTC Program
A25: 24 | B25: South Puget Sound | E25: 6 | F25: Seattle
A26: 17 | B26: Spokane | E26: 7 | F26: Shoreline
A27: 22 | B27: Tacoma | E27: 4 | F27: Skagit Valley
A28: 20 | B28: Walla Walla | E28: 24 | F28: South Puget Sound
A29: 15 | B29: Wenatchee Valley | E29: 17 | F29: Spokane
A30: 21 | B30: Whatcom | E30: 22 | F30: Tacoma
A31: 16 | B31: Yakima Valley | E31: 20 | F31: Walla Walla
A32: 89 | B32: SBCTC Admin | E32: 15 | F32: Wenatchee Valley
A33: 90 | B33: SBCTC Program | E33: 21 | F33: Whatcom
A34: 00 | B34: Future Allocations/Reserves | E34: 16 | F34: Yakima Valley

Sheet Bates
A1: State Board for Community and Technical Colleges
A2: FY 2017 Allocation Schedule
H3: Allocation: | I3: ="#" &AllocSched!C71 -> #1
E5: District: | F5: 28 | G5: =VLOOKUP(F5,DISTRICT,2,FALSE) -> Bates
A8: Enrollments
C9: Base | E9: Growth/Variable | G9: Total FTES
C10: ='Attachment Three'!I10 -> 4061 | E10: ='Attachment Three'!O10 -> 179 | G10: =C10+E10 -> 4240
A13: Category | C13: Prior Allocation | E13: Current Allocation | G13: Total Allocation | H13: Fund Appr. No. | I13: FMS Appr. Index
A15: Operating Base
A16: Base Allocation (GF-State) | C16: =IF(ISNA(VLOOKUP($F$5 &$A$16, AllocSched,19,FALSE)),"-",VLOOKUP($F$5 &$A$16,AllocSched,19,FALSE)) -> 14764822 | E16: =IF(ISNA(VLOOKUP($F$5 &A16, AllocSched,20,FALSE)),"-",VLOOKUP($F$5 &A16,AllocSched,20,FALSE)) -> -5504838 | G16: =SUM(C16:F16) -> 9259984 | H16: =IF(ISNA(VLOOKUP($F$5 &A16, AllocSched,10,FALSE)),"-",VLOOKUP($F$5 &A16,AllocSched,10,FALSE)) -> 001-011 | I16: =IF(ISNA(VLOOKUP($F$5 &A16, AllocSched,8,FALSE)),"-",VLOOKUP($F$5 &A16,AllocSched,8,FALSE)) -> 101
A17: Base Allocation (ELTA) | C17: =IF(ISNA(VLOOKUP($F$5 &$A$17, AllocSched,19,FALSE)),"-",VLOOKUP($F$5 &$A$17,AllocSched,19,FALSE)) -> 1252560 | E17: =IF(ISNA(VLOOKUP($F$5 &A17, AllocSched,20,FALSE)),"-",VLOOKUP($F$5 &A17,AllocSched,20,FALSE)) -> 83552 | G17: =SUM(C17:F17) -> 1336112 | H17: =IF(ISNA(VLOOKUP($F$5 &$A$17, AllocSched,10,FALSE)),"-",VLOOKUP($F$5 &$A$17,AllocSched,10,FALSE)) -> 08A-3E0 | I17: =IF(ISNA(VLOOKUP($F$5 &A17, AllocSched,8,FALSE)),"-",VLOOKUP($F$5 &A17,AllocSched,8,FALSE)) -> 3E0
A18: Weighted Enrollments - Additional 30% | C18: =IF(ISNA(VLOOKUP($F$5 &A18, AllocSched,19,FALSE)),"-",VLOOKUP($F$5 &A18,AllocSched,19,FALSE)) -> 0 | E18: =IF(ISNA(VLOOKUP($F$5 &A18, AllocSched,20,FALSE)),"-",VLOOKUP($F$5 &A18,AllocSched,20,FALSE)) -> 1349320 | G18: =SUM(C18:F18) -> 1349320 | H18: =IF(ISNA(VLOOKUP($F$5 &A18, AllocSched,10,FALSE)),"-",VLOOKUP($F$5 &A18,AllocSched,10,FALSE)) -> 001-011 | I18: =IF(ISNA(VLOOKUP($F$5 &A18, AllocSched,8,FALSE)),"-",VLOOKUP($F$5 &A18,AllocSched,8,FALSE)) -> 101
A19: Facility Maintenance - State Shift to Ed Const - MOA | C19: =IF(ISNA(VLOOKUP($F$5 &A19, AllocSched,19,FALSE)),"-",VLOOKUP($F$5 &A19,AllocSched,19,FALSE)) -> -138419 | E19: =IF(ISNA(VLOOKUP($F$5 &A19, AllocSched,20,FALSE)),"-",VLOOKUP($F$5 &A19,AllocSched,20,FALSE)) -> 138419 | G19: =SUM(C19:F19) -> 0 | H19: =IF(ISNA(VLOOKUP($F$5 &A19, AllocSched,10,FALSE)),"-",VLOOKUP($F$5 &A19,AllocSched,10,FALSE)) -> 001-011 | I19: =IF(ISNA(VLOOKUP($F$5 &A19, AllocSched,8,FALSE)),"-",VLOOKUP($F$5 &A19,AllocSched,8,FALSE)) -> 101
A20: Facility Maintenance - Ed Constr shift from State - MOA | C20: =IF(ISNA(VLOOKUP($F$5 &A20, AllocSched,19,FALSE)),"-",VLOOKUP($F$5 &A20,AllocSched,19,FALSE)) -> 138419 | E20: =IF(ISNA(VLOOKUP($F$5 &A20, AllocSched,20,FALSE)),"-",VLOOKUP($F$5 &A20,AllocSched,20,FALSE)) -> 39 | G20: =SUM(C20:F20) -> 138458 | H20: =IF(ISNA(VLOOKUP($F$5 &A20, AllocSched,10,FALSE)),"-",VLOOKUP($F$5 &A20,AllocSched,10,FALSE)) -> 252-DA0 | I20: =IF(ISNA(VLOOKUP($F$5 &A20, AllocSched,8,FALSE)),"-",VLOOKUP($F$5 &A20,AllocSched,8,FALSE)) -> DA0
A21: Facility Maintenance - State - MOA | C21: =IF(ISNA(VLOOKUP($F$5 &A21, AllocSched,19,FALSE)),"-",VLOOKUP($F$5 &A21,AllocSched,19,FALSE)) -> 0 | E21: =IF(ISNA(VLOOKUP($F$5 &A21, AllocSched,20,FALSE)),"-",VLOOKUP($F$5 &A21,AllocSched,20,FALSE)) -> 2267542 | G21: =SUM(C21:F21) -> 2267542 | H21: =IF(ISNA(VLOOKUP($F$5 &A21, AllocSched,10,FALSE)),"-",VLOOKUP($F$5 &A21,AllocSched,10,FALSE)) -> 001-011 | I21: =IF(ISNA(VLOOKUP($F$5 &A21, AllocSched,8,FALSE)),"-",VLOOKUP($F$5 &A21,AllocSched,8,FALSE)) -> 101
A22: Bates Rebasing | C22: =IF(ISNA(VLOOKUP($F$5 &$A$22, AllocSched,19,FALSE)),"-",VLOOKUP($F$5 &$A$22,AllocSched,19,FALSE)) -> -656328 | E22: =IF(ISNA(VLOOKUP($F$5 &A22, AllocSched,20,FALSE)),"-",VLOOKUP($F$5 &A22,AllocSched,20,FALSE)) -> 656328 | G22: =SUM(C22:F22) -> 0 | H22: =IF(ISNA(VLOOKUP($F$5 &A22, AllocSched,10,FALSE)),"-",VLOOKUP($F$5 &A22,AllocSched,10,FALSE)) -> 001-011 | I22: =IF(ISNA(VLOOKUP($F$5 &A22, AllocSched,8,FALSE)),"-",VLOOKUP($F$5 &A22,AllocSched,8,FALSE)) -> 101
A23: Rebase Phase-in Adjustment - Year one | C23: =IF(ISNA(VLOOKUP($F$5 &A23, AllocSched,19,FALSE)),"-",VLOOKUP($F$5 &A23,AllocSched,19,FALSE)) -> - | E23: =IF(ISNA(VLOOKUP($F$5 &A23, AllocSched,20,FALSE)),"-",VLOOKUP($F$5 &A23,AllocSched,20,FALSE)) -> -239779 | G23: =SUM(C23:F23) -> -239779 | H23: =IF(ISNA(VLOOKUP($F$5 &A23, AllocSched,10,FALSE)),"-",VLOOKUP($F$5 &A23,AllocSched,10,FALSE)) -> 001-011 | I23: 101
A24: Supplemental Retirement Payments | C24: =IF(ISNA(VLOOKUP($F$5 &A24, AllocSched,19,FALSE)),"-",VLOOKUP($F$5 &A24,AllocSched,19,FALSE)) -> -4659 | E24: 4659 | G24: 0 | H24: 001-011 | I24: 101
A25: Performance Funding (Base) | C25: =IF(ISNA(VLOOKUP($F$5 &A25, AllocSched,19,FALSE)),"-",VLOOKUP($F$5 &A25,AllocSched,19,FALSE)) -> 0 | E25: =IF(ISNA(VLOOKUP($F$5 &A25, AllocSched,20,FALSE)),"-",VLOOKUP($F$5 &A25,AllocSched,20,FALSE)) -> 723985 | G25: =SUM(C25:F25) -> 723985 | H25: 001-011 | I25: 101
A26: Student Achievement Initiative (permanent) | C26: =IF(ISNA(VLOOKUP($F$5 &A26, AllocSched,19,FALSE)),"-",VLOOKUP($F$5 &A26,AllocSched,19,FALSE)) -> 74340 | E26: =IF(ISNA(VLOOKUP($F$5 &A26, AllocSched,20,FALSE)),"-",VLOOKUP($F$5 &A26,AllocSched,20,FALSE)) -> -74340 | G26: =SUM(C26:F26) -> 0 | H26: =IF(ISNA(VLOOKUP($F$5 &A26, AllocSched,10,FALSE)),"-",VLOOKUP($F$5 &A26,AllocSched,10,FALSE)) -> 001-BD1 | I26: =IF(ISNA(VLOOKUP($F$5 &A26, AllocSched,8,FALSE)),"-",VLOOKUP($F$5 &A26,AllocSched,8,FALSE)) -> BD1
A27: Student Achievement Initiative (proviso) | C27: =IF(ISNA(VLOOKUP($F$5 &A27, AllocSched,19,FALSE)),"-",VLOOKUP($F$5 &A27,AllocSched,19,FALSE)) -> 119484 | E27: =IF(ISNA(VLOOKUP($F$5 &A27, AllocSched,20,FALSE)),"-",VLOOKUP($F$5 &A27,AllocSched,20,FALSE)) -> 74340 | G27: =SUM(C27:F27) -> 193824 | H27: =IF(ISNA(VLOOKUP($F$5 &A27, AllocSched,10,FALSE)),"-",VLOOKUP($F$5 &A27,AllocSched,10,FALSE)) -> 001-BD1 | I27: =IF(ISNA(VLOOKUP($F$5 &A27, AllocSched,8,FALSE)),"-",VLOOKUP($F$5 &A27,AllocSched,8,FALSE)) -> BD1
A28: Workers Compensation Changes | C28: 10609 | E28: -10609 | G28: 0 | H28: 001-011 | I28: 101
A31: Earmarks and Provisos
A32: Aerospace Apprenticeships | C32: =IF(ISNA(VLOOKUP($F$5 &A32, AllocSched,19,FALSE)),"-",VLOOKUP($F$5 &A32,AllocSched,19,FALSE)) -> 116941 | E32: =IF(ISNA(VLOOKUP($F$5 &A32, AllocSched,20,FALSE)),"-",VLOOKUP($F$5 &A32,AllocSched,20,FALSE)) -> - | G32: =SUM(C32:F32) -> 116941 | H32: =IF(ISNA(VLOOKUP($F$5 &A32, AllocSched,10,FALSE)),"-",VLOOKUP($F$5 &A32,AllocSched,10,FALSE)) -> 001-011 | I32: =IF(ISNA(VLOOKUP($F$5 &A32, AllocSched,8,FALSE)),"-",VLOOKUP($F$5 &A32,AllocSched,8,FALSE)) -> 101
A33: Aerospace Enrollments (1000 FTEs) | C33: 411771 | E33: - | G33: =SUM(C33:F33) -> 411771 | H33: 001-011 | I33: 101
A34: Basic Skills Enhancement (ELTA) | C34: 72256 | E34: -72256 | G34: =SUM(C34:F34) -> 0 | H34: 08A-3E0 | I34: 3E0
A35: College Affordability Program (Tuition reduction) | C35: 269503 | E35: - | G35: =SUM(C35:F35) -> 269503 | H35: 001-BG1 | I35: BG1
A36: Compensation Tuition Backfill - State Support | C36: =IF(ISNA(VLOOKUP($F$5 &A36, AllocSched,19,FALSE)),"-",VLOOKUP($F$5 &A36,AllocSched,19,FALSE)) -> 52685 | E36: =IF(ISNA(VLOOKUP($F$5 &A36, AllocSched,20,FALSE)),"-",VLOOKUP($F$5 &A36,AllocSched,20,FALSE)) -> 99079 | G36: =SUM(C36:F36) -> 151764 | H36: =IF(ISNA(VLOOKUP($F$5 &A36, AllocSched,10,FALSE)),"-",VLOOKUP($F$5 &A36,AllocSched,10,FALSE)) -> 001-011 | I36: =IF(ISNA(VLOOKUP($F$5 &A36, AllocSched,8,FALSE)),"-",VLOOKUP($F$5 &A36,AllocSched,8,FALSE)) -> 101 | L36: y
A37: Disability Accommodations | C37: 15577 | E37: - | G37: =SUM(C37:F37) -> 15577 | H37: 001-011 | I37: 101
A38: Facilities M&O - 2016 | C38: =IF(ISNA(VLOOKUP($F$5 &A38, AllocSched,19,FALSE)),"-",VLOOKUP($F$5 &A38,AllocSched,19,FALSE)) -> 276667 | E38: =IF(ISNA(VLOOKUP($F$5 &A38, AllocSched,20,FALSE)),"-",VLOOKUP($F$5 &A38,AllocSched,20,FALSE)) -> 55333 | G38: =SUM(C38:F38) -> 332000 | H38: =IF(ISNA(VLOOKUP($F$5 &A38, AllocSched,10,FALSE)),"-",VLOOKUP($F$5 &A38,AllocSched,10,FALSE)) -> 001-011 | I38: =IF(ISNA(VLOOKUP($F$5 &A38, AllocSched,8,FALSE)),"-",VLOOKUP($F$5 &A38,AllocSched,8,FALSE)) -> 101
A39: General Wage Increase | C39: =IF(ISNA(VLOOKUP($F$5 &A39, AllocSched,19,FALSE)),"-",VLOOKUP($F$5 &A39,AllocSched,19,FALSE)) -> 309824 | E39: =IF(ISNA(VLOOKUP($F$5 &A39, AllocSched,20,FALSE)),"-",VLOOKUP($F$5 &A39,AllocSched,20,FALSE)) -> 174928 | G39: =SUM(C39:F39) -> 484752 | H39: =IF(ISNA(VLOOKUP($F$5 &A39, AllocSched,10,FALSE)),"-",VLOOKUP($F$5 &A39,AllocSched,10,FALSE)) -> 001-011 | I39: =IF(ISNA(VLOOKUP($F$5 &A39, AllocSched,8,FALSE)),"-",VLOOKUP($F$5 &A39,AllocSched,8,FALSE)) -> 101 | L39: y
A40: Health Rate Changes | C40: =IF(ISNA(VLOOKUP($F$5 &A40, AllocSched,19,FALSE)),"-",VLOOKUP($F$5 &A40,AllocSched,19,FALSE)) -> 533756 | E40: =IF(ISNA(VLOOKUP($F$5 &A40, AllocSched,20,FALSE)),"-",VLOOKUP($F$5 &A40,AllocSched,20,FALSE)) -> 86699 | G40: =SUM(C40:F40) -> 620455 | H40: =IF(ISNA(VLOOKUP($F$5 &A40, AllocSched,10,FALSE)),"-",VLOOKUP($F$5 &A40,AllocSched,10,FALSE)) -> 001-011 | I40: =IF(ISNA(VLOOKUP($F$5 &A40, AllocSched,8,FALSE)),"-",VLOOKUP($F$5 &A40,AllocSched,8,FALSE)) -> 101 | L40: y
A41: Opportunity Grants (ELTA) | C41: 250000 | E41: - | G41: =SUM(C41:F41) -> 250000 | H41: 08A-3E0 | I41: 3E0
A42: Opportunity Grants (GFS) | C42: 29412 | E42: - | G42: 29412 | H42: 001-011 | I42: 101
A43: PERS/TRS Pension Rate Changes | C43: =IF(ISNA(VLOOKUP($F$5 &A43, AllocSched,19,FALSE)),"-",VLOOKUP($F$5 &A43,AllocSched,19,FALSE)) -> 64517 | E43: =IF(ISNA(VLOOKUP($F$5 &A43, AllocSched,20,FALSE)),"-",VLOOKUP($F$5 &A43,AllocSched,20,FALSE)) -> 435 | G43: =SUM(C43:F43) -> 64952 | H43: =IF(ISNA(VLOOKUP($F$5 &A43, AllocSched,10,FALSE)),"-",VLOOKUP($F$5 &A43,AllocSched,10,FALSE)) -> 001-011 | I43: =IF(ISNA(VLOOKUP($F$5 &A43, AllocSched,8,FALSE)),"-",VLOOKUP($F$5 &A43,AllocSched,8,FALSE)) -> 101 | L43: y
A44: Students of Color | C44: 14870 | E44: - | G44: =SUM(C44:F44) -> 14870 | H44: 001-011 | I44: 101
A45: Worker Retraining - Base (101) | C45: 226807 | E45: - | G45: =SUM(C45:F45) -> 226807 | H45: 001-011 | I45: 101
A46: Worker Retraining - Base (AC1) | C46: 1083391 | E46: - | G46: =SUM(C46:F46) -> 1083391 | H46: 001-AC1 | I46: 123
A47: Worker Retraining - Variable (AC1) | C47: 666250 | E47: -66625 | G47: =SUM(C47:F47) -> 599625 | H47: 001-AC1 | I47: 123
A49: State Allocation Total | B49: $ | C49: =SUM(C16:C48) -> 19955055 | D49: $ | E49: =SUM(E16:E48) -> -253789 | F49: $ | G49: =SUM(G16:G48) -> 19701266
A51: Grant Name | E51: Grant ID | G51: Current Adjustments | H51: Grant Total | I51: Grant Expires
A52: Basic Food Employment And Training Grant | E52: 128-BFET-16 | G52: =VLOOKUP($F$5 & $A52 & $E$52,grants,7,FALSE) -> 0 | H52: =VLOOKUP($F$5 & A52 & E52,grants,8,FALSE) -> 0 | I52: =VLOOKUP($F$5 & A52 & E52,grants,10,FALSE) -> 2016-09-30
A53: BEdA Leadership Block Grant | E53: 128-BLBG-16 | G53: =VLOOKUP($F$5 & A53 & E53,grants,7,FALSE) -> 0 | H53: 0 | I53: 2016-06-30
A54: BEdAMaster Grant | E54: 128-BEDA-16 | G54: 0 | H54: 0 | I54: 2016-06-30
A55: BEdA State Plan Innovations Grant | E55: 128-BSPI-15 | G55: 0 | H55: 0 | I55: 2016-06-30
A56: Early Achievers Grant- State Funding | E56: 128-EAGS-16 | G56: 0 | H56: 0 | I56: 2016-06-30
A57: Early Achievers Opportunity Grant Application | E57: 128-EAOG-16 | G57: 0 | H57: 0 | I57: 2016-06-30
A58: Perkins Leadership Block Grant | E58: 128-PLB-16 | G58: 0 | H58: 0 | I58: 2016-06-30
A59: Perkins Plan | E59: 128-PRK-16 | G59: 0 | H59: 0 | I59: 2016-06-30
A60: WorkFirst Delivery Agreement | E60: 128-WFDA-16 | G60: 0 | H60: 0 | I60: 2016-06-30
E63: Total Additional Resources: | G63: =SUM(G52:G62) -> 0 | H63: =SUM(H52:H62) -> 0

Sheet Bellevue
A1: State Board for Community and Technical Colleges
A2: FY 2017 Allocation Schedule
H3: Allocation: | I3: ="#" &AllocSched!C71 -> #1
E5: District: | F5: 8 | G5: =VLOOKUP(F5,DISTRICT,2,FALSE) -> Bellevue
A8: Enrollments
C9: Base | E9: Growth/Variable | G9: Total FTES
C10: ='Attachment Three'!I11 -> 8078 | E10: ='Attachment Three'!O11 -> 143 | G10: =C10+E10 -> 8221
A13: Category | C13: Prior Allocation | E13: Current Allocation | G13: Total Allocation | H13: Fund Appr. No. | I13: FMS Appr. Index
A15: Operating Base
A16: Base Allocation (GF-State) | C16: =IF(ISNA(VLOOKUP($F$5 &$A$16, AllocSched,19,FALSE)),"-",VLOOKUP($F$5 &$A$16,AllocSched,19,FALSE)) -> 22348710 | E16: =IF(ISNA(VLOOKUP($F$5 &A16, AllocSched,20,FALSE)),"-",VLOOKUP($F$5 &A16,AllocSched,20,FALSE)) -> -4576263 | G16: =SUM(C16:F16) -> 17772447 | H16: =IF(ISNA(VLOOKUP($F$5 &A16, AllocSched,10,FALSE)),"-",VLOOKUP($F$5 &A16,AllocSched,10,FALSE)) -> 001-011 | I16: =IF(ISNA(VLOOKUP($F$5 &A16, AllocSched,8,FALSE)),"-",VLOOKUP($F$5 &A16,AllocSched,8,FALSE)) -> 101
A17: Base Allocation (ELTA) | C17: =IF(ISNA(VLOOKUP($F$5 &$A$17, AllocSched,19,FALSE)),"-",VLOOKUP($F$5 &$A$17,AllocSched,19,FALSE)) -> 1800891 | E17: =IF(ISNA(VLOOKUP($F$5 &A17, AllocSched,20,FALSE)),"-",VLOOKUP($F$5 &A17,AllocSched,20,FALSE)) -> 120124 | G17: =SUM(C17:F17) -> 1921015 | H17: =IF(ISNA(VLOOKUP($F$5 &$A$17, AllocSched,10,FALSE)),"-",VLOOKUP($F$5 &$A$17,AllocSched,10,FALSE)) -> 08A-3E0 | I17: =IF(ISNA(VLOOKUP($F$5 &A17, AllocSched,8,FALSE)),"-",VLOOKUP($F$5 &A17,AllocSched,8,FALSE)) -> 3E0
A18: Weighted Enrollments - Additional 30% | C18: =IF(ISNA(VLOOKUP($F$5 &A18, AllocSched,19,FALSE)),"-",VLOOKUP($F$5 &A18,AllocSched,19,FALSE)) -> 0 | E18: =IF(ISNA(VLOOKUP($F$5 &A18, AllocSched,20,FALSE)),"-",VLOOKUP($F$5 &A18,AllocSched,20,FALSE)) -> 1651890 | G18: =SUM(C18:F18) -> 1651890 | H18: =IF(ISNA(VLOOKUP($F$5 &A18, AllocSched,10,FALSE)),"-",VLOOKUP($F$5 &A18,AllocSched,10,FALSE)) -> 001-011 | I18: =IF(ISNA(VLOOKUP($F$5 &A18, AllocSched,8,FALSE)),"-",VLOOKUP($F$5 &A18,AllocSched,8,FALSE)) -> 101
A19: Facility Maintenance - State Shift to Ed Const - MOA | C19: =IF(ISNA(VLOOKUP($F$5 &A19, AllocSched,19,FALSE)),"-",VLOOKUP($F$5 &A19,AllocSched,19,FALSE)) -> -184029 | E19: =IF(ISNA(VLOOKUP($F$5 &A19, AllocSched,20,FALSE)),"-",VLOOKUP($F$5 &A19,AllocSched,20,FALSE)) -> 184029 | G19: =SUM(C19:F19) -> 0 | H19: =IF(ISNA(VLOOKUP($F$5 &A19, AllocSched,10,FALSE)),"-",VLOOKUP($F$5 &A19,AllocSched,10,FALSE)) -> 001-011 | I19: =IF(ISNA(VLOOKUP($F$5 &A19, AllocSched,8,FALSE)),"-",VLOOKUP($F$5 &A19,AllocSched,8,FALSE)) -> 101
A20: Facility Maintenance - Ed Constr shift from State - MOA | C20: =IF(ISNA(VLOOKUP($F$5 &A20, AllocSched,19,FALSE)),"-",VLOOKUP($F$5 &A20,AllocSched,19,FALSE)) -> 184029 | E20: =IF(ISNA(VLOOKUP($F$5 &A20, AllocSched,20,FALSE)),"-",VLOOKUP($F$5 &A20,AllocSched,20,FALSE)) -> 51 | G20: =SUM(C20:F20) -> 184080 | H20: =IF(ISNA(VLOOKUP($F$5 &A20, AllocSched,10,FALSE)),"-",VLOOKUP($F$5 &A20,AllocSched,10,FALSE)) -> 252-DA0 | I20: =IF(ISNA(VLOOKUP($F$5 &A20, AllocSched,8,FALSE)),"-",VLOOKUP($F$5 &A20,AllocSched,8,FALSE)) -> DA0
A21: Facility Maintenance - State - MOA | C21: =IF(ISNA(VLOOKUP($F$5 &A21, AllocSched,19,FALSE)),"-",VLOOKUP($F$5 &A21,AllocSched,19,FALSE)) -> 0 | E21: =IF(ISNA(VLOOKUP($F$5 &A21, AllocSched,20,FALSE)),"-",VLOOKUP($F$5 &A21,AllocSched,20,FALSE)) -> 2075620 | G21: =SUM(C21:F21) -> 2075620 | H21: =IF(ISNA(VLOOKUP($F$5 &A21, AllocSched,10,FALSE)),"-",VLOOKUP($F$5 &A21,AllocSched,10,FALSE)) -> 001-011 | I21: =IF(ISNA(VLOOKUP($F$5 &A21, AllocSched,8,FALSE)),"-",VLOOKUP($F$5 &A21,AllocSched,8,FALSE)) -> 101
A22: Bates Rebasing | C22: =IF(ISNA(VLOOKUP($F$5 &$A$22, AllocSched,19,FALSE)),"-",VLOOKUP($F$5 &$A$22,AllocSched,19,FALSE)) -> 122957 | E22: =IF(ISNA(VLOOKUP($F$5 &A22, AllocSched,20,FALSE)),"-",VLOOKUP($F$5 &A22,AllocSched,20,FALSE)) -> -122957 | G22: =SUM(C22:F22) -> 0 | H22: =IF(ISNA(VLOOKUP($F$5 &A22, AllocSched,10,FALSE)),"-",VLOOKUP($F$5 &A22,AllocSched,10,FALSE)) -> 001-011 | I22: =IF(ISNA(VLOOKUP($F$5 &A22, AllocSched,8,FALSE)),"-",VLOOKUP($F$5 &A22,AllocSched,8,FALSE)) -> 101
A23: Rebase Phase-in Adjustment - Year one | C23: =IF(ISNA(VLOOKUP($F$5 &A23, AllocSched,19,FALSE)),"-",VLOOKUP($F$5 &A23,AllocSched,19,FALSE)) -> 0 | E23: -276348 | G23: =SUM(C23:F23) -> -276348 | H23: =IF(ISNA(VLOOKUP($F$5 &A23, AllocSched,10,FALSE)),"-",VLOOKUP($F$5 &A23,AllocSched,10,FALSE)) -> 001-011 | I23: 101
A24: Student Achievement Initiative (permanent) | C24: =IF(ISNA(VLOOKUP($F$5 &A24, AllocSched,19,FALSE)),"-",VLOOKUP($F$5 &A24,AllocSched,19,FALSE)) -> 105857 | E24: =IF(ISNA(VLOOKUP($F$5 &A24, AllocSched,20,FALSE)),"-",VLOOKUP($F$5 &A24,AllocSched,20,FALSE)) -> -105857 | G24: =SUM(C24:F24) -> 0 | H24: =IF(ISNA(VLOOKUP($F$5 &A24, AllocSched,10,FALSE)),"-",VLOOKUP($F$5 &A24,AllocSched,10,FALSE)) -> 001-BD1 | I24: =IF(ISNA(VLOOKUP($F$5 &A24, AllocSched,8,FALSE)),"-",VLOOKUP($F$5 &A24,AllocSched,8,FALSE)) -> BD1
A25: Performance Funding (Base) | C25: =IF(ISNA(VLOOKUP($F$5 &A25, AllocSched,19,FALSE)),"-",VLOOKUP($F$5 &A25,AllocSched,19,FALSE)) -> 0 | E25: =IF(ISNA(VLOOKUP($F$5 &A25, AllocSched,20,FALSE)),"-",VLOOKUP($F$5 &A25,AllocSched,20,FALSE)) -> 1243603 | G25: =SUM(C25:F25) -> 1243603 | H25: =IF(ISNA(VLOOKUP($F$5 &A25, AllocSched,10,FALSE)),"-",VLOOKUP($F$5 &A25,AllocSched,10,FALSE)) -> 001-011 | I25: =IF(ISNA(VLOOKUP($F$5 &A25, AllocSched,8,FALSE)),"-",VLOOKUP($F$5 &A25,AllocSched,8,FALSE)) -> 101
A26: Student Achievement Initiative (proviso) | C26: =IF(ISNA(VLOOKUP($F$5 &A26, AllocSched,19,FALSE)),"-",VLOOKUP($F$5 &A26,AllocSched,19,FALSE)) -> 201970 | E26: =IF(ISNA(VLOOKUP($F$5 &A26, AllocSched,20,FALSE)),"-",VLOOKUP($F$5 &A26,AllocSched,20,FALSE)) -> 105857 | G26: =SUM(C26:F26) -> 307827 | H26: =IF(ISNA(VLOOKUP($F$5 &A26, AllocSched,10,FALSE)),"-",VLOOKUP($F$5 &A26,AllocSched,10,FALSE)) -> 001-BD1 | I26: =IF(ISNA(VLOOKUP($F$5 &A26, AllocSched,8,FALSE)),"-",VLOOKUP($F$5 &A26,AllocSched,8,FALSE)) -> BD1
A27: Supplemental Retirement Payments | C27: -6756 | E27: 6756 | G27: 0 | H27: 001-011 | I27: 101
A28: Workers Compensation Changes | C28: 24238 | E28: -24238 | G28: 0 | H28: 001-011 | I28: 101
A31: Earmarks and Provisos
A32: Basic Skills Enhancement (ELTA) | C32: =IF(ISNA(VLOOKUP($F$5 &A32, AllocSched,19,FALSE)),"-",VLOOKUP($F$5 &A32,AllocSched,19,FALSE)) -> 84410 | E32: =IF(ISNA(VLOOKUP($F$5 &A32, AllocSched,20,FALSE)),"-",VLOOKUP($F$5 &A32,AllocSched,20,FALSE)) -> -84410 | G32: =SUM(C32:F32) -> 0 | H32: =IF(ISNA(VLOOKUP($F$5 &A32, AllocSched,10,FALSE)),"-",VLOOKUP($F$5 &A32,AllocSched,10,FALSE)) -> 08A-3E0 | I32: =IF(ISNA(VLOOKUP($F$5 &A32, AllocSched,8,FALSE)),"-",VLOOKUP($F$5 &A32,AllocSched,8,FALSE)) -> 3E0
A33: Bellevue 4-Year Degree Prog | C33: 750000 | E33: -750000 | G33: =SUM(C33:F33) -> 0 | H33: 001-BQ1 | I33: BQ1
A34: Centers of Excellence | C34: 203205 | E34: - | G34: =SUM(C34:F34) -> 203205 | H34: 001-011 | I34: 101
A35: College Affordability Program (Tuition reduction) | C35: 1199578 | E35: 18973 | G35: =SUM(C35:F35) -> 1218551 | H35: 001-BG1 | I35: BG1
A36: Compensation Tuition Backfill - State Support | C36: =IF(ISNA(VLOOKUP($F$5 &A36, AllocSched,19,FALSE)),"-",VLOOKUP($F$5 &A36,AllocSched,19,FALSE)) -> 178131 | E36: =IF(ISNA(VLOOKUP($F$5 &A36, AllocSched,20,FALSE)),"-",VLOOKUP($F$5 &A36,AllocSched,20,FALSE)) -> 351893 | G36: =SUM(C36:F36) -> 530024 | H36: =IF(ISNA(VLOOKUP($F$5 &A36, AllocSched,10,FALSE)),"-",VLOOKUP($F$5 &A36,AllocSched,10,FALSE)) -> 001-011 | I36: =IF(ISNA(VLOOKUP($F$5 &A36, AllocSched,8,FALSE)),"-",VLOOKUP($F$5 &A36,AllocSched,8,FALSE)) -> 101
A37: Disability Accommodations | C37: 123124 | E37: - | G37: =SUM(C37:F37) -> 123124 | H37: 001-011 | I37: 101
A38: Facilities M&O - 2016 | C38: =IF(ISNA(VLOOKUP($F$5 &A38, AllocSched,19,FALSE)),"-",VLOOKUP($F$5 &A38,AllocSched,19,FALSE)) -> 442000 | E38: =IF(ISNA(VLOOKUP($F$5 &A38, AllocSched,20,FALSE)),"-",VLOOKUP($F$5 &A38,AllocSched,20,FALSE)) -> - | G38: =SUM(C38:F38) -> 442000 | H38: =IF(ISNA(VLOOKUP($F$5 &A38, AllocSched,10,FALSE)),"-",VLOOKUP($F$5 &A38,AllocSched,10,FALSE)) -> 001-011 | I38: =IF(ISNA(VLOOKUP($F$5 &A38, AllocSched,8,FALSE)),"-",VLOOKUP($F$5 &A38,AllocSched,8,FALSE)) -> 101
A39: General Wage Increase | C39: =IF(ISNA(VLOOKUP($F$5 &A39, AllocSched,19,FALSE)),"-",VLOOKUP($F$5 &A39,AllocSched,19,FALSE)) -> 657487 | E39: =IF(ISNA(VLOOKUP($F$5 &A39, AllocSched,20,FALSE)),"-",VLOOKUP($F$5 &A39,AllocSched,20,FALSE)) -> 416223 | G39: =SUM(C39:F39) -> 1073710 | H39: =IF(ISNA(VLOOKUP($F$5 &A39, AllocSched,10,FALSE)),"-",VLOOKUP($F$5 &A39,AllocSched,10,FALSE)) -> 001-011 | I39: =IF(ISNA(VLOOKUP($F$5 &A39, AllocSched,8,FALSE)),"-",VLOOKUP($F$5 &A39,AllocSched,8,FALSE)) -> 101
A40: Health Rate Changes | C40: =IF(ISNA(VLOOKUP($F$5 &A40, AllocSched,19,FALSE)),"-",VLOOKUP($F$5 &A40,AllocSched,19,FALSE)) -> 1534464 | E40: =IF(ISNA(VLOOKUP($F$5 &A40, AllocSched,20,FALSE)),"-",VLOOKUP($F$5 &A40,AllocSched,20,FALSE)) -> 267733 | G40: =SUM(C40:F40) -> 1802197 | H40: =IF(ISNA(VLOOKUP($F$5 &A40, AllocSched,10,FALSE)),"-",VLOOKUP($F$5 &A40,AllocSched,10,FALSE)) -> 001-011 | I40: =IF(ISNA(VLOOKUP($F$5 &A40, AllocSched,8,FALSE)),"-",VLOOKUP($F$5 &A40,AllocSched,8,FALSE)) -> 101
A41: Hospital Employee Education & Training | C41: 244109 | E41: 25852 | G41: =SUM(C41:F41) -> 269961 | H41: 001-011 | I41: 101
A42: Opportunity Grants (ELTA) | C42: 350000 | E42: - | G42: =SUM(C42:F42) -> 350000 | H42: 08A-3E0 | I42: 3E0
A43: Opportunity Grants (GFS) | C43: 29412 | E43: - | G43: 29412 | H43: 001-011 | I43: 101
A44: PERS/TRS Pension Rate Changes | C44: =IF(ISNA(VLOOKUP($F$5 &A44, AllocSched,19,FALSE)),"-",VLOOKUP($F$5 &A44,AllocSched,19,FALSE)) -> 114529 | E44: =IF(ISNA(VLOOKUP($F$5 &A44, AllocSched,20,FALSE)),"-",VLOOKUP($F$5 &A44,AllocSched,20,FALSE)) -> 771 | G44: =SUM(C44:F44) -> 115300 | H44: =IF(ISNA(VLOOKUP($F$5 &A44, AllocSched,10,FALSE)),"-",VLOOKUP($F$5 &A44,AllocSched,10,FALSE)) -> 001-011 | I44: =IF(ISNA(VLOOKUP($F$5 &A44, AllocSched,8,FALSE)),"-",VLOOKUP($F$5 &A44,AllocSched,8,FALSE)) -> 101
A45: Students of Color | C45: 81098 | E45: - | G45: =SUM(C45:F45) -> 81098 | H45: 001-011 | I45: 101
A46: Worker Retraining - Base (101) | C46: 7289 | E46: - | G46: =SUM(C46:F46) -> 7289 | H46: 001-011 | I46: 101
A47: Worker Retraining - Base (AC1) | C47: 990159 | E47: 200000 | G47: =SUM(C47:F47) -> 1190159 | H47: 001-AC1 | I47: 123
A48: Worker Retraining - Variable (AC1) | C48: 835375 | E48: -143500 | G48: =SUM(C48:F48) -> 691875 | H48: 001-AC1 | I48: 123
A49: WPEA Agreement | C49: =IF(ISNA(VLOOKUP($F$5 &A49, AllocSched,19,FALSE)),"-",VLOOKUP($F$5 &A49,AllocSched,19,FALSE)) -> 158401 | E49: =IF(ISNA(VLOOKUP($F$5 &A49, AllocSched,20,FALSE)),"-",VLOOKUP($F$5 &A49,AllocSched,20,FALSE)) -> 87589 | G49: =SUM(C49:F49) -> 245990 | H49: =IF(ISNA(VLOOKUP($F$5 &A49, AllocSched,10,FALSE)),"-",VLOOKUP($F$5 &A49,AllocSched,10,FALSE)) -> 001-011 | I49: =IF(ISNA(VLOOKUP($F$5 &A49, AllocSched,8,FALSE)),"-",VLOOKUP($F$5 &A49,AllocSched,8,FALSE)) -> 101
A52: State Allocation Total | B52: $ | C52: =SUM(C16:C51) -> 32580638 | D52: $ | E52: =SUM(E16:E51) -> 673391 | F52: $ | G52: =SUM(G16:G51) -> 33254029
A54: Grant Name | E54: Grant ID | G54: Current Adjustments | H54: Grant Total | I54: Grant Expires
A55: Basic Food Employment And Training Grant | E55: 108-BFET-16 | G55: =VLOOKUP($F$5 & $A55 & $E$55,grants,7,FALSE) -> 0 | H55: =VLOOKUP($F$5 & A55 & E55,grants,8,FALSE) -> 0 | I55: =VLOOKUP($F$5 & A55 & E55,grants,10,FALSE) -> 2016-06-30
A56: BEdA Leadership Block Grant | E56: 108-BLBG-16 | G56: =VLOOKUP($F$5 & A56 & $E$56,grants,7,FALSE) -> 0 | H56: 0 | I56: 2016-06-30
A57: BEdAMaster Grant | E57: 108-BEDA-16 | G57: =VLOOKUP($F$5 & A57 & E57,grants,7,FALSE) -> 0 | H57: 0 | I57: 2016-06-30
A58: BEdA Progam - EL Civics Grant Budget | E58: 108-ELC-16 | G58: 0 | H58: 0 | I58: 2016-06-30
A59: BEdA WIOA Transition Grant | E59: 108-WIOA-16 | G59: 0 | H59: 0 | I59: 2016-06-30
A60: Early Achievers Grant- State Funding | E60: 108-EAGS-16 | G60: 0 | H60: 0 | I60: 2016-06-30
A61: Early Achievers Opportunity Grant Application | E61: 108-EAOG-16 | G61: 0 | H61: 0 | I61: 2016-06-30
A62: Perkins Leadership Block Grant | E62: 108-PLB-16 | G62: 0 | H62: 0 | I62: 2016-06-30
A63: Perkins Plan | E63: 108-PRK-16 | G63: 0 | H63: 0 | I63: 2016-06-30
A64: Phase III I-DEA Grant | E64: 108-IDEA-16 | G64: 0 | H64: 0 | I64: 2016-06-30
A65: Transcript Grid for Placement Project | E65: 108-TG-15 | G65: 0 | H65: 0 | I65: 2015-08-31
A66: WorkFirst Delivery Agreement | E66: 108-WFDA-16 | G66: 0 | H66: 0 | I66: 2016-06-30
E70: Total Additional Resources: | G70: =SUM(G55:G69) -> 0 | H70: =SUM(H55:H69) -> 0

Sheet Bellingham
A1: State Board for Community and Technical Colleges
A2: FY 2017 Allocation Schedule
H3: Allocation: | I3: ="#" &AllocSched!C71 -> #1
E5: District: | F5: 25 | G5: =VLOOKUP(F5,DISTRICT,2,FALSE) -> Bellingham
A8: Enrollments
C9: Base | E9: Growth/Variable | G9: Total FTES
C10: ='Attachment Three'!I12 -> 1854 | E10: ='Attachment Three'!O12 -> 124 | G10: =C10+E10 -> 1978
A13: Category | C13: Prior Allocation | E13: Current Allocation | G13: Total Allocation | H13: Fund Appr. No. | I13: FMS Appr. Index
A15: Operating Base
A16: Base Allocation (GF-State) | C16: =IF(ISNA(VLOOKUP($F$5 &$A$16, AllocSched,19,FALSE)),"-",VLOOKUP($F$5 &$A$16,AllocSched,19,FALSE)) -> 7358308 | E16: =IF(ISNA(VLOOKUP($F$5 &A16, AllocSched,20,FALSE)),"-",VLOOKUP($F$5 &A16,AllocSched,20,FALSE)) -> -3597959 | G16: =SUM(C16:F16) -> 3760349 | H16: =IF(ISNA(VLOOKUP($F$5 &A16, AllocSched,10,FALSE)),"-",VLOOKUP($F$5 &A16,AllocSched,10,FALSE)) -> 001-011 | I16: =IF(ISNA(VLOOKUP($F$5 &A16, AllocSched,8,FALSE)),"-",VLOOKUP($F$5 &A16,AllocSched,8,FALSE)) -> 101
A17: Base Allocation (ELTA) | C17: =IF(ISNA(VLOOKUP($F$5 &$A$17, AllocSched,19,FALSE)),"-",VLOOKUP($F$5 &$A$17,AllocSched,19,FALSE)) -> 878644 | E17: =IF(ISNA(VLOOKUP($F$5 &A17, AllocSched,20,FALSE)),"-",VLOOKUP($F$5 &A17,AllocSched,20,FALSE)) -> 58603 | G17: =SUM(C17:F17) -> 937247 | H17: =IF(ISNA(VLOOKUP($F$5 &$A$17, AllocSched,10,FALSE)),"-",VLOOKUP($F$5 &$A$17,AllocSched,10,FALSE)) -> 08A-3E0 | I17: =IF(ISNA(VLOOKUP($F$5 &A17, AllocSched,8,FALSE)),"-",VLOOKUP($F$5 &A17,AllocSched,8,FALSE)) -> 3E0
A18: Weighted Enrollments - Additional 30% | C18: =IF(ISNA(VLOOKUP($F$5 &A18, AllocSched,19,FALSE)),"-",VLOOKUP($F$5 &A18,AllocSched,19,FALSE)) -> 0 | E18: =IF(ISNA(VLOOKUP($F$5 &A18, AllocSched,20,FALSE)),"-",VLOOKUP($F$5 &A18,AllocSched,20,FALSE)) -> 744180 | G18: =SUM(C18:F18) -> 744180 | H18: =IF(ISNA(VLOOKUP($F$5 &A18, AllocSched,10,FALSE)),"-",VLOOKUP($F$5 &A18,AllocSched,10,FALSE)) -> 001-011 | I18: =IF(ISNA(VLOOKUP($F$5 &A18, AllocSched,8,FALSE)),"-",VLOOKUP($F$5 &A18,AllocSched,8,FALSE)) -> 101
A19: Facility Maintenance - State Shift to Ed Const - MOA | C19: =IF(ISNA(VLOOKUP($F$5 &A19, AllocSched,19,FALSE)),"-",VLOOKUP($F$5 &A19,AllocSched,19,FALSE)) -> -51595 | E19: =IF(ISNA(VLOOKUP($F$5 &A19, AllocSched,20,FALSE)),"-",VLOOKUP($F$5 &A19,AllocSched,20,FALSE)) -> 51595 | G19: =SUM(C19:F19) -> 0 | H19: =IF(ISNA(VLOOKUP($F$5 &A19, AllocSched,10,FALSE)),"-",VLOOKUP($F$5 &A19,AllocSched,10,FALSE)) -> 001-011 | I19: =IF(ISNA(VLOOKUP($F$5 &A19, AllocSched,8,FALSE)),"-",VLOOKUP($F$5 &A19,AllocSched,8,FALSE)) -> 101
A20: Facility Maintenance - Ed Constr shift from State - MOA | C20: =IF(ISNA(VLOOKUP($F$5 &A20, AllocSched,19,FALSE)),"-",VLOOKUP($F$5 &A20,AllocSched,19,FALSE)) -> 51595 | E20: =IF(ISNA(VLOOKUP($F$5 &A20, AllocSched,20,FALSE)),"-",VLOOKUP($F$5 &A20,AllocSched,20,FALSE)) -> 15 | G20: =SUM(C20:F20) -> 51610 | H20: =IF(ISNA(VLOOKUP($F$5 &A20, AllocSched,10,FALSE)),"-",VLOOKUP($F$5 &A20,AllocSched,10,FALSE)) -> 252-DA0 | I20: =IF(ISNA(VLOOKUP($F$5 &A20, AllocSched,8,FALSE)),"-",VLOOKUP($F$5 &A20,AllocSched,8,FALSE)) -> DA0
A21: Bates Rebasing | C21: =IF(ISNA(VLOOKUP($F$5 &$A$21, AllocSched,19,FALSE)),"-",VLOOKUP($F$5 &$A$21,AllocSched,19,FALSE)) -> 7212 | E21: =IF(ISNA(VLOOKUP($F$5 &A21, AllocSched,20,FALSE)),"-",VLOOKUP($F$5 &A21,AllocSched,20,FALSE)) -> -7212 | G21: =SUM(C21:F21) -> 0 | H21: =IF(ISNA(VLOOKUP($F$5 &A21, AllocSched,10,FALSE)),"-",VLOOKUP($F$5 &A21,AllocSched,10,FALSE)) -> 001-011 | I21: =IF(ISNA(VLOOKUP($F$5 &A21, AllocSched,8,FALSE)),"-",VLOOKUP($F$5 &A21,AllocSched,8,FALSE)) -> 101
A22: Rebase Phase-in Adjustment - Year one | C22: =IF(ISNA(VLOOKUP($F$5 &A22, AllocSched,19,FALSE)),"-",VLOOKUP($F$5 &A22,AllocSched,19,FALSE)) -> 0 | E22: -404493 | G22: =SUM(C22:F22) -> -404493 | H22: =IF(ISNA(VLOOKUP($F$5 &A22, AllocSched,10,FALSE)),"-",VLOOKUP($F$5 &A22,AllocSched,10,FALSE)) -> 001-011 | I22: 101
A23: Health Rate Changes | C23: 430554 | E23: 74701 | G23: 505255 | H23: 001-011 | I23: 101
A24: Leases and Assessments | C24: 300 | E24: 1000 | G24: 1300 | H24: 001-011 | I24: 101
A25: Performance Funding (Base) | C25: =IF(ISNA(VLOOKUP($F$5 &A25, AllocSched,19,FALSE)),"-",VLOOKUP($F$5 &A25,AllocSched,19,FALSE)) -> 0 | E25: =IF(ISNA(VLOOKUP($F$5 &A25, AllocSched,20,FALSE)),"-",VLOOKUP($F$5 &A25,AllocSched,20,FALSE)) -> 678063 | G25: =SUM(C25:F25) -> 678063 | H25: 001-011 | I25: 101
A26: Student Achievement Initiative (permanent) | C26: =IF(ISNA(VLOOKUP($F$5 &A26, AllocSched,19,FALSE)),"-",VLOOKUP($F$5 &A26,AllocSched,19,FALSE)) -> 36082 | E26: =IF(ISNA(VLOOKUP($F$5 &A26, AllocSched,20,FALSE)),"-",VLOOKUP($F$5 &A26,AllocSched,20,FALSE)) -> -36082 | G26: =SUM(C26:F26) -> 0 | H26: =IF(ISNA(VLOOKUP($F$5 &A26, AllocSched,10,FALSE)),"-",VLOOKUP($F$5 &A26,AllocSched,10,FALSE)) -> 001-BD1 | I26: =IF(ISNA(VLOOKUP($F$5 &A26, AllocSched,8,FALSE)),"-",VLOOKUP($F$5 &A26,AllocSched,8,FALSE)) -> BD1
A27: Student Achievement Initiative (proviso) | C27: =IF(ISNA(VLOOKUP($F$5 &A27, AllocSched,19,FALSE)),"-",VLOOKUP($F$5 &A27,AllocSched,19,FALSE)) -> 106885 | E27: =IF(ISNA(VLOOKUP($F$5 &A27, AllocSched,20,FALSE)),"-",VLOOKUP($F$5 &A27,AllocSched,20,FALSE)) -> 36082 | G27: =SUM(C27:F27) -> 142967 | H27: =IF(ISNA(VLOOKUP($F$5 &A27, AllocSched,10,FALSE)),"-",VLOOKUP($F$5 &A27,AllocSched,10,FALSE)) -> 001-BD1 | I27: =IF(ISNA(VLOOKUP($F$5 &A27, AllocSched,8,FALSE)),"-",VLOOKUP($F$5 &A27,AllocSched,8,FALSE)) -> BD1
A28: Supplemental Retirement Payments | C28: -2616 | E28: 2616 | G28: 0 | H28: 001-011 | I28: 101
A29: Workers Compensation Changes | C29: 182 | E29: -182 | G29: 0 | H29: 001-011 | I29: 101
A32: Earmarks and Provisos
A33: Aerospace Apprenticeships | C33: =IF(ISNA(VLOOKUP($F$5 &A33, AllocSched,19,FALSE)),"-",VLOOKUP($F$5 &A33,AllocSched,19,FALSE)) -> 24084 | E33: =IF(ISNA(VLOOKUP($F$5 &A33, AllocSched,20,FALSE)),"-",VLOOKUP($F$5 &A33,AllocSched,20,FALSE)) -> -24084 | G33: =SUM(C33:F33) -> 0 | H33: =IF(ISNA(VLOOKUP($F$5 &A33, AllocSched,10,FALSE)),"-",VLOOKUP($F$5 &A33,AllocSched,10,FALSE)) -> 001-011 | I33: =IF(ISNA(VLOOKUP($F$5 &A33, AllocSched,8,FALSE)),"-",VLOOKUP($F$5 &A33,AllocSched,8,FALSE)) -> 101
A34: Aerospace Enrollments (1000 FTEs) | C34: 607376 | E34: =IF(ISNA(VLOOKUP($F$5 &A34, AllocSched,20,FALSE)),"-",VLOOKUP($F$5 &A34,AllocSched,20,FALSE)) -> - | G34: =SUM(C34:F34) -> 607376 | H34: 001-011 | I34: 101
A35: Alcoa Training | C35: =IF(ISNA(VLOOKUP($F$5 &A35, AllocSched,19,FALSE)),"-",VLOOKUP($F$5 &A35,AllocSched,19,FALSE)) -> 750000 | E35: =IF(ISNA(VLOOKUP($F$5 &A35, AllocSched,20,FALSE)),"-",VLOOKUP($F$5 &A35,AllocSched,20,FALSE)) -> 1500000 | G35: =SUM(C35:F35) -> 2250000 | H35: =IF(ISNA(VLOOKUP($F$5 &A35, AllocSched,10,FALSE)),"-",VLOOKUP($F$5 &A35,AllocSched,10,FALSE)) -> 001-0CF1 | I35: =IF(ISNA(VLOOKUP($F$5 &A35, AllocSched,8,FALSE)),"-",VLOOKUP($F$5 &A35,AllocSched,8,FALSE)) -> CF1
A36: Alt. Finance Project Debt Svc. | C36: 1996296 | E36: =IF(ISNA(VLOOKUP($F$5 &A36, AllocSched,20,FALSE)),"-",VLOOKUP($F$5 &A36,AllocSched,20,FALSE)) -> 800 | G36: =SUM(C36:F36) -> 1997096 | H36: 060-BA0 | I36: BA0
A37: Basic Skills Enhancement (ELTA) | C37: 17973 | E37: -17973 | G37: =SUM(C37:F37) -> 0 | H37: 08A-3E0 | I37: 3E0
A38: College Affordability Program (Tuition reduction) | C38: 297183 | E38: - | G38: 297183 | H38: 001-BG1 | I38: BG1
A39: Compensation Tuition Backfill - State Support | C39: =IF(ISNA(VLOOKUP($F$5 &A39, AllocSched,19,FALSE)),"-",VLOOKUP($F$5 &A39,AllocSched,19,FALSE)) -> 42126 | E39: =IF(ISNA(VLOOKUP($F$5 &A39, AllocSched,20,FALSE)),"-",VLOOKUP($F$5 &A39,AllocSched,20,FALSE)) -> 94114 | G39: =SUM(C39:F39) -> 136240 | H39: =IF(ISNA(VLOOKUP($F$5 &A39, AllocSched,10,FALSE)),"-",VLOOKUP($F$5 &A39,AllocSched,10,FALSE)) -> 001-011 | I39: =IF(ISNA(VLOOKUP($F$5 &A39, AllocSched,8,FALSE)),"-",VLOOKUP($F$5 &A39,AllocSched,8,FALSE)) -> 101
A40: Disability Accommodations | C40: 40753 | E40: - | G40: =SUM(C40:F40) -> 40753 | H40: 001-011 | I40: 101
A41: Facility Maintenance - State - MOA | C41: =IF(ISNA(VLOOKUP($F$5 &A41, AllocSched,19,FALSE)),"-",VLOOKUP($F$5 &A41,AllocSched,19,FALSE)) -> 0 | E41: =IF(ISNA(VLOOKUP($F$5 &A41, AllocSched,20,FALSE)),"-",VLOOKUP($F$5 &A41,AllocSched,20,FALSE)) -> 2632890 | G41: =SUM(C41:F41) -> 2632890 | H41: =IF(ISNA(VLOOKUP($F$5 &A41, AllocSched,10,FALSE)),"-",VLOOKUP($F$5 &A41,AllocSched,10,FALSE)) -> 001-011 | I41: =IF(ISNA(VLOOKUP($F$5 &A41, AllocSched,8,FALSE)),"-",VLOOKUP($F$5 &A41,AllocSched,8,FALSE)) -> 101
A42: General Wage Increase | C42: =IF(ISNA(VLOOKUP($F$5 &A42, AllocSched,19,FALSE)),"-",VLOOKUP($F$5 &A42,AllocSched,19,FALSE)) -> 224153 | E42: =IF(ISNA(VLOOKUP($F$5 &A42, AllocSched,20,FALSE)),"-",VLOOKUP($F$5 &A42,AllocSched,20,FALSE)) -> 140018 | G42: =SUM(C42:F42) -> 364171 | H42: =IF(ISNA(VLOOKUP($F$5 &A42, AllocSched,10,FALSE)),"-",VLOOKUP($F$5 &A42,AllocSched,10,FALSE)) -> 001-011 | I42: =IF(ISNA(VLOOKUP($F$5 &A42, AllocSched,8,FALSE)),"-",VLOOKUP($F$5 &A42,AllocSched,8,FALSE)) -> 101
A43: Hospital Employee Education & Training | C43: - | E43: - | G43: =SUM(C43:F43) -> 0 | H43: - | I43: -
A44: Opportunity Grants (ELTA) | C44: 56000 | E44: - | G44: 56000 | H44: 08A-3E0 | I44: 3E0
A45: Opportunity Grants (GFS) | C45: 317412 | E45: - | G45: 317412 | H45: 001-011 | I45: 101
A46: PERS/TRS Pension Rate Changes | C46: =IF(ISNA(VLOOKUP($F$5 &A46, AllocSched,19,FALSE)),"-",VLOOKUP($F$5 &A46,AllocSched,19,FALSE)) -> 44857 | E46: =IF(ISNA(VLOOKUP($F$5 &A46, AllocSched,20,FALSE)),"-",VLOOKUP($F$5 &A46,AllocSched,20,FALSE)) -> 302 | G46: =SUM(C46:F46) -> 45159 | H46: =IF(ISNA(VLOOKUP($F$5 &A46, AllocSched,10,FALSE)),"-",VLOOKUP($F$5 &A46,AllocSched,10,FALSE)) -> 001-011 | I46: =IF(ISNA(VLOOKUP($F$5 &A46, AllocSched,8,FALSE)),"-",VLOOKUP($F$5 &A46,AllocSched,8,FALSE)) -> 101
A47: Students of Color | C47: 6380 | E47: - | G47: =SUM(C47:F47) -> 6380 | H47: 001-011 | I47: 101
A48: Worker Retraining - Base (101) | C48: 33401 | E48: - | G48: =SUM(C48:F48) -> 33401 | H48: 001-011 | I48: 101
A49: Worker Retraining - Base (AC1) | C49: 159547 | E49: - | G49: =SUM(C49:F49) -> 159547 | H49: 001-AC1 | I49: 123
A50: Worker Retraining - Variable (AC1) | C50: 630013 | E50: -389138 | G50: =SUM(C50:F50) -> 240875 | H50: 001-AC1 | I50: 123
A51: Workforce Development Projects | C51: 164044 | E51: -164044 | G51: =SUM(C51:F51) -> 0 | H51: 001-011 | I51: 101
A54: State Allocation Total | B54: $ | C54: =SUM(C16:C53) -> 14227149 | D54: $ | E54: =SUM(E16:E53) -> 1373812 | F54: $ | G54: =SUM(G16:G53) -> 15600961
A56: Grant Name | E56: Grant ID | G56: Current Adjustments | H56: Grant Total | I56: Grant Expires
A57: Basic Food Employment And Training Grant | E57: 125-BFET-16 | G57: =VLOOKUP($F$5 & A57 & E57,grants,7,FALSE) -> 0 | H57: =VLOOKUP($F$5 & A57 & E57,grants,8,FALSE) -> 0 | I57: =VLOOKUP($F$5 & A57 & E57,grants,10,FALSE) -> 2016-06-30
A58: BEdA Leadership Block Grant | E58: 125-BLBG-16 | G58: 0 | H58: 0 | I58: 2016-06-30
A59: BEdAMaster Grant | E59: 125-BEDA-16 | G59: 0 | H59: 0 | I59: 2016-06-30
A60: BEdA Progam - EL Civics Grant Budget | E60: 125-ELC-16 | G60: 0 | H60: 0 | I60: 2016-06-30
A61: BEdA WIOA Transition Grant | E61: 125-WIOA-16 | G61: 0 | H61: 0 | I61: 2016-06-30
A62: I-DEA Grant | E62: 125-IDEA-16 | G62: 0 | H62: 0 | I62: 2016-06-30
A63: Job Skills Program Grant | E63: 125-JSP-16OX | G63: 0 | H63: 0 | I63: 2017-07-15
A64: Perkins Innovation Block Grant | E64: 125-PIP-16 | G64: 0 | H64: 0 | I64: 2016-06-30
A65: Perkins Leadership Block Grant | E65: 125-PLB-16 | G65: 0 | H65: 0 | I65: 2016-06-30
A66: Perkins Non-Traditional Employment & Training Grant | E66: 125-PNT-16 | G66: 0 | H66: 0 | I66: 2016-06-30
A67: Perkins Plan | E67: 125-PRK-16 | G67: 0 | H67: 0 | I67: 2016-06-30
A68: WorkFirst Delivery Agreement | E68: 125-WFDA-16 | G68: 0 | H68: 0 | I68: 2016-06-30
E71: Total Additional Resources: | G71: =SUM(G57:G70) -> 0 | H71: =SUM(H52:H69) -> 0

Sheet Big Bend
A1: State Board for Community and Technical Colleges
A2: FY 2017 Allocation Schedule
H3: Allocation: | I3: ="#" &AllocSched!C71 -> #1
E5: District: | F5: 18 | G5: =VLOOKUP(F5,DISTRICT,2,FALSE) -> Big Bend
A8: Enrollments
C9: Base | E9: Growth/Variable | G9: Total FTES
C10: ='Attachment Three'!I13 -> 1685 | E10: ='Attachment Three'!O13 -> 60 | G10: =C10+E10 -> 1745
A13: Category | C13: Prior Allocation | E13: Current Allocation | G13: Total Allocation | H13: Fund Appr. No. | I13: FMS Appr. Index
A15: Operating Base
A16: Base Allocation (GF-State) | C16: =IF(ISNA(VLOOKUP($F$5 &$A$16, AllocSched,19,FALSE)),"-",VLOOKUP($F$5 &$A$16,AllocSched,19,FALSE)) -> 7057925 | E16: =IF(ISNA(VLOOKUP($F$5 &A16, AllocSched,20,FALSE)),"-",VLOOKUP($F$5 &A16,AllocSched,20,FALSE)) -> -3644011 | G16: =SUM(C16:F16) -> 3413914 | H16: =IF(ISNA(VLOOKUP($F$5 &A16, AllocSched,10,FALSE)),"-",VLOOKUP($F$5 &A16,AllocSched,10,FALSE)) -> 001-011 | I16: =IF(ISNA(VLOOKUP($F$5 &A16, AllocSched,8,FALSE)),"-",VLOOKUP($F$5 &A16,AllocSched,8,FALSE)) -> 101
A17: Base Allocation (ELTA) | C17: =IF(ISNA(VLOOKUP($F$5 &$A$17, AllocSched,19,FALSE)),"-",VLOOKUP($F$5 &$A$17,AllocSched,19,FALSE)) -> 821108 | E17: =IF(ISNA(VLOOKUP($F$5 &A17, AllocSched,20,FALSE)),"-",VLOOKUP($F$5 &A17,AllocSched,20,FALSE)) -> 54775 | G17: =SUM(C17:F17) -> 875883 | H17: =IF(ISNA(VLOOKUP($F$5 &$A$17, AllocSched,10,FALSE)),"-",VLOOKUP($F$5 &$A$17,AllocSched,10,FALSE)) -> 08A-3E0 | I17: =IF(ISNA(VLOOKUP($F$5 &A17, AllocSched,8,FALSE)),"-",VLOOKUP($F$5 &A17,AllocSched,8,FALSE)) -> 3E0
A18: Weighted Enrollments - Additional 30% | C18: =IF(ISNA(VLOOKUP($F$5 &A18, AllocSched,19,FALSE)),"-",VLOOKUP($F$5 &A18,AllocSched,19,FALSE)) -> 0 | E18: =IF(ISNA(VLOOKUP($F$5 &A18, AllocSched,20,FALSE)),"-",VLOOKUP($F$5 &A18,AllocSched,20,FALSE)) -> 354710 | G18: =SUM(C18:F18) -> 354710 | H18: =IF(ISNA(VLOOKUP($F$5 &A18, AllocSched,10,FALSE)),"-",VLOOKUP($F$5 &A18,AllocSched,10,FALSE)) -> 001-011 | I18: =IF(ISNA(VLOOKUP($F$5 &A18, AllocSched,8,FALSE)),"-",VLOOKUP($F$5 &A18,AllocSched,8,FALSE)) -> 101
A19: Facility Maintenance - State Shift to Ed Const - MOA | C19: =IF(ISNA(VLOOKUP($F$5 &A19, AllocSched,19,FALSE)),"-",VLOOKUP($F$5 &A19,AllocSched,19,FALSE)) -> -68150 | E19: =IF(ISNA(VLOOKUP($F$5 &A19, AllocSched,20,FALSE)),"-",VLOOKUP($F$5 &A19,AllocSched,20,FALSE)) -> 68150 | G19: =SUM(C19:F19) -> 0 | H19: =IF(ISNA(VLOOKUP($F$5 &A19, AllocSched,10,FALSE)),"-",VLOOKUP($F$5 &A19,AllocSched,10,FALSE)) -> 001-011 | I19: =IF(ISNA(VLOOKUP($F$5 &A19, AllocSched,8,FALSE)),"-",VLOOKUP($F$5 &A19,AllocSched,8,FALSE)) -> 101
A20: Facility Maintenance - Ed Constr shift from State - MOA | C20: =IF(ISNA(VLOOKUP($F$5 &A20, AllocSched,19,FALSE)),"-",VLOOKUP($F$5 &A20,AllocSched,19,FALSE)) -> 68150 | E20: =IF(ISNA(VLOOKUP($F$5 &A20, AllocSched,20,FALSE)),"-",VLOOKUP($F$5 &A20,AllocSched,20,FALSE)) -> 19 | G20: =SUM(C20:F20) -> 68169 | H20: =IF(ISNA(VLOOKUP($F$5 &A20, AllocSched,10,FALSE)),"-",VLOOKUP($F$5 &A20,AllocSched,10,FALSE)) -> 252-DA0 | I20: =IF(ISNA(VLOOKUP($F$5 &A20, AllocSched,8,FALSE)),"-",VLOOKUP($F$5 &A20,AllocSched,8,FALSE)) -> DA0
A21: Bates Rebasing | C21: =IF(ISNA(VLOOKUP($F$5 &$A$21, AllocSched,19,FALSE)),"-",VLOOKUP($F$5 &$A$21,AllocSched,19,FALSE)) -> - | E21: =IF(ISNA(VLOOKUP($F$5 &A21, AllocSched,20,FALSE)),"-",VLOOKUP($F$5 &A21,AllocSched,20,FALSE)) -> - | G21: =SUM(C21:F21) -> 0 | H21: =IF(ISNA(VLOOKUP($F$5 &A21, AllocSched,10,FALSE)),"-",VLOOKUP($F$5 &A21,AllocSched,10,FALSE)) -> 001-011 | I21: =IF(ISNA(VLOOKUP($F$5 &A21, AllocSched,8,FALSE)),"-",VLOOKUP($F$5 &A21,AllocSched,8,FALSE)) -> 101
A22: Rebase Phase-in Adjustment - Year one | C22: =IF(ISNA(VLOOKUP($F$5 &A22, AllocSched,19,FALSE)),"-",VLOOKUP($F$5 &A22,AllocSched,19,FALSE)) -> 0 | E22: -139747 | G22: =SUM(C22:F22) -> -139747 | H22: =IF(ISNA(VLOOKUP($F$5 &A22, AllocSched,10,FALSE)),"-",VLOOKUP($F$5 &A22,AllocSched,10,FALSE)) -> 001-011 | I22: 101
A23: Nonrep Job Class Specific Increases | C23: 2327 | E23: - | G23: 2327 | H23: 001-011 | I23: 101
A24: Student Achievement Initiative (permanent) | C24: =IF(ISNA(VLOOKUP($F$5 &A24, AllocSched,19,FALSE)),"-",VLOOKUP($F$5 &A24,AllocSched,19,FALSE)) -> - | E24: =IF(ISNA(VLOOKUP($F$5 &A24, AllocSched,20,FALSE)),"-",VLOOKUP($F$5 &A24,AllocSched,20,FALSE)) -> - | G24: =SUM(C24:F24) -> 0 | H24: =IF(ISNA(VLOOKUP($F$5 &A24, AllocSched,10,FALSE)),"-",VLOOKUP($F$5 &A24,AllocSched,10,FALSE)) -> 001-BD1 | I24: =IF(ISNA(VLOOKUP($F$5 &A24, AllocSched,8,FALSE)),"-",VLOOKUP($F$5 &A24,AllocSched,8,FALSE)) -> BD1
A25: Performance Funding (Base) | C25: =IF(ISNA(VLOOKUP($F$5 &A25, AllocSched,19,FALSE)),"-",VLOOKUP($F$5 &A25,AllocSched,19,FALSE)) -> 0 | E25: =IF(ISNA(VLOOKUP($F$5 &A25, AllocSched,20,FALSE)),"-",VLOOKUP($F$5 &A25,AllocSched,20,FALSE)) -> 808646 | G25: =SUM(C25:F25) -> 808646 | H25: =IF(ISNA(VLOOKUP($F$5 &A25, AllocSched,10,FALSE)),"-",VLOOKUP($F$5 &A25,AllocSched,10,FALSE)) -> 001-011 | I25: =IF(ISNA(VLOOKUP($F$5 &A25, AllocSched,8,FALSE)),"-",VLOOKUP($F$5 &A25,AllocSched,8,FALSE)) -> 101
A26: Student Achievement Initiative (proviso) | C26: =IF(ISNA(VLOOKUP($F$5 &A26, AllocSched,19,FALSE)),"-",VLOOKUP($F$5 &A26,AllocSched,19,FALSE)) -> 121028 | E26: =IF(ISNA(VLOOKUP($F$5 &A26, AllocSched,20,FALSE)),"-",VLOOKUP($F$5 &A26,AllocSched,20,FALSE)) -> - | G26: =SUM(C26:F26) -> 121028 | H26: =IF(ISNA(VLOOKUP($F$5 &A26, AllocSched,10,FALSE)),"-",VLOOKUP($F$5 &A26,AllocSched,10,FALSE)) -> 001-BD1 | I26: =IF(ISNA(VLOOKUP($F$5 &A26, AllocSched,8,FALSE)),"-",VLOOKUP($F$5 &A26,AllocSched,8,FALSE)) -> BD1
A27: Supplemental Retirement Payments | C27: -2203 | E27: 2203 | G27: 0 | H27: 001-011 | I27: 101
A28: Workers Compensation Changes | C28: -2702 | E28: 2702 | G28: 0 | H28: 001-011 | I28: 101
A31: Earmarks and Provisos
A32: Aerospace Enrollments (1000 FTEs) | C32: =IF(ISNA(VLOOKUP($F$5 &A32, AllocSched,19,FALSE)),"-",VLOOKUP($F$5 &A32,AllocSched,19,FALSE)) -> 162026 | E32: =IF(ISNA(VLOOKUP($F$5 &A32, AllocSched,20,FALSE)),"-",VLOOKUP($F$5 &A32,AllocSched,20,FALSE)) -> - | G32: =SUM(C32:F32) -> 162026 | H32: =IF(ISNA(VLOOKUP($F$5 &A32, AllocSched,10,FALSE)),"-",VLOOKUP($F$5 &A32,AllocSched,10,FALSE)) -> 001-011 | I32: =IF(ISNA(VLOOKUP($F$5 &A32, AllocSched,8,FALSE)),"-",VLOOKUP($F$5 &A32,AllocSched,8,FALSE)) -> 101
A33: Basic Skills Enhancement (ELTA) | C33: 26551 | E33: -26551 | G33: 0 | H33: 08A-3E0 | I33: 3E0
A34: College Affordability Program (Tuition reduction) | C34: 207474 | E34: - | G34: =SUM(C34:F34) -> 207474 | H34: 001-BG1 | I34: BG1
A35: Compensation Tuition Backfill - State Support | C35: =IF(ISNA(VLOOKUP($F$5 &A35, AllocSched,19,FALSE)),"-",VLOOKUP($F$5 &A35,AllocSched,19,FALSE)) -> 45725 | E35: =IF(ISNA(VLOOKUP($F$5 &A35, AllocSched,20,FALSE)),"-",VLOOKUP($F$5 &A35,AllocSched,20,FALSE)) -> 111262 | G35: =SUM(C35:F35) -> 156987 | H35: =IF(ISNA(VLOOKUP($F$5 &A35, AllocSched,10,FALSE)),"-",VLOOKUP($F$5 &A35,AllocSched,10,FALSE)) -> 001-011 | I35: =IF(ISNA(VLOOKUP($F$5 &A35, AllocSched,8,FALSE)),"-",VLOOKUP($F$5 &A35,AllocSched,8,FALSE)) -> 101
A36: Disability Accommodations | C36: 22658 | E36: - | G36: 22658 | H36: 001-011 | I36: 101
A37: Facility Maintenance - State - MOA | C37: =IF(ISNA(VLOOKUP($F$5 &A37, AllocSched,19,FALSE)),"-",VLOOKUP($F$5 &A37,AllocSched,19,FALSE)) -> 0 | E37: =IF(ISNA(VLOOKUP($F$5 &A37, AllocSched,20,FALSE)),"-",VLOOKUP($F$5 &A37,AllocSched,20,FALSE)) -> 2563231 | G37: =SUM(C37:F37) -> 2563231 | H37: =IF(ISNA(VLOOKUP($F$5 &A37, AllocSched,10,FALSE)),"-",VLOOKUP($F$5 &A37,AllocSched,10,FALSE)) -> 001-011 | I37: =IF(ISNA(VLOOKUP($F$5 &A37, AllocSched,8,FALSE)),"-",VLOOKUP($F$5 &A37,AllocSched,8,FALSE)) -> 101
A38: General Wage Increase | C38: =IF(ISNA(VLOOKUP($F$5 &A38, AllocSched,19,FALSE)),"-",VLOOKUP($F$5 &A38,AllocSched,19,FALSE)) -> 187772 | E38: =IF(ISNA(VLOOKUP($F$5 &A38, AllocSched,20,FALSE)),"-",VLOOKUP($F$5 &A38,AllocSched,20,FALSE)) -> 125238 | G38: =SUM(C38:F38) -> 313010 | H38: =IF(ISNA(VLOOKUP($F$5 &A38, AllocSched,10,FALSE)),"-",VLOOKUP($F$5 &A38,AllocSched,10,FALSE)) -> 001-011 | I38: =IF(ISNA(VLOOKUP($F$5 &A38, AllocSched,8,FALSE)),"-",VLOOKUP($F$5 &A38,AllocSched,8,FALSE)) -> 101
A39: Health Rate Changes | C39: =IF(ISNA(VLOOKUP($F$5 &A39, AllocSched,19,FALSE)),"-",VLOOKUP($F$5 &A39,AllocSched,19,FALSE)) -> 350586 | E39: =IF(ISNA(VLOOKUP($F$5 &A39, AllocSched,20,FALSE)),"-",VLOOKUP($F$5 &A39,AllocSched,20,FALSE)) -> 63366 | G39: =SUM(C39:F39) -> 413952 | H39: =IF(ISNA(VLOOKUP($F$5 &A39, AllocSched,10,FALSE)),"-",VLOOKUP($F$5 &A39,AllocSched,10,FALSE)) -> 001-011 | I39: =IF(ISNA(VLOOKUP($F$5 &A39, AllocSched,8,FALSE)),"-",VLOOKUP($F$5 &A39,AllocSched,8,FALSE)) -> 101
A40: Opportunity Grants (ELTA) | C40: - | E40: - | G40: 0 | H40: - | I40: -
A41: Opportunity Grants (GFS) | C41: 428412 | E41: - | G41: 428412 | H41: 001-011 | I41: 101
A42: PERS/TRS Pension Rate Changes | C42: =IF(ISNA(VLOOKUP($F$5 &A42, AllocSched,19,FALSE)),"-",VLOOKUP($F$5 &A42,AllocSched,19,FALSE)) -> 35776 | E42: =IF(ISNA(VLOOKUP($F$5 &A42, AllocSched,20,FALSE)),"-",VLOOKUP($F$5 &A42,AllocSched,20,FALSE)) -> 241 | G42: =SUM(C42:F42) -> 36017 | H42: =IF(ISNA(VLOOKUP($F$5 &A42, AllocSched,10,FALSE)),"-",VLOOKUP($F$5 &A42,AllocSched,10,FALSE)) -> 001-011 | I42: =IF(ISNA(VLOOKUP($F$5 &A42, AllocSched,8,FALSE)),"-",VLOOKUP($F$5 &A42,AllocSched,8,FALSE)) -> 101
A43: Students of Color | C43: 14640 | E43: - | G43: 14640 | H43: 001-011 | I43: 101
A44: Worker Retraining - Base (101) | C44: 46709 | E44: - | G44: 46709 | H44: 001-011 | I44: 101
A45: Worker Retraining - Base (AC1) | C45: 223114 | E45: - | G45: 223114 | H45: 001-AC1 | I45: 123
A46: Worker Retraining - Variable (AC1) | C46: 82000 | E46: 10250 | G46: 92250 | H46: 001-AC1 | I46: 123
A49: State Allocation Total | B49: $ | C49: =SUM(C16:C48) -> 9830926 | D49: $ | E49: =SUM(E16:E48) -> 354484 | F49: $ | G49: =SUM(G16:G48) -> 10185410
A51: Grant Name | E51: Grant ID | G51: Current Adjustments | H51: Grant Total | I51: Grant Expires
A52: Basic Food Employment And Training Grant | E52: 118-BFET-16 | G52: =VLOOKUP($F$5 & A52 & E52,grants,7,FALSE) -> 0 | H52: =VLOOKUP($F$5 & A52 & E52,grants,8,FALSE) -> 0 | I52: =VLOOKUP($F$5 & A52 & E52,grants,10,FALSE) -> 2016-06-30
A53: BEdA Leadership Block Grant | E53: 118-BLBG-16 | G53: 0 | H53: 0 | I53: 2016-06-30
A54: BEdAMaster Grant | E54: 118-BEDA-16 | G54: 0 | H54: 0 | I54: 2016-06-30
A55: BEdA Progam - EL Civics Grant Budget | E55: 118-ELC-16 | G55: 0 | H55: 0 | I55: 2016-06-30
A56: BEdA Special Projects Grant | E56: 118-BSP-16 | G56: 0 | H56: 0 | I56: 2016-07-14
A57: BEdA Special Projects Grant | E57: 118-BSP-16FC | G57: 0 | H57: 0 | I57: 2016-09-30
A58: BEdA WIOA Transition Grant | E58: 118-WIOA-16 | G58: 0 | H58: 0 | I58: 2016-06-30
A59: Early Achievers Grant- State Funding | E59: 118-EAGS-16 | G59: 0 | H59: 0 | I59: 2016-06-30
A60: I-DEA Grant | E60: 118-IDEA-13 | G60: 0 | H60: 0 | I60: 2016-06-30
A61: Job Skills Program Grant | E61: 118-JSP-16LC | G61: 0 | H61: 0 | I61: 2017-06-30
A62: Job Skills Program Grant | E62: 118-JSP-16MLI | G62: 0 | H62: 0 | I62: 2017-07-15
A63: Job Skills Program Grant | E63: 118-JSP-16SH | G63: 0 | H63: 0 | I63: 2017-06-30
A64: Job Skills Program Grant | E64: 118-JSP-16REC | G64: 0 | H64: 0 | I64: 2017-06-30
A65: Job Skills Program Grant | E65: 118-JSP-16TK | G65: 0 | H65: 0 | I65: 2017-06-30
A66: Perkins Leadership Block Grant | E66: 118-PLB-16 | G66: 0 | H66: 0 | I66: 2017-06-30
A67: Perkins Plan | E67: 118-PRK-16 | G67: 0 | H67: 0 | I67: 2016-06-30
A68: WorkFirst Delivery Agreement | E68: 118-WFDA-16 | G68: 0 | H68: 0 | I68: 2016-06-30
E70: Total Additional Resources: | G70: =SUM(G52:G69) -> 0 | H70: =SUM(H52:H68) -> 0

Sheet Cascadia
A1: State Board for Community and Technical Colleges
A2: FY 2017 Allocation Schedule
H3: Allocation: | I3: ="#" &AllocSched!C71 -> #1
E5: District: | F5: 30 | G5: =VLOOKUP(F5,DISTRICT,2,FALSE) -> Cascadia
A8: Enrollments
C9: Base | E9: Growth/Variable | G9: Total FTES
C10: ='Attachment Three'!I14 -> 1754 | E10: ='Attachment Three'!O14 -> 15 | G10: =C10+E10 -> 1769
A13: Category | C13: Prior Allocation | E13: Current Allocation | G13: Total Allocation | H13: Fund Appr. No. | I13: FMS Appr. Index
A15: Operating Base
A16: Base Allocation (GF-State) | C16: =IF(ISNA(VLOOKUP($F$5 &$A$16, AllocSched,19,FALSE)),"-",VLOOKUP($F$5 &$A$16,AllocSched,19,FALSE)) -> 6758474 | E16: =IF(ISNA(VLOOKUP($F$5 &A16, AllocSched,20,FALSE)),"-",VLOOKUP($F$5 &A16,AllocSched,20,FALSE)) -> -3778647 | G16: =SUM(C16:F16) -> 2979827 | H16: =IF(ISNA(VLOOKUP($F$5 &A16, AllocSched,10,FALSE)),"-",VLOOKUP($F$5 &A16,AllocSched,10,FALSE)) -> 001-011 | I16: =IF(ISNA(VLOOKUP($F$5 &A16, AllocSched,8,FALSE)),"-",VLOOKUP($F$5 &A16,AllocSched,8,FALSE)) -> 101
A17: Base Allocation (ELTA) | C17: =IF(ISNA(VLOOKUP($F$5 &$A$17, AllocSched,19,FALSE)),"-",VLOOKUP($F$5 &$A$17,AllocSched,19,FALSE)) -> 1152982 | E17: =IF(ISNA(VLOOKUP($F$5 &A17, AllocSched,20,FALSE)),"-",VLOOKUP($F$5 &A17,AllocSched,20,FALSE)) -> 76908 | G17: =SUM(C17:F17) -> 1229890 | H17: =IF(ISNA(VLOOKUP($F$5 &$A$17, AllocSched,10,FALSE)),"-",VLOOKUP($F$5 &$A$17,AllocSched,10,FALSE)) -> 08A-3E0 | I17: =IF(ISNA(VLOOKUP($F$5 &A17, AllocSched,8,FALSE)),"-",VLOOKUP($F$5 &A17,AllocSched,8,FALSE)) -> 3E0
A18: Weighted Enrollments - Additional 30% | C18: =IF(ISNA(VLOOKUP($F$5 &A18, AllocSched,19,FALSE)),"-",VLOOKUP($F$5 &A18,AllocSched,19,FALSE)) -> 0 | E18: =IF(ISNA(VLOOKUP($F$5 &A18, AllocSched,20,FALSE)),"-",VLOOKUP($F$5 &A18,AllocSched,20,FALSE)) -> 390260 | G18: =SUM(C18:F18) -> 390260 | H18: =IF(ISNA(VLOOKUP($F$5 &A18, AllocSched,10,FALSE)),"-",VLOOKUP($F$5 &A18,AllocSched,10,FALSE)) -> 001-011 | I18: =IF(ISNA(VLOOKUP($F$5 &A18, AllocSched,8,FALSE)),"-",VLOOKUP($F$5 &A18,AllocSched,8,FALSE)) -> 101
A19: Facility Maintenance - State Shift to Ed Const - MOA | C19: =IF(ISNA(VLOOKUP($F$5 &A19, AllocSched,19,FALSE)),"-",VLOOKUP($F$5 &A19,AllocSched,19,FALSE)) -> -48914 | E19: =IF(ISNA(VLOOKUP($F$5 &A19, AllocSched,20,FALSE)),"-",VLOOKUP($F$5 &A19,AllocSched,20,FALSE)) -> 48914 | G19: =SUM(C19:F19) -> 0 | H19: =IF(ISNA(VLOOKUP($F$5 &A19, AllocSched,10,FALSE)),"-",VLOOKUP($F$5 &A19,AllocSched,10,FALSE)) -> 001-011 | I19: =IF(ISNA(VLOOKUP($F$5 &A19, AllocSched,8,FALSE)),"-",VLOOKUP($F$5 &A19,AllocSched,8,FALSE)) -> 101
A20: Facility Maintenance - Ed Constr shift from State - MOA | C20: =IF(ISNA(VLOOKUP($F$5 &A20, AllocSched,19,FALSE)),"-",VLOOKUP($F$5 &A20,AllocSched,19,FALSE)) -> 48914 | E20: =IF(ISNA(VLOOKUP($F$5 &A20, AllocSched,20,FALSE)),"-",VLOOKUP($F$5 &A20,AllocSched,20,FALSE)) -> 14 | G20: =SUM(C20:F20) -> 48928 | H20: =IF(ISNA(VLOOKUP($F$5 &A20, AllocSched,10,FALSE)),"-",VLOOKUP($F$5 &A20,AllocSched,10,FALSE)) -> 252-DA0 | I20: =IF(ISNA(VLOOKUP($F$5 &A20, AllocSched,8,FALSE)),"-",VLOOKUP($F$5 &A20,AllocSched,8,FALSE)) -> DA0
A21: Bates Rebasing | C21: =IF(ISNA(VLOOKUP($F$5 &$A$21, AllocSched,19,FALSE)),"-",VLOOKUP($F$5 &$A$21,AllocSched,19,FALSE)) -> 46881 | E21: =IF(ISNA(VLOOKUP($F$5 &A21, AllocSched,20,FALSE)),"-",VLOOKUP($F$5 &A21,AllocSched,20,FALSE)) -> -46881 | G21: =SUM(C21:F21) -> 0 | H21: =IF(ISNA(VLOOKUP($F$5 &A21, AllocSched,10,FALSE)),"-",VLOOKUP($F$5 &A21,AllocSched,10,FALSE)) -> 001-011 | I21: =IF(ISNA(VLOOKUP($F$5 &A21, AllocSched,8,FALSE)),"-",VLOOKUP($F$5 &A21,AllocSched,8,FALSE)) -> 101
A22: Rebase Phase-in Adjustment - Year one | C22: =IF(ISNA(VLOOKUP($F$5 &A22, AllocSched,19,FALSE)),"-",VLOOKUP($F$5 &A22,AllocSched,19,FALSE)) -> 0 | E22: -14090 | G22: =SUM(C22:F22) -> -14090 | H22: =IF(ISNA(VLOOKUP($F$5 &A22, AllocSched,10,FALSE)),"-",VLOOKUP($F$5 &A22,AllocSched,10,FALSE)) -> 001-011 | I22: 101
A23: Supplemental Retirement Payments | C23: -2123 | E23: 2123 | G23: 0 | H23: 001-011 | I23: 101
A24: Workers Compensation Changes | C24: -627 | E24: 627 | G24: 0 | H24: 001-011 | I24: 101
A25: Performance Funding (Base) | C25: =IF(ISNA(VLOOKUP($F$5 &A25, AllocSched,19,FALSE)),"-",VLOOKUP($F$5 &A25,AllocSched,19,FALSE)) -> 0 | E25: =IF(ISNA(VLOOKUP($F$5 &A25, AllocSched,20,FALSE)),"-",VLOOKUP($F$5 &A25,AllocSched,20,FALSE)) -> 745920 | G25: =SUM(C25:F25) -> 745920 | H25: 001-011 | I25: 101
A28: Earmarks and Provisos
A29: Basic Skills Enhancement (ELTA) | C29: =IF(ISNA(VLOOKUP($F$5 &A29, AllocSched,19,FALSE)),"-",VLOOKUP($F$5 &A29,AllocSched,19,FALSE)) -> 29077 | E29: =IF(ISNA(VLOOKUP($F$5 &A29, AllocSched,20,FALSE)),"-",VLOOKUP($F$5 &A29,AllocSched,20,FALSE)) -> -29077 | G29: =SUM(C29:F29) -> 0 | H29: =IF(ISNA(VLOOKUP($F$5 &A29, AllocSched,10,FALSE)),"-",VLOOKUP($F$5 &A29,AllocSched,10,FALSE)) -> 08A-3E0 | I29: =IF(ISNA(VLOOKUP($F$5 &A29, AllocSched,8,FALSE)),"-",VLOOKUP($F$5 &A29,AllocSched,8,FALSE)) -> 3E0
A30: College Affordability Program (Tuition reduction) | C30: 271417 | E30: - | G30: =SUM(C30:F30) -> 271417 | H30: 001-BG1 | I30: BG1
A31: Compensation Tuition Backfill - State Support | C31: =IF(ISNA(VLOOKUP($F$5 &A31, AllocSched,19,FALSE)),"-",VLOOKUP($F$5 &A31,AllocSched,19,FALSE)) -> 45175 | E31: =IF(ISNA(VLOOKUP($F$5 &A31, AllocSched,20,FALSE)),"-",VLOOKUP($F$5 &A31,AllocSched,20,FALSE)) -> 97839 | G31: =SUM(C31:F31) -> 143014 | H31: =IF(ISNA(VLOOKUP($F$5 &A31, AllocSched,10,FALSE)),"-",VLOOKUP($F$5 &A31,AllocSched,10,FALSE)) -> 001-011 | I31: =IF(ISNA(VLOOKUP($F$5 &A31, AllocSched,8,FALSE)),"-",VLOOKUP($F$5 &A31,AllocSched,8,FALSE)) -> 101
A32: Disability Accommodations | C32: 22894 | E32: - | G32: 22894 | H32: 001-011 | I32: 101
A33: Facility Maintenance - State - MOA | C33: =IF(ISNA(VLOOKUP($F$5 &A33, AllocSched,19,FALSE)),"-",VLOOKUP($F$5 &A33,AllocSched,19,FALSE)) -> 0 | E33: =IF(ISNA(VLOOKUP($F$5 &A33, AllocSched,20,FALSE)),"-",VLOOKUP($F$5 &A33,AllocSched,20,FALSE)) -> 2644172 | G33: =SUM(C33:F33) -> 2644172 | H33: =IF(ISNA(VLOOKUP($F$5 &A33, AllocSched,10,FALSE)),"-",VLOOKUP($F$5 &A33,AllocSched,10,FALSE)) -> 001-011 | I33: =IF(ISNA(VLOOKUP($F$5 &A33, AllocSched,8,FALSE)),"-",VLOOKUP($F$5 &A33,AllocSched,8,FALSE)) -> 101
A34: General Wage Increase | C34: =IF(ISNA(VLOOKUP($F$5 &A34, AllocSched,19,FALSE)),"-",VLOOKUP($F$5 &A34,AllocSched,19,FALSE)) -> 164384 | E34: =IF(ISNA(VLOOKUP($F$5 &A34, AllocSched,20,FALSE)),"-",VLOOKUP($F$5 &A34,AllocSched,20,FALSE)) -> 103341 | G34: =SUM(C34:F34) -> 267725 | H34: =IF(ISNA(VLOOKUP($F$5 &A34, AllocSched,10,FALSE)),"-",VLOOKUP($F$5 &A34,AllocSched,10,FALSE)) -> 001-011 | I34: =IF(ISNA(VLOOKUP($F$5 &A34, AllocSched,8,FALSE)),"-",VLOOKUP($F$5 &A34,AllocSched,8,FALSE)) -> 101
A35: Health Rate Changes | C35: =IF(ISNA(VLOOKUP($F$5 &A35, AllocSched,19,FALSE)),"-",VLOOKUP($F$5 &A35,AllocSched,19,FALSE)) -> 543364 | E35: =IF(ISNA(VLOOKUP($F$5 &A35, AllocSched,20,FALSE)),"-",VLOOKUP($F$5 &A35,AllocSched,20,FALSE)) -> 65693 | G35: =SUM(C35:F35) -> 609057 | H35: =IF(ISNA(VLOOKUP($F$5 &A35, AllocSched,10,FALSE)),"-",VLOOKUP($F$5 &A35,AllocSched,10,FALSE)) -> 001-011 | I35: =IF(ISNA(VLOOKUP($F$5 &A35, AllocSched,8,FALSE)),"-",VLOOKUP($F$5 &A35,AllocSched,8,FALSE)) -> 101
A36: Opportunity Grants (ELTA) | C36: 200000 | E36: - | G36: 200000 | H36: 08A-3E0 | I36: 3E0
A37: Opportunity Grants (GFS) | C37: 29412 | E37: - | G37: 29412 | H37: 001-011 | I37: 101
A38: PERS/TRS Pension Rate Changes | C38: =IF(ISNA(VLOOKUP($F$5 &A38, AllocSched,19,FALSE)),"-",VLOOKUP($F$5 &A38,AllocSched,19,FALSE)) -> 19363 | E38: =IF(ISNA(VLOOKUP($F$5 &A38, AllocSched,20,FALSE)),"-",VLOOKUP($F$5 &A38,AllocSched,20,FALSE)) -> 130 | G38: =SUM(C38:F38) -> 19493 | H38: =IF(ISNA(VLOOKUP($F$5 &A38, AllocSched,10,FALSE)),"-",VLOOKUP($F$5 &A38,AllocSched,10,FALSE)) -> 001-011 | I38: =IF(ISNA(VLOOKUP($F$5 &A38, AllocSched,8,FALSE)),"-",VLOOKUP($F$5 &A38,AllocSched,8,FALSE)) -> 101
A39: Student Achievement Initiative (permanent) | C39: 4116 | E39: -4116 | G39: 0 | H39: 001-BD1 | I39: BD1
A40: Student Achievement Initiative (proviso) | C40: 112257 | E40: 4116 | G40: 116373 | H40: 001-BD1 | I40: BD1
A41: Students of Color | C41: 13940 | E41: - | G41: 13940 | H41: 001-011 | I41: 101
A42: Worker Retraining - Base (101) | C42: 28078 | E42: - | G42: 28078 | H42: 001-011 | I42: 101
A43: Worker Retraining - Base (AC1) | C43: 134120 | E43: - | G43: 134120 | H43: 001-AC1 | I43: 123
A44: Worker Retraining - Variable (AC1) | C44: 56375 | E44: 20500 | G44: 76875 | H44: 001-AC1 | I44: 123
A45: WPEA Agreement | C45: =IF(ISNA(VLOOKUP($F$5 &A45, AllocSched,19,FALSE)),"-",VLOOKUP($F$5 &A45,AllocSched,19,FALSE)) -> 32302 | E45: =IF(ISNA(VLOOKUP($F$5 &A45, AllocSched,20,FALSE)),"-",VLOOKUP($F$5 &A45,AllocSched,20,FALSE)) -> 33295 | G45: =SUM(C45:F45) -> 65597 | H45: =IF(ISNA(VLOOKUP($F$5 &A45, AllocSched,10,FALSE)),"-",VLOOKUP($F$5 &A45,AllocSched,10,FALSE)) -> 001-011 | I45: =IF(ISNA(VLOOKUP($F$5 &A45, AllocSched,8,FALSE)),"-",VLOOKUP($F$5 &A45,AllocSched,8,FALSE)) -> 101
A48: State Allocation Total | B48: $ | C48: =SUM(C16:C47) -> 9661861 | D48: $ | E48: =SUM(E16:E47) -> 361041 | F48: $ | G48: =SUM(G16:G46) -> 10022902
A50: Grant Name | E50: Grant ID | G50: Current Adjustments | H50: Grant Total | I50: Grant Expires
A51: Basic Food Employment And Training Grant | E51: 130-BFET-15 | G51: =VLOOKUP($F$5 & A51 & E51,grants,7,FALSE) -> 0 | H51: =VLOOKUP($F$5 & A51 & E51,grants,8,FALSE) -> 0 | I51: =VLOOKUP($F$5 & A51 & E51,grants,10,FALSE) -> 2016-09-30
A52: BEdA Leadership Block Grant | E52: 130-BLBG-16 | G52: =VLOOKUP($F$5 & A52 & E52,grants,7,FALSE) -> 0 | H52: 0 | I52: 2016-06-30
A53: BEdAMaster Grant | E53: 130-BEDA | G53: 0 | H53: 0 | I53: 2016-06-30
A54: BEdA Progam - EL Civics Grant Budget | E54: 130-ELC-16 | G54: 0 | H54: 0 | I54: 2016-06-30
A55: BEdA WIOA Transition Grant | E55: 130-WIOA-16 | G55: 0 | H55: 0 | I55: 2016-06-30
A56: Job Skills Program Grant | E56: 130-JSP-16AMT | G56: 0 | H56: 0 | I56: 2017-06-30
A57: Job Skills Program Grant | E57: 130-JSP-16AR | G57: 0 | H57: 0 | I57: 2017-06-30
A58: Job Skills Program Grant | E58: 130-JSP-16GT | G58: 0 | H58: 0 | I58: 2017-06-30
A59: Job Skills Program Grant | E59: 130-JSP-16SA | G59: 0 | H59: 0 | I59: 2017-06-30
A60: Misc. General Grant | E60: 130-ELRN-16 | G60: 0 | H60: 0 | I60: 2016-06-30
A61: Perkins Leadership Block Grant | E61: 130-PLB-16 | G61: 0 | H61: 0 | I61: 2016-06-30
A62: Phase III I-DEA Grant | E62: 130-IDEA-16 | G62: 0 | H62: 0 | I62: 2016-06-30
E65: Total Additional Resources: | G65: =SUM(G51:G64) -> 0 | H65: =SUM(H51:H63) -> 0

Sheet Centralia
A1: State Board for Community and Technical Colleges
A2: FY 2017 Allocation Schedule
H3: Allocation: | I3: ="#" &AllocSched!C71 -> #1
E5: District: | F5: 12 | G5: =VLOOKUP(F5,DISTRICT,2,FALSE) -> Centralia
A8: Enrollments
C9: Base | E9: Growth/Variable | G9: Total FTES
C10: ='Attachment Three'!I15 -> 2167 | E10: ='Attachment Three'!O15 -> 44 | G10: =C10+E10 -> 2211
A13: Category | C13: Prior Allocation | E13: Current Allocation | G13: Total Allocation | H13: Fund Appr. No. | I13: FMS Appr. Index
A15: Operating Base
A16: Base Allocation (GF-State) | C16: =IF(ISNA(VLOOKUP($F$5 &$A$16, AllocSched,19,FALSE)),"-",VLOOKUP($F$5 &$A$16,AllocSched,19,FALSE)) -> 8099572 | E16: =IF(ISNA(VLOOKUP($F$5 &A16, AllocSched,20,FALSE)),"-",VLOOKUP($F$5 &A16,AllocSched,20,FALSE)) -> -3480925 | G16: =SUM(C16:F16) -> 4618647 | H16: =IF(ISNA(VLOOKUP($F$5 &A16, AllocSched,10,FALSE)),"-",VLOOKUP($F$5 &A16,AllocSched,10,FALSE)) -> 001-011 | I16: =IF(ISNA(VLOOKUP($F$5 &A16, AllocSched,8,FALSE)),"-",VLOOKUP($F$5 &A16,AllocSched,8,FALSE)) -> 101
A17: Base Allocation (ELTA) | C17: =IF(ISNA(VLOOKUP($F$5 &$A$17, AllocSched,19,FALSE)),"-",VLOOKUP($F$5 &$A$17,AllocSched,19,FALSE)) -> 813485 | E17: =IF(ISNA(VLOOKUP($F$5 &A17, AllocSched,20,FALSE)),"-",VLOOKUP($F$5 &A17,AllocSched,20,FALSE)) -> 54256 | G17: =SUM(C17:F17) -> 867741 | H17: =IF(ISNA(VLOOKUP($F$5 &$A$17, AllocSched,10,FALSE)),"-",VLOOKUP($F$5 &$A$17,AllocSched,10,FALSE)) -> 08A-3E0 | I17: =IF(ISNA(VLOOKUP($F$5 &A17, AllocSched,8,FALSE)),"-",VLOOKUP($F$5 &A17,AllocSched,8,FALSE)) -> 3E0
A18: Weighted Enrollments - Additional 30% | C18: =IF(ISNA(VLOOKUP($F$5 &A18, AllocSched,19,FALSE)),"-",VLOOKUP($F$5 &A18,AllocSched,19,FALSE)) -> 0 | E18: =IF(ISNA(VLOOKUP($F$5 &A18, AllocSched,20,FALSE)),"-",VLOOKUP($F$5 &A18,AllocSched,20,FALSE)) -> 624100 | G18: =SUM(C18:F18) -> 624100 | H18: =IF(ISNA(VLOOKUP($F$5 &A18, AllocSched,10,FALSE)),"-",VLOOKUP($F$5 &A18,AllocSched,10,FALSE)) -> 001-011 | I18: =IF(ISNA(VLOOKUP($F$5 &A18, AllocSched,8,FALSE)),"-",VLOOKUP($F$5 &A18,AllocSched,8,FALSE)) -> 101
A19: Facility Maintenance - State Shift to Ed Const - MOA | C19: =IF(ISNA(VLOOKUP($F$5 &A19, AllocSched,19,FALSE)),"-",VLOOKUP($F$5 &A19,AllocSched,19,FALSE)) -> -54245 | E19: =IF(ISNA(VLOOKUP($F$5 &A19, AllocSched,20,FALSE)),"-",VLOOKUP($F$5 &A19,AllocSched,20,FALSE)) -> 54245 | G19: =SUM(C19:F19) -> 0 | H19: =IF(ISNA(VLOOKUP($F$5 &A19, AllocSched,10,FALSE)),"-",VLOOKUP($F$5 &A19,AllocSched,10,FALSE)) -> 001-011 | I19: =IF(ISNA(VLOOKUP($F$5 &A19, AllocSched,8,FALSE)),"-",VLOOKUP($F$5 &A19,AllocSched,8,FALSE)) -> 101
A20: Facility Maintenance - Ed Constr shift from State - MOA | C20: =IF(ISNA(VLOOKUP($F$5 &A20, AllocSched,19,FALSE)),"-",VLOOKUP($F$5 &A20,AllocSched,19,FALSE)) -> 54245 | E20: =IF(ISNA(VLOOKUP($F$5 &A20, AllocSched,20,FALSE)),"-",VLOOKUP($F$5 &A20,AllocSched,20,FALSE)) -> 16 | G20: =SUM(C20:F20) -> 54261 | H20: =IF(ISNA(VLOOKUP($F$5 &A20, AllocSched,10,FALSE)),"-",VLOOKUP($F$5 &A20,AllocSched,10,FALSE)) -> 252-DA0 | I20: =IF(ISNA(VLOOKUP($F$5 &A20, AllocSched,8,FALSE)),"-",VLOOKUP($F$5 &A20,AllocSched,8,FALSE)) -> DA0
A21: Bates Rebasing | C21: =IF(ISNA(VLOOKUP($F$5 &$A$21, AllocSched,19,FALSE)),"-",VLOOKUP($F$5 &$A$21,AllocSched,19,FALSE)) -> - | E21: =IF(ISNA(VLOOKUP($F$5 &A21, AllocSched,20,FALSE)),"-",VLOOKUP($F$5 &A21,AllocSched,20,FALSE)) -> - | G21: =SUM(C21:F21) -> 0 | H21: =IF(ISNA(VLOOKUP($F$5 &A21, AllocSched,10,FALSE)),"-",VLOOKUP($F$5 &A21,AllocSched,10,FALSE)) -> - | I21: =IF(ISNA(VLOOKUP($F$5 &A21, AllocSched,8,FALSE)),"-",VLOOKUP($F$5 &A21,AllocSched,8,FALSE)) -> -
A22: Rebase Phase-in Adjustment - Year one | C22: =IF(ISNA(VLOOKUP($F$5 &A22, AllocSched,19,FALSE)),"-",VLOOKUP($F$5 &A22,AllocSched,19,FALSE)) -> 0 | E22: -334576 | G22: =SUM(C22:F22) -> -334576 | H22: =IF(ISNA(VLOOKUP($F$5 &A22, AllocSched,10,FALSE)),"-",VLOOKUP($F$5 &A22,AllocSched,10,FALSE)) -> 001-011 | I22: 101
A23: Supplemental Retirement Payments | C23: -2504 | E23: 2504 | G23: 0 | H23: 001-011 | I23: 101
A24: Student Achievement Initiative (permanent) | C24: =IF(ISNA(VLOOKUP($F$5 &A24, AllocSched,19,FALSE)),"-",VLOOKUP($F$5 &A24,AllocSched,19,FALSE)) -> 45067 | E24: =IF(ISNA(VLOOKUP($F$5 &A24, AllocSched,20,FALSE)),"-",VLOOKUP($F$5 &A24,AllocSched,20,FALSE)) -> -45067 | G24: =SUM(C24:F24) -> 0 | H24: =IF(ISNA(VLOOKUP($F$5 &A24, AllocSched,10,FALSE)),"-",VLOOKUP($F$5 &A24,AllocSched,10,FALSE)) -> 001-BD1 | I24: =IF(ISNA(VLOOKUP($F$5 &A24, AllocSched,8,FALSE)),"-",VLOOKUP($F$5 &A24,AllocSched,8,FALSE)) -> BD1
A25: Performance Funding (Base) | C25: =IF(ISNA(VLOOKUP($F$5 &A25, AllocSched,19,FALSE)),"-",VLOOKUP($F$5 &A25,AllocSched,19,FALSE)) -> 0 | E25: =IF(ISNA(VLOOKUP($F$5 &A25, AllocSched,20,FALSE)),"-",VLOOKUP($F$5 &A25,AllocSched,20,FALSE)) -> 632210 | G25: =SUM(C25:F25) -> 632210 | H25: =IF(ISNA(VLOOKUP($F$5 &A25, AllocSched,10,FALSE)),"-",VLOOKUP($F$5 &A25,AllocSched,10,FALSE)) -> 001-011 | I25: =IF(ISNA(VLOOKUP($F$5 &A25, AllocSched,8,FALSE)),"-",VLOOKUP($F$5 &A25,AllocSched,8,FALSE)) -> 101
A26: Student Achievement Initiative (proviso) | C26: =IF(ISNA(VLOOKUP($F$5 &A26, AllocSched,19,FALSE)),"-",VLOOKUP($F$5 &A26,AllocSched,19,FALSE)) -> 101367 | E26: =IF(ISNA(VLOOKUP($F$5 &A26, AllocSched,20,FALSE)),"-",VLOOKUP($F$5 &A26,AllocSched,20,FALSE)) -> 45067 | G26: =SUM(C26:F26) -> 146434 | H26: =IF(ISNA(VLOOKUP($F$5 &A26, AllocSched,10,FALSE)),"-",VLOOKUP($F$5 &A26,AllocSched,10,FALSE)) -> 001-BD1 | I26: =IF(ISNA(VLOOKUP($F$5 &A26, AllocSched,8,FALSE)),"-",VLOOKUP($F$5 &A26,AllocSched,8,FALSE)) -> BD1
A27: Workers Compensation Changes | C27: 7879 | E27: -7879 | G27: 0 | H27: 001-011 | I27: 101
A30: Earmarks and Provisos
A31: Basic Skills Enhancement (ELTA) | C31: =IF(ISNA(VLOOKUP($F$5 &A31, AllocSched,19,FALSE)),"-",VLOOKUP($F$5 &A31,AllocSched,19,FALSE)) -> 60237 | E31: =IF(ISNA(VLOOKUP($F$5 &A31, AllocSched,20,FALSE)),"-",VLOOKUP($F$5 &A31,AllocSched,20,FALSE)) -> -60237 | G31: =SUM(C31:F31) -> 0 | H31: =IF(ISNA(VLOOKUP($F$5 &A31, AllocSched,10,FALSE)),"-",VLOOKUP($F$5 &A31,AllocSched,10,FALSE)) -> 08A-3E0 | I31: =IF(ISNA(VLOOKUP($F$5 &A31, AllocSched,8,FALSE)),"-",VLOOKUP($F$5 &A31,AllocSched,8,FALSE)) -> 3E0
A32: Centers of Excellence | C32: 203205 | E32: - | G32: =SUM(C32:F32) -> 203205 | H32: 001-011 | I32: 101
A33: College Affordability Program (Tuition reduction) | C33: 300074 | E33: 44537 | G33: 344611 | H33: 001-BG1 | I33: BG1
A34: Compensation Tuition Backfill - State Support | C34: =IF(ISNA(VLOOKUP($F$5 &A34, AllocSched,19,FALSE)),"-",VLOOKUP($F$5 &A34,AllocSched,19,FALSE)) -> 56694 | E34: =IF(ISNA(VLOOKUP($F$5 &A34, AllocSched,20,FALSE)),"-",VLOOKUP($F$5 &A34,AllocSched,20,FALSE)) -> 110826 | G34: =SUM(C34:F34) -> 167520 | H34: =IF(ISNA(VLOOKUP($F$5 &A34, AllocSched,10,FALSE)),"-",VLOOKUP($F$5 &A34,AllocSched,10,FALSE)) -> 001-011 | I34: =IF(ISNA(VLOOKUP($F$5 &A34, AllocSched,8,FALSE)),"-",VLOOKUP($F$5 &A34,AllocSched,8,FALSE)) -> 101
A35: Disability Accommodations | C35: 32099 | E35: - | G35: 32099 | H35: 001-011 | I35: 101
A36: Facility Maintenance - State - MOA | C36: =IF(ISNA(VLOOKUP($F$5 &A36, AllocSched,19,FALSE)),"-",VLOOKUP($F$5 &A36,AllocSched,19,FALSE)) -> 0 | E36: =IF(ISNA(VLOOKUP($F$5 &A36, AllocSched,20,FALSE)),"-",VLOOKUP($F$5 &A36,AllocSched,20,FALSE)) -> 2621739 | G36: =SUM(C36:F36) -> 2621739 | H36: =IF(ISNA(VLOOKUP($F$5 &A36, AllocSched,10,FALSE)),"-",VLOOKUP($F$5 &A36,AllocSched,10,FALSE)) -> 001-011 | I36: =IF(ISNA(VLOOKUP($F$5 &A36, AllocSched,8,FALSE)),"-",VLOOKUP($F$5 &A36,AllocSched,8,FALSE)) -> 101
A37: General Wage Increase | C37: =IF(ISNA(VLOOKUP($F$5 &A37, AllocSched,19,FALSE)),"-",VLOOKUP($F$5 &A37,AllocSched,19,FALSE)) -> 186535 | E37: =IF(ISNA(VLOOKUP($F$5 &A37, AllocSched,20,FALSE)),"-",VLOOKUP($F$5 &A37,AllocSched,20,FALSE)) -> 116652 | G37: =SUM(C37:F37) -> 303187 | H37: =IF(ISNA(VLOOKUP($F$5 &A37, AllocSched,10,FALSE)),"-",VLOOKUP($F$5 &A37,AllocSched,10,FALSE)) -> 001-011 | I37: =IF(ISNA(VLOOKUP($F$5 &A37, AllocSched,8,FALSE)),"-",VLOOKUP($F$5 &A37,AllocSched,8,FALSE)) -> 101
A38: Health Rate Changes | C38: =IF(ISNA(VLOOKUP($F$5 &A38, AllocSched,19,FALSE)),"-",VLOOKUP($F$5 &A38,AllocSched,19,FALSE)) -> 459967 | E38: =IF(ISNA(VLOOKUP($F$5 &A38, AllocSched,20,FALSE)),"-",VLOOKUP($F$5 &A38,AllocSched,20,FALSE)) -> 79514 | G38: =SUM(C38:F38) -> 539481 | H38: =IF(ISNA(VLOOKUP($F$5 &A38, AllocSched,10,FALSE)),"-",VLOOKUP($F$5 &A38,AllocSched,10,FALSE)) -> 001-011 | I38: =IF(ISNA(VLOOKUP($F$5 &A38, AllocSched,8,FALSE)),"-",VLOOKUP($F$5 &A38,AllocSched,8,FALSE)) -> 101
A39: Opportunity Grants (ELTA) | C39: 351600 | E39: - | G39: =SUM(C39:F39) -> 351600 | H39: 08A-3E0 | I39: 3E0
A40: Opportunity Grants (GFS) | C40: 29412 | E40: - | G40: =SUM(C40:F40) -> 29412 | H40: 001-011 | I40: 101
A41: PERS/TRS Pension Rate Changes | C41: =IF(ISNA(VLOOKUP($F$5 &A41, AllocSched,19,FALSE)),"-",VLOOKUP($F$5 &A41,AllocSched,19,FALSE)) -> 41991 | E41: =IF(ISNA(VLOOKUP($F$5 &A41, AllocSched,20,FALSE)),"-",VLOOKUP($F$5 &A41,AllocSched,20,FALSE)) -> 283 | G41: =SUM(C41:F41) -> 42274 | H41: =IF(ISNA(VLOOKUP($F$5 &A41, AllocSched,10,FALSE)),"-",VLOOKUP($F$5 &A41,AllocSched,10,FALSE)) -> 001-011 | I41: =IF(ISNA(VLOOKUP($F$5 &A41, AllocSched,8,FALSE)),"-",VLOOKUP($F$5 &A41,AllocSched,8,FALSE)) -> 101
A42: Students of Color | C42: 9790 | E42: - | G42: 9790 | H42: 001-011 | I42: 101
A43: WFSE Agreement | C43: =IF(ISNA(VLOOKUP($F$5 &A43, AllocSched,19,FALSE)),"-",VLOOKUP($F$5 &A43,AllocSched,19,FALSE)) -> 55649 | E43: =IF(ISNA(VLOOKUP($F$5 &A43, AllocSched,20,FALSE)),"-",VLOOKUP($F$5 &A43,AllocSched,20,FALSE)) -> 35040 | G43: =SUM(C43:F43) -> 90689 | H43: =IF(ISNA(VLOOKUP($F$5 &A43, AllocSched,10,FALSE)),"-",VLOOKUP($F$5 &A43,AllocSched,10,FALSE)) -> 001-011 | I43: =IF(ISNA(VLOOKUP($F$5 &A43, AllocSched,8,FALSE)),"-",VLOOKUP($F$5 &A43,AllocSched,8,FALSE)) -> 101
A44: Worker Retraining - Base (101) | C44: 187601 | E44: - | G44: 187601 | H44: 001-011 | I44: 101
A45: Worker Retraining - Base (AC1) | C45: 490097 | E45: -85000 | G45: 405097 | H45: 001-AC1 | I45: 123
A46: Worker Retraining - Variable (AC1) | C46: 240875 | E46: -15375 | G46: 225500 | H46: 001-AC1 | I46: 123
A49: State Allocation Total | B49: $ | C49: =SUM(C16:C47) -> 11770692 | D49: $ | E49: =SUM(E16:E47) -> 391930 | F49: $ | G49: =SUM(G16:G47) -> 12162622
A51: Grant Name | E51: Grant ID | G51: Current Adjustments | H51: Grant Total | I51: Grant Expires
A52: Basic Food Employment And Training Grant | E52: 112-BFET-16 | G52: =VLOOKUP($F$5 & A52 & E52,grants,7,FALSE) -> 0 | H52: =VLOOKUP($F$5 & A52 & E52,grants,8,FALSE) -> 0 | I52: =VLOOKUP($F$5 & A52 & E52,grants,10,FALSE) -> 2016-06-30
A53: BEdA Leadership Block Grant | E53: 112-BLBG-16 | G53: 0 | H53: 0 | I53: =VLOOKUP($F$5 & A53 & E53,grants,10,FALSE) -> 2016-06-30
A54: BEdAMaster Grant | E54: 112-BEDA-16 | G54: 0 | H54: 0 | I54: 2016-06-30
A55: BEdA Progam - EL Civics Grant Budget | E55: 112-ELC-16 | G55: 0 | H55: 0 | I55: 2016-06-30
A56: BEdA WIOA Transition Grant | E56: 112-WIOA-16 | G56: 0 | H56: 0 | I56: 2016-06-30
A57: Correctional Education Grant | E57: 112-CE-16 | G57: 0 | H57: 0 | I57: 2016-06-30
A58: Early Achievers Grant- State Funding | E58: 112-EAOG-16 | G58: 0 | H58: 0 | I58: 2016-06-30
A59: Early Achievers Opportunity Grant Application | E59: 112-JSP-16 | G59: 0 | H59: 0 | I59: 2016-06-30
A60: Job Skills Program Grant | E60: 112-PIP-16 | G60: 0 | H60: 0 | I60: 2017-06-30
A61: Perkins Leadership Block Grant | E61: 112-PLB-16 | G61: 0 | H61: 0 | I61: 2016-06-30
A62: Perkins Plan | E62: 112-PRK-16 | G62: 0 | H62: 0 | I62: 2016-06-30
A63: Perkins Special Project | E63: 112-PSPI-16 | G63: 0 | H63: 0 | I63: 2016-06-30
A64: Phase III I-DEA Grant | E64: 112-IDEA-16 | G64: 0 | H64: 0 | I64: 2016-06-30
A65: WorkFirst Delivery Agreement | E65: 112-WFDA-16 | G65: 0 | H65: 0 | I65: 2016-06-30
E67: Total Additional Resources: | G67: =SUM(G52:G66) -> 0 | H67: =SUM(H51:H65) -> 0

Sheet Clark
A1: State Board for Community and Technical Colleges
A2: FY 2017 Allocation Schedule
H3: Allocation: | I3: ="#" &AllocSched!C71 -> #1
E5: District: | F5: 14 | G5: =VLOOKUP(F5,DISTRICT,2,FALSE) -> Clark
A8: Enrollments
C9: Base | E9: Growth/Variable | G9: Total FTES
C10: ='Attachment Three'!I16 -> 7588 | E10: ='Attachment Three'!O16 -> 110 | G10: =C10+E10 -> 7698
A13: Category | C13: Prior Allocation | E13: Current Allocation | G13: Total Allocation | H13: Fund Appr. No. | I13: FMS Appr. Index
A15: Operating Base
A16: Base Allocation (GF-State) | C16: =IF(ISNA(VLOOKUP($F$5 &$A$16, AllocSched,19,FALSE)),"-",VLOOKUP($F$5 &$A$16,AllocSched,19,FALSE)) -> 21730059 | E16: =IF(ISNA(VLOOKUP($F$5 &A16, AllocSched,20,FALSE)),"-",VLOOKUP($F$5 &A16,AllocSched,20,FALSE)) -> -4911032 | G16: =SUM(C16:F16) -> 16819027 | H16: =IF(ISNA(VLOOKUP($F$5 &A16, AllocSched,10,FALSE)),"-",VLOOKUP($F$5 &A16,AllocSched,10,FALSE)) -> 001-011 | I16: =IF(ISNA(VLOOKUP($F$5 &A16, AllocSched,8,FALSE)),"-",VLOOKUP($F$5 &A16,AllocSched,8,FALSE)) -> 101
A17: Base Allocation (ELTA) | C17: =IF(ISNA(VLOOKUP($F$5 &$A$17, AllocSched,19,FALSE)),"-",VLOOKUP($F$5 &$A$17,AllocSched,19,FALSE)) -> 1783124 | E17: =IF(ISNA(VLOOKUP($F$5 &A17, AllocSched,20,FALSE)),"-",VLOOKUP($F$5 &A17,AllocSched,20,FALSE)) -> 118935 | G17: =SUM(C17:F17) -> 1902059 | H17: =IF(ISNA(VLOOKUP($F$5 &$A$17, AllocSched,10,FALSE)),"-",VLOOKUP($F$5 &$A$17,AllocSched,10,FALSE)) -> 08A-3E0 | I17: =IF(ISNA(VLOOKUP($F$5 &A17, AllocSched,8,FALSE)),"-",VLOOKUP($F$5 &A17,AllocSched,8,FALSE)) -> 3E0
A18: Weighted Enrollments - Additional 30% | C18: =IF(ISNA(VLOOKUP($F$5 &A18, AllocSched,19,FALSE)),"-",VLOOKUP($F$5 &A18,AllocSched,19,FALSE)) -> 0 | E18: =IF(ISNA(VLOOKUP($F$5 &A18, AllocSched,20,FALSE)),"-",VLOOKUP($F$5 &A18,AllocSched,20,FALSE)) -> 1576050 | G18: =SUM(C18:F18) -> 1576050 | H18: =IF(ISNA(VLOOKUP($F$5 &A18, AllocSched,10,FALSE)),"-",VLOOKUP($F$5 &A18,AllocSched,10,FALSE)) -> 001-011 | I18: =IF(ISNA(VLOOKUP($F$5 &A18, AllocSched,8,FALSE)),"-",VLOOKUP($F$5 &A18,AllocSched,8,FALSE)) -> 101
A19: Facility Maintenance - State Shift to Ed Const - MOA | C19: =IF(ISNA(VLOOKUP($F$5 &A19, AllocSched,19,FALSE)),"-",VLOOKUP($F$5 &A19,AllocSched,19,FALSE)) -> -144810 | E19: =IF(ISNA(VLOOKUP($F$5 &A19, AllocSched,20,FALSE)),"-",VLOOKUP($F$5 &A19,AllocSched,20,FALSE)) -> 144810 | G19: =SUM(C19:F19) -> 0 | H19: =IF(ISNA(VLOOKUP($F$5 &A19, AllocSched,10,FALSE)),"-",VLOOKUP($F$5 &A19,AllocSched,10,FALSE)) -> 001-011 | I19: =IF(ISNA(VLOOKUP($F$5 &A19, AllocSched,8,FALSE)),"-",VLOOKUP($F$5 &A19,AllocSched,8,FALSE)) -> 101
A20: Facility Maintenance - Ed Constr shift from State - MOA | C20: =IF(ISNA(VLOOKUP($F$5 &A20, AllocSched,19,FALSE)),"-",VLOOKUP($F$5 &A20,AllocSched,19,FALSE)) -> 144810 | E20: =IF(ISNA(VLOOKUP($F$5 &A20, AllocSched,20,FALSE)),"-",VLOOKUP($F$5 &A20,AllocSched,20,FALSE)) -> 41 | G20: =SUM(C20:F20) -> 144851 | H20: =IF(ISNA(VLOOKUP($F$5 &A20, AllocSched,10,FALSE)),"-",VLOOKUP($F$5 &A20,AllocSched,10,FALSE)) -> 252-DA0 | I20: =IF(ISNA(VLOOKUP($F$5 &A20, AllocSched,8,FALSE)),"-",VLOOKUP($F$5 &A20,AllocSched,8,FALSE)) -> DA0
A21: Facility Maintenance - State - MOA | C21: =IF(ISNA(VLOOKUP($F$5 &A21, AllocSched,19,FALSE)),"-",VLOOKUP($F$5 &A21,AllocSched,19,FALSE)) -> 0 | E21: =IF(ISNA(VLOOKUP($F$5 &A21, AllocSched,20,FALSE)),"-",VLOOKUP($F$5 &A21,AllocSched,20,FALSE)) -> 2240649 | G21: =SUM(C21:F21) -> 2240649 | H21: =IF(ISNA(VLOOKUP($F$5 &A21, AllocSched,10,FALSE)),"-",VLOOKUP($F$5 &A21,AllocSched,10,FALSE)) -> 001-011 | I21: =IF(ISNA(VLOOKUP($F$5 &A21, AllocSched,8,FALSE)),"-",VLOOKUP($F$5 &A21,AllocSched,8,FALSE)) -> 101
A22: Bates Rebasing | C22: =IF(ISNA(VLOOKUP($F$5 &$A$22, AllocSched,19,FALSE)),"-",VLOOKUP($F$5 &$A$22,AllocSched,19,FALSE)) -> 75730 | E22: =IF(ISNA(VLOOKUP($F$5 &A22, AllocSched,20,FALSE)),"-",VLOOKUP($F$5 &A22,AllocSched,20,FALSE)) -> -75730 | G22: =SUM(C22:F22) -> 0 | H22: =IF(ISNA(VLOOKUP($F$5 &A22, AllocSched,10,FALSE)),"-",VLOOKUP($F$5 &A22,AllocSched,10,FALSE)) -> 001-011 | I22: =IF(ISNA(VLOOKUP($F$5 &A22, AllocSched,8,FALSE)),"-",VLOOKUP($F$5 &A22,AllocSched,8,FALSE)) -> 101
A23: Rebase Phase-in Adjustment - Year one | C23: =IF(ISNA(VLOOKUP($F$5 &A23, AllocSched,19,FALSE)),"-",VLOOKUP($F$5 &A23,AllocSched,19,FALSE)) -> 0 | E23: -198138 | G23: =SUM(C23:F23) -> -198138 | H23: =IF(ISNA(VLOOKUP($F$5 &A23, AllocSched,10,FALSE)),"-",VLOOKUP($F$5 &A23,AllocSched,10,FALSE)) -> 001-011 | I23: 101
A24: Leases and Assessments | C24: 209000 | E24: 5000 | G24: 214000 | H24: 001-011 | I24: 101
A25: Performance Funding (Base) | C25: =IF(ISNA(VLOOKUP($F$5 &A25, AllocSched,19,FALSE)),"-",VLOOKUP($F$5 &A25,AllocSched,19,FALSE)) -> 0 | E25: =IF(ISNA(VLOOKUP($F$5 &A25, AllocSched,20,FALSE)),"-",VLOOKUP($F$5 &A25,AllocSched,20,FALSE)) -> 1370148 | G25: =SUM(C25:F25) -> 1370148 | H25: 001-011 | I25: 101
A26: Student Achievement Initiative (permanent) | C26: =IF(ISNA(VLOOKUP($F$5 &A26, AllocSched,19,FALSE)),"-",VLOOKUP($F$5 &A26,AllocSched,19,FALSE)) -> 12180 | E26: =IF(ISNA(VLOOKUP($F$5 &A26, AllocSched,20,FALSE)),"-",VLOOKUP($F$5 &A26,AllocSched,20,FALSE)) -> -12180 | G26: =SUM(C26:F26) -> 0 | H26: =IF(ISNA(VLOOKUP($F$5 &A26, AllocSched,10,FALSE)),"-",VLOOKUP($F$5 &A26,AllocSched,10,FALSE)) -> 001-BD1 | I26: =IF(ISNA(VLOOKUP($F$5 &A26, AllocSched,8,FALSE)),"-",VLOOKUP($F$5 &A26,AllocSched,8,FALSE)) -> BD1
A27: Student Achievement Initiative (proviso) | C27: =IF(ISNA(VLOOKUP($F$5 &A27, AllocSched,19,FALSE)),"-",VLOOKUP($F$5 &A27,AllocSched,19,FALSE)) -> 206890 | E27: =IF(ISNA(VLOOKUP($F$5 &A27, AllocSched,20,FALSE)),"-",VLOOKUP($F$5 &A27,AllocSched,20,FALSE)) -> 12180 | G27: =SUM(C27:F27) -> 219070 | H27: =IF(ISNA(VLOOKUP($F$5 &A27, AllocSched,10,FALSE)),"-",VLOOKUP($F$5 &A27,AllocSched,10,FALSE)) -> 001-BD1 | I27: =IF(ISNA(VLOOKUP($F$5 &A27, AllocSched,8,FALSE)),"-",VLOOKUP($F$5 &A27,AllocSched,8,FALSE)) -> BD1
A28: Supplemental Retirement Payments | C28: -6556 | E28: 6556 | G28: 0 | H28: 001-011 | I28: 101
A29: Workers Compensation Changes | C29: -5722 | E29: 5722 | G29: 0 | H29: 001-011 | I29: 101
A32: Earmarks and Provisos
A33: Aerospace Enrollments (1000 FTEs) | C33: =IF(ISNA(VLOOKUP($F$5 &A33, AllocSched,19,FALSE)),"-",VLOOKUP($F$5 &A33,AllocSched,19,FALSE)) -> 315501 | E33: =IF(ISNA(VLOOKUP($F$5 &A33, AllocSched,20,FALSE)),"-",VLOOKUP($F$5 &A33,AllocSched,20,FALSE)) -> - | G33: =SUM(C33:F33) -> 315501 | H33: =IF(ISNA(VLOOKUP($F$5 &A33, AllocSched,10,FALSE)),"-",VLOOKUP($F$5 &A33,AllocSched,10,FALSE)) -> 001-011 | I33: =IF(ISNA(VLOOKUP($F$5 &A33, AllocSched,8,FALSE)),"-",VLOOKUP($F$5 &A33,AllocSched,8,FALSE)) -> 101
A34: Basic Skills Enhancement (ELTA) | C34: 123219 | E34: -123219 | G34: 0 | H34: 08A-3E0 | I34: 3E0
A35: College Affordability Program (Tuition reduction) | C35: 950531 | E35: - | G35: =SUM(C35:F35) -> 950531 | H35: 001-BG1 | I35: BG1
A36: Compensation Tuition Backfill - State Support | C36: =IF(ISNA(VLOOKUP($F$5 &A36, AllocSched,19,FALSE)),"-",VLOOKUP($F$5 &A36,AllocSched,19,FALSE)) -> 182624 | E36: =IF(ISNA(VLOOKUP($F$5 &A36, AllocSched,20,FALSE)),"-",VLOOKUP($F$5 &A36,AllocSched,20,FALSE)) -> 281255 | G36: =SUM(C36:F36) -> 463879 | H36: =IF(ISNA(VLOOKUP($F$5 &A36, AllocSched,10,FALSE)),"-",VLOOKUP($F$5 &A36,AllocSched,10,FALSE)) -> 001-011 | I36: =IF(ISNA(VLOOKUP($F$5 &A36, AllocSched,8,FALSE)),"-",VLOOKUP($F$5 &A36,AllocSched,8,FALSE)) -> 101
A37: Disability Accommodations | C37: 101331 | E37: - | G37: 101331 | H37: 001-011 | I37: 101
A38: Facilities M&O | C38: =IF(ISNA(VLOOKUP($F$5 &A38, AllocSched,19,FALSE)),"-",VLOOKUP($F$5 &A38,AllocSched,19,FALSE)) -> 73000 | E38: =IF(ISNA(VLOOKUP($F$5 &A38, AllocSched,20,FALSE)),"-",VLOOKUP($F$5 &A38,AllocSched,20,FALSE)) -> 366000 | G38: =SUM(C38:F38) -> 439000 | H38: =IF(ISNA(VLOOKUP($F$5 &A38, AllocSched,10,FALSE)),"-",VLOOKUP($F$5 &A38,AllocSched,10,FALSE)) -> 001-011 | I38: =IF(ISNA(VLOOKUP($F$5 &A38, AllocSched,8,FALSE)),"-",VLOOKUP($F$5 &A38,AllocSched,8,FALSE)) -> 101
A39: General Wage Increase | C39: =IF(ISNA(VLOOKUP($F$5 &A39, AllocSched,19,FALSE)),"-",VLOOKUP($F$5 &A39,AllocSched,19,FALSE)) -> 573266 | E39: =IF(ISNA(VLOOKUP($F$5 &A39, AllocSched,20,FALSE)),"-",VLOOKUP($F$5 &A39,AllocSched,20,FALSE)) -> 324621 | G39: =SUM(C39:F39) -> 897887 | H39: =IF(ISNA(VLOOKUP($F$5 &A39, AllocSched,10,FALSE)),"-",VLOOKUP($F$5 &A39,AllocSched,10,FALSE)) -> 001-011 | I39: =IF(ISNA(VLOOKUP($F$5 &A39, AllocSched,8,FALSE)),"-",VLOOKUP($F$5 &A39,AllocSched,8,FALSE)) -> 101
A40: Health Rate Changes | C40: =IF(ISNA(VLOOKUP($F$5 &A40, AllocSched,19,FALSE)),"-",VLOOKUP($F$5 &A40,AllocSched,19,FALSE)) -> 1606722 | E40: =IF(ISNA(VLOOKUP($F$5 &A40, AllocSched,20,FALSE)),"-",VLOOKUP($F$5 &A40,AllocSched,20,FALSE)) -> 261375 | G40: =SUM(C40:F40) -> 1868097 | H40: =IF(ISNA(VLOOKUP($F$5 &A40, AllocSched,10,FALSE)),"-",VLOOKUP($F$5 &A40,AllocSched,10,FALSE)) -> 001-011 | I40: =IF(ISNA(VLOOKUP($F$5 &A40, AllocSched,8,FALSE)),"-",VLOOKUP($F$5 &A40,AllocSched,8,FALSE)) -> 101
A41: Hospital Employee Education & Training | C41: 52747 | E41: -52747 | G41: 0 | H41: 001-011 | I41: 101
A42: Opportunity Grants (ELTA) | C42: 257600 | E42: - | G42: =SUM(C42:F42) -> 257600 | H42: 08A-3E0 | I42: 3E0
A43: Opportunity Grants (GFS) | C43: 29412 | E43: - | G43: =SUM(C43:F43) -> 29412 | H43: 001-011 | I43: 101
A44: PERS/TRS Pension Rate Changes | C44: =IF(ISNA(VLOOKUP($F$5 &A44, AllocSched,19,FALSE)),"-",VLOOKUP($F$5 &A44,AllocSched,19,FALSE)) -> 161564 | E44: =IF(ISNA(VLOOKUP($F$5 &A44, AllocSched,20,FALSE)),"-",VLOOKUP($F$5 &A44,AllocSched,20,FALSE)) -> 1088 | G44: =SUM(C44:F44) -> 162652 | H44: =IF(ISNA(VLOOKUP($F$5 &A44, AllocSched,10,FALSE)),"-",VLOOKUP($F$5 &A44,AllocSched,10,FALSE)) -> 001-011 | I44: =IF(ISNA(VLOOKUP($F$5 &A44, AllocSched,8,FALSE)),"-",VLOOKUP($F$5 &A44,AllocSched,8,FALSE)) -> 101
A45: Students of Color | C45: 46710 | E45: - | G45: 46710 | H45: 001-011 | I45: 101
A46: University Contracts (ELTA) | C46: 83514 | E46: - | G46: 83514 | H46: 08A-3E0 | I46: 3E0
A47: University Contracts (GFS) | C47: 13604 | E47: - | G47: 13604 | H47: 001-011 | I47: 101
